Workbook

Sheet Lists (hidden)
L1: Syntaxfor"Groups",nospacebetweennumberandletter,i.e.11B.
A2: DataValidationLists | D2: EquipmentFleets | I2: Materials | L2: WageSelection
D3: SlopeRegradingFleets | F3: Liner Repair/ Replacement | I3: HolePluggingMaterials | L3: EquipmentOperators | P3: ToeOffsetCalculator
A4: Yes/No | L4: ='Labor Rates'!A35 -> Bulldozers
D5: Small | F5: Repair single | I5: Cuttings | L5: ='Labor Rates'!A36 -> D6T
A6: Yes | D6: Med | F6: Install/add single | I6: Cement | L6: ='Labor Rates'!A37 -> D6R w/ Winch
A7: No | D7: Large | F7: Replace single | I7: Grout | L7: ='Labor Rates'!A38 -> D7E | P7: Current Slope (a) | R7: 2 | S7: H:1V
F8: Add/replace double | L8: ='Labor Rates'!A39 -> D8T | P8: Final Slope (a') | R8: 3 | S8: H:1V
A9: True/False | D9: RoadRegradingFleets | I9: WellPumpTypes | L9: ='Labor Rates'!A40 -> D9T | P9: Lift Height (h) | R9: 20
D10: optimize | L10: ='Labor Rates'!A41 -> D10T2 | P10: Slope (approx) | R10: 0
A11: TRUE | D11: Small | I11: Submersible | L11: ='Labor Rates'!A42 -> D11T
A12: FALSE | D12: Medium | I12: Line Shaft | L12: ='Labor Rates'!A43 -> Wheeled Dozers | Q12: A | R12: =OffsetCurrentSlope*OffsetLiftHeight -> 40
A13: Dozer Materials | D13: Large | L13: ='Labor Rates'!A44 -> 824K | Q13: B | R13: =OffsetFinalSlope*OffsetLiftHeight -> 60
A14: (select material) | L14: ='Labor Rates'!A45 -> 834K | Q14: C | R14: =0.5*(R13-OffsetA) -> 10
A15: 1.2 | D15: CoverPlacementFleets | F15: TransportMethod | I15: Cost Estimate Type Groups | L15: ='Labor Rates'!A46 -> 844K
A16: 1 | D16: Small Truck | I16: (Select One) | L16: ='Labor Rates'!A47 -> 854K
A17: 0.8 | D17: Med Truck | F17: Road only | I17: =ARO -> ARO | L17: ='Labor Rates'!A48 -> Motor Graders | P17: SchedEquipList - used by EquipSchedHr routine - DO NOT DELETE
A18: 0.8 | D18: Large Truck | F18: Alternative | I18: =LOM -> LOM | L18: ='Labor Rates'!A49 -> 12M2 | P18: =L5 -> D6T | S18: =P18 -> D6T
A19: 0.6 | D19: XLarge Truck | I19: =Bond -> FA | L19: ='Labor Rates'!A50 -> 14M | P19: =L6 -> D6R w/ Winch | S19: =P19 -> D6R w/ Winch
D20: Scraper Dozer | I20: =ARO&"+"&LOM -> ARO+LOM | L20: ='Labor Rates'!A51 -> 16M3 | P20: D7E | S20: D7E
A21: Job Efficiency Correction | D21: Tandem Scraper | F21: Current Currency | I21: =ARO&"+"&LOM&"+"&Bond -> ARO+LOM+FA | L21: ='Labor Rates'!A52 -> 24M | P21: D8T | S21: D8T
I22: =ARO&"+"&Bond -> ARO+FA | L22: ='Labor Rates'!A53 -> Track Excavators | P22: =L9 -> D9T | S22: D9T
A23: 30 min/hr | B23: =ROUND(30/60,2) -> 0.5 | D23: RippingFleets | I23: =LOM&"+"&Bond -> LOM+FA | L23: ='Labor Rates'!A54 -> 312F | P23: D10T2 | S23: D10T2
A24: 35 min/hr | B24: =ROUND(35/60,2) -> 0.58 | L24: ='Labor Rates'!A55 -> 320F | P24: D11T | S24: D11T
A25: 40 min/hr | B25: =ROUND(40/60,2) -> 0.67 | D25: Small Dozer | L25: ='Labor Rates'!A56 -> 325F | P25: =L13 -> 824K | S25: 824K
A26: 45 min/hr | B26: =ROUND(45/60,2) -> 0.75 | D26: Med Dozer | F26: Filter Types | I26: Cost Estimate Types | L26: ='Labor Rates'!A57 -> 330F | P26: =L14 -> 834K | S26: 834K
A27: 50 min/hr | B27: =ROUND(50/60,2) -> 0.83 | D27: Large Dozer | I27: (Select One) | L27: ='Labor Rates'!A58 -> 349F | P27: =L15 -> 844K | S27: 844K
A28: 52.5 min/hr | B28: =ROUND(52.5/60,2) -> 0.88 | D28: Grader | F28: Exact | I28: ARO | L28: ='Labor Rates'!A59 -> 374F | P28: =L16 -> 854K | S28: 854K
A29: 55 min/hr | B29: =ROUND(55/60,2) -> 0.92 | F29: Contains | I29: LOM | L29: ='Labor Rates'!A60 -> 390F | P29: =L18 -> 12M2 | S29: 12M2
A30: 60 min/hr | B30: =ROUND(60/60,2) -> 1 | D30: SlabBreakingFleets | F30: Not | I30: Bond | L30: ='Labor Rates'!A61 -> Scrapers | P30: =L19 -> 14M | S30: 14M
L31: ='Labor Rates'!A62 -> 631K | P31: =L20 -> 16M3 | S31: 16M3
A32: Dozer Operator Correction | D32: Sm Excavator | E32: =SmallExcavator -> 320F | F32: Riprap Crews | I32: CheckBox - for dropdowns that need "X" (could use wingding font for checkbox or xbox) | L32: ='Labor Rates'!A63 -> 637K | P32: =L21 -> 24M | S32: 24M
D33: Med Excavator | E33: =MedExcavator -> 325F | F33: B-13 | L33: ='Labor Rates'!A64 -> Wheeled Loaders | P33: =L23 -> 312F | S33: 312F
A34: Excellent | B34: 1 | D34: Lg Excavator | E34: =LargeExcavator -> 330F | F34: B-12G | I34: X | L34: ='Labor Rates'!A65 -> 926M | P34: =L24 -> 320F | S34: 320F
A35: Average | B35: 0.75 | L35: ='Labor Rates'!A66 -> 930M | P35: 325F | S35: 325F
A36: Poor | B36: 0.6 | D36: RoadFleets | F36: Gabion Crew | I36: List for Equipment Use Graph | L36: ='Labor Rates'!A67 -> 950M | P36: 330F | S36: 330F
D37: Small Excavator | F37: B-13 | L37: ='Labor Rates'!A68 -> 966M | P37: 349F | S37: 349F
A38: Other Operator Correction | D38: Med Excavator | I38: Total Equipment | L38: ='Labor Rates'!A69 -> 972M | P38: 374F | S38: 374F
D39: Large Excavator | I39: =P18 -> D6T | L39: ='Labor Rates'!A70 -> 980M | P39: 390F | S39: 390F
A40: Excellent | B40: 1.25 | D40: Small Dozer | F40: Riprap Types | I40: =P19 -> D6R w/ Winch | L40: ='Labor Rates'!A71 -> 988K | P40: =L31 -> 631K | Q40: Haul | S40: 631K
A41: Average | B41: 1 | D41: Med Dozer | I41: D7E | L41: ='Labor Rates'!A72 -> 990K | P41: =L32 -> 637K | Q41: Haul | S41: 637K
A42: Poor | B42: 0.75 | D42: Large Dozer | F42: Rip-Rap 3/8 to 1/4 m3 pieces, grouted | I42: D8T | L42: ='Labor Rates'!A73 -> 992K | P42: =L34 -> 926M | S42: 926M
F43: Rip-Rap 450 mm min thick, no grout | I43: D9T | L43: ='Labor Rates'!A74 -> 994K | P43: =L35 -> 930M | S43: 930M
A44: Visibility Correction | D44: Number of Excavators | F44: Gabions, 6 in (150 mm) deep | I44: D10T2 | L44: ='Labor Rates'!A75 -> L2350 | P44: 950M | S44: 950M
A45: Normal | B45: 1 | F45: Gabions, 9 in (250 mm) deep | I45: D11T | L45: ='Labor Rates'!A76 -> Shovels/Excavators | P45: 966M | S45: 966M
A46: Dust, rain, snow, fog or darkness | B46: 0.8 | D46: 1 | F46: Gabions, 12 in (300 mm) deep | I46: 824K | L46: ='Labor Rates'!A77 -> PC2000 | P46: 972M | S46: 972M
D47: 2 | F47: Gabions, 18 in (450 mm) deep | I47: 834K | L47: ='Labor Rates'!A78 -> PC3000 | P47: 980M | S47: 980M
A48: Cover Materials | F48: Gabions, 36 in (1m) deep | I48: 844K | L48: ='Labor Rates'!A79 -> PC4000 | P48: 988K | S48: 988K
D49: BackfillFleets | I49: 854K | L49: ='Labor Rates'!A80 -> PC5500 | P49: 990K | S49: 990K
A50: =INDEX(HaulMaterials,B50) -> Alluvium | B50: 2 | D50: Small Truck | I50: 12M2 | L50: ='Labor Rates'!A81 -> PC8000 | P50: 992K | S50: 992K
A51: Basalt | B51: 3 | D51: Med Truck | I51: 14M | L51: ='Labor Rates'!A82 -> EX2500 | P51: 994K | S51: 994K
A52: Clay - Dry | B52: 4 | D52: Large Truck | I52: 16M3 | L52: ='Labor Rates'!A83 -> Hydraulic Hammers | P52: L2350 | S52: L2350
A53: Granite - broken | B53: 5 | D53: XLarge Truck | I53: 24M | L53: ='Labor Rates'!A84 -> H120Es (fits 325) | P53: =L46 -> PC2000 | S53: PC2000
A54: Gravel | B54: 6 | I54: 312F | L54: ='Labor Rates'!A85 -> H160Es (fits 349) | P54: PC3000 | S54: PC3000
A55: Limestone - broken | B55: 7 | D55: DitchExcavatorFleets | I55: 320F | L55: ='Labor Rates'!A86 -> H180Es (fits 374/390) | P55: PC4000 | S55: PC4000
A56: Limestone - crushed | B56: 8 | I56: 325F | L56: ='Labor Rates'!A87 -> Demolition Shears | P56: PC5500 | S56: PC5500
A57: Sandstone | B57: 9 | D57: Small | I57: 330F | L57: ='Labor Rates'!A88 -> S3050 (fits 320/325/330) | P57: PC8000 | S57: PC8000
A58: Shale | B58: 10 | D58: Medium | I58: 349F | L58: ='Labor Rates'!A89 -> S3070 (fits 330/349) | P58: EX2500 | S58: EX2500
A59: Stone - crushed | B59: 11 | D59: Large | I59: 374F | L59: ='Labor Rates'!A90 -> S3090 (fits 374/390) | P59: =L53 -> H120Es (fits 325) | S59: H120Es (fits 325)
A60: Tailings - Coarse (dry, loose sand) | B60: 12 | I60: 390F | L60: ='Labor Rates'!A91 -> Demolition Grapples | P60: =L54 -> H160Es (fits 349) | S60: H160Es (fits 349)
A61: Tailings - Slimes (loose sand & clay) | B61: 13 | D61: ProjectMaintenanceFleets | I61: 631K | L61: ='Labor Rates'!A92 -> G315B (fits 320/325) | P61: =L55 -> H180Es (fits 374/390) | S61: H180Es (fits 374/390)
A62: Topsoil | B62: 14 | I62: 637K | L62: ='Labor Rates'!A93 -> G320B (fits 325/330) | P62: =L57 -> S3050 (fits 320/325/330) | S62: S3050 (fits 320/325/330)
D63: Small | I63: 926M | L63: ='Labor Rates'!A94 -> G330 (fits 349/374) | P63: =L58 -> S3070 (fits 330/349) | S63: S3070 (fits 330/349)
A64: Dozing Density Correction | D64: Medium | I64: 930M | L64: ='Labor Rates'!A95 -> Other Equipment | P64: =L59 -> S3090 (fits 374/390) | S64: S3090 (fits 374/390)
D65: Large | I65: 950M | L65: ='Labor Rates'!A96 -> 420F2 | P65: =L61 -> G315B (fits 320/325) | S65: G315B (fits 320/325)
A66: =Productivity!B182 -> Alluvium | B66: =ROUND(2300/VLOOKUP(A66,DozingMaterialArray,2),2) -> 0.79 | D66: Liner Types | I66: 966M | L66: ='Labor Rates'!A97 -> 430F2 | P66: =L62 -> G320B (fits 325/330) | S66: G320B (fits 325/330)
A67: =Productivity!B183 -> Basalt | B67: 0.7 | I67: 972M | L67: ='Labor Rates'!A98 -> CS54B | P67: =L63 -> G330 (fits 349/374) | S67: G330 (fits 349/374)
A68: =Productivity!B184 -> Clay - Dry | B68: 0.92 | D68: None | I68: 980M | L68: ='Labor Rates'!A99 -> CS64B | P68: =L65 -> 420F2 | S68: 420F2
A69: =Productivity!B185 -> Granite - broken | B69: 0.82 | D69: ='Misc. Unit Costs'!B193 -> 60 mil HDPE | I69: 988K | L69: ='Labor Rates'!A100 -> CP54B | P69: 430F2 | S69: 430F2
A70: =Productivity!B186 -> Gravel | B70: 0.9 | I70: 990K | L70: ='Labor Rates'!A101 -> CP68B | P70: CS54B | S70: CS54B
A71: =Productivity!B187 -> Limestone - broken | B71: 0.88 | D71: ExplRoadFleets | I71: 992K | L71: ='Labor Rates'!A102 -> Light Truck - 1.5 Ton | P71: CS64B | S71: CS64B
A72: =Productivity!B188 -> Limestone - crushed | B72: 0.88 | D72: Small Excavator | I72: 994K | L72: ='Labor Rates'!A103 -> Supervisor's Truck | P72: CP54B | S72: CP54B
A73: =Productivity!B189 -> Sandstone | B73: 0.9 | D73: Small Dozer | E73: NoGrader | I73: L2350 | L73: ='Labor Rates'!A104 -> Flatbed Truck | P73: CP68B | S73: CP68B
A74: =Productivity!B190 -> Shale | B74: 1.1 | D74: =IF(NOI,"","Medium Excavator") -> Medium Excavator | I74: PC2000 | L74: ='Labor Rates'!A105 -> Air Compressor + tools | P74: Light Truck - 1.5 Ton | S74: Light Truck - 1.5 Ton
A75: =Productivity!B191 -> Stone - crushed | B75: 0.85 | D75: =IF(NOI,"","Large Dozer") -> Large Dozer | I75: PC3000 | L75: ='Labor Rates'!A106 -> Welding Equipment | P75: Supervisor's Truck | S75: Supervisor's Truck
A76: Tailings - Coarse (dry, loose sand) | B76: 0.96 | D76: Grader | E76: ExplRoadFleets | I76: PC4000 | L76: ='Labor Rates'!A107 -> Heavy Duty Drill Rig | P76: Flatbed Truck | S76: Flatbed Truck
A77: Tailings - Slimes (loose sand & clay) | B77: 0.85 | I77: PC5500 | L77: ='Labor Rates'!A108 -> Pump (plugging) Drill Rig | P77: Air Compressor + tools | S77: Air Compressor + tools
A78: =Productivity!B194 -> Topsoil | B78: 1.44 | D78: Fence Install Crews | I78: PC8000 | L78: ='Labor Rates'!A109 -> Concrete Pump | P78: Welding Equipment | S78: Welding Equipment
I79: EX2500 | L79: ='Labor Rates'!A110 -> Gas Engine Vibrator | P79: Heavy Duty Drill Rig | S79: Heavy Duty Drill Rig
A80: Drill Hole Types | D80: Install Barbed Wire Fence | E80: B-80A | I80: H120Es (fits 325) | L80: ='Labor Rates'!A111 -> Generator 5KW | P80: Pump (plugging) Drill Rig | S80: Pump (plugging) Drill Rig
D81: Install Chain Link Fence | E81: B-80C | I81: H160Es (fits 349) | L81: ='Labor Rates'!A112 -> HDEP Welder (pipe or liner) | P81: Concrete Pump | S81: Concrete Pump
A82: Monitor | I82: H180Es (fits 374/390) | L82: ='Labor Rates'!A113 -> 5 Ton Crane | P82: Gas Engine Vibrator | S82: Gas Engine Vibrator
A83: Dewatering | I83: S3050 (fits 320/325/330) | L83: ='Labor Rates'!A114 -> 20 Ton Crane | P83: Generator 5KW | S83: =P83 -> Generator 5KW
A84: Production | D84: Fence Removal Crews | I84: S3070 (fits 330/349) | L84: ='Labor Rates'!A115 -> 50 Ton Crane | P84: HDEP Welder (pipe or liner) | S84: HDEP Welder (pipe or liner)
A85: Injection | I85: S3090 (fits 374/390) | L85: ='Labor Rates'!A116 -> 120 Ton Crane | P85: 5 Ton Crane | S85: 5 Ton Crane
D86: Barbed Wire Fence Removal | E86: 2 Clab | I86: G315B (fits 320/325) | L86: Trucks | P86: 20 Ton Crane | S86: 20 Ton Crane
A87: Slab Demolition | D87: Chain Link Fence/Pipeline/Culvert Removal | E87: B-6 | I87: G320B (fits 325/330) | L87: ='Labor Rates'!A122 -> Truck Drivers (4) | P87: 50 Ton Crane | S87: 50 Ton Crane
I88: G330 (fits 349/374) | L88: ='Labor Rates'!A123 -> 725C2 | P88: 120 Ton Crane | S88: 120 Ton Crane
A89: Break & bury | D89: Solid Waste Types | I89: 420F2 | L89: ='Labor Rates'!A124 -> 730C2 | P89: =L88 -> 725C2 | Q89: Haul | S89: 725C2
A90: Bury in place | I90: 430F2 | L90: ='Labor Rates'!A125 -> 735C | P90: 730C2 | Q90: Haul | S90: 730C2
D91: Solid Waste | I91: CS54B | L91: ='Labor Rates'!A126 -> 740C | P91: 735C | Q91: Haul | S91: 735C
D92: Construction Debris | I92: CS64B | L92: ='Labor Rates'!A127 -> 770G | P92: 740C | Q92: Haul | S92: 740C
A93: Building Types | I93: CP54B | L93: ='Labor Rates'!A128 -> 773G | P93: 770G | Q93: Haul | S93: 770G
D94: Hazardous Material Types | I94: CP68B | L94: ='Labor Rates'!A129 -> 777G | P94: 773G | Q94: Haul | S94: 773G
A95: ='Misc. Unit Costs'!B38 -> Lg. steel | I95: Light Truck - 1.5 Ton | L95: ='Labor Rates'!A130 -> 785D | P95: 777G | Q95: Haul | S95: 777G
A96: ='Misc. Unit Costs'!B39 -> Lg. concrete | D96: Solid | I96: Supervisor's Truck | L96: ='Labor Rates'!A131 -> 789D | P96: 785D | Q96: Haul | S96: 785D
A97: ='Misc. Unit Costs'!B40 -> Lg. masonry | D97: Liquid | I97: Flatbed Truck | L97: ='Labor Rates'!A132 -> 793F | P97: 789D | Q97: Haul | S97: 789D
A98: ='Misc. Unit Costs'!B41 -> Lg. mixed | I98: Air Compressor + tools | L98: ='Labor Rates'!A133 -> 797F | P98: 793F | Q98: Haul | S98: 793F
A99: ='Misc. Unit Costs'!B42 -> Sm. steel | D99: Hydrocarbon Contam Wastes | I99: Welding Equipment | L99: ='Labor Rates'!A134 -> 613E (5,000 gal) | P99: 797F | Q99: Haul | S99: 797F
A100: ='Misc. Unit Costs'!B43 -> Sm. concrete | I100: Heavy Duty Drill Rig | L100: ='Labor Rates'!A135 -> 621E (8,000 gal) | P100: 613E (5,000 gal) | Q100: Haul | S100: 613E (5,000 gal)
A101: ='Misc. Unit Costs'!B44 -> Sm. masonry | D101: Contaminated Soil | I101: Pump (plugging) Drill Rig | L101: ='Labor Rates'!A136 -> 777G H2O Truck | P101: 621E (8,000 gal) | Q101: Haul | S101: 621E (8,000 gal)
A102: ='Misc. Unit Costs'!B45 -> Sm. wood | D102: Other | I102: Concrete Pump | L102: ='Labor Rates'!A137 -> 785D H2O Truck | P102: 777G H2O Truck | Q102: Haul | S102: 777G H2O Truck
I103: Gas Engine Vibrator | L103: ='Labor Rates'!A138 -> Dump Truck (10-12 yd3) | P103: 785D H2O Truck | Q103: Haul | S103: 785D H2O Truck
A104: Wall Types | D104: Waste Containment Types | I104: =P83 -> Generator 5KW | L104: ='Labor Rates'!A139 -> Tractor/Trailer (20 ton) | P104: Dump Truck (10-12 yd3) | Q104: Haul | S104: Dump Truck (10-12 yd3)
I105: HDEP Welder (pipe or liner) | L105: ='Labor Rates'!A140 -> Tractor/Trailer (50 ton)
A106: ='Misc. Unit Costs'!B48 -> Block 4 in (100 mm) thick | D106: =IF(Metric,"Solid 200-L drum","Solid 55-gal drum") -> Solid 55-gal drum | I106: 5 Ton Crane | L106: ='Labor Rates'!A141 -> Tractor/Trailer (80 ton)
A107: ='Misc. Unit Costs'!B49 -> Block 6 in (150 mm) thick | D107: Solid Bulk | I107: 20 Ton Crane | P107: Laborers
A108: ='Misc. Unit Costs'!B50 -> Block 8 in (200 mm) thick | D108: =IF(Metric,"Liquid 200-L drum","Liquid 55-gal drum") -> Liquid 55-gal drum | I108: 50 Ton Crane | P108: ='Labor Rates'!A147 -> General Laborer
A109: ='Misc. Unit Costs'!B51 -> Block 12 in (300 mm) thick | D109: Liquid Bulk | I109: 120 Ton Crane | P109: ='Labor Rates'!A148 -> Skilled Laborer
A110: ='Misc. Unit Costs'!B52 -> Conc 6 in (150 mm) thick | I110: 725C2 | P110: ='Labor Rates'!A149 -> Driller's Helper
A111: ='Misc. Unit Costs'!B53 -> Conc 8 in (200 mm) thick | D111: Waste Disposal Sites | I111: 730C2 | P111: ='Labor Rates'!A150 -> Rodmen (reinforcing concrete)
A112: ='Misc. Unit Costs'!B54 -> Conc 10 in (250 mm) thick | I112: 735C | P112: ='Labor Rates'!A151 -> Cement finisher
A113: ='Misc. Unit Costs'!B55 -> Conc 12 in (300 mm) thick | D113: Landfill (bulk) | I113: 740C | P113: ='Labor Rates'!A152 -> Carpenter
D114: Dumpster | I114: 770G | P114: ='Labor Rates'!A159 -> Project Manager
A115: Fence Types | I115: 773G | P115: ='Labor Rates'!A160 -> Foreman
D116: Vacuum Truck Size | I116: 777G | P116: ='Labor Rates'!A161 -> Field Geologist/Engineer
A117: ='Misc. Unit Costs'!B127 -> Barbed 3-strand Removal | I117: 785D | P117: ='Labor Rates'!A162 -> Field Tech/Sampler
A118: ='Misc. Unit Costs'!B129 -> Barbed 5-strand Removal | D118: Small (2,200 gal) | I118: 789D | P118: ='Labor Rates'!A163 -> Range Scientist
A119: ='Misc. Unit Costs'!B130 -> Chain link 8 ft -10 ft Removal | D119: Large (5,000 gal) | I119: 793F | P119: ='Labor Rates'!A159 -> Project Manager
I120: 797F | P120: ='Labor Rates'!A160 -> Foreman
A121: Exploration Hole Types | D121: Waste Categories | I121: 613E (5,000 gal) | P121: ='Labor Rates'!A161 -> Field Geologist/Engineer
I122: 621E (8,000 gal) | P122: ='Labor Rates'!A162 -> Field Tech/Sampler | Q122: <<--- LaborerDropDownList
A123: Rotary | D123: Process - Other | I123: 777G H2O Truck | P123: ='Labor Rates'!A163 -> Range Scientist
A124: Reverse Circ | D124: Other Facilities | I124: 785D H2O Truck | P124: ='Labor Rates'!A164 -> 
A125: Core | D125: Off Site Facilities | I125: Dump Truck (10-12 yd3) | P125: ='Labor Rates'!A165 -> 
A126: Rotary Pre-drill | D126: Waste Mgmt & Disposal | P126: ='Labor Rates'!A166 -> 
P127: =IF(ISBLANK('Labor Rates'!A167),"",'Labor Rates'!A167) -> 
A128: Exploration Access/Slopes | L128: Maintenance Fleets | P128: =IF(ISBLANK('Labor Rates'!A168),"",'Labor Rates'!A168) -> 
D129: HCS Disposal | F129: Power Line Location | L129: 14G/H | M129: <<--- Maintenance Fleets | P129: =IF(ISBLANK('Labor Rates'!A169),"",'Labor Rates'!A169) -> 
A130: Overland | L130: 16G/H | P130: =IF(ISBLANK('Labor Rates'!A170),"",'Labor Rates'!A170) -> 
A131: Original Slope <30 | D131: On site | F131: On site | L131: =L99 -> 613E (5,000 gal) | P131: =IF(ISBLANK('Labor Rates'!A171),"",'Labor Rates'!A171) -> 
A132: Original Slope >30 | D132: Off site | F132: Off site | L132: =L100 -> 621E (8,000 gal) | M132: <<--- Water Truck Fleets | P132: =IF(ISBLANK('Labor Rates'!A172),"",'Labor Rates'!A172) -> 
L133: =L101 -> 777G H2O Truck | P133: =IF(ISBLANK('Labor Rates'!A173),"",'Labor Rates'!A173) -> 
A134: Adit/Decline Plug Types | D134: Pipe Locations | L134: =L102 -> 785D H2O Truck | M134: <<--- Maintenance Fleets | P134: =IF(ISBLANK('Labor Rates'!A174),"",'Labor Rates'!A174) -> 
P135: =IF(ISBLANK('Labor Rates'!A175),"",'Labor Rates'!A175) -> 
A136: Rock Backfill | D136: On site | P136: =IF(ISBLANK('Labor Rates'!A176),"",'Labor Rates'!A176) -> 
A137: Concrete Bulkhead | D137: Off site | L137: Seeding Methods | P137: =IF(ISBLANK('Labor Rates'!A177),"",'Labor Rates'!A177) -> 
A138: Concrete + Rock | L138: Hand Broadcast
A139: Bat Gate | D139: Closure Plan Studies | L139: Mechanical Broadcast
A140: Bat Culvert | L140: Drill
A141: Foam (adit) | D141: closure plan | L141: Hydroseeding
A142: Foam (production) | D142: compliance report | L142: Shrub Planting - bare root
D143: geotechnical | L143: Tree Planting - bare root
A144: Adit/Portal Backfill Methods | D144: hydrological | L144: Cactus Planting
D145: geochemical
A146: Dozer | D146: revegetation | L146: DozerList
A147: Loader | D147: water quality | L147: =L5 -> D6T
D148: wildlife | L148: =L7 -> D7E
A149: Shaft Plug Types | D149: contaminant characterization | L149: =L8 -> D8T
D150: legacy site survey | L150: =L9 -> D9T
A151: Backfill | D151: open hole survey | L151: =L10 -> D10T2
A152: Concrete Cap | D152: land use/socioeconomics | L152: =L11 -> D11T
A153: Steel Cap | B153: << Not currently used | D153: other
A155: Powerline Types | D155: Closure Plan Engineering | L155: Crusher Haul Fleets
A156: ='Misc. Unit Costs'!B163 -> Single Pole Powerlines | L156: LongHaul | M156: ShortHaul | N156: Push (Doze) | O156: Cut (Excavate)
A157: ='Misc. Unit Costs'!B164 -> Double Pole Powerlines | D157: testing | L157: Small Truck | M157: Small Loader | N157: Small Dozer | O157: Small Excavator
D158: design | L158: Med Truck | M158: Med Loader | N158: Med Dozer | O158: Med Excavator
A159: Seed Mixes | D159: materials balance | L159: Large Truck | M159: Large Loader | N159: Large Dozer | O159: Large Excavator
D160: other | L160: XLarge Truck | M160: XLarge Loader
A161: ='Material Costs'!A21 -> None | L161: Scraper Dozer
A162: ='Material Costs'!A22 -> Mix 1 | D162: Closure Plan Permitting | L162: Tandem Scraper
A163: ='Material Costs'!A23 -> Mix 2
A164: ='Material Costs'!A24 -> Mix 3 | D164: application
A165: ='Material Costs'!A25 -> Mix 4 | D165: fees | L165: Pilot Car Requirements
A166: ='Material Costs'!A26 -> User Mix 1 | D166: legal | L166: Width | M166: Lanes | N166: Pilot Cars
A167: ='Material Costs'!A27 -> User Mix 2 | D167: public consultation | L167: =IF(Metric, ROUND(12*Ft2M,1),12) -> 12 | M167: 2 | N167: 1
A168: ='Material Costs'!A28 -> User Mix 3 | D168: other | L168: =IF(Metric, ROUND(14*Ft2M,1),14) -> 14 | M168: 2 | N168: 2
A169: ='Material Costs'!A29 -> User Mix 4 | L169: =IF(Metric, ROUND(16*Ft2M,1),16) -> 16 | M169: 2 | N169: 3
D170: Water Pipe Types | L170: =IF(Metric, ROUND(14*Ft2M,1),14) -> 14 | M170: 4 | N170: 1
A171: ='Material Costs'!A31 -> User Mix 5 (from Seed Mix sheet) | L171: =IF(Metric, ROUND(16*Ft2M,1),16) -> 16 | M171: 4 | N171: 2
D172: Water 4in (100mm ) welded HDPE | E172: 1
A173: Pit Berm Construction | D173: Water 6in (150mm) welded HDPE | E173: 2
D174: Water 12in (300mm) welded HDPE | E174: 3
A175: Haul & Place
A176: Excavate | D176: Drainpipe Types
A177: Dozer
D178: Drain 4in (100mm) perforated PVC | E178: 5
D179: Drain 6in (150mm) perforated PVC | E179: 6
A180: Drillhole Plug Methods | D180: Drain 4in (100mm) corrugated, perf or plain | E180: 3
D181: Drain 6in (150mm) corrugated., perf or plain | E181: 4
A182: =IF(Nevada,"","none") -> none
A183: Grout + Backfill | D183: TrenchBackfillFleets | F183: Sheet - Info from schedule sheets
A184: Grout Only | F184: DetailSheetName | G184: Range Name | H184: First Schedule Column | I184: Last Operations Column | J184: First operations year to show | K184: Last Operations Column to Hide | L184: First Closure Year Column | M184: First Closure Column to Hide | N184: Last Column
A185: Cement Plug | D185: Small Dozer | F185: =CostType&" Schedule" -> FA Schedule | G185: _Schedule | H185: =INDEX(NumbersLetters,MATCH(CELL("Col",'FA Schedule'!$T$25),$A$365:$A$572),2) -> T | I185: =INDEX(NumbersLetters,MATCH(CELL("col",(OFFSET('FA Schedule'!$T$25,1,ClosureYear1-FirstYrOps-1))),$A$365:$A$572),2) -> S | J185: =INDEX(NumbersLetters,MATCH(CELL("col",(OFFSET('FA Schedule'!$T$25,1,ClosureYear1-FirstYrOps-OpsYears))),$A$365:$A$572),2) -> J | K185: =INDEX(NumbersLetters,MATCH(CELL("col",(OFFSET('FA Schedule'!$T$25,1,ClosureYear1-FirstYrOps-OpsYears)))-1,$A$365:$A$572),2) -> I | L185: =INDEX(NumbersLetters,MATCH(CELL("col",(OFFSET('FA Schedule'!$T$25,1,ClosureYear1-FirstYrOps))),$A$365:$A$572),2) -> T | M185: =INDEX(NumbersLetters,MATCH(CELL("col",(OFFSET('FA Schedule'!$T$25,1,ClosureYear1-FirstYrOps-OpsYears+SchedYears))),$A$365:$A$572),2) -> DF | N185: =INDEX(NumbersLetters,MATCH(CELL("col",(OFFSET('FA Schedule'!$T$25,1,100)))-1,$A$365:$A$572),2) -> DO
A186: =IF(Nevada,"","Top Plug") -> Top Plug | D186: Medium Dozer | F186: Acct Codes | G186: AcctSched | H186: =INDEX(NumbersLetters,MATCH(CELL("Col",'Acct Codes'!$H$35),$A$365:$A$572),2) -> H | I186: =INDEX(NumbersLetters,MATCH(CELL("col",(OFFSET('Acct Codes'!$H$35,1,ClosureYear1-FirstYrOps-1))),$A$365:$A$572),2) -> G | J186: =INDEX(NumbersLetters,MATCH(CELL("col",(OFFSET('Acct Codes'!$H$35,1,ClosureYear1-FirstYrOps-OpsYears))),$A$365:$A$572),2) ->  | K186: =INDEX(NumbersLetters,MATCH(CELL("col",(OFFSET('Acct Codes'!$H$35,1,ClosureYear1-FirstYrOps-OpsYears)))-1,$A$365:$A$572),2) ->  | L186: =INDEX(NumbersLetters,MATCH(CELL("col",(OFFSET('Acct Codes'!$H$35,1,ClosureYear1-FirstYrOps))),$A$365:$A$572),2) -> H | M186: =INDEX(NumbersLetters,MATCH(CELL("col",(OFFSET('Acct Codes'!$H$35,1,ClosureYear1-FirstYrOps-OpsYears+SchedYears))),$A$365:$A$572),2) -> CT | N186: =INDEX(NumbersLetters,MATCH(CELL("col",(OFFSET('Acct Codes'!$H$35,1,100)))-1,$A$365:$A$572),2) -> DC
D187: Large Dozer | F187: Human Resources | G187: HRSched | H187: =INDEX(NumbersLetters,MATCH(CELL("Col",'Human Resources'!$K$27),$A$365:$A$572),2) -> K | I187: =INDEX(NumbersLetters,MATCH(CELL("col",(OFFSET('Human Resources'!$K$27,1,ClosureYear1-FirstYrOps-1))),$A$365:$A$572),2) -> J | J187: =INDEX(NumbersLetters,MATCH(CELL("col",(OFFSET('Human Resources'!$K$27,1,ClosureYear1-FirstYrOps-OpsYears))),$A$365:$A$572),2) -> A | K187: =INDEX(NumbersLetters,MATCH(CELL("col",(OFFSET('Human Resources'!$K$27,1,ClosureYear1-FirstYrOps-OpsYears)))-1,$A$365:$A$572),2) ->  | L187: =INDEX(NumbersLetters,MATCH(CELL("col",(OFFSET('Human Resources'!$K$27,1,ClosureYear1-FirstYrOps))),$A$365:$A$572),2) -> K | M187: =INDEX(NumbersLetters,MATCH(CELL("col",(OFFSET('Human Resources'!$K$27,1,ClosureYear1-FirstYrOps-OpsYears+SchedYears))),$A$365:$A$572),2) -> CW | N187: =INDEX(NumbersLetters,MATCH(CELL("col",(OFFSET('Human Resources'!$K$27,1,100)))-1,$A$365:$A$572),2) -> DF
A188: IFM Project Size | F188: Equip Use | G188: EquipSched | H188: =INDEX(NumbersLetters,MATCH(CELL("Col",'Equip Use'!$F$26),$A$365:$A$572),2) -> F | I188: =INDEX(NumbersLetters,MATCH(CELL("col",(OFFSET('Equip Use'!$F$26,1,ClosureYear1-FirstYrOps-1))),$A$365:$A$572),2) -> E | J188: =INDEX(NumbersLetters,MATCH(CELL("col",(OFFSET('Equip Use'!$F$26,1,ClosureYear1-FirstYrOps-OpsYears))),$A$365:$A$572),2) ->  | K188: =INDEX(NumbersLetters,MATCH(CELL("col",(OFFSET('Equip Use'!$F$26,1,ClosureYear1-FirstYrOps-OpsYears)))-1,$A$365:$A$572),2) ->  | L188: =INDEX(NumbersLetters,MATCH(CELL("col",(OFFSET('Equip Use'!$F$26,1,ClosureYear1-FirstYrOps))),$A$365:$A$572),2) -> F | M188: =INDEX(NumbersLetters,MATCH(CELL("col",(OFFSET('Equip Use'!$F$26,1,ClosureYear1-FirstYrOps-OpsYears+SchedYears))),$A$365:$A$572),2) -> CR | N188: =INDEX(NumbersLetters,MATCH(CELL("col",(OFFSET('Equip Use'!$F$26,1,100)))-1,$A$365:$A$572),2) -> DA
A190: Small
A191: Large | D191: Pond BackfillFleets
A193: Pipe material | D193: Small Truck
D194: Med Truck
A195: HDPE | D195: Large Truck
A196: PVC | D196: XLarge Truck
A197: Brass | D197: Small Dozer
A198: Cast Iron | D198: Med Dozer
A199: Smooth Steel | D199: Large Dozer
A200: Asbestos Cement
D201: Frequency
A202: Evaporator Types
D203: One-time
... 368 more rows

Sheet Property Information
B2: Enter Data Below in Green and Blue Spaces
BC3: Created from working version | BD3: SRCE_2.0_Beta1.xlsm | BE3: dec 3 2017 - fixes error in Ponds that did not allow scraper dozer fleet for backfill
B4: STANDARDIZED RECLAMATION COST ESTIMATOR | BB4: Release version? | BC4: TRUE
BD5: Currency Symbol:
B6: ="Version " & ModelVersion -> Version 2.0 | BB6: Version | BC6: 2.0 | BD6: =INDEX(CurrencySymbols,MATCH(CurrentCur,Currencies,0),2) -> $
B7: ="Build - " & BuildNo & BuildRevision -> Build - Beta 01m | BB7: Build: | BC7: Beta 01
BB8: Build Num: | BC8: 1
BB9: Build Revison: | BC9: m
B10: COST DATA FILE INFORMATION | BC10: Button Links
BB11: IsBRCE? | BC11: FALSE
B12: File Name: | C12: =MID(BF16,BE16+1,BD16-BE16-1) -> 20230222 CHMRP - NMED DP-55 Cost Estimate Model SRCE 2.0.xlsm
BB13: Nevada? | BC13: FALSE
B14: Cost Data File: | C14: =DataFileName -> SRCE_2.0_CostDataFile_2022 NM contractor rates.xlsm
BC15: Button Links
B16: Cost Data Date: | C16: =DataFileDate -> 2022-11-04 | BB16: =MID(BF16,BE16+1,BD16-BE16-1) -> 20230222 CHMRP - NMED DP-55 Cost Estimate Model SRCE 2.0.xlsm | BD16: =FIND("]",BF16,BE16+1) -> 199 | BE16: =FIND("[",BF16) -> 137 | BF16: =BG16 -> https://barrickgold.sharepoint.com/sites/PMClosure/Shared Documents/Cunningham Hill/09-Reclamation/2023 Financial Assurance - SRCE Docs/[20230222 CHMRP - NMED DP-55 Cost Estimate Model SRCE 2.0.xlsm]Property Information | BG16: =CELL("filename",C12) -> https://barrickgold.sharepoint.com/sites/PMClosure/Shared Documents/Cunningham Hill/09-Reclamation/2023 Financial Assurance - SRCE Docs/[20230222 CHMRP - NMED DP-55 Cost Estimate Model SRCE 2.0.xlsm]Property Information
BD17: Metric | BE17: English
B18: Cost Data Basis: | C18: =DataCostBasis -> User Data | F18: Data Cost Units: | G18: =DataUnits -> Imperial | BB18: Measurement Units | BC18: 2 | BD18: =IF(BC18=1,TRUE,FALSE) -> FALSE
B20: Author/Source: | C20: =IF(ISBLANK(AuthorSource),"", AuthorSource) -> 2022 Contractor Rates New Mexico | BB20: Language | BD20: =C32 -> Russian
B22: PROJECT INFORMATION | BB22: Cost Data File: | BD22: SRCE_2.0_CostDataFile_2022 NM contractor rates.xlsm
B24: Property/Mine Name: | C24: Cunningham Hill Mine Reclamation Project | F24: Property Code: | G24: 1310 | BB24: Cost Data Date: | BD24: 2022-11-04
B26: Project Name: | C26: CHMRP DP 55 Cost Estimate | BB26: Cost Data Basis: | BD26: User Data
B28: Date of Submittal: | C28: December 2022 | F28: Average Elevation | G28: 7100 | H28: =IF(Metric,"m","ft.") -> ft. | BB28: Author/Source: | BD28: 2022 Contractor Rates New Mexico
B30: Units of Measure: | BA30: 1 | BB30: Data Cost Units: | BD30: Imperial
B32: Language: | C32: Russian | D32: <<< Doesn’t work yet
B34: Currency Symbol: | C34: Dollar (US) | BB34: NOI/POO | BC34: 1 | BD34: FALSE | BE34: FALSE | BF34: TRUE
B36: Project Type: | C36: Mine Operations Plan | BB36: Public/Private | BD36: FALSE | BE36: TRUE | BF36: =IF(BE36=TRUE,"Public","Private") -> Public
B38: Land Type: | C38: Private Land | BB38: Std Labor Cost | BD38: TRUE | BE38: FALSE | BF38: =IF(BD38=TRUE,"DAVIS BACON WAGE RATES", "MINE OPERATOR WAGE RATES") -> DAVIS BACON WAGE RATES
B40: Cost Estimate Type: | C40: =CostType -> FA | BB40: Std Equip Cost | BD40: TRUE | BE40: FALSE | BF40: =IF(BD40=TRUE,"CATERPILLAR RENTAL RATES", "MINE OPERATOR COSTS") -> CATERPILLAR RENTAL RATES
BD41: TRUE | BE41: FALSE
B42: Cost Basis Category: | BC42: 1
B44: Cost Basis Description: | C44: =IF(ProjectRegion=0,"**** LOAD DATA FILE FROM SRCE MENU . . . . . . OR SELECT PROJECT REGION IF DATA ALREADY LOADED ****",VLOOKUP(ProjectRegion,RegionInformationTable,2,FALSE)) -> Rates from EnviroWorks, Strickland and others | BB44: In Nevada? | BD44: FALSE
BB45: New Data? | BC45: 2 | BD45: FALSE | BE45: did the data just get imported?
BB46: Selected Region: | BC46: 2 | BD46: =INDEX(RegionInformationTable,BC46,1) -> FAI-Contractor Rates New Mexico 2022 | BE46: 1
B47: Copyright© 2004-2019 | BB47: Zones Valid? | BC47: 1 | BD47: =IF(ProjectRegion="","",IF(OR(ISBLANK(EquipmentZone),ISBLANK(TruckDriverZone),ISBLANK(LaborerZone),EquipmentZoneRate="Invalid Zone",TruckZoneRate="Invalid Zone",LaborZoneRate="Invalid Zone"),FALSE,TRUE)) -> TRUE
B48: SRCE Software. All Rights Reserved | D48: ="" ->  | BB48: Region | BC48: Region Name | BD48: Regional Description
BB50: Region 1 | BC50: FAI-Contractor Rates Northern Nevada 2022 | BD50: Contractor rates from Northern Nevada - NDEP rates
BB51: Region 2 | BC51: FAI-Contractor Rates New Mexico 2022 | BD51: Rates from EnviroWorks, Strickland and others
BB52: Region 3
BB53: Region 4
BB54: Region 5
BB55: Region 6
BB56: Region 7
BB57: Region 8
BB58: Region 9
BB59: Region 10
BB60: Region 11
BB61: Region 12
BB62: Region 13
BB63: Region 14
BB64: Region 15
K167: =IF(J167="None required","",IF(ISBLANK(B13),"",IF(G59="optimize",FI167,G59))) -> 

Sheet Table of Contents (hidden)
B2: =IF('Property Information'!C26=0,"Enter Project Name",CONCATENATE("Project Name: ",'Property Information'!C26)) -> Project Name: CHMRP DP 55 Cost Estimate
B3: =IF(SubmittalDate=0,"Enter Submittal Date",CONCATENATE("Project Date: ",SubmittalDate)) -> Project Date: December 2022
B4: =FileName -> 20230222 CHMRP - NMED DP-55 Cost Estimate Model SRCE 2.0.xlsm
B5: =IF('Property Information'!$BD$34=TRUE,"Notice",IF('Property Information'!$BE$34=TRUE,"Plan of Operations","Reclamation Plan")) -> Reclamation Plan
B7: Table of Contents
B9: Property Information
B10: Cost Summary
B11: Cost Schedule
B12: PER-LOM Detail
B13: PER-LOM Summary
B14: Cashflow Summary
B15: Exploration
B16: Exploration Roads & Pads
B17: Waste Rock Dumps
B18: Heap Leach Pads
B19: Tailings
B20: Roads
B21: Pits
B22: Quarries & Borrow Pits
B23: Underground Openings
B24: Material Hauling
B25: Foundations and Buildings
B26: Other Demo & Equipment Removal
B27: Sediment & Drainage Control
B28: Process Ponds
B29: Landfills
B30: Yards, Etc.
B31: Waste Disposal
B32: Well Abandonment
B33: Misc. Costs
B34: Monitoring
B35: Construction Management
B36: Solution Management
B37: Closure Planning
B38: General & Administration
B39: Human Resources
B40: Other User
B41: Reclamation Quantities
B42: Labor Costs
B43: Equipment Costs
B44: Material Costs
B45: Misc. Unit Costs
B46: Fleets (Crews)
B47: Productivity
B48: User Tools
B49: Seed Mixture | C49: Description
B50: User Sheet 1
B51: User Sheet 2
B52: User Sheet 3
B53: User Sheet 4
B54: User Sheet 5
B55: User Sheet 6
B56: User Sheet 7
B57: User Sheet 8
B58: User Sheet 9
B59: User Sheet 10
B60: User Sheet 11
B61: User Sheet 12
B62: User Sheet 13
B63: User Sheet 14
B64: User Sheet 15
B65: User Sheet 16
B66: User Sheet 17
B67: User Sheet 18
B68: User Sheet 19
B69: User Sheet 20

Sheet FA Schedule
A1: =CONCATENATE('Property Information'!$B$26, 'Property Information'!$C$26,IF('Property Information'!$BD$34=TRUE,"- Notice or Exploration",IF('Property Information'!$BE$34=TRUE," - Plan of Operations"," - Reclamation Plan"))) -> Project Name: CHMRP DP 55 Cost Estimate - Reclamation Plan
A2: =CONCATENATE('Property Information'!B28,SubmittalDate) -> Date of Submittal: December 2022
A3: =CONCATENATE('Property Information'!B12,FileName) -> File Name: 20230222 CHMRP - NMED DP-55 Cost Estimate Model SRCE 2.0.xlsm
A4: =CONCATENATE("Model Version: ",'Property Information'!B6) -> Model Version: Version 2.0
A5: =CONCATENATE("Cost Data: ",DataCostBasis) -> Cost Data: User Data
A6: =CONCATENATE("Cost Data File: ",DataFileName) -> Cost Data File: SRCE_2.0_CostDataFile_2022 NM contractor rates.xlsm
A7: =CONCATENATE("Cost Estimate Type: ",CostType," Cost Basis: ",CostBasisCategory) -> Cost Estimate Type: FA Cost Basis: FAI-Contractor Rates New Mexico 2022
C9: Cost type: | D9: FA
EB10: ScheduleShtName: | EC10: =ShtName() -> AP-27 & DP-55 NPV | ED10: =IF(LEFT(ScheduleShtName,FIND(" ",ScheduleShtName)-1)<>CostType,"<<-- Cost Type does not match sheet name!! Please reset Cost Type","") -> <<-- Cost Type does not match sheet name!! Please reset Cost Type
C11: Current Year: | D11: 2022
C12: First Year of Operation: | D12: 2023 | I12: Engineering, Design and Construction Plan (%) | J12: 0.05 | EB12: Zero Rows Hidden? | EC12: FALSE
C13: Closure Year 1: | D13: 2023 | I13: Contingency (%) | J13: 0
C14: Closure Period: | D14: 3 | E14: years | I14: Contractor OH and Profit (%) | J14: 0 | EB14: Schedule years to show: | EC14: 100 | EE14: 100 | EF14: SchedulePeriodText
C15: Post Closure Period | D15: 97 | E15: years | I15: Contract Administration (%) | J15: 0.05
EB16: Cost Type: | EC16: =D9 -> FA
C17: Filter | E17: Filter Type | EB17: Total OpsPeriod | EC17: =ClosureYear1-FirstYrOps -> 0
C18: ID Code Filter: | I18: ="Include Complete Work in "&LOM&" Schedule?" -> Include Complete Work in LOM Schedule? | J18: TRUE | K18: Note: | L18: ARO: completed work subtracted completed in ARO year or earlier. FA: completed work subtracted if in Budget year or earlier and after FA release date. | EB18: OpsPeriodShown | EC18: =ClosureYear1-FirstYrOps+1 -> 1
C19: Facility/Activity Type:
C20: =Filter3&":" -> Phases: | I20: Show how many years in schedule (10 to 100) | J20: 100
C21: =Filter1&":" -> Locations:
C22: =Filter2&":" -> Properties: | I22: Show how many operating years in schedule | J22: 10
O25: Financial | Q25: Work | R25: % Complete | S25: Plan Year | T25: 1 | U25: =T25+1 -> 2 | V25: =U25+1 -> 3 | W25: 4 | X25: 5 | Y25: 6 | Z25: 7 | AA25: 8 | AB25: 9 | AC25: 10 | AD25: 11 | AE25: 12 | AF25: 13 | AG25: 14 | AH25: 15 | AI25: =AH25+1 -> 16 | AJ25: 17 | AK25: 18 | AL25: 19 | AM25: 20 | AN25: 21 | AO25: 22 | AP25: 23 | AQ25: 24 | AR25: 25 | AS25: 26 | AT25: 27 | AU25: 28 | AV25: 29 | AW25: 30 | AX25: 31 | AY25: 32 | AZ25: 33 | BA25: 34 | BB25: 35 | BC25: 36 | BD25: 37 | BE25: 38 | BF25: 39 | BG25: 40 | BH25: 41 | BI25: 42 | BJ25: 43 | BK25: 44 | BL25: 45 | BM25: 46 | BN25: 47 | BO25: 48 | BP25: 49 | BQ25: =BP25+1 -> 50 | BR25: 51 | BS25: 52 | BT25: 53 | BU25: 54 | BV25: 55 | BW25: 56 | BX25: 57 | BY25: 58 | BZ25: 59 | CA25: 60 | CB25: 61 | CC25: 62 | CD25: 63 | CE25: 64 | CF25: 65 | CG25: 66 | CH25: 67 | CI25: 68 | CJ25: 69 | CK25: 70 | CL25: 71 | CM25: 72 | CN25: 73 | CO25: 74 | CP25: 75 | CQ25: 76 | CR25: 77 | CS25: 78 | CT25: 79 | CU25: 80 | CV25: 81 | CW25: =CV25+1 -> 82 | CX25: 83 | CY25: 84 | CZ25: 85 | DA25: 86 | DB25: 87 | DC25: 88 | DD25: 89 | DE25: 90 | DF25: 91 | DG25: 92 | DH25: 93 | DI25: 94 | DJ25: 95 | DK25: 96 | DL25: 97 | DM25: 98 | DN25: 99 | DO25: 100 | DP25: Difference | EA25: Test | EC25: Other | ED25: Cost | EE25: Other Cost | EG25: Facility | EL25: Valid | EO25: Quantities | EQ25: Regrade/Placement/Scarify Fleet | ET25: Crusher Fleet | EW25: Costs
A26: User | F26: Facility/Activity | L26: Construct | M26: Closure | N26: Closure | O26: Assurance | P26: % | Q26: Before/During | R26: Before | S26: Closure Year | T26: =FirstYrOps-ClosureYear1 -> 0 | U26: =IF(T26+1=0,1,T26+1) -> 1 | V26: =IF(U26+1=0,1,U26+1) -> 2 | W26: 3 | X26: 4 | Y26: 5 | Z26: 6 | AA26: 7 | AB26: 8 | AC26: 9 | AD26: 10 | AE26: 11 | AF26: 12 | AG26: 13 | AH26: 14 | AI26: =IF(AH26+1=0,1,AH26+1) -> 15 | AJ26: 16 | AK26: 17 | AL26: 18 | AM26: 19 | AN26: 20 | AO26: 21 | AP26: 22 | AQ26: 23 | AR26: 24 | AS26: 25 | AT26: 26 | AU26: 27 | AV26: 28 | AW26: 29 | AX26: 30 | AY26: =IF(AX26+1=0,1,AX26+1) -> 31 | AZ26: 32 | BA26: 33 | BB26: 34 | BC26: 35 | BD26: 36 | BE26: 37 | BF26: 38 | BG26: 39 | BH26: 40 | BI26: 41 | BJ26: 42 | BK26: 43 | BL26: 44 | BM26: 45 | BN26: 46 | BO26: 47 | BP26: 48 | BQ26: =IF(BP26+1=0,1,BP26+1) -> 49 | BR26: 50 | BS26: 51 | BT26: 52 | BU26: 53 | BV26: 54 | BW26: 55 | BX26: 56 | BY26: 57 | BZ26: 58 | CA26: 59 | CB26: 60 | CC26: 61 | CD26: 62 | CE26: 63 | CF26: 64 | CG26: 65 | CH26: 66 | CI26: 67 | CJ26: 68 | CK26: 69 | CL26: 70 | CM26: 71 | CN26: 72 | CO26: 73 | CP26: 74 | CQ26: 75 | CR26: 76 | CS26: 77 | CT26: 78 | CU26: 79 | CV26: 80 | CW26: =IF(CV26+1=0,1,CV26+1) -> 81 | CX26: 82 | CY26: 83 | CZ26: 84 | DA26: 85 | DB26: 86 | DC26: 87 | DD26: 88 | DE26: 89 | DF26: 90 | DG26: 91 | DH26: 92 | DI26: 93 | DJ26: 94 | DK26: 95 | DL26: 96 | DM26: 97 | DN26: 98 | DO26: 99 | DP26: Check | EA26: for FA | EC26: Cost Type | ED26: Type | EE26: Type | EF26: IDCode | EG26: Type | EH26: Phase | EI26: Location | EJ26: Property | EL26: Facility | ER26: Number of | EU26: Number of
A27: Override | B27: Facility | C27: Cost Type | D27: Description | E27: ID Code | F27: Type | G27: =Filter3 -> Phases | H27: =Filter1 -> Locations | I27: =Filter2 -> Properties | J27: Total Cost | K27: =(CostType&" Cost") -> FA Cost | L27: Year | M27: Start | N27: Finish | O27: Release | P27: Scheduled | Q27: Budget year | R27: Budget year | S27: Calendar Year | T27: =FirstYrOps+T25-1 -> 2023 | U27: =T27+1 -> 2024 | V27: =U27+1 -> 2025 | W27: 2026 | X27: 2027 | Y27: 2028 | Z27: 2029 | AA27: 2030 | AB27: 2031 | AC27: 2032 | AD27: 2033 | AE27: 2034 | AF27: 2035 | AG27: 2036 | AH27: 2037 | AI27: =AH27+1 -> 2038 | AJ27: 2039 | AK27: 2040 | AL27: 2041 | AM27: 2042 | AN27: 2043 | AO27: 2044 | AP27: 2045 | AQ27: 2046 | AR27: 2047 | AS27: 2048 | AT27: 2049 | AU27: 2050 | AV27: 2051 | AW27: 2052 | AX27: 2053 | AY27: =AX27+1 -> 2054 | AZ27: 2055 | BA27: 2056 | BB27: 2057 | BC27: 2058 | BD27: 2059 | BE27: 2060 | BF27: 2061 | BG27: 2062 | BH27: 2063 | BI27: 2064 | BJ27: 2065 | BK27: 2066 | BL27: 2067 | BM27: 2068 | BN27: 2069 | BO27: 2070 | BP27: 2071 | BQ27: =BP27+1 -> 2072 | BR27: 2073 | BS27: 2074 | BT27: 2075 | BU27: 2076 | BV27: 2077 | BW27: 2078 | BX27: 2079 | BY27: 2080 | BZ27: 2081 | CA27: 2082 | CB27: 2083 | CC27: 2084 | CD27: 2085 | CE27: 2086 | CF27: 2087 | CG27: 2088 | CH27: 2089 | CI27: 2090 | CJ27: 2091 | CK27: 2092 | CL27: 2093 | CM27: 2094 | CN27: 2095 | CO27: 2096 | CP27: 2097 | CQ27: 2098 | CR27: 2099 | CS27: 2100 | CT27: 2101 | CU27: 2102 | CV27: 2103 | CW27: =CV27+1 -> 2104 | CX27: 2105 | CY27: 2106 | CZ27: 2107 | DA27: 2108 | DB27: 2109 | DC27: 2110 | DD27: 2111 | DE27: 2112 | DF27: 2113 | DG27: 2114 | DH27: 2115 | DI27: 2116 | DJ27: 2117 | DK27: 2118 | DL27: 2119 | DM27: 2120 | DN27: 2121 | DO27: 2122 | EA27: Release | EB27: =(CostType&" Cost") -> FA Cost | EC27: =IF(CostType=LOM,"ARO","LOM") -> LOM | ED27: Filter | EE27: Filter | EF27: Filter | EG27: Filter | EH27: Filter | EI27: Filter | EJ27: Filter | EL27: Test | EQ27: Fleet | ER27: Trucks/Scrapers | ES27: Fleet Hours | ET27: Fleet | EU27: Trucks/Scrapers | EV27: Fleet Hours | EW27: Labor | EX27: Equip | EY27: Materials | EZ27: _ImportTest | FA27: _SchedAcctCodeTest
J28: =CurrencySymbol -> $ | K28: =CurrencySymbol -> $ | Q28: =CurrencySymbol -> $ | DP28: =CurrencySymbol -> $ | EB28: =CurrencySymbol -> $ | EC28: =CurrencySymbol -> $
A29: Dumps | B29: WASTE ROCK DUMPS | J29: =SumByColor(J30,J30:J44) -> 87970 | K29: =SumByColor(K30,K30:K44) -> 87970 | Q29: =SumByColor(Q30,Q30:Q44) -> 0 | T29: =SumByColor(T30,T30:T44) -> 0 | U29: 0 | V29: 0 | W29: 0 | X29: 0 | Y29: 0 | Z29: 4398.5 | AA29: 0 | AB29: 0 | AC29: 0 | AD29: 0 | AE29: 4398.5 | AF29: 0 | AG29: 0 | AH29: 0 | AI29: 0 | AJ29: 4398.5 | AK29: 0 | AL29: 0 | AM29: 0 | AN29: 0 | AO29: 4398.5 | AP29: 0 | AQ29: 0 | AR29: 0 | AS29: 0 | AT29: 4398.5 | AU29: 0 | AV29: 0 | AW29: 0 | AX29: 0 | AY29: 4398.5 | AZ29: =SumByColor(AZ30,AZ30:AZ44) -> 0 | BA29: 0 | BB29: 0 | BC29: 0 | BD29: 4398.5 | BE29: 0 | BF29: 0 | BG29: 0 | BH29: 0 | BI29: 4398.5 | BJ29: 0 | BK29: 0 | BL29: 0 | BM29: 0 | BN29: 4398.5 | BO29: 0 | BP29: 0 | BQ29: 0 | BR29: 0 | BS29: 4398.5 | BT29: 0 | BU29: 0 | BV29: 0 | BW29: 0 | BX29: 4398.5 | BY29: 0 | BZ29: 0 | CA29: 0 | CB29: 0 | CC29: 4398.5 | CD29: 0 | CE29: 0 | CF29: =SumByColor(CF30,CF30:CF44) -> 0 | CG29: 0 | CH29: 4398.5 | CI29: 0 | CJ29: 0 | CK29: 0 | CL29: 0 | CM29: 4398.5 | CN29: 0 | CO29: 0 | CP29: 0 | CQ29: 0 | CR29: 4398.5 | CS29: 0 | CT29: 0 | CU29: 0 | CV29: 0 | CW29: 4398.5 | CX29: 0 | CY29: 0 | CZ29: 0 | DA29: 0 | DB29: 4398.5 | DC29: 0 | DD29: 0 | DE29: 0 | DF29: 0 | DG29: 4398.5 | DH29: 0 | DI29: 0 | DJ29: 0 | DK29: 0 | DL29: =SumByColor(DL30,DL30:DL44) -> 4398.5 | DM29: 0 | DN29: 0 | DO29: 4398.5 | EB29: =SumByColor(EB30,EB30:EB44) -> 87970 | EC29: =SumByColor(EC30,EC30:EC44) -> 0 | EZ29: FALSE
B30: =(ROW(B30) - ROW($A$29)-1)/INDEX(SheetRangeIndex,MATCH($A$29,TableNamesSorted,0),7) -> 0 | C30: =INDEX(INDIRECT("_"&$A$29&"Table1"),B30+1,9) -> 0 | D30: =INDEX(INDIRECT("_"&$A$29&"Table1"),B30+1,2) -> 0 | E30: =IF(ISBLANK(INDEX(INDIRECT("_"&$A$29&"Table1"),B30+1,3)),"",INDEX(INDIRECT("_"&$A$29&"Table1"),B30+1,3)) ->  | F30: =IF(ISERROR(EL30),"Facility Type",IF(ISBLANK(INDEX(INDIRECT("_"&$A$29&"Table1"),B30+1,5)),"",INDEX(INDIRECT("_"&$A$29&"Table1"),B30+1,5))) ->  | G30: =IF(ISBLANK(INDEX(INDIRECT("_"&$A$29&"Table1"),B30+1,6)),"",INDEX(INDIRECT("_"&$A$29&"Table1"),B30+1,6)) ->  | H30: =IF(ISBLANK(INDEX(INDIRECT("_"&$A$29&"Table1"),B30+1,7)),"",INDEX(INDIRECT("_"&$A$29&"Table1"),B30+1,7)) ->  | I30: =IF(ISBLANK(INDEX(INDIRECT("_"&$A$29&"Table1"),B30+1,8)),"",INDEX(INDIRECT("_"&$A$29&"Table1"),B30+1,8)) ->  | J30: =SUM(J31:J36) -> 0 | K30: =IF(ISERR(ED30),"Cost Type",IF(A30="X","Override",IF(AND(CostType=ARO,L30>ScheduleYear),"Date Range",IF(AND(ISTEXT(LocationFilter),ISERROR(EI30)),"Location",IF(AND(ISTEXT(PropertyFilter),ISERROR(EJ30)),"Property",IF(AND(ISTEXT(FacilityTypeFilter),ISERROR(EG30)),"Facility Type",IF(AND(NOT(ISBLANK(IDCodeFilter)),ISERROR(EF30)),"ID Code",IF(AND(ISTEXT(PhaseFilter),ISERROR(EH30)),"Phase",IF(AND(CostType=LOM,LOMComplete),J30,SUM(T30:DO30)))))))))) -> Cost Type | L30: =INDEX(INDIRECT("_"&$A$29&"Table1"),B30+1,4) -> 0 | Q30: =SUM(Q31:Q36) -> 0 | T30: =IF(ISTEXT($EB30),0,IF(AND(CostType=LOM,LOMComplete,T$27<=ScheduleYear),SUMPRODUCT(T31:T36,$J31:$J36),IF(CostType=Bond,SUMPRODUCT($EB31:$EB36,T31:T36,$EA31:$EA36),IF(T$27<=ScheduleYear,0,SUMPRODUCT(T31:T36,$EB31:$EB36))))) -> 0 | U30: 0 | V30: 0 | W30: 0 | X30: 0 | Y30: 0 | Z30: 0 | AA30: 0 | AB30: 0 | AC30: 0 | AD30: 0 | AE30: 0 | AF30: 0 | AG30: 0 | AH30: 0 | AI30: 0 | AJ30: 0 | AK30: 0 | AL30: 0 | AM30: 0 | AN30: 0 | AO30: 0 | AP30: 0 | AQ30: 0 | AR30: 0 | AS30: 0 | AT30: 0 | AU30: 0 | AV30: 0 | AW30: 0 | AX30: 0 | AY30: 0 | AZ30: =IF(ISTEXT($EB30),0,IF(AND(CostType=LOM,LOMComplete,AZ$27<=ScheduleYear),SUMPRODUCT(AZ31:AZ36,$J31:$J36),IF(CostType=Bond,SUMPRODUCT($EB31:$EB36,AZ31:AZ36,$EA31:$EA36),IF(AZ$27<=ScheduleYear,0,SUMPRODUCT(AZ31:AZ36,$EB31:$EB36))))) -> 0 | BA30: 0 | BB30: 0 | BC30: 0 | BD30: 0 | BE30: 0 | BF30: 0 | BG30: 0 | BH30: 0 | BI30: 0 | BJ30: 0 | BK30: 0 | BL30: 0 | BM30: 0 | BN30: 0 | BO30: 0 | BP30: 0 | BQ30: 0 | BR30: 0 | BS30: 0 | BT30: 0 | BU30: 0 | BV30: 0 | BW30: 0 | BX30: 0 | BY30: 0 | BZ30: 0 | CA30: 0 | CB30: 0 | CC30: 0 | CD30: 0 | CE30: 0 | CF30: =IF(ISTEXT($EB30),0,IF(AND(CostType=LOM,LOMComplete,CF$27<=ScheduleYear),SUMPRODUCT(CF31:CF36,$J31:$J36),IF(CostType=Bond,SUMPRODUCT($EB31:$EB36,CF31:CF36,$EA31:$EA36),IF(CF$27<=ScheduleYear,0,SUMPRODUCT(CF31:CF36,$EB31:$EB36))))) -> 0 | CG30: 0 | CH30: 0 | CI30: 0 | CJ30: 0 | CK30: 0 | CL30: 0 | CM30: 0 | CN30: 0 | CO30: 0 | CP30: 0 | CQ30: 0 | CR30: 0 | CS30: 0 | CT30: 0 | CU30: 0 | CV30: 0 | CW30: 0 | CX30: 0 | CY30: 0 | CZ30: 0 | DA30: 0 | DB30: 0 | DC30: 0 | DD30: 0 | DE30: 0 | DF30: 0 | DG30: 0 | DH30: 0 | DI30: 0 | DJ30: 0 | DK30: 0 | DL30: =IF(ISTEXT($EB30),0,IF(AND(CostType=LOM,LOMComplete,DL$27<=ScheduleYear),SUMPRODUCT(DL31:DL36,$J31:$J36),IF(CostType=Bond,SUMPRODUCT($EB31:$EB36,DL31:DL36,$EA31:$EA36),IF(DL$27<=ScheduleYear,0,SUMPRODUCT(DL31:DL36,$EB31:$EB36))))) -> 0 | DM30: 0 | DN30: 0 | DO30: 0 | DP30: =IF(ISNUMBER(K30),SUM(T30:DO30)-K30,K30) -> Cost Type | EB30: =IF(ISERR(ED30),"Cost Type",IF(A30="X","Override",IF(AND(CostType=ARO,L30>ScheduleYear),0,IF(AND(ISTEXT(LocationFilter),ISERROR(EI30)),"Location",IF(AND(ISTEXT(PropertyFilter),ISERROR(EJ30)),"Property",IF(AND(ISTEXT(FacilityTypeFilter),ISERROR(EG30)),"Facility Type",IF(AND(ISTEXT(IDCodeFilter),ISERROR(EF30)),"ID Code",IF(AND(ISTEXT(PhaseFilter),ISERROR(EH30)),"Phase",J30)))))))) -> Cost Type | EC30: =IF(EE30="","Cost Type",IF(A30="X","Override",IF(AND(OtherCostType=ARO,L30>ScheduleYear),0,IF(AND(ISTEXT(LocationFilter),EI30=""),"Location",IF(AND(ISTEXT(PropertyFilter),EJ30=""),"Property",IF(AND(ISTEXT(FacilityTypeFilter),EG30=""),"Facility Type",IF(AND(ISTEXT(IDCodeFilter),EF30=""),"ID Code",IF(AND(ISTEXT(PhaseFilter),EH30=""),"Phase",J30)))))))) ->  | ED30: =SEARCH(CostType,C30) ->  | EE30: =SEARCH(OtherCostType,C30) ->  | EF30: =IF(AND(IDCodeFilterType="CONTAINS",NOT(ISERROR(SEARCH(IDCodeFilter,E30)))),1,IF(AND(IDCodeFilterType="NOT",ISERROR(SEARCH(IDCodeFilter,E30))),1,IF(AND(OR(IDCodeFilterType="EXACT",ISBLANK(IDCodeFilterType)),NOT(ISERROR(MATCH(IDCodeFilter,E30,0)))),1,$EK30))) ->  | EG30: =IF(AND(FacilityFilterType="CONTAINS",NOT(ISERROR(SEARCH(FacilityTypeFilter,F30)))),1,IF(AND(FacilityFilterType="NOT",ISERROR(SEARCH(FacilityTypeFilter,F30))),1,IF(AND(OR(FacilityFilterType="EXACT",ISBLANK(FacilityFilterType)),NOT(ISERROR(MATCH(FacilityTypeFilter,F30,0)))),1,$EK30))) ->  | EH30: =IF(AND(PhaseFilterType="CONTAINS",NOT(ISERROR(SEARCH(PhaseFilter,G30)))),1,IF(AND(PhaseFilterType="NOT",ISERROR(SEARCH(PhaseFilter,G30))),1,IF(AND(OR(PhaseFilterType="EXACT",ISBLANK(PhaseFilterType)),NOT(ISERROR(MATCH(PhaseFilter,G30,0)))),1,$EK30))) ->  | EI30: =IF(AND(LocationFilterType="CONTAINS",NOT(ISERROR(SEARCH(LocationFilter,H30)))),1,IF(AND(LocationFilterType="NOT",ISERROR(SEARCH(LocationFilter,H30))),1,IF(AND(OR(LocationFilterType="EXACT",ISBLANK(LocationFilterType)),NOT(ISERROR(MATCH(LocationFilter,H30,0)))),1,$EK30))) ->  | EJ30: =IF(AND(PropertyFilterType="CONTAINS",NOT(ISERROR(SEARCH(PropertyFilter,I30)))),1,IF(AND(PropertyFilterType="NOT",ISERROR(SEARCH(PropertyFilter,I30))),1,IF(AND(OR(PropertyFilterType="EXACT",ISBLANK(PropertyFilterType)),NOT(ISERROR(MATCH(PropertyFilter,I30,0)))),1,$EK30))) ->  | EK30: =MATCH("NOT",$EK$27,0) ->  | EL30: =IF(ISBLANK(INDEX(INDIRECT("_"&$A$29&"Table1"),B30+1,2)),"",MATCH(INDEX(INDIRECT("_"&$A$29&"Table1"),B30+1,5),Accounts,0)) ->  | EM30: Surf Area | EN30: Surf Area | EO30: =IF(ISNUMBER(K36),INDEX(INDIRECT("_"&$A$29&"Table8"),B30+1,5),"") ->  | EP30: =IF(Metric,"ha","acres") -> acres | EZ30: FALSE | FA30: 1
D31: Regrading | J31: =IF(INDEX(INDIRECT("_"&$A$29&"Table4"),B30+1,15)=0,0,INDEX(INDIRECT("_"&$A$29&"Table4"),B30+1,15)) -> 0 | K31: =IF(OR(J31="",K30="",ISTEXT(K30),J31=0),"",IF(OR(ISBLANK(M31),ISBLANK(N31)),"Enter Dates",IF(K30="Date Range","",IF(OR(AND(CostType=ARO,L30>ScheduleYear),AND(CostType=ARO,N31<=ScheduleYear)),"Date Range",IF(OR(AND(CostType=Bond,O31>ScheduleYear),AND(CostType=LOM,LOMComplete)),J31,J31-Q31))))) ->  | P31: =IF(K31="","",SUM(T31:DO31)) ->  | Q31: =IF(OR(AND(CostType=ARO,N31<=ScheduleYear),AND(CostType=LOM,LOMComplete)),J31*R31,R31*EB31) -> 0 | R31: =IF(CostType=Bond,SUMIFS(T31:DP31,T$27:DP$27,"<="&O31,T$27:DP$27,"<="&ScheduleYear),SUMIF(T$27:DP$27,"<="&ScheduleYear,T31:DP31)) -> 0 | EA31: =IF(OR(ISBLANK($O31),$O31>ScheduleYear),1,0) -> 1 | EB31: =IF(OR(J31="",EB30="",ISTEXT(EB30)),0,IF(OR(ISBLANK(M31),ISBLANK(N31)),0,IF(OR(AND(CostType=ARO,L30>ScheduleYear),AND(OR(CostType=ARO,AND(CostType=LOM,LOMComplete=TRUE)),N31<=ScheduleYear)),0,J31))) -> 0 | EC31: =IF(OR(J31="",EC30="",ISTEXT(EC30)),0,IF(OR(ISBLANK(M31),ISBLANK(N31)),0,IF(EC30="Date Range",0,IF(OR(AND(OtherCostType=ARO,L30>ScheduleYear),N31<=ScheduleYear),0,J31)))) ->  | EM31: Regrade | EN31: Regrade | EO31: =IF(ISNUMBER(K31),IF(INDEX(INDIRECT("_"&$A$29&"Table4"),B30+1,3)=0,0,INDEX(INDIRECT("_"&$A$29&"Table4"),B30+1,3)),0) -> 0 | EP31: =IF(Metric,"m3","cy") -> cy | EQ31: =INDEX(INDIRECT("_"&$A$29&"Table4"),B30+1,5) ->  | ES31: =IF(OR(NOT(ISNUMBER(K31)),K31=0),0,INDEX(INDIRECT("_"&$A$29&"Table4"),B30+1,12)) -> 0 | EW31: =IF(ISNUMBER($K31),INDEX(INDIRECT("_"&$A$29&"Table4"),B30+1,13),0) -> 0 | EX31: =IF(ISNUMBER($K31),INDEX(INDIRECT("_"&$A$29&"Table4"),B30+1,14),0) -> 0 | EZ31: TRUE
D32: Cover 1 Placement | J32: =INDEX(INDIRECT("_"&$A$29&"Table5"),B30+1,25) -> 0 | K32: =IF(OR(J32="",K30="",ISTEXT(K30),J32=0),"",IF(OR(ISBLANK(M32),ISBLANK(N32)),"Enter Dates",IF(K30="Date Range","",IF(OR(AND(CostType=ARO,L30>ScheduleYear),AND(CostType=ARO,N32<=ScheduleYear)),"Date Range",IF(OR(AND(CostType=Bond,O32>ScheduleYear),AND(CostType=LOM,LOMComplete)),J32,J32-Q32))))) ->  | Q32: 0 | R32: 0 | EA32: 1 | EB32: =IF(OR(J32="",EB30="",ISTEXT(EB30)),0,IF(OR(ISBLANK(M32),ISBLANK(N32)),0,IF(OR(AND(CostType=ARO,L30>ScheduleYear),AND(OR(CostType=ARO,AND(CostType=LOM,LOMComplete=TRUE)),N32<=ScheduleYear)),0,J32))) -> 0 | EC32: =IF(OR(J32="",EC30="",ISTEXT(EC30)),0,IF(OR(ISBLANK(M32),ISBLANK(N32)),0,IF(EC30="Date Range",0,IF(OR(AND(CostType=ARO,L30>ScheduleYear),N32<=ScheduleYear),0,J32)))) ->  | EM32: Cover | EN32: Cover | EO32: =IF(ISNUMBER(K32),INDEX(INDIRECT("_"&$A$29&"Table5"),B30+1,4),0) -> 0 | EP32: =IF(Metric,"m3","cy") -> cy | EQ32: =INDEX(INDIRECT("_"&$A$29&"Table5"),B30+1,10) ->  | ER32: =IF(OR(NOT(ISNUMBER(K32)),K32=0),0,INDEX(INDIRECT("_"&$A$29&"Table5"),B30+1,12)) -> 0 | ES32: =IF(OR(NOT(ISNUMBER(K32)),K32=0),0,INDEX(INDIRECT("_"&$A$29&"Table5"),B30+1,14)) -> 0 | ET32: =INDEX(INDIRECT("_"&$A$29&"Table5"),B30+1,5) ->  | EU32: =IF(OR(NOT(ISNUMBER(K32)),K32=0),0,INDEX(INDIRECT("_"&$A$29&"Table5"),B30+1,7)) -> 0 | EV32: =IF(OR(NOT(ISNUMBER(K32)),K32=0),0,INDEX(INDIRECT("_"&$A$29&"Table5"),B30+1,9)) -> 0 | EW32: =IF(ISNUMBER($K32),INDEX(INDIRECT("_"&$A$29&"Table5"),B30+1,15)+INDEX(INDIRECT("_"&$A$29&"Table5"),B30+1,19)+INDEX(INDIRECT("_"&$A$29&"Table5"),B30+1,22),0) -> 0 | EX32: =IF(ISNUMBER($K31),INDEX(INDIRECT("_"&$A$29&"Table5"),B30+1,16)+INDEX(INDIRECT("_"&$A$29&"Table5"),B30+1,20)+INDEX(INDIRECT("_"&$A$29&"Table5"),B30+1,23),0) -> 0 | EZ32: TRUE
D33: Cover 2 Placement | J33: =INDEX(INDIRECT("_"&$A$29&"Table6"),B30+1,25) -> 0 | K33: =IF(OR(J33="",K30="",ISTEXT(K30),J33=0),"",IF(OR(ISBLANK(M33),ISBLANK(N33)),"Enter Dates",IF(K30="Date Range","",IF(OR(AND(CostType=ARO,L30>ScheduleYear),AND(CostType=ARO,N33<=ScheduleYear)),"Date Range",IF(OR(AND(CostType=Bond,O33>ScheduleYear),AND(CostType=LOM,LOMComplete)),J33,J33-Q33))))) ->  | Q33: 0 | R33: 0 | EA33: 1 | EB33: =IF(OR(J33="",EB30="",ISTEXT(EB30)),0,IF(OR(ISBLANK(M33),ISBLANK(N33)),0,IF(OR(AND(CostType=ARO,L30>ScheduleYear),AND(OR(CostType=ARO,AND(CostType=LOM,LOMComplete=TRUE)),N33<=ScheduleYear)),0,J33))) -> 0 | EC33: =IF(OR(J33="",EC30="",ISTEXT(EC30)),0,IF(OR(ISBLANK(M33),ISBLANK(N33)),0,IF(EC30="Date Range",0,IF(OR(AND(CostType=ARO,L30>ScheduleYear),N33<=ScheduleYear),0,J33)))) ->  | EM33: Cover | EN33: Cover | EO33: =IF(ISNUMBER(K33),INDEX(INDIRECT("_"&$A$29&"Table6"),B30+1,4),0) -> 0 | EP33: =IF(Metric,"m3","cy") -> cy | EQ33: =INDEX(INDIRECT("_"&$A$29&"Table6"),B30+1,10) ->  | ER33: =IF(OR(NOT(ISNUMBER(K33)),K33=0),0,INDEX(INDIRECT("_"&$A$29&"Table6"),B30+1,12)) -> 0 | ES33: =IF(OR(NOT(ISNUMBER(K33)),K33=0),0,INDEX(INDIRECT("_"&$A$29&"Table6"),B30+1,14)) -> 0 | ET33: =INDEX(INDIRECT("_"&$A$29&"Table6"),B30+1,5) ->  | EU33: =IF(OR(NOT(ISNUMBER(K33)),K33=0),0,INDEX(INDIRECT("_"&$A$29&"Table6"),B30+1,7)) -> 0 | EV33: =IF(OR(NOT(ISNUMBER(K33)),K33=0),0,INDEX(INDIRECT("_"&$A$29&"Table6"),B30+1,9)) -> 0 | EZ33: TRUE
D34: Growth Media Placement | J34: =INDEX(INDIRECT("_"&$A$29&"Table7"),B30+1,11) -> 0 | K34: =IF(OR(J34="",K30="",ISTEXT(K30),J34=0),"",IF(OR(ISBLANK(M34),ISBLANK(N34)),"Enter Dates",IF(K30="Date Range","",IF(OR(AND(CostType=ARO,L30>ScheduleYear),AND(CostType=ARO,N34<=ScheduleYear)),"Date Range",IF(OR(AND(CostType=Bond,O34>ScheduleYear),AND(CostType=LOM,LOMComplete)),J34,J34-Q34))))) ->  | Q34: 0 | R34: 0 | EA34: 1 | EB34: =IF(OR(J34="",EB30="",ISTEXT(EB30)),0,IF(OR(ISBLANK(M34),ISBLANK(N34)),0,IF(OR(AND(CostType=ARO,L30>ScheduleYear),AND(OR(CostType=ARO,AND(CostType=LOM,LOMComplete=TRUE)),N34<=ScheduleYear)),0,J34))) -> 0 | EC34: =IF(OR(J34="",EC30="",ISTEXT(EC30)),0,IF(OR(ISBLANK(M34),ISBLANK(N34)),0,IF(EC30="Date Range",0,IF(OR(AND(CostType=ARO,L30>ScheduleYear),N34<=ScheduleYear),0,J34)))) ->  | EM34: GM | EN34: GM | EO34: =IF(ISNUMBER(K34),INDEX(INDIRECT("_"&$A$29&"Table7"),B30+1,3),0) -> 0 | EP34: =IF(Metric,"m3","cy") -> cy | EQ34: =INDEX(INDIRECT("_"&$A$29&"Table7"),B30+1,4) ->  | ER34: =IF(OR(NOT(ISNUMBER(K34)),K34=0),0,INDEX(INDIRECT("_"&$A$29&"Table7"),B30+1,6)) -> 0 | ES34: =IF(OR(NOT(ISNUMBER(K34)),K34=0),0,INDEX(INDIRECT("_"&$A$29&"Table7"),B30+1,8)) -> 0 | EZ34: TRUE
D35: Ripping/Scarifying | J35: =INDEX(INDIRECT("_"&$A$29&"Table8"),B30+1,13) -> 0 | K35: =IF(OR(J35="",K30="",ISTEXT(K30),J35=0),"",IF(OR(ISBLANK(M35),ISBLANK(N35)),"Enter Dates",IF(K30="Date Range","",IF(OR(AND(CostType=ARO,L30>ScheduleYear),AND(CostType=ARO,N35<=ScheduleYear)),"Date Range",IF(OR(AND(CostType=Bond,O35>ScheduleYear),AND(CostType=LOM,LOMComplete)),J35,J35-Q35))))) ->  | Q35: 0 | R35: 0 | EA35: 1 | EB35: =IF(OR(J35="",EB30="",ISTEXT(EB30)),0,IF(OR(ISBLANK(M35),ISBLANK(N35)),0,IF(OR(AND(CostType=ARO,L30>ScheduleYear),AND(OR(CostType=ARO,AND(CostType=LOM,LOMComplete=TRUE)),N35<=ScheduleYear)),0,J35))) -> 0 | EC35: =IF(OR(J35="",EC30="",ISTEXT(EC30)),0,IF(OR(ISBLANK(M35),ISBLANK(N35)), 0,IF(EC30="Date Range",0,IF(OR(AND(CostType=ARO,L30>ScheduleYear),N35<=ScheduleYear),0,J35)))) ->  | EM35: Rip | EN35: Rip | EO35: =IF(ISNUMBER(K35),INDEX(INDIRECT("_"&$A$29&"Table8"),B30+1,5),0) -> 0 | EP35: =IF(Metric,"ha","acres") -> acres | EQ35: =INDEX(INDIRECT("_"&$A$29&"Table8"),B30+1,8) ->  | ES35: =IF(OR(NOT(ISNUMBER(K35)),K35=0),0,INDEX(INDIRECT("_"&$A$29&"Table8"),B30+1,9)+INDEX(INDIRECT("_"&$A$29&"Table8"),B30+1,10)) -> 0 | EZ35: TRUE
D36: Revegetation | J36: =INDEX(INDIRECT("_"&$A$29&"Table8"),B30+1,17) -> 0 | K36: =IF(OR(J36="",K30="",ISTEXT(K30),J36=0),"",IF(OR(ISBLANK(M36),ISBLANK(N36)),"Enter Dates",IF(K30="Date Range","",IF(OR(AND(CostType=ARO,L30>ScheduleYear),AND(CostType=ARO,N36<=ScheduleYear)),"Date Range",IF(OR(AND(CostType=Bond,O36>ScheduleYear),AND(CostType=LOM,LOMComplete)),J36,J36-Q36))))) ->  | Q36: 0 | R36: 0 | EA36: 1 | EB36: =IF(OR(J36="",EB30="",ISTEXT(EB30)),0,IF(OR(ISBLANK(M36),ISBLANK(N36)),0,IF(OR(AND(CostType=ARO,L30>ScheduleYear),AND(OR(CostType=ARO,AND(CostType=LOM,LOMComplete=TRUE)),N36<=ScheduleYear)),0,J36))) -> 0 | EC36: =IF(OR(J36="",EC30="",ISTEXT(EC30)),0,IF(OR(ISBLANK(M36),ISBLANK(N36)), 0,IF(EC30="Date Range",0,IF(OR(AND(CostType=ARO,L30>ScheduleYear),N36<=ScheduleYear),0,J36)))) ->  | EM36: Reveg | EN36: Reveg | EO36: =IF(ISNUMBER(K36),INDEX(INDIRECT("_"&$A$29&"Table8"),B30+1,5),0) -> 0 | EP36: =IF(Metric,"ha","acres") -> acres | EZ36: TRUE
B37: =(ROW(B37) - ROW($A$29)-1)/INDEX(SheetRangeIndex,MATCH($A$29,TableNamesSorted,0),7) -> 1 | C37: =INDEX(INDIRECT("_"&$A$29&"Table1"),B37+1,9) -> FA | D37: =INDEX(INDIRECT("_"&$A$29&"Table1"),B37+1,2) -> WRD Contingency cover maintenance | E37: =IF(ISBLANK(INDEX(INDIRECT("_"&$A$29&"Table1"),B37+1,3)),"",INDEX(INDIRECT("_"&$A$29&"Table1"),B37+1,3)) ->  | F37: =IF(ISERROR(EL37),"Facility Type",IF(ISBLANK(INDEX(INDIRECT("_"&$A$29&"Table1"),B37+1,5)),"",INDEX(INDIRECT("_"&$A$29&"Table1"),B37+1,5))) -> Waste Rock Pile | G37: =IF(ISBLANK(INDEX(INDIRECT("_"&$A$29&"Table1"),B37+1,6)),"",INDEX(INDIRECT("_"&$A$29&"Table1"),B37+1,6)) -> Post Closure | H37: =IF(ISBLANK(INDEX(INDIRECT("_"&$A$29&"Table1"),B37+1,7)),"",INDEX(INDIRECT("_"&$A$29&"Table1"),B37+1,7)) -> WRD | I37: =IF(ISBLANK(INDEX(INDIRECT("_"&$A$29&"Table1"),B37+1,8)),"",INDEX(INDIRECT("_"&$A$29&"Table1"),B37+1,8)) -> Public Land | J37: =SUM(J38:J43) -> 87970 | K37: =IF(ISERR(ED37),"Cost Type",IF(A37="X","Override",IF(AND(CostType=ARO,L37>ScheduleYear),"Date Range",IF(AND(ISTEXT(LocationFilter),ISERROR(EI37)),"Location",IF(AND(ISTEXT(PropertyFilter),ISERROR(EJ37)),"Property",IF(AND(ISTEXT(FacilityTypeFilter),ISERROR(EG37)),"Facility Type",IF(AND(NOT(ISBLANK(IDCodeFilter)),ISERROR(EF37)),"ID Code",IF(AND(ISTEXT(PhaseFilter),ISERROR(EH37)),"Phase",IF(AND(CostType=LOM,LOMComplete),J37,SUM(T37:DO37)))))))))) -> 87970 | L37: =INDEX(INDIRECT("_"&$A$29&"Table1"),B37+1,4) -> 2000 | Q37: =SUM(Q38:Q43) -> 0 | T37: =IF(ISTEXT($EB37),0,IF(AND(CostType=LOM,LOMComplete,T$27<=ScheduleYear),SUMPRODUCT(T38:T43,$J38:$J43),IF(CostType=Bond,SUMPRODUCT($EB38:$EB43,T38:T43,$EA38:$EA43),IF(T$27<=ScheduleYear,0,SUMPRODUCT(T38:T43,$EB38:$EB43))))) -> 0 | U37: 0 | V37: 0 | W37: 0 | X37: 0 | Y37: 0 | Z37: 4398.5 | AA37: 0 | AB37: 0 | AC37: 0 | AD37: 0 | AE37: 4398.5 | AF37: 0 | AG37: 0 | AH37: 0 | AI37: 0 | AJ37: 4398.5 | AK37: 0 | AL37: 0 | AM37: 0 | AN37: 0 | AO37: 4398.5 | AP37: 0 | AQ37: 0 | AR37: 0 | AS37: 0 | AT37: 4398.5 | AU37: 0 | AV37: 0 | AW37: 0 | AX37: 0 | AY37: 4398.5 | AZ37: 0 | BA37: 0 | BB37: 0 | BC37: 0 | BD37: 4398.5 | BE37: 0 | BF37: 0 | BG37: 0 | BH37: 0 | BI37: 4398.5 | BJ37: 0 | BK37: 0 | BL37: 0 | BM37: 0 | BN37: 4398.5 | BO37: 0 | BP37: 0 | BQ37: 0 | BR37: 0 | BS37: 4398.5 | BT37: 0 | BU37: 0 | BV37: 0 | BW37: 0 | BX37: 4398.5 | BY37: 0 | BZ37: 0 | CA37: 0 | CB37: 0 | CC37: 4398.5 | CD37: 0 | CE37: 0 | CF37: =IF(ISTEXT($EB37),0,IF(AND(CostType=LOM,LOMComplete,CF$27<=ScheduleYear),SUMPRODUCT(CF38:CF43,$J38:$J43),IF(CostType=Bond,SUMPRODUCT($EB38:$EB43,CF38:CF43,$EA38:$EA43),IF(CF$27<=ScheduleYear,0,SUMPRODUCT(CF38:CF43,$EB38:$EB43))))) -> 0 | CG37: 0 | CH37: 4398.5 | CI37: 0 | CJ37: 0 | CK37: 0 | CL37: 0 | CM37: 4398.5 | CN37: 0 | CO37: 0 | CP37: 0 | CQ37: 0 | CR37: 4398.5 | CS37: 0 | CT37: 0 | CU37: 0 | CV37: 0 | CW37: 4398.5 | CX37: 0 | CY37: 0 | CZ37: 0 | DA37: 0 | DB37: 4398.5 | DC37: 0 | DD37: 0 | DE37: 0 | DF37: 0 | DG37: 4398.5 | DH37: 0 | DI37: 0 | DJ37: 0 | DK37: 0 | DL37: 4398.5 | DM37: 0 | DN37: 0 | DO37: 4398.5 | DP37: =IF(ISNUMBER(K37),SUM(T37:DO37)-K37,K37) -> 0 | EB37: =IF(ISERR(ED37),"Cost Type",IF(A37="X","Override",IF(AND(CostType=ARO,L37>ScheduleYear),0,IF(AND(ISTEXT(LocationFilter),ISERROR(EI37)),"Location",IF(AND(ISTEXT(PropertyFilter),ISERROR(EJ37)),"Property",IF(AND(ISTEXT(FacilityTypeFilter),ISERROR(EG37)),"Facility Type",IF(AND(ISTEXT(IDCodeFilter),ISERROR(EF37)),"ID Code",IF(AND(ISTEXT(PhaseFilter),ISERROR(EH37)),"Phase",J37)))))))) -> 87970 | EC37: =IF(EE37="","Cost Type",IF(A37="X","Override",IF(AND(OtherCostType=ARO,L37>ScheduleYear),0,IF(AND(ISTEXT(LocationFilter),EI37=""),"Location",IF(AND(ISTEXT(PropertyFilter),EJ37=""),"Property",IF(AND(ISTEXT(FacilityTypeFilter),EG37=""),"Facility Type",IF(AND(ISTEXT(IDCodeFilter),EF37=""),"ID Code",IF(AND(ISTEXT(PhaseFilter),EH37=""),"Phase",J37)))))))) ->  | ED37: =SEARCH(CostType,C37) -> 1 | EE37: =SEARCH(OtherCostType,C37) ->  | EF37: =IF(AND(IDCodeFilterType="CONTAINS",NOT(ISERROR(SEARCH(IDCodeFilter,E37)))),1,IF(AND(IDCodeFilterType="NOT",ISERROR(SEARCH(IDCodeFilter,E37))),1,IF(AND(OR(IDCodeFilterType="EXACT",ISBLANK(IDCodeFilterType)),NOT(ISERROR(MATCH(IDCodeFilter,E37,0)))),1,$EK37))) ->  | EG37: =IF(AND(FacilityFilterType="CONTAINS",NOT(ISERROR(SEARCH(FacilityTypeFilter,F37)))),1,IF(AND(FacilityFilterType="NOT",ISERROR(SEARCH(FacilityTypeFilter,F37))),1,IF(AND(OR(FacilityFilterType="EXACT",ISBLANK(FacilityFilterType)),NOT(ISERROR(MATCH(FacilityTypeFilter,F37,0)))),1,$EK37))) ->  | EH37: =IF(AND(PhaseFilterType="CONTAINS",NOT(ISERROR(SEARCH(PhaseFilter,G37)))),1,IF(AND(PhaseFilterType="NOT",ISERROR(SEARCH(PhaseFilter,G37))),1,IF(AND(OR(PhaseFilterType="EXACT",ISBLANK(PhaseFilterType)),NOT(ISERROR(MATCH(PhaseFilter,G37,0)))),1,$EK37))) ->  | EI37: =IF(AND(LocationFilterType="CONTAINS",NOT(ISERROR(SEARCH(LocationFilter,H37)))),1,IF(AND(LocationFilterType="NOT",ISERROR(SEARCH(LocationFilter,H37))),1,IF(AND(OR(LocationFilterType="EXACT",ISBLANK(LocationFilterType)),NOT(ISERROR(MATCH(LocationFilter,H37,0)))),1,$EK37))) ->  | EJ37: =IF(AND(PropertyFilterType="CONTAINS",NOT(ISERROR(SEARCH(PropertyFilter,I37)))),1,IF(AND(PropertyFilterType="NOT",ISERROR(SEARCH(PropertyFilter,I37))),1,IF(AND(OR(PropertyFilterType="EXACT",ISBLANK(PropertyFilterType)),NOT(ISERROR(MATCH(PropertyFilter,I37,0)))),1,$EK37))) ->  | EK37: =MATCH("NOT",$EK$27,0) ->  | EL37: =IF(ISBLANK(INDEX(INDIRECT("_"&$A$29&"Table1"),B37+1,2)),"",MATCH(INDEX(INDIRECT("_"&$A$29&"Table1"),B37+1,5),Accounts,0)) -> 7 | EM37: Surf Area | EN37: Surf Area | EO37: =IF(ISNUMBER(K43),INDEX(INDIRECT("_"&$A$29&"Table8"),B37+1,5),"") -> 8.1 | EP37: =IF(Metric,"ha","acres") -> acres | EZ37: FALSE | FA37: 1
D38: Regrading | J38: =IF(INDEX(INDIRECT("_"&$A$29&"Table4"),B37+1,15)=0,0,INDEX(INDIRECT("_"&$A$29&"Table4"),B37+1,15)) -> 0 | K38: =IF(OR(J38="",K37="",ISTEXT(K37),J38=0),"",IF(OR(ISBLANK(M38),ISBLANK(N38)),"Enter Dates",IF(K37="Date Range","",IF(OR(AND(CostType=ARO,L37>ScheduleYear),AND(CostType=ARO,N38<=ScheduleYear)),"Date Range",IF(OR(AND(CostType=Bond,O38>ScheduleYear),AND(CostType=LOM,LOMComplete)),J38,J38-Q38))))) ->  | M38: 2023 | N38: 2122 | P38: =IF(K38="","",SUM(T38:DO38)) ->  | Q38: =IF(OR(AND(CostType=ARO,N38<=ScheduleYear),AND(CostType=LOM,LOMComplete)),J38*R38,R38*EB38) -> 0 | R38: =IF(CostType=Bond,SUMIFS(T38:DP38,T$27:DP$27,"<="&O38,T$27:DP$27,"<="&ScheduleYear),SUMIF(T$27:DP$27,"<="&ScheduleYear,T38:DP38)) -> 0 | EA38: 1 | EB38: =IF(OR(J38="",EB37="",ISTEXT(EB37)),0,IF(OR(ISBLANK(M38),ISBLANK(N38)),0,IF(OR(AND(CostType=ARO,L37>ScheduleYear),AND(OR(CostType=ARO,AND(CostType=LOM,LOMComplete=TRUE)),N38<=ScheduleYear)),0,J38))) -> 0 | EC38: =IF(OR(J38="",EC37="",ISTEXT(EC37)),0,IF(OR(ISBLANK(M38),ISBLANK(N38)),0,IF(EC37="Date Range",0,IF(OR(AND(OtherCostType=ARO,L37>ScheduleYear),N38<=ScheduleYear),0,J38)))) ->  | EM38: Regrade | EN38: Regrade | EO38: =IF(ISNUMBER(K38),IF(INDEX(INDIRECT("_"&$A$29&"Table4"),B37+1,3)=0,0,INDEX(INDIRECT("_"&$A$29&"Table4"),B37+1,3)),0) -> 0 | EP38: =IF(Metric,"m3","cy") -> cy | EQ38: =INDEX(INDIRECT("_"&$A$29&"Table4"),B37+1,5) ->  | ES38: =IF(OR(NOT(ISNUMBER(K38)),K38=0),0,INDEX(INDIRECT("_"&$A$29&"Table4"),B37+1,12)) -> 0 | EW38: =IF(ISNUMBER($K38),INDEX(INDIRECT("_"&$A$29&"Table4"),B37+1,13),0) -> 0 | EX38: =IF(ISNUMBER($K38),INDEX(INDIRECT("_"&$A$29&"Table4"),B37+1,14),0) -> 0 | EZ38: TRUE
D39: Cover 1 Placement | J39: =INDEX(INDIRECT("_"&$A$29&"Table5"),B37+1,25) -> 0 | K39: =IF(OR(J39="",K37="",ISTEXT(K37),J39=0),"",IF(OR(ISBLANK(M39),ISBLANK(N39)),"Enter Dates",IF(K37="Date Range","",IF(OR(AND(CostType=ARO,L37>ScheduleYear),AND(CostType=ARO,N39<=ScheduleYear)),"Date Range",IF(OR(AND(CostType=Bond,O39>ScheduleYear),AND(CostType=LOM,LOMComplete)),J39,J39-Q39))))) ->  | M39: 2023 | N39: 2122 | Q39: 0 | R39: 0 | EA39: 1 | EB39: =IF(OR(J39="",EB37="",ISTEXT(EB37)),0,IF(OR(ISBLANK(M39),ISBLANK(N39)),0,IF(OR(AND(CostType=ARO,L37>ScheduleYear),AND(OR(CostType=ARO,AND(CostType=LOM,LOMComplete=TRUE)),N39<=ScheduleYear)),0,J39))) -> 0 | EC39: =IF(OR(J39="",EC37="",ISTEXT(EC37)),0,IF(OR(ISBLANK(M39),ISBLANK(N39)),0,IF(EC37="Date Range",0,IF(OR(AND(CostType=ARO,L37>ScheduleYear),N39<=ScheduleYear),0,J39)))) ->  | EM39: Cover | EN39: Cover | EO39: =IF(ISNUMBER(K39),INDEX(INDIRECT("_"&$A$29&"Table5"),B37+1,4),0) -> 0 | EP39: =IF(Metric,"m3","cy") -> cy | EQ39: =INDEX(INDIRECT("_"&$A$29&"Table5"),B37+1,10) ->  | ER39: =IF(OR(NOT(ISNUMBER(K39)),K39=0),0,INDEX(INDIRECT("_"&$A$29&"Table5"),B37+1,12)) -> 0 | ES39: =IF(OR(NOT(ISNUMBER(K39)),K39=0),0,INDEX(INDIRECT("_"&$A$29&"Table5"),B37+1,14)) -> 0 | ET39: =INDEX(INDIRECT("_"&$A$29&"Table5"),B37+1,5) ->  | EU39: =IF(OR(NOT(ISNUMBER(K39)),K39=0),0,INDEX(INDIRECT("_"&$A$29&"Table5"),B37+1,7)) -> 0 | EV39: =IF(OR(NOT(ISNUMBER(K39)),K39=0),0,INDEX(INDIRECT("_"&$A$29&"Table5"),B37+1,9)) -> 0 | EW39: =IF(ISNUMBER($K39),INDEX(INDIRECT("_"&$A$29&"Table5"),B37+1,15)+INDEX(INDIRECT("_"&$A$29&"Table5"),B37+1,19)+INDEX(INDIRECT("_"&$A$29&"Table5"),B37+1,22),0) -> 0 | EX39: =IF(ISNUMBER($K38),INDEX(INDIRECT("_"&$A$29&"Table5"),B37+1,16)+INDEX(INDIRECT("_"&$A$29&"Table5"),B37+1,20)+INDEX(INDIRECT("_"&$A$29&"Table5"),B37+1,23),0) -> 0 | EZ39: TRUE
D40: Cover 2 Placement | J40: =INDEX(INDIRECT("_"&$A$29&"Table6"),B37+1,25) -> 0 | K40: =IF(OR(J40="",K37="",ISTEXT(K37),J40=0),"",IF(OR(ISBLANK(M40),ISBLANK(N40)),"Enter Dates",IF(K37="Date Range","",IF(OR(AND(CostType=ARO,L37>ScheduleYear),AND(CostType=ARO,N40<=ScheduleYear)),"Date Range",IF(OR(AND(CostType=Bond,O40>ScheduleYear),AND(CostType=LOM,LOMComplete)),J40,J40-Q40))))) ->  | M40: 2023 | N40: 2122 | Q40: 0 | R40: 0 | EA40: 1 | EB40: =IF(OR(J40="",EB37="",ISTEXT(EB37)),0,IF(OR(ISBLANK(M40),ISBLANK(N40)),0,IF(OR(AND(CostType=ARO,L37>ScheduleYear),AND(OR(CostType=ARO,AND(CostType=LOM,LOMComplete=TRUE)),N40<=ScheduleYear)),0,J40))) -> 0 | EC40: =IF(OR(J40="",EC37="",ISTEXT(EC37)),0,IF(OR(ISBLANK(M40),ISBLANK(N40)),0,IF(EC37="Date Range",0,IF(OR(AND(CostType=ARO,L37>ScheduleYear),N40<=ScheduleYear),0,J40)))) ->  | EM40: Cover | EN40: Cover | EO40: =IF(ISNUMBER(K40),INDEX(INDIRECT("_"&$A$29&"Table6"),B37+1,4),0) -> 0 | EP40: =IF(Metric,"m3","cy") -> cy | EQ40: =INDEX(INDIRECT("_"&$A$29&"Table6"),B37+1,10) ->  | ER40: =IF(OR(NOT(ISNUMBER(K40)),K40=0),0,INDEX(INDIRECT("_"&$A$29&"Table6"),B37+1,12)) -> 0 | ES40: =IF(OR(NOT(ISNUMBER(K40)),K40=0),0,INDEX(INDIRECT("_"&$A$29&"Table6"),B37+1,14)) -> 0 | ET40: =INDEX(INDIRECT("_"&$A$29&"Table6"),B37+1,5) ->  | EU40: =IF(OR(NOT(ISNUMBER(K40)),K40=0),0,INDEX(INDIRECT("_"&$A$29&"Table6"),B37+1,7)) -> 0 | EV40: =IF(OR(NOT(ISNUMBER(K40)),K40=0),0,INDEX(INDIRECT("_"&$A$29&"Table6"),B37+1,9)) -> 0 | EZ40: TRUE
D41: Growth Media Placement | J41: =INDEX(INDIRECT("_"&$A$29&"Table7"),B37+1,11) -> 83632 | K41: =IF(OR(J41="",K37="",ISTEXT(K37),J41=0),"",IF(OR(ISBLANK(M41),ISBLANK(N41)),"Enter Dates",IF(K37="Date Range","",IF(OR(AND(CostType=ARO,L37>ScheduleYear),AND(CostType=ARO,N41<=ScheduleYear)),"Date Range",IF(OR(AND(CostType=Bond,O41>ScheduleYear),AND(CostType=LOM,LOMComplete)),J41,J41-Q41))))) -> 83632 | M41: 2023 | N41: 2122 | P41: 1 | Q41: 0 | R41: 0 | Z41: 0.05 | AE41: 0.05 | AJ41: 0.05 | AO41: 0.05 | AT41: 0.05 | AY41: 0.05 | BD41: 0.05 | BI41: 0.05 | BN41: 0.05 | BS41: 0.05 | BX41: 0.05 | CC41: 0.05 | CH41: 0.05 | CM41: 0.05 | CR41: 0.05 | CW41: 0.05 | DB41: 0.05 | DG41: 0.05 | DL41: 0.05 | DO41: 0.05 | EA41: 1 | EB41: =IF(OR(J41="",EB37="",ISTEXT(EB37)),0,IF(OR(ISBLANK(M41),ISBLANK(N41)),0,IF(OR(AND(CostType=ARO,L37>ScheduleYear),AND(OR(CostType=ARO,AND(CostType=LOM,LOMComplete=TRUE)),N41<=ScheduleYear)),0,J41))) -> 83632 | EC41: =IF(OR(J41="",EC37="",ISTEXT(EC37)),0,IF(OR(ISBLANK(M41),ISBLANK(N41)),0,IF(EC37="Date Range",0,IF(OR(AND(CostType=ARO,L37>ScheduleYear),N41<=ScheduleYear),0,J41)))) ->  | EM41: GM | EN41: GM | EO41: =IF(ISNUMBER(K41),INDEX(INDIRECT("_"&$A$29&"Table7"),B37+1,3),0) -> 25813 | EP41: =IF(Metric,"m3","cy") -> cy | EQ41: =INDEX(INDIRECT("_"&$A$29&"Table7"),B37+1,4) -> 725C2/966M/D6T | ER41: =IF(OR(NOT(ISNUMBER(K41)),K41=0),0,INDEX(INDIRECT("_"&$A$29&"Table7"),B37+1,6)) -> 5 | ES41: =IF(OR(NOT(ISNUMBER(K41)),K41=0),0,INDEX(INDIRECT("_"&$A$29&"Table7"),B37+1,8)) -> 66 | EZ41: TRUE
D42: Ripping/Scarifying | J42: =INDEX(INDIRECT("_"&$A$29&"Table8"),B37+1,13) -> 158 | K42: =IF(OR(J42="",K37="",ISTEXT(K37),J42=0),"",IF(OR(ISBLANK(M42),ISBLANK(N42)),"Enter Dates",IF(K37="Date Range","",IF(OR(AND(CostType=ARO,L37>ScheduleYear),AND(CostType=ARO,N42<=ScheduleYear)),"Date Range",IF(OR(AND(CostType=Bond,O42>ScheduleYear),AND(CostType=LOM,LOMComplete)),J42,J42-Q42))))) -> 158 | M42: 2023 | N42: 2122 | P42: 1 | Q42: 0 | R42: 0 | Z42: 0.05 | AE42: 0.05 | AJ42: 0.05 | AO42: 0.05 | AT42: 0.05 | AY42: 0.05 | BD42: 0.05 | BI42: 0.05 | BN42: 0.05 | BS42: 0.05 | BX42: 0.05 | CC42: 0.05 | CH42: 0.05 | CM42: 0.05 | CR42: 0.05 | CW42: 0.05 | DB42: 0.05 | DG42: 0.05 | DL42: 0.05 | DO42: 0.05 | EA42: 1 | EB42: =IF(OR(J42="",EB37="",ISTEXT(EB37)),0,IF(OR(ISBLANK(M42),ISBLANK(N42)),0,IF(OR(AND(CostType=ARO,L37>ScheduleYear),AND(OR(CostType=ARO,AND(CostType=LOM,LOMComplete=TRUE)),N42<=ScheduleYear)),0,J42))) -> 158 | EC42: =IF(OR(J42="",EC37="",ISTEXT(EC37)),0,IF(OR(ISBLANK(M42),ISBLANK(N42)), 0,IF(EC37="Date Range",0,IF(OR(AND(CostType=ARO,L37>ScheduleYear),N42<=ScheduleYear),0,J42)))) ->  | EM42: Rip | EN42: Rip | EO42: =IF(ISNUMBER(K42),INDEX(INDIRECT("_"&$A$29&"Table8"),B37+1,5),0) -> 8.1 | EP42: =IF(Metric,"ha","acres") -> acres | EQ42: =INDEX(INDIRECT("_"&$A$29&"Table8"),B37+1,8) -> Rip Dist | ES42: =IF(OR(NOT(ISNUMBER(K42)),K42=0),0,INDEX(INDIRECT("_"&$A$29&"Table8"),B37+1,9)+INDEX(INDIRECT("_"&$A$29&"Table8"),B37+1,10)) -> 0 | EZ42: TRUE
D43: Revegetation | J43: =INDEX(INDIRECT("_"&$A$29&"Table8"),B37+1,17) -> 4180 | K43: =IF(OR(J43="",K37="",ISTEXT(K37),J43=0),"",IF(OR(ISBLANK(M43),ISBLANK(N43)),"Enter Dates",IF(K37="Date Range","",IF(OR(AND(CostType=ARO,L37>ScheduleYear),AND(CostType=ARO,N43<=ScheduleYear)),"Date Range",IF(OR(AND(CostType=Bond,O43>ScheduleYear),AND(CostType=LOM,LOMComplete)),J43,J43-Q43))))) -> 4180 | M43: 2023 | N43: 2122 | P43: 1 | Q43: 0 | R43: 0 | Z43: 0.05 | AE43: 0.05 | AJ43: 0.05 | AO43: 0.05 | AT43: 0.05 | AY43: 0.05 | BD43: 0.05 | BI43: 0.05 | BN43: 0.05 | BS43: 0.05 | BX43: 0.05 | CC43: 0.05 | CH43: 0.05 | CM43: 0.05 | CR43: 0.05 | CW43: 0.05 | DB43: 0.05 | DG43: 0.05 | DL43: 0.05 | DO43: 0.05 | EA43: 1 | EB43: =IF(OR(J43="",EB37="",ISTEXT(EB37)),0,IF(OR(ISBLANK(M43),ISBLANK(N43)),0,IF(OR(AND(CostType=ARO,L37>ScheduleYear),AND(OR(CostType=ARO,AND(CostType=LOM,LOMComplete=TRUE)),N43<=ScheduleYear)),0,J43))) -> 4180 | EC43: =IF(OR(J43="",EC37="",ISTEXT(EC37)),0,IF(OR(ISBLANK(M43),ISBLANK(N43)), 0,IF(EC37="Date Range",0,IF(OR(AND(CostType=ARO,L37>ScheduleYear),N43<=ScheduleYear),0,J43)))) ->  | EM43: Reveg | EN43: Reveg | EO43: =IF(ISNUMBER(K43),INDEX(INDIRECT("_"&$A$29&"Table8"),B37+1,5),0) -> 8.1 | EP43: =IF(Metric,"ha","acres") -> acres | EZ43: TRUE
EZ44: FALSE
A45: Tails | B45: TAILINGS IMPOUNDMENTS | J45: =SumByColor(J46,J46:J54) -> 0 | K45: =SumByColor(K46,K46:K54) -> 0 | Q45: =SumByColor(Q46,Q46:Q54) -> 0 | T45: =SumByColor(T46,T46:T54) -> 0 | U45: 0 | V45: 0 | W45: 0 | X45: 0 | Y45: 0 | Z45: 0 | AA45: 0 | AB45: 0 | AC45: 0 | AD45: 0 | AE45: 0 | AF45: 0 | AG45: 0 | AH45: 0 | AI45: 0 | AJ45: 0 | AK45: 0 | AL45: 0 | AM45: 0 | AN45: 0 | AO45: 0 | AP45: 0 | AQ45: 0 | AR45: 0 | AS45: 0 | AT45: 0 | AU45: 0 | AV45: 0 | AW45: 0 | AX45: 0 | AY45: 0 | AZ45: =SumByColor(AZ46,AZ46:AZ54) -> 0 | BA45: 0 | BB45: 0 | BC45: 0 | BD45: 0 | BE45: 0 | BF45: 0 | BG45: 0 | BH45: 0 | BI45: 0 | BJ45: 0 | BK45: 0 | BL45: 0 | BM45: 0 | BN45: 0 | BO45: 0 | BP45: 0 | BQ45: 0 | BR45: 0 | BS45: 0 | BT45: 0 | BU45: 0 | BV45: 0 | BW45: 0 | BX45: 0 | BY45: 0 | BZ45: 0 | CA45: 0 | CB45: 0 | CC45: 0 | CD45: 0 | CE45: 0 | CF45: =SumByColor(CF46,CF46:CF54) -> 0 | CG45: 0 | CH45: 0 | CI45: 0 | CJ45: 0 | CK45: 0 | CL45: 0 | CM45: 0 | CN45: 0 | CO45: 0 | CP45: 0 | CQ45: 0 | CR45: 0 | CS45: 0 | CT45: 0 | CU45: 0 | CV45: 0 | CW45: 0 | CX45: 0 | CY45: 0 | CZ45: 0 | DA45: 0 | DB45: 0 | DC45: 0 | DD45: 0 | DE45: 0 | DF45: 0 | DG45: 0 | DH45: 0 | DI45: 0 | DJ45: 0 | DK45: 0 | DL45: =SumByColor(DL46,DL46:DL54) -> 0 | DM45: 0 | DN45: 0 | DO45: 0 | EB45: =SumByColor(EB46,EB46:EB54) -> 0 | EC45: =SumByColor(EC46,EC46:EC54) -> 0 | EZ45: FALSE
B46: =(ROW(B46) - ROW($B$45)-1)/INDEX(SheetRangeIndex,MATCH($A$45,TableNamesSorted,0),7) -> 0 | C46: =INDEX(INDIRECT("_"&$A$45&"Table1"),B46+1,9) -> 0 | D46: =INDEX(INDIRECT("_"&$A$45&"Table1"),B46+1,2) -> 0 | E46: =IF(ISBLANK(INDEX(INDIRECT("_"&$A$45&"Table1"),B46+1,3)),"",INDEX(INDIRECT("_"&$A$45&"Table1"),B46+1,3)) ->  | F46: =IF(ISERROR(EL46),"Facility Type",IF(ISBLANK(INDEX(INDIRECT("_"&$A$45&"Table1"),B46+1,5)),"",INDEX(INDIRECT("_"&$A$45&"Table1"),B46+1,5))) ->  | G46: =IF(ISBLANK(INDEX(INDIRECT("_"&$A$45&"Table1"),B46+1,6)),"",INDEX(INDIRECT("_"&$A$45&"Table1"),B46+1,6)) ->  | H46: =IF(ISBLANK(INDEX(INDIRECT("_"&$A$45&"Table1"),B46+1,7)),"",INDEX(INDIRECT("_"&$A$45&"Table1"),B46+1,7)) ->  | I46: =IF(ISBLANK(INDEX(INDIRECT("_"&$A$45&"Table1"),B46+1,8)),"",INDEX(INDIRECT("_"&$A$45&"Table1"),B46+1,8)) ->  | J46: =SUM(J47:J53) -> 0 | K46: =IF(ISERR(ED46),"Cost Type",IF(A46="X","Override",IF(AND(CostType=ARO,L46>ScheduleYear),"Date Range",IF(AND(ISTEXT(LocationFilter),ISERROR(EI46)),"Location",IF(AND(ISTEXT(PropertyFilter),ISERROR(EJ46)),"Property",IF(AND(ISTEXT(FacilityTypeFilter),ISERROR(EG46)),"Facility Type",IF(AND(NOT(ISBLANK(IDCodeFilter)),ISERROR(EF46)),"ID Code",IF(AND(ISTEXT(PhaseFilter),ISERROR(EH46)),"Phase",IF(AND(CostType=LOM,LOMComplete),J46,SUM(T46:DO46)))))))))) -> Cost Type | L46: =INDEX(INDIRECT("_"&$A$45&"Table1"),B46+1,4) -> 0 | Q46: =SUM(Q47:Q52) -> 0 | T46: =IF(ISTEXT($EB46),0,IF(AND(CostType=LOM,LOMComplete,T$27<=ScheduleYear),SUMPRODUCT(T47:T53,$J47:$J53),IF(CostType=Bond,SUMPRODUCT($EB47:$EB53,T47:T53,$EA47:$EA53),IF(T$27<=ScheduleYear,0,SUMPRODUCT(T47:T53,$EB47:$EB53))))) -> 0 | U46: 0 | V46: 0 | W46: 0 | X46: 0 | Y46: 0 | Z46: 0 | AA46: 0 | AB46: 0 | AC46: 0 | AD46: 0 | AE46: 0 | AF46: 0 | AG46: 0 | AH46: 0 | AI46: 0 | AJ46: 0 | AK46: 0 | AL46: 0 | AM46: 0 | AN46: 0 | AO46: 0 | AP46: 0 | AQ46: 0 | AR46: 0 | AS46: 0 | AT46: 0 | AU46: 0 | AV46: 0 | AW46: 0 | AX46: 0 | AY46: 0 | AZ46: =IF(ISTEXT($EB46),0,IF(AND(CostType=LOM,LOMComplete,AZ$27<=ScheduleYear),SUMPRODUCT(AZ47:AZ53,$J47:$J53),IF(CostType=Bond,SUMPRODUCT($EB47:$EB53,AZ47:AZ53,$EA47:$EA53),IF(AZ$27<=ScheduleYear,0,SUMPRODUCT(AZ47:AZ53,$EB47:$EB53))))) -> 0 | BA46: 0 | BB46: 0 | BC46: 0 | BD46: 0 | BE46: 0 | BF46: 0 | BG46: 0 | BH46: 0 | BI46: 0 | BJ46: 0 | BK46: 0 | BL46: 0 | BM46: 0 | BN46: 0 | BO46: 0 | BP46: 0 | BQ46: 0 | BR46: 0 | BS46: 0 | BT46: 0 | BU46: 0 | BV46: 0 | BW46: 0 | BX46: 0 | BY46: 0 | BZ46: 0 | CA46: 0 | CB46: 0 | CC46: 0 | CD46: 0 | CE46: 0 | CF46: =IF(ISTEXT($EB46),0,IF(AND(CostType=LOM,LOMComplete,CF$27<=ScheduleYear),SUMPRODUCT(CF47:CF53,$J47:$J53),IF(CostType=Bond,SUMPRODUCT($EB47:$EB53,CF47:CF53,$EA47:$EA53),IF(CF$27<=ScheduleYear,0,SUMPRODUCT(CF47:CF53,$EB47:$EB53))))) -> 0 | CG46: 0 | CH46: 0 | CI46: 0 | CJ46: 0 | CK46: 0 | CL46: 0 | CM46: 0 | CN46: 0 | CO46: 0 | CP46: 0 | CQ46: 0 | CR46: 0 | CS46: 0 | CT46: 0 | CU46: 0 | CV46: 0 | CW46: 0 | CX46: 0 | CY46: 0 | CZ46: 0 | DA46: 0 | DB46: 0 | DC46: 0 | DD46: 0 | DE46: 0 | DF46: 0 | DG46: 0 | DH46: 0 | DI46: 0 | DJ46: 0 | DK46: 0 | DL46: =IF(ISTEXT($EB46),0,IF(AND(CostType=LOM,LOMComplete,DL$27<=ScheduleYear),SUMPRODUCT(DL47:DL53,$J47:$J53),IF(CostType=Bond,SUMPRODUCT($EB47:$EB53,DL47:DL53,$EA47:$EA53),IF(DL$27<=ScheduleYear,0,SUMPRODUCT(DL47:DL53,$EB47:$EB53))))) -> 0 | DM46: 0 | DN46: 0 | DO46: 0 | DP46: =IF(ISNUMBER(K46),SUM(T46:DO46)-K46,K46) -> Cost Type | EB46: =IF(ISERR(ED46),"Cost Type",IF(A46="X","Override",IF(AND(CostType=ARO,L46>ScheduleYear),0,IF(AND(ISTEXT(LocationFilter),ISERROR(EI46)),"Location",IF(AND(ISTEXT(PropertyFilter),ISERROR(EJ46)),"Property",IF(AND(ISTEXT(FacilityTypeFilter),ISERROR(EG46)),"Facility Type",IF(AND(ISTEXT(IDCodeFilter),ISERROR(EF46)),"ID Code",IF(AND(ISTEXT(PhaseFilter),ISERROR(EH46)),"Phase",J46)))))))) -> Cost Type | EC46: =IF(EE46="","Cost Type",IF(A46="X","Override",IF(AND(OtherCostType=ARO,L46>ScheduleYear),0,IF(AND(ISTEXT(LocationFilter),EI46=""),"Location",IF(AND(ISTEXT(PropertyFilter),EJ46=""),"Property",IF(AND(ISTEXT(FacilityTypeFilter),EG46=""),"Facility Type",IF(AND(ISTEXT(IDCodeFilter),EF46=""),"ID Code",IF(AND(ISTEXT(PhaseFilter),EH46=""),"Phase",J46)))))))) ->  | ED46: =SEARCH(CostType,C46) ->  | EE46: =SEARCH(OtherCostType,C46) ->  | EF46: =IF(AND(IDCodeFilterType="CONTAINS",NOT(ISERROR(SEARCH(IDCodeFilter,E46)))),1,IF(AND(IDCodeFilterType="NOT",ISERROR(SEARCH(IDCodeFilter,E46))),1,IF(AND(OR(IDCodeFilterType="EXACT",ISBLANK(IDCodeFilterType)),NOT(ISERROR(MATCH(IDCodeFilter,E46,0)))),1,$EK46))) ->  | EG46: =IF(AND(FacilityFilterType="CONTAINS",NOT(ISERROR(SEARCH(FacilityTypeFilter,F46)))),1,IF(AND(FacilityFilterType="NOT",ISERROR(SEARCH(FacilityTypeFilter,F46))),1,IF(AND(OR(FacilityFilterType="EXACT",ISBLANK(FacilityFilterType)),NOT(ISERROR(MATCH(FacilityTypeFilter,F46,0)))),1,$EK46))) ->  | EH46: =IF(AND(PhaseFilterType="CONTAINS",NOT(ISERROR(SEARCH(PhaseFilter,G46)))),1,IF(AND(PhaseFilterType="NOT",ISERROR(SEARCH(PhaseFilter,G46))),1,IF(AND(OR(PhaseFilterType="EXACT",ISBLANK(PhaseFilterType)),NOT(ISERROR(MATCH(PhaseFilter,G46,0)))),1,$EK46))) ->  | EI46: =IF(AND(LocationFilterType="CONTAINS",NOT(ISERROR(SEARCH(LocationFilter,H46)))),1,IF(AND(LocationFilterType="NOT",ISERROR(SEARCH(LocationFilter,H46))),1,IF(AND(OR(LocationFilterType="EXACT",ISBLANK(LocationFilterType)),NOT(ISERROR(MATCH(LocationFilter,H46,0)))),1,$EK46))) ->  | EJ46: =IF(AND(PropertyFilterType="CONTAINS",NOT(ISERROR(SEARCH(PropertyFilter,I46)))),1,IF(AND(PropertyFilterType="NOT",ISERROR(SEARCH(PropertyFilter,I46))),1,IF(AND(OR(PropertyFilterType="EXACT",ISBLANK(PropertyFilterType)),NOT(ISERROR(MATCH(PropertyFilter,I46,0)))),1,$EK46))) ->  | EK46: =MATCH("NOT",$EK$27,0) ->  | EL46: =IF(ISBLANK(INDEX(INDIRECT("_"&$A$45&"Table1"),B46+1,2)),"",MATCH(INDEX(INDIRECT("_"&$A$45&"Table1"),B46+1,5),Accounts,0)) ->  | EZ46: FALSE | FA46: 1
D47: Embankment Regrading | J47: =IF(INDEX(INDIRECT("_"&$A$45&"Table4"),B46+1,15)=0,0,INDEX(INDIRECT("_"&$A$45&"Table4"),B46+1,15)) -> 0 | K47: =IF(OR(J47="",K46="",ISTEXT(K46),J47=0),"",IF(OR(ISBLANK(M47),ISBLANK(N47)),"Enter Dates",IF(K46="Date Range","",IF(OR(AND(CostType=ARO,L46>ScheduleYear),AND(CostType=ARO,N47<=ScheduleYear)),"Date Range",IF(OR(AND(CostType=Bond,O47>ScheduleYear),AND(CostType=LOM,LOMComplete)),J47,J47-Q47))))) ->  | P47: =IF(K47="","",SUM(T47:DO47)) ->  | Q47: =IF(OR(AND(CostType=ARO,N47<=ScheduleYear),AND(CostType=LOM,LOMComplete)),J47*R47,R47*EB47) -> 0 | R47: =IF(CostType=Bond,SUMIFS(T47:DP47,T$27:DP$27,"<="&O47,T$27:DP$27,"<="&ScheduleYear),SUMIF(T$27:DP$27,"<="&ScheduleYear,T47:DP47)) -> 0 | EA47: =IF(OR(ISBLANK($O47),$O47>ScheduleYear),1,0) -> 1 | EB47: =IF(OR(J47="",EB46="",ISTEXT(EB46)),0,IF(OR(ISBLANK(M47),ISBLANK(N47)),0,IF(OR(AND(CostType=ARO,L46>ScheduleYear),AND(OR(CostType=ARO,AND(CostType=LOM,LOMComplete=TRUE)),N47<=ScheduleYear)),0,J47))) -> 0 | EC47: =IF(OR(J47="",EC46="",ISTEXT(EC46)),0,IF(OR(ISBLANK(M47),ISBLANK(N47)),0,IF(EC46="Date Range",0,IF(OR(AND(OtherCostType=ARO,L46>ScheduleYear),N47<=ScheduleYear),0,J47)))) ->  | EM47: Regrade | EN47: Regrade | EO47: =IF(ISNUMBER(K47),IF(INDEX(INDIRECT("_"&$A$45&"Table4"),B46+1,3)=0,0,INDEX(INDIRECT("_"&$A$45&"Table4"),B46+1,3)),0) -> 0 | EP47: =IF(Metric,"m3","cy") -> cy | EQ47: =INDEX(INDIRECT("_"&$A$45&"Table4"),B46+1,5) ->  | ES47: =IF(OR(NOT(ISNUMBER(K47)),K47=0),0,INDEX(INDIRECT("_"&$A$45&"Table4"),B46+1,12)) -> 0 | EZ47: TRUE
D48: Surface Regrading | J48: =IF(INDEX(INDIRECT("_"&$A$45&"Table5"),B46+1,15)=0,0,INDEX(INDIRECT("_"&$A$45&"Table5"),B46+1,15)) -> 0 | K48: =IF(OR(J48="",K46="",ISTEXT(K46),J48=0),"",IF(OR(ISBLANK(M48),ISBLANK(N48)),"Enter Dates",IF(K46="Date Range","",IF(OR(AND(CostType=ARO,L46>ScheduleYear),AND(CostType=ARO,N48<=ScheduleYear)),"Date Range",IF(OR(AND(CostType=Bond,O48>ScheduleYear),AND(CostType=LOM,LOMComplete)),J48,J48-Q48))))) ->  | Q48: 0 | R48: 0 | EA48: 1 | EB48: =IF(OR(J48="",EB46="",ISTEXT(EB46)),0,IF(OR(ISBLANK(M48),ISBLANK(N48)),0,IF(OR(AND(CostType=ARO,L46>ScheduleYear),AND(OR(CostType=ARO,AND(CostType=LOM,LOMComplete=TRUE)),N48<=ScheduleYear)),0,J48))) -> 0 | EC48: =IF(OR(J48="",EC46="",ISTEXT(EC46)),0,IF(OR(ISBLANK(M48),ISBLANK(N48)),0,IF(EC46="Date Range",0,IF(OR(AND(CostType=ARO,L46>ScheduleYear),N48<=ScheduleYear),0,J48)))) ->  | EM48: Regrade | EN48: Regrade | EO48: =IF(ISNUMBER(K48),IF(INDEX(INDIRECT("_"&$A$45&"Table5"),B46+1,3)=0,0,INDEX(INDIRECT("_"&$A$45&"Table5"),B46+1,3)),0) -> 0 | EP48: =IF(Metric,"m3","cy") -> cy | EQ48: =INDEX(INDIRECT("_"&$A$45&"Table5"),B46+1,5) ->  | ES48: =IF(OR(NOT(ISNUMBER(K48)),K48=0),0,INDEX(INDIRECT("_"&$A$45&"Table5"),B46+1,12)) -> 0 | EZ48: TRUE
D49: Cover 1 Placement | J49: =INDEX(INDIRECT("_"&$A$45&"Table6"),B46+1,25) -> 0 | K49: =IF(OR(J49="",K46="",ISTEXT(K46),J49=0),"",IF(OR(ISBLANK(M49),ISBLANK(N49)),"Enter Dates",IF(K46="Date Range","",IF(OR(AND(CostType=ARO,L46>ScheduleYear),AND(CostType=ARO,N49<=ScheduleYear)),"Date Range",IF(OR(AND(CostType=Bond,O49>ScheduleYear),AND(CostType=LOM,LOMComplete)),J49,J49-Q49))))) ->  | Q49: 0 | R49: 0 | EA49: 1 | EB49: =IF(OR(J49="",EB46="",ISTEXT(EB46)),0,IF(OR(ISBLANK(M49),ISBLANK(N49)),0,IF(OR(AND(CostType=ARO,L46>ScheduleYear),AND(OR(CostType=ARO,AND(CostType=LOM,LOMComplete=TRUE)),N49<=ScheduleYear)),0,J49))) -> 0 | EC49: =IF(OR(J49="",EC46="",ISTEXT(EC46)),0,IF(OR(ISBLANK(M49),ISBLANK(N49)),0,IF(EC46="Date Range",0,IF(OR(AND(CostType=ARO,L46>ScheduleYear),N49<=ScheduleYear),0,J49)))) ->  | EM49: Cover | EN49: Cover | EO49: =IF(ISNUMBER(K49),INDEX(INDIRECT("_"&$A$45&"Table6"),B46+1,4),0) -> 0 | EP49: =IF(Metric,"m3","cy") -> cy | EQ49: =INDEX(INDIRECT("_"&$A$45&"Table6"),B46+1,10) ->  | ER49: =IF(OR(NOT(ISNUMBER(K49)),K49=0),0,INDEX(INDIRECT("_"&$A$45&"Table6"),B46+1,12)) -> 0 | ES49: =IF(OR(NOT(ISNUMBER(K49)),K49=0),0,INDEX(INDIRECT("_"&$A$45&"Table6"),B46+1,9)) -> 0 | ET49: =INDEX(INDIRECT("_"&$A$45&"Table6"),B46+1,5) ->  | EU49: =IF(OR(NOT(ISNUMBER(K49)),K49=0),0,INDEX(INDIRECT("_"&$A$45&"Table6"),B46+1,7)) -> 0 | EV49: =IF(OR(NOT(ISNUMBER(K49)),K49=0),0,INDEX(INDIRECT("_"&$A$45&"Table6"),B46+1,9)) -> 0 | EZ49: TRUE
D50: Cover 2 Placement | J50: =INDEX(INDIRECT("_"&$A$45&"Table7"),B46+1,25) -> 0 | K50: =IF(OR(J50="",K46="",ISTEXT(K46),J50=0),"",IF(OR(ISBLANK(M50),ISBLANK(N50)),"Enter Dates",IF(K46="Date Range","",IF(OR(AND(CostType=ARO,L46>ScheduleYear),AND(CostType=ARO,N50<=ScheduleYear)),"Date Range",IF(OR(AND(CostType=Bond,O50>ScheduleYear),AND(CostType=LOM,LOMComplete)),J50,J50-Q50))))) ->  | Q50: 0 | R50: 0 | EA50: 1 | EB50: =IF(OR(J50="",EB46="",ISTEXT(EB46)),0,IF(OR(ISBLANK(M50),ISBLANK(N50)),0,IF(OR(AND(CostType=ARO,L46>ScheduleYear),AND(OR(CostType=ARO,AND(CostType=LOM,LOMComplete=TRUE)),N50<=ScheduleYear)),0,J50))) -> 0 | EC50: =IF(OR(J50="",EC46="",ISTEXT(EC46)),0,IF(OR(ISBLANK(M50),ISBLANK(N50)),0,IF(EC46="Date Range",0,IF(OR(AND(CostType=ARO,L46>ScheduleYear),N50<=ScheduleYear),0,J50)))) ->  | EM50: Cover | EN50: Cover | EO50: =IF(ISNUMBER(K50),INDEX(INDIRECT("_"&$A$45&"Table7"),B46+1,4),0) -> 0 | EP50: =IF(Metric,"m3","cy") -> cy | EQ50: =INDEX(INDIRECT("_"&$A$45&"Table7"),B46+1,10) ->  | ER50: =IF(OR(NOT(ISNUMBER(K50)),K50=0),0,INDEX(INDIRECT("_"&$A$45&"Table6"),B46+1,12)) -> 0 | ES50: =IF(OR(NOT(ISNUMBER(K50)),K50=0),0,INDEX(INDIRECT("_"&$A$45&"Table6"),B46+1,14)) -> 0 | ET50: =INDEX(INDIRECT("_"&$A$45&"Table7"),B46+1,5) ->  | EU50: =IF(OR(NOT(ISNUMBER(K50)),K50=0),0,INDEX(INDIRECT("_"&$A$45&"Table7"),B46+1,7)) -> 0 | EV50: =IF(OR(NOT(ISNUMBER(K50)),K50=0),0,INDEX(INDIRECT("_"&$A$45&"Table7"),B46+1,9)) -> 0 | EZ50: TRUE
D51: Growth Media Placement | J51: =INDEX(INDIRECT("_"&$A$45&"Table8"),B46+1,11) -> 0 | K51: =IF(OR(J51="",K46="",ISTEXT(K46),J51=0),"",IF(OR(ISBLANK(M51),ISBLANK(N51)),"Enter Dates",IF(K46="Date Range","",IF(OR(AND(CostType=ARO,L46>ScheduleYear),AND(CostType=ARO,N51<=ScheduleYear)),"Date Range",IF(OR(AND(CostType=Bond,O51>ScheduleYear),AND(CostType=LOM,LOMComplete)),J51,J51-Q51))))) ->  | Q51: 0 | R51: 0 | EA51: 1 | EB51: =IF(OR(J51="",EB46="",ISTEXT(EB46)),0,IF(OR(ISBLANK(M51),ISBLANK(N51)),0,IF(OR(AND(CostType=ARO,L46>ScheduleYear),AND(OR(CostType=ARO,AND(CostType=LOM,LOMComplete=TRUE)),N51<=ScheduleYear)),0,J51))) -> 0 | EC51: =IF(OR(J51="",EC46="",ISTEXT(EC46)),0,IF(OR(ISBLANK(M51),ISBLANK(N51)), 0,IF(EC46="Date Range",0,IF(OR(AND(CostType=ARO,L46>ScheduleYear),N51<=ScheduleYear),0,J51)))) ->  | EM51: GM | EN51: GM | EO51: =IF(ISNUMBER(K51),INDEX(INDIRECT("_"&$A$45&"Table8"),B46+1,3),0) -> 0 | EP51: =IF(Metric,"m3","cy") -> cy | EQ51: =INDEX(INDIRECT("_"&$A$45&"Table8"),B46+1,4) ->  | ER51: =IF(OR(NOT(ISNUMBER(K51)),K51=0),0,INDEX(INDIRECT("_"&$A$45&"Table8"),B46+1,6)) -> 0 | ES51: =IF(OR(NOT(ISNUMBER(K51)),K51=0),0,INDEX(INDIRECT("_"&$A$45&"Table8"),B46+1,6)) -> 0 | EZ51: TRUE
D52: Ripping/Scarifying | J52: =INDEX(INDIRECT("_"&$A$45&"Table9"),B46+1,14) -> 0 | K52: =IF(OR(J52="",K46="",ISTEXT(K46),J52=0),"",IF(OR(ISBLANK(M52),ISBLANK(N52)),"Enter Dates",IF(K46="Date Range","",IF(OR(AND(CostType=ARO,L46>ScheduleYear),AND(CostType=ARO,N52<=ScheduleYear)),"Date Range",IF(OR(AND(CostType=Bond,O52>ScheduleYear),AND(CostType=LOM,LOMComplete)),J52,J52-Q52))))) ->  | Q52: 0 | R52: 0 | EA52: 1 | EB52: =IF(OR(J52="",EB46="",ISTEXT(EB46)),0,IF(OR(ISBLANK(M52),ISBLANK(N52)),0,IF(OR(AND(CostType=ARO,L46>ScheduleYear),AND(OR(CostType=ARO,AND(CostType=LOM,LOMComplete=TRUE)),N52<=ScheduleYear)),0,J52))) -> 0 | EC52: =IF(OR(J52="",EC46="",ISTEXT(EC46)),0,IF(OR(ISBLANK(M52),ISBLANK(N52)), 0,IF(EC46="Date Range",0,IF(OR(AND(CostType=ARO,L46>ScheduleYear),N52<=ScheduleYear),0,J52)))) ->  | EM52: Rip | EN52: Rip | EO52: =IF(ISNUMBER(K52),INDEX(INDIRECT("_"&$A$45&"Table9"),B46+1,5),0) -> 0 | EP52: =IF(Metric,"ha","acres") -> acres | EQ52: =INDEX(INDIRECT("_"&$A$45&"Table9"),B46+1,9) ->  | ES52: =IF(OR(NOT(ISNUMBER(K52)),K52=0),0,INDEX(INDIRECT("_"&$A$45&"Table9"),B46+1,10)+INDEX(INDIRECT("_"&$A$45&"Table9"),B46+1,11)) -> 0 | EZ52: TRUE
D53: Revegetation | J53: =INDEX(INDIRECT("_"&$A$45&"Table9"),B46+1,18) -> 0 | K53: =IF(OR(J53="",K46="",ISTEXT(K46),J53=0),"",IF(OR(ISBLANK(M53),ISBLANK(N53)),"Enter Dates",IF(K46="Date Range","",IF(OR(AND(CostType=ARO,L46>ScheduleYear),AND(CostType=ARO,N53<=ScheduleYear)),"Date Range",IF(OR(AND(CostType=Bond,O53>ScheduleYear),AND(CostType=LOM,LOMComplete)),J53,J53-Q53))))) ->  | Q53: 0 | R53: 0 | EA53: 1 | EB53: =IF(OR(J53="",EB46="",ISTEXT(EB46)),0,IF(OR(ISBLANK(M53),ISBLANK(N53)),0,IF(OR(AND(CostType=ARO,L46>ScheduleYear),AND(OR(CostType=ARO,AND(CostType=LOM,LOMComplete=TRUE)),N53<=ScheduleYear)),0,J53))) -> 0 | EC53: =IF(OR(J53="",EC47="",ISTEXT(EC47)),0,IF(OR(ISBLANK(M53),ISBLANK(N53)), 0,IF(EC47="Date Range",0,IF(OR(AND(CostType=ARO,L46>ScheduleYear),N53<=ScheduleYear),0,J53)))) ->  | EM53: Reveg | EN53: Reveg | EO53: =IF(ISNUMBER(K53),INDEX(INDIRECT("_"&$A$45&"Table9"),B46+1,5),0) -> 0 | EP53: =IF(Metric,"ha","acres") -> acres | EZ53: TRUE
EZ54: FALSE
A55: Heaps | B55: HEAP LEACH FACILITIES | J55: =SumByColor(J56,J56:J64) -> 0 | K55: =SumByColor(K56,K56:K64) -> 0 | Q55: =SumByColor(Q56,Q56:Q64) -> 0 | T55: =SumByColor(T56,T56:T64) -> 0 | U55: 0 | V55: 0 | W55: 0 | X55: 0 | Y55: 0 | Z55: 0 | AA55: 0 | AB55: 0 | AC55: 0 | AD55: 0 | AE55: 0 | AF55: 0 | AG55: 0 | AH55: 0 | AI55: 0 | AJ55: 0 | AK55: 0 | AL55: 0 | AM55: 0 | AN55: 0 | AO55: 0 | AP55: 0 | AQ55: 0 | AR55: 0 | AS55: 0 | AT55: 0 | AU55: 0 | AV55: 0 | AW55: 0 | AX55: 0 | AY55: 0 | AZ55: =SumByColor(AZ56,AZ56:AZ64) -> 0 | BA55: 0 | BB55: 0 | BC55: 0 | BD55: 0 | BE55: 0 | BF55: 0 | BG55: 0 | BH55: 0 | BI55: 0 | BJ55: 0 | BK55: 0 | BL55: 0 | BM55: 0 | BN55: 0 | BO55: 0 | BP55: 0 | BQ55: 0 | BR55: 0 | BS55: 0 | BT55: 0 | BU55: 0 | BV55: 0 | BW55: 0 | BX55: 0 | BY55: 0 | BZ55: 0 | CA55: 0 | CB55: 0 | CC55: 0 | CD55: 0 | CE55: 0 | CF55: =SumByColor(CF56,CF56:CF64) -> 0 | CG55: 0 | CH55: 0 | CI55: 0 | CJ55: 0 | CK55: 0 | CL55: 0 | CM55: 0 | CN55: 0 | CO55: 0 | CP55: 0 | CQ55: 0 | CR55: 0 | CS55: 0 | CT55: 0 | CU55: 0 | CV55: 0 | CW55: 0 | CX55: 0 | CY55: 0 | CZ55: 0 | DA55: 0 | DB55: 0 | DC55: 0 | DD55: 0 | DE55: 0 | DF55: 0 | DG55: 0 | DH55: 0 | DI55: 0 | DJ55: 0 | DK55: 0 | DL55: =SumByColor(DL56,DL56:DL64) -> 0 | DM55: 0 | DN55: 0 | DO55: 0 | EB55: =SumByColor(EB56,EB56:EB64) -> 0 | EC55: =SumByColor(EC56,EC56:EC64) -> 0 | EZ55: FALSE
B56: =(ROW(B56) - ROW($B$55)-1)/INDEX(SheetRangeIndex,MATCH($A$55,TableNamesSorted,0),7) -> 0 | C56: =INDEX(INDIRECT("_"&$A$55&"Table1"),B56+1,9) -> 0 | D56: =INDEX(INDIRECT("_"&$A$55&"Table1"),B56+1,2) -> 0 | E56: =IF(ISBLANK(INDEX(INDIRECT("_"&$A$55&"Table1"),B56+1,3)),"",INDEX(INDIRECT("_"&$A$55&"Table1"),B56+1,3)) ->  | F56: =IF(ISERROR(EL56),"Facility Type",IF(ISBLANK(INDEX(INDIRECT("_"&$A$55&"Table1"),B56+1,5)),"",INDEX(INDIRECT("_"&$A$55&"Table1"),B56+1,5))) ->  | G56: =INDEX(INDIRECT("_"&$A$55&"Table1"),B56+1,6) -> 0 | H56: =INDEX(INDIRECT("_"&$A$55&"Table1"),B56+1,7) -> 0 | I56: =INDEX(INDIRECT("_"&$A$55&"Table1"),B56+1,8) -> 0 | J56: =SUM(J57:J63) -> 0 | K56: =IF(ISERR(ED56),"Cost Type",IF(A56="X","Override",IF(AND(CostType=ARO,L56>ScheduleYear),"Date Range",IF(AND(ISTEXT(LocationFilter),ISERROR(EI56)),"Location",IF(AND(ISTEXT(PropertyFilter),ISERROR(EJ56)),"Property",IF(AND(ISTEXT(FacilityTypeFilter),ISERROR(EG56)),"Facility Type",IF(AND(NOT(ISBLANK(IDCodeFilter)),ISERROR(EF56)),"ID Code",IF(AND(ISTEXT(PhaseFilter),ISERROR(EH56)),"Phase",IF(AND(CostType=LOM,LOMComplete),J56,SUM(T56:DO56)))))))))) -> Cost Type | L56: =INDEX(INDIRECT("_"&$A$55&"Table1"),B56+1,4) -> 0 | Q56: =SUM(Q57:Q63) -> 0 | T56: =IF(ISTEXT($EB56),0,IF(AND(CostType=LOM,LOMComplete,T$27<=ScheduleYear),SUMPRODUCT(T57:T63,$J57:$J63),IF(CostType=Bond,SUMPRODUCT($EB57:$EB63,T57:T63,$EA57:$EA63),IF(T$27<=ScheduleYear,0,SUMPRODUCT(T57:T63,$EB57:$EB63))))) -> 0 | U56: 0 | V56: 0 | W56: 0 | X56: 0 | Y56: 0 | Z56: 0 | AA56: 0 | AB56: 0 | AC56: 0 | AD56: 0 | AE56: 0 | AF56: 0 | AG56: 0 | AH56: 0 | AI56: 0 | AJ56: 0 | AK56: 0 | AL56: 0 | AM56: 0 | AN56: 0 | AO56: 0 | AP56: 0 | AQ56: 0 | AR56: 0 | AS56: 0 | AT56: 0 | AU56: 0 | AV56: 0 | AW56: 0 | AX56: 0 | AY56: 0 | AZ56: =IF(ISTEXT($EB56),0,IF(AND(CostType=LOM,LOMComplete,AZ$27<=ScheduleYear),SUMPRODUCT(AZ57:AZ63,$J57:$J63),IF(CostType=Bond,SUMPRODUCT($EB57:$EB63,AZ57:AZ63,$EA57:$EA63),IF(AZ$27<=ScheduleYear,0,SUMPRODUCT(AZ57:AZ63,$EB57:$EB63))))) -> 0 | BA56: 0 | BB56: 0 | BC56: 0 | BD56: 0 | BE56: 0 | BF56: 0 | BG56: 0 | BH56: 0 | BI56: 0 | BJ56: 0 | BK56: 0 | BL56: 0 | BM56: 0 | BN56: 0 | BO56: 0 | BP56: 0 | BQ56: 0 | BR56: 0 | BS56: 0 | BT56: 0 | BU56: 0 | BV56: 0 | BW56: 0 | BX56: 0 | BY56: 0 | BZ56: 0 | CA56: 0 | CB56: 0 | CC56: 0 | CD56: 0 | CE56: 0 | CF56: =IF(ISTEXT($EB56),0,IF(AND(CostType=LOM,LOMComplete,CF$27<=ScheduleYear),SUMPRODUCT(CF57:CF63,$J57:$J63),IF(CostType=Bond,SUMPRODUCT($EB57:$EB63,CF57:CF63,$EA57:$EA63),IF(CF$27<=ScheduleYear,0,SUMPRODUCT(CF57:CF63,$EB57:$EB63))))) -> 0 | CG56: 0 | CH56: 0 | CI56: 0 | CJ56: 0 | CK56: 0 | CL56: 0 | CM56: 0 | CN56: 0 | CO56: 0 | CP56: 0 | CQ56: 0 | CR56: 0 | CS56: 0 | CT56: 0 | CU56: 0 | CV56: 0 | CW56: 0 | CX56: 0 | CY56: 0 | CZ56: 0 | DA56: 0 | DB56: 0 | DC56: 0 | DD56: 0 | DE56: 0 | DF56: 0 | DG56: 0 | DH56: 0 | DI56: 0 | DJ56: 0 | DK56: 0 | DL56: =IF(ISTEXT($EB56),0,IF(AND(CostType=LOM,LOMComplete,DL$27<=ScheduleYear),SUMPRODUCT(DL57:DL63,$J57:$J63),IF(CostType=Bond,SUMPRODUCT($EB57:$EB63,DL57:DL63,$EA57:$EA63),IF(DL$27<=ScheduleYear,0,SUMPRODUCT(DL57:DL63,$EB57:$EB63))))) -> 0 | DM56: 0 | DN56: 0 | DO56: 0 | DP56: =IF(ISNUMBER(K56),SUM(T56:DO56)-K56,K56) -> Cost Type | EB56: =IF(ISERR(ED56),"Cost Type",IF(A56="X","Override",IF(AND(CostType=ARO,L56>ScheduleYear),0,IF(AND(ISTEXT(LocationFilter),ISERROR(EI56)),"Location",IF(AND(ISTEXT(PropertyFilter),ISERROR(EJ56)),"Property",IF(AND(ISTEXT(FacilityTypeFilter),ISERROR(EG56)),"Facility Type",IF(AND(ISTEXT(IDCodeFilter),ISERROR(EF56)),"ID Code",IF(AND(ISTEXT(PhaseFilter),ISERROR(EH56)),"Phase",J56)))))))) -> Cost Type | EC56: =IF(EE56="","Cost Type",IF(A56="X","Override",IF(AND(OtherCostType=ARO,L56>ScheduleYear),0,IF(AND(ISTEXT(LocationFilter),EI56=""),"Location",IF(AND(ISTEXT(PropertyFilter),EJ56=""),"Property",IF(AND(ISTEXT(FacilityTypeFilter),EG56=""),"Facility Type",IF(AND(ISTEXT(IDCodeFilter),EF56=""),"ID Code",IF(AND(ISTEXT(PhaseFilter),EH56=""),"Phase",J56)))))))) ->  | ED56: =SEARCH(CostType,C56) ->  | EE56: =SEARCH(OtherCostType,C56) ->  | EF56: =IF(AND(IDCodeFilterType="CONTAINS",NOT(ISERROR(SEARCH(IDCodeFilter,E56)))),1,IF(AND(IDCodeFilterType="NOT",ISERROR(SEARCH(IDCodeFilter,E56))),1,IF(AND(OR(IDCodeFilterType="EXACT",ISBLANK(IDCodeFilterType)),NOT(ISERROR(MATCH(IDCodeFilter,E56,0)))),1,$EK56))) ->  | EG56: =IF(AND(FacilityFilterType="CONTAINS",NOT(ISERROR(SEARCH(FacilityTypeFilter,F56)))),1,IF(AND(FacilityFilterType="NOT",ISERROR(SEARCH(FacilityTypeFilter,F56))),1,IF(AND(OR(FacilityFilterType="EXACT",ISBLANK(FacilityFilterType)),NOT(ISERROR(MATCH(FacilityTypeFilter,F56,0)))),1,$EK56))) ->  | EH56: =IF(AND(PhaseFilterType="CONTAINS",NOT(ISERROR(SEARCH(PhaseFilter,G56)))),1,IF(AND(PhaseFilterType="NOT",ISERROR(SEARCH(PhaseFilter,G56))),1,IF(AND(OR(PhaseFilterType="EXACT",ISBLANK(PhaseFilterType)),NOT(ISERROR(MATCH(PhaseFilter,G56,0)))),1,$EK56))) -> 1 | EI56: =IF(AND(LocationFilterType="CONTAINS",NOT(ISERROR(SEARCH(LocationFilter,H56)))),1,IF(AND(LocationFilterType="NOT",ISERROR(SEARCH(LocationFilter,H56))),1,IF(AND(OR(LocationFilterType="EXACT",ISBLANK(LocationFilterType)),NOT(ISERROR(MATCH(LocationFilter,H56,0)))),1,$EK56))) -> 1 | EJ56: =IF(AND(PropertyFilterType="CONTAINS",NOT(ISERROR(SEARCH(PropertyFilter,I56)))),1,IF(AND(PropertyFilterType="NOT",ISERROR(SEARCH(PropertyFilter,I56))),1,IF(AND(OR(PropertyFilterType="EXACT",ISBLANK(PropertyFilterType)),NOT(ISERROR(MATCH(PropertyFilter,I56,0)))),1,$EK56))) -> 1 | EK56: =MATCH("NOT",$EK$27,0) ->  | EL56: =IF(ISBLANK(INDEX(INDIRECT("_"&$A$55&"Table1"),B56+1,2)),"",MATCH(INDEX(INDIRECT("_"&$A$55&"Table1"),B56+1,5),Accounts,0)) ->  | EZ56: FALSE | FA56: 1
D57: Drainage Installation | J57: =IF(INDEX(INDIRECT("_"&$A$55&"Table5"),B56+1,16)=0,0,INDEX(INDIRECT("_"&$A$55&"Table5"),B56+1,16)) -> 0 | K57: =IF(OR(J57="",K56="",ISTEXT(K56),J57=0),"",IF(OR(ISBLANK(M57),ISBLANK(N57)),"Enter Dates",IF(K56="Date Range","",IF(OR(AND(CostType=ARO,L56>ScheduleYear),AND(CostType=ARO,N57<=ScheduleYear)),"Date Range",IF(OR(AND(CostType=Bond,O57>ScheduleYear),AND(CostType=LOM,LOMComplete)),J57,J57-Q57))))) ->  | P57: =IF(K57="","",SUM(T57:DO57)) ->  | Q57: =IF(OR(AND(CostType=ARO,N57<=ScheduleYear),AND(CostType=LOM,LOMComplete)),J57*R57,R57*EB57) -> 0 | R57: =IF(CostType=Bond,SUMIFS(T57:DP57,T$27:DP$27,"<="&O57,T$27:DP$27,"<="&ScheduleYear),SUMIF(T$27:DP$27,"<="&ScheduleYear,T57:DP57)) -> 0 | EA57: =IF(OR(ISBLANK($O57),$O57>ScheduleYear),1,0) -> 1 | EB57: =IF(OR(J57="",EB56="",ISTEXT(EB56)),0,IF(OR(ISBLANK(M57),ISBLANK(N57)),0,IF(OR(AND(CostType=ARO,L56>ScheduleYear),AND(OR(CostType=ARO,AND(CostType=LOM,LOMComplete=TRUE)),N57<=ScheduleYear)),0,J57))) -> 0 | EC57: =IF(OR(J57="",EC56="",ISTEXT(EC56)),0,IF(OR(ISBLANK(M57),ISBLANK(N57)),0,IF(EC56="Date Range",0,IF(OR(AND(OtherCostType=ARO,L56>ScheduleYear),N57<=ScheduleYear),0,J57)))) ->  | EM57: Backfill | EN57: Backfill | EO57: =IF(ISNUMBER(K57),IF(INDEX(INDIRECT("_"&$A$55&"Table5"),B56+1,3)=0,0,INDEX(INDIRECT("_"&$A$55&"Table5"),B56+1,3)),0) -> 0 | EP57: =IF(Metric,"m3","cy") -> cy | EQ57: =INDEX(INDIRECT("_"&$A$55&"Table5"),B56+1,4) ->  | ER57: =IF(OR(NOT(ISNUMBER(K57)),K57=0),0,INDEX(INDIRECT("_"&$A$55&"Table5"),B56+1,6)) -> 0 | ES57: =IF(OR(NOT(ISNUMBER(K57)),K57=0),0,INDEX(INDIRECT("_"&$A$55&"Table5"),B56+1,7)) -> 0 | EZ57: TRUE
D58: Regrading | J58: =IF(INDEX(INDIRECT("_"&$A$55&"Table6"),B56+1,15)=0,0,INDEX(INDIRECT("_"&$A$55&"Table6"),B56+1,15)) -> 0 | K58: =IF(OR(J58="",K56="",ISTEXT(K56),J58=0),"",IF(OR(ISBLANK(M58),ISBLANK(N58)),"Enter Dates",IF(K56="Date Range","",IF(OR(AND(CostType=ARO,L56>ScheduleYear),AND(CostType=ARO,N58<=ScheduleYear)),"Date Range",IF(OR(AND(CostType=Bond,O58>ScheduleYear),AND(CostType=LOM,LOMComplete)),J58,J58-Q58))))) ->  | Q58: 0 | R58: 0 | EA58: 1 | EB58: =IF(OR(J58="",EB56="",ISTEXT(EB56)),0,IF(OR(ISBLANK(M58),ISBLANK(N58)),0,IF(OR(AND(CostType=ARO,L56>ScheduleYear),AND(OR(CostType=ARO,AND(CostType=LOM,LOMComplete=TRUE)),N58<=ScheduleYear)),0,J58))) -> 0 | EC58: =IF(OR(J58="",EC56="",ISTEXT(EC56)),0,IF(OR(ISBLANK(M58),ISBLANK(N58)),0,IF(EC56="Date Range",0,IF(OR(AND(CostType=ARO,L56>ScheduleYear),N58<=ScheduleYear),0,J58)))) ->  | EM58: Regrade | EN58: Regrade | EO58: =IF(ISNUMBER(K58),IF(INDEX(INDIRECT("_"&$A$55&"Table6"),B56+1,3)=0,0,INDEX(INDIRECT("_"&$A$55&"Table6"),B56+1,3)),0) -> 0 | EP58: =IF(Metric,"m3","cy") -> cy | EQ58: =INDEX(INDIRECT("_"&$A$55&"Table6"),B56+1,5) ->  | ES58: =IF(OR(NOT(ISNUMBER(K58)),K58=0),0,INDEX(INDIRECT("_"&$A$55&"Table6"),B56+1,12)) -> 0 | EZ58: TRUE
D59: Cover 1 Placement | J59: =INDEX(INDIRECT("_"&$A$55&"Table7"),B56+1,25) -> 0 | K59: =IF(OR(J59="",K56="",ISTEXT(K56),J59=0),"",IF(OR(ISBLANK(M59),ISBLANK(N59)),"Enter Dates",IF(K56="Date Range","",IF(OR(AND(CostType=ARO,L56>ScheduleYear),AND(CostType=ARO,N59<=ScheduleYear)),"Date Range",IF(OR(AND(CostType=Bond,O59>ScheduleYear),AND(CostType=LOM,LOMComplete)),J59,J59-Q59))))) ->  | Q59: 0 | R59: 0 | EA59: 1 | EB59: =IF(OR(J59="",EB56="",ISTEXT(EB56)),0,IF(OR(ISBLANK(M59),ISBLANK(N59)),0,IF(OR(AND(CostType=ARO,L56>ScheduleYear),AND(OR(CostType=ARO,AND(CostType=LOM,LOMComplete=TRUE)),N59<=ScheduleYear)),0,J59))) -> 0 | EC59: =IF(OR(J59="",EC56="",ISTEXT(EC56)),0,IF(OR(ISBLANK(M59),ISBLANK(N59)),0,IF(EC56="Date Range",0,IF(OR(AND(CostType=ARO,L56>ScheduleYear),N59<=ScheduleYear),0,J59)))) ->  | EM59: Cover | EN59: Cover | EO59: =IF(ISNUMBER(K59),INDEX(INDIRECT("_"&$A$55&"Table7"),B56+1,4),0) -> 0 | EP59: =IF(Metric,"m3","cy") -> cy | EQ59: =INDEX(INDIRECT("_"&$A$55&"Table7"),B56+1,10) ->  | ER59: =IF(OR(NOT(ISNUMBER(K59)),K59=0),0,INDEX(INDIRECT("_"&$A$55&"Table7"),B56+1,12)) -> 0 | ES59: =IF(OR(NOT(ISNUMBER(K59)),K59=0),0,INDEX(INDIRECT("_"&$A$55&"Table7"),B56+1,14)) -> 0 | ET59: =INDEX(INDIRECT("_"&$A$55&"Table7"),B56+1,5) ->  | EU59: =IF(OR(NOT(ISNUMBER(K59)),K59=0),0,INDEX(INDIRECT("_"&$A$55&"Table7"),B56+1,7)) -> 0 | EV59: =IF(OR(NOT(ISNUMBER(K59)),K59=0),0,INDEX(INDIRECT("_"&$A$55&"Table7"),B56+1,9)) -> 0 | EZ59: TRUE
D60: Cover 2 Placement | J60: =INDEX(INDIRECT("_"&$A$55&"Table8"),B56+1,25) -> 0 | K60: =IF(OR(J60="",K56="",ISTEXT(K56),J60=0),"",IF(OR(ISBLANK(M60),ISBLANK(N60)),"Enter Dates",IF(K56="Date Range","",IF(OR(AND(CostType=ARO,L56>ScheduleYear),AND(CostType=ARO,N60<=ScheduleYear)),"Date Range",IF(OR(AND(CostType=Bond,O60>ScheduleYear),AND(CostType=LOM,LOMComplete)),J60,J60-Q60))))) ->  | Q60: 0 | R60: 0 | EA60: 1 | EB60: =IF(OR(J60="",EB56="",ISTEXT(EB56)),0,IF(OR(ISBLANK(M60),ISBLANK(N60)),0,IF(OR(AND(CostType=ARO,L56>ScheduleYear),AND(OR(CostType=ARO,AND(CostType=LOM,LOMComplete=TRUE)),N60<=ScheduleYear)),0,J60))) -> 0 | EC60: =IF(OR(J60="",EC56="",ISTEXT(EC56)),0,IF(OR(ISBLANK(M60),ISBLANK(N60)),0,IF(EC56="Date Range",0,IF(OR(AND(CostType=ARO,L56>ScheduleYear),N60<=ScheduleYear),0,J60)))) ->  | EM60: Cover | EN60: Cover | EO60: =IF(ISNUMBER(K60),INDEX(INDIRECT("_"&$A$55&"Table8"),B56+1,4),0) -> 0 | EP60: =IF(Metric,"m3","cy") -> cy | EQ60: =INDEX(INDIRECT("_"&$A$55&"Table8"),B56+1,10) ->  | ER60: =IF(OR(NOT(ISNUMBER(K60)),K60=0),0,INDEX(INDIRECT("_"&$A$55&"Table8"),B56+1,12)) -> 0 | ES60: =IF(OR(NOT(ISNUMBER(K60)),K60=0),0,INDEX(INDIRECT("_"&$A$55&"Table8"),B56+1,14)) -> 0 | ET60: =INDEX(INDIRECT("_"&$A$55&"Table8"),B56+1,5) ->  | EU60: =IF(OR(NOT(ISNUMBER(K60)),K60=0),0,INDEX(INDIRECT("_"&$A$55&"Table8"),B56+1,7)) -> 0 | EV60: =IF(OR(NOT(ISNUMBER(K60)),K60=0),0,INDEX(INDIRECT("_"&$A$55&"Table8"),B56+1,9)) -> 0 | EZ60: TRUE
D61: Growth Media Placement | J61: =INDEX(INDIRECT("_"&$A$55&"Table9"),B56+1,11) -> 0 | K61: =IF(OR(J61="",K56="",ISTEXT(K56),J61=0),"",IF(OR(ISBLANK(M61),ISBLANK(N61)),"Enter Dates",IF(K56="Date Range","",IF(OR(AND(CostType=ARO,L56>ScheduleYear),AND(CostType=ARO,N61<=ScheduleYear)),"Date Range",IF(OR(AND(CostType=Bond,O61>ScheduleYear),AND(CostType=LOM,LOMComplete)),J61,J61-Q61))))) ->  | Q61: 0 | R61: 0 | EA61: 1 | EB61: =IF(OR(J61="",EB56="",ISTEXT(EB56)),0,IF(OR(ISBLANK(M61),ISBLANK(N61)),0,IF(OR(AND(CostType=ARO,L56>ScheduleYear),AND(OR(CostType=ARO,AND(CostType=LOM,LOMComplete=TRUE)),N61<=ScheduleYear)),0,J61))) -> 0 | EC61: =IF(OR(J61="",EC56="",ISTEXT(EC56)),0,IF(OR(ISBLANK(M61),ISBLANK(N61)), 0,IF(EC56="Date Range",0,IF(OR(AND(CostType=ARO,L56>ScheduleYear),N61<=ScheduleYear),0,J61)))) ->  | EM61: GM | EN61: GM | EO61: =IF(ISNUMBER(K61),INDEX(INDIRECT("_"&$A$55&"Table9"),B56+1,3),0) -> 0 | EP61: =IF(Metric,"m3","cy") -> cy | EQ61: =INDEX(INDIRECT("_"&$A$55&"Table9"),B56+1,4) ->  | ER61: =IF(OR(NOT(ISNUMBER(K61)),K61=0),0,INDEX(INDIRECT("_"&$A$55&"Table9"),B56+1,6)) -> 0 | ES61: =IF(OR(NOT(ISNUMBER(K61)),K61=0),0,INDEX(INDIRECT("_"&$A$55&"Table9"),B56+1,8)) -> 0 | EZ61: TRUE
D62: Ripping/Scarifying | J62: =INDEX(INDIRECT("_"&$A$55&"Table10"),B56+1,13) -> 0 | K62: =IF(OR(J62="",K56="",ISTEXT(K56),J62=0),"",IF(OR(ISBLANK(M62),ISBLANK(N62)),"Enter Dates",IF(K56="Date Range","",IF(OR(AND(CostType=ARO,L56>ScheduleYear),AND(CostType=ARO,N62<=ScheduleYear)),"Date Range",IF(OR(AND(CostType=Bond,O62>ScheduleYear),AND(CostType=LOM,LOMComplete)),J62,J62-Q62))))) ->  | Q62: 0 | R62: 0 | EA62: 1 | EB62: =IF(OR(J62="",EB56="",ISTEXT(EB56)),0,IF(OR(ISBLANK(M62),ISBLANK(N62)),0,IF(OR(AND(CostType=ARO,L56>ScheduleYear),AND(OR(CostType=ARO,AND(CostType=LOM,LOMComplete=TRUE)),N62<=ScheduleYear)),0,J62))) -> 0 | EC62: =IF(OR(J62="",EC56="",ISTEXT(EC56)),0,IF(OR(ISBLANK(M62),ISBLANK(N62)), 0,IF(EC56="Date Range",0,IF(OR(AND(CostType=ARO,L56>ScheduleYear),N62<=ScheduleYear),0,J62)))) ->  | EM62: Rip | EN62: Rip | EO62: =IF(ISNUMBER(K62),INDEX(INDIRECT("_"&$A$55&"Table10"),B56+1,5),0) -> 0 | EP62: =IF(Metric,"ha","acres") -> acres | EQ62: =INDEX(INDIRECT("_"&$A$55&"Table10"),B56+1,8) ->  | ES62: =IF(OR(NOT(ISNUMBER(K62)),K62=0),0,INDEX(INDIRECT("_"&$A$55&"Table10"),B56+1,9)+INDEX(INDIRECT("_"&$A$55&"Table10"),B56+1,10)) -> 0 | EZ62: TRUE
D63: Revegetation | J63: =INDEX(INDIRECT("_"&$A$55&"Table10"),B56+1,17) -> 0 | K63: =IF(OR(J63="",K56="",ISTEXT(K56),J63=0),"",IF(OR(ISBLANK(M63),ISBLANK(N63)),"Enter Dates",IF(K56="Date Range","",IF(OR(AND(CostType=ARO,L56>ScheduleYear),AND(CostType=ARO,N63<=ScheduleYear)),"Date Range",IF(OR(AND(CostType=Bond,O63>ScheduleYear),AND(CostType=LOM,LOMComplete)),J63,J63-Q63))))) ->  | Q63: 0 | R63: 0 | EA63: 1 | EB63: =IF(OR(J63="",EB56="",ISTEXT(EB56)),0,IF(OR(ISBLANK(M63),ISBLANK(N63)),0,IF(OR(AND(CostType=ARO,L56>ScheduleYear),AND(OR(CostType=ARO,AND(CostType=LOM,LOMComplete=TRUE)),N63<=ScheduleYear)),0,J63))) -> 0 | EC63: =IF(OR(J63="",EC57="",ISTEXT(EC57)),0,IF(OR(ISBLANK(M63),ISBLANK(N63)), 0,IF(EC57="Date Range",0,IF(OR(AND(CostType=ARO,L56>ScheduleYear),N63<=ScheduleYear),0,J63)))) ->  | EM63: Reveg | EN63: Reveg | EO63: =IF(ISNUMBER(K63),INDEX(INDIRECT("_"&$A$55&"Table10"),B56+1,5),0) -> 0 | EP63: =IF(Metric,"ha","acres") -> acres | EZ63: TRUE
EZ64: FALSE
A65: Pits | B65: PITS | J65: =SumByColor(J66,J66:J69) -> 0 | K65: =SumByColor(K66,K66:K69) -> 0 | Q65: =SumByColor(Q66,Q66:Q69) -> 0 | T65: =SumByColor(T66,T66:T69) -> 0 | U65: 0 | V65: 0 | W65: 0 | X65: 0 | Y65: 0 | Z65: 0 | AA65: 0 | AB65: 0 | AC65: 0 | AD65: 0 | AE65: 0 | AF65: 0 | AG65: 0 | AH65: 0 | AI65: 0 | AJ65: 0 | AK65: 0 | AL65: 0 | AM65: 0 | AN65: 0 | AO65: 0 | AP65: 0 | AQ65: 0 | AR65: 0 | AS65: 0 | AT65: 0 | AU65: 0 | AV65: 0 | AW65: 0 | AX65: 0 | AY65: 0 | AZ65: =SumByColor(AZ66,AZ66:AZ69) -> 0 | BA65: 0 | BB65: 0 | BC65: 0 | BD65: 0 | BE65: 0 | BF65: 0 | BG65: 0 | BH65: 0 | BI65: 0 | BJ65: 0 | BK65: 0 | BL65: 0 | BM65: 0 | BN65: 0 | BO65: 0 | BP65: 0 | BQ65: 0 | BR65: 0 | BS65: 0 | BT65: 0 | BU65: 0 | BV65: 0 | BW65: 0 | BX65: 0 | BY65: 0 | BZ65: 0 | CA65: 0 | CB65: 0 | CC65: 0 | CD65: 0 | CE65: 0 | CF65: =SumByColor(CF66,CF66:CF69) -> 0 | CG65: 0 | CH65: 0 | CI65: 0 | CJ65: 0 | CK65: 0 | CL65: 0 | CM65: 0 | CN65: 0 | CO65: 0 | CP65: 0 | CQ65: 0 | CR65: 0 | CS65: 0 | CT65: 0 | CU65: 0 | CV65: 0 | CW65: 0 | CX65: 0 | CY65: 0 | CZ65: 0 | DA65: 0 | DB65: 0 | DC65: 0 | DD65: 0 | DE65: 0 | DF65: 0 | DG65: 0 | DH65: 0 | DI65: 0 | DJ65: 0 | DK65: 0 | DL65: =SumByColor(DL66,DL66:DL69) -> 0 | DM65: 0 | DN65: 0 | DO65: 0 | EB65: =SumByColor(EB66,EB66:EB69) -> 0 | EC65: =SumByColor(EC66,EC66:EC69) -> 0 | EZ65: FALSE
B66: =(ROW(B66) - ROW($A$65)-1)/INDEX(SheetRangeIndex,MATCH($A$65,TableNamesSorted,0),7) -> 0 | C66: =INDEX(INDIRECT("_"&$A$65&"Table1"),B66+1,9) -> 0 | D66: =INDEX(INDIRECT("_"&$A$65&"Table1"),B66+1,2) -> 0 | E66: =IF(ISBLANK(INDEX(INDIRECT("_"&$A$65&"Table1"),B66+1,3)),"",INDEX(INDIRECT("_"&$A$65&"Table1"),B66+1,3)) ->  | F66: =IF(ISERROR(EL66),"Facility Type",IF(ISBLANK(INDEX(INDIRECT("_"&$A$65&"Table1"),B66+1,5)),"",INDEX(INDIRECT("_"&$A$65&"Table1"),B66+1,5))) ->  | G66: =IF(ISBLANK(INDEX(INDIRECT("_"&$A$65&"Table1"),B66+1,6)),"",INDEX(INDIRECT("_"&$A$65&"Table1"),B66+1,6)) ->  | H66: =IF(ISBLANK(INDEX(INDIRECT("_"&$A$65&"Table1"),B66+1,7)),"",INDEX(INDIRECT("_"&$A$65&"Table1"),B66+1,7)) ->  | I66: =IF(ISBLANK(INDEX(INDIRECT("_"&$A$65&"Table1"),B66+1,8)),"",INDEX(INDIRECT("_"&$A$65&"Table1"),B66+1,8)) ->  | J66: =SUM(J67:J68) -> 0 | K66: =IF(ISERR(ED66),"Cost Type",IF(A66="X","Override",IF(AND(CostType=ARO,L66>ScheduleYear),"Date Range",IF(AND(ISTEXT(LocationFilter),ISERROR(EI66)),"Location",IF(AND(ISTEXT(PropertyFilter),ISERROR(EJ66)),"Property",IF(AND(ISTEXT(FacilityTypeFilter),ISERROR(EG66)),"Facility Type",IF(AND(NOT(ISBLANK(IDCodeFilter)),ISERROR(EF66)),"ID Code",IF(AND(ISTEXT(PhaseFilter),ISERROR(EH66)),"Phase",IF(AND(CostType=LOM,LOMComplete),J66,SUM(T66:DO66)))))))))) -> Cost Type | L66: =INDEX(INDIRECT("_"&$A$65&"Table1"),B66+1,4) -> 0 | Q66: =SUM(Q67:Q68) -> 0 | T66: =IF(ISTEXT($EB66),0,IF(AND(CostType=LOM,LOMComplete,T$27<=ScheduleYear),SUMPRODUCT(T67:T68,$J67:$J68),IF(CostType=Bond,SUMPRODUCT($EB67:$EB68,T67:T68,$EA67:$EA68),IF(T$27<=ScheduleYear,0,SUMPRODUCT(T67:T68,$EB67:$EB68))))) -> 0 | U66: 0 | V66: 0 | W66: 0 | X66: 0 | Y66: 0 | Z66: 0 | AA66: 0 | AB66: 0 | AC66: 0 | AD66: 0 | AE66: 0 | AF66: 0 | AG66: 0 | AH66: 0 | AI66: 0 | AJ66: 0 | AK66: 0 | AL66: 0 | AM66: 0 | AN66: 0 | AO66: 0 | AP66: 0 | AQ66: 0 | AR66: 0 | AS66: 0 | AT66: 0 | AU66: 0 | AV66: 0 | AW66: 0 | AX66: 0 | AY66: 0 | AZ66: =IF(ISTEXT($EB66),0,IF(AND(CostType=LOM,LOMComplete,AZ$27<=ScheduleYear),SUMPRODUCT(AZ67:AZ68,$J67:$J68),IF(CostType=Bond,SUMPRODUCT($EB67:$EB68,AZ67:AZ68,$EA67:$EA68),IF(AZ$27<=ScheduleYear,0,SUMPRODUCT(AZ67:AZ68,$EB67:$EB68))))) -> 0 | BA66: 0 | BB66: 0 | BC66: 0 | BD66: 0 | BE66: 0 | BF66: 0 | BG66: 0 | BH66: 0 | BI66: 0 | BJ66: 0 | BK66: 0 | BL66: 0 | BM66: 0 | BN66: 0 | BO66: 0 | BP66: 0 | BQ66: 0 | BR66: 0 | BS66: 0 | BT66: 0 | BU66: 0 | BV66: 0 | BW66: 0 | BX66: 0 | BY66: 0 | BZ66: 0 | CA66: 0 | CB66: 0 | CC66: 0 | CD66: 0 | CE66: 0 | CF66: =IF(ISTEXT($EB66),0,IF(AND(CostType=LOM,LOMComplete,CF$27<=ScheduleYear),SUMPRODUCT(CF67:CF68,$J67:$J68),IF(CostType=Bond,SUMPRODUCT($EB67:$EB68,CF67:CF68,$EA67:$EA68),IF(CF$27<=ScheduleYear,0,SUMPRODUCT(CF67:CF68,$EB67:$EB68))))) -> 0 | CG66: 0 | CH66: 0 | CI66: 0 | CJ66: 0 | CK66: 0 | CL66: 0 | CM66: 0 | CN66: 0 | CO66: 0 | CP66: 0 | CQ66: 0 | CR66: 0 | CS66: 0 | CT66: 0 | CU66: 0 | CV66: 0 | CW66: 0 | CX66: 0 | CY66: 0 | CZ66: 0 | DA66: 0 | DB66: 0 | DC66: 0 | DD66: 0 | DE66: 0 | DF66: 0 | DG66: 0 | DH66: 0 | DI66: 0 | DJ66: 0 | DK66: 0 | DL66: =IF(ISTEXT($EB66),0,IF(AND(CostType=LOM,LOMComplete,DL$27<=ScheduleYear),SUMPRODUCT(DL67:DL68,$J67:$J68),IF(CostType=Bond,SUMPRODUCT($EB67:$EB68,DL67:DL68,$EA67:$EA68),IF(DL$27<=ScheduleYear,0,SUMPRODUCT(DL67:DL68,$EB67:$EB68))))) -> 0 | DM66: 0 | DN66: 0 | DO66: 0 | DP66: =IF(ISNUMBER(K66),SUM(T66:DO66)-K66,K66) -> Cost Type | EB66: =IF(ISERR(ED66),"Cost Type",IF(A66="X","Override",IF(AND(CostType=ARO,L66>ScheduleYear),0,IF(AND(ISTEXT(LocationFilter),ISERROR(EI66)),"Location",IF(AND(ISTEXT(PropertyFilter),ISERROR(EJ66)),"Property",IF(AND(ISTEXT(FacilityTypeFilter),ISERROR(EG66)),"Facility Type",IF(AND(ISTEXT(IDCodeFilter),ISERROR(EF66)),"ID Code",IF(AND(ISTEXT(PhaseFilter),ISERROR(EH66)),"Phase",J66)))))))) -> Cost Type | EC66: =IF(EE66="","Cost Type",IF(A66="X","Override",IF(AND(OtherCostType=ARO,L66>ScheduleYear),0,IF(AND(ISTEXT(LocationFilter),EI66=""),"Location",IF(AND(ISTEXT(PropertyFilter),EJ66=""),"Property",IF(AND(ISTEXT(FacilityTypeFilter),EG66=""),"Facility Type",IF(AND(ISTEXT(IDCodeFilter),EF66=""),"ID Code",IF(AND(ISTEXT(PhaseFilter),EH66=""),"Phase",J66)))))))) ->  | ED66: =SEARCH(CostType,C66) ->  | EE66: =SEARCH(OtherCostType,C66) ->  | EF66: =IF(AND(IDCodeFilterType="CONTAINS",NOT(ISERROR(SEARCH(IDCodeFilter,E66)))),1,IF(AND(IDCodeFilterType="NOT",ISERROR(SEARCH(IDCodeFilter,E66))),1,IF(AND(OR(IDCodeFilterType="EXACT",ISBLANK(IDCodeFilterType)),NOT(ISERROR(MATCH(IDCodeFilter,E66,0)))),1,$EK66))) ->  | EG66: =IF(AND(FacilityFilterType="CONTAINS",NOT(ISERROR(SEARCH(FacilityTypeFilter,F66)))),1,IF(AND(FacilityFilterType="NOT",ISERROR(SEARCH(FacilityTypeFilter,F66))),1,IF(AND(OR(FacilityFilterType="EXACT",ISBLANK(FacilityFilterType)),NOT(ISERROR(MATCH(FacilityTypeFilter,F66,0)))),1,$EK66))) ->  | EH66: =IF(AND(PhaseFilterType="CONTAINS",NOT(ISERROR(SEARCH(PhaseFilter,G66)))),1,IF(AND(PhaseFilterType="NOT",ISERROR(SEARCH(PhaseFilter,G66))),1,IF(AND(OR(PhaseFilterType="EXACT",ISBLANK(PhaseFilterType)),NOT(ISERROR(MATCH(PhaseFilter,G66,0)))),1,$EK66))) ->  | EI66: =IF(AND(LocationFilterType="CONTAINS",NOT(ISERROR(SEARCH(LocationFilter,H66)))),1,IF(AND(LocationFilterType="NOT",ISERROR(SEARCH(LocationFilter,H66))),1,IF(AND(OR(LocationFilterType="EXACT",ISBLANK(LocationFilterType)),NOT(ISERROR(MATCH(LocationFilter,H66,0)))),1,$EK66))) ->  | EJ66: =IF(AND(PropertyFilterType="CONTAINS",NOT(ISERROR(SEARCH(PropertyFilter,I66)))),1,IF(AND(PropertyFilterType="NOT",ISERROR(SEARCH(PropertyFilter,I66))),1,IF(AND(OR(PropertyFilterType="EXACT",ISBLANK(PropertyFilterType)),NOT(ISERROR(MATCH(PropertyFilter,I66,0)))),1,$EK66))) ->  | EK66: =MATCH("NOT",$EK$27,0) ->  | EL66: =IF(ISBLANK(INDEX(INDIRECT("_"&$A$65&"Table1"),B66+1,2)),"",MATCH(INDEX(INDIRECT("_"&$A$65&"Table1"),B66+1,5),Accounts,0)) ->  | EZ66: FALSE | FA66: 1
D67: Berm Construction | J67: =INDEX(INDIRECT("_"&$A$65&"Table2"),B66+1,11) -> 0 | K67: =IF(OR(J67="",K66="",ISTEXT(K66),J67=0),"",IF(OR(ISBLANK(M67),ISBLANK(N67)),"Enter Dates",IF(K66="Date Range","",IF(OR(AND(CostType=ARO,L66>ScheduleYear),AND(CostType=ARO,N67<=ScheduleYear)),"Date Range",IF(OR(AND(CostType=Bond,O67>ScheduleYear),AND(CostType=LOM,LOMComplete)),J67,J67-Q67))))) ->  | P67: =IF(K67="","",SUM(T67:DO67)) ->  | Q67: =IF(OR(AND(CostType=ARO,N67<=ScheduleYear),AND(CostType=LOM,LOMComplete)),J67*R67,R67*EB67) -> 0 | R67: =IF(CostType=Bond,SUMIFS(T67:DP67,T$27:DP$27,"<="&O67,T$27:DP$27,"<="&ScheduleYear),SUMIF(T$27:DP$27,"<="&ScheduleYear,T67:DP67)) -> 0 | EA67: =IF(OR(ISBLANK($O67),$O67>ScheduleYear),1,0) -> 1 | EB67: =IF(OR(J67="",EB66="",ISTEXT(EB66)),0,IF(OR(ISBLANK(M67),ISBLANK(N67)),0,IF(OR(AND(CostType=ARO,L66>ScheduleYear),AND(OR(CostType=ARO,AND(CostType=LOM,LOMComplete=TRUE)),N67<=ScheduleYear)),0,J67))) -> 0 | EC67: =IF(OR(J67="",EC66="",ISTEXT(EC66)),0,IF(OR(ISBLANK(M67),ISBLANK(N67)),0,IF(EC66="Date Range",0,IF(OR(AND(OtherCostType=ARO,L66>ScheduleYear),N67<=ScheduleYear),0,J67)))) ->  | EM67: Backfill | EN67: Backfill | EO67: =IF(ISNUMBER(K67),IF(INDEX(INDIRECT("_"&$A$65&"Table2"),B66+1,3)=0,0,INDEX(INDIRECT("_"&$A$65&"Table2"),B66+1,3)),0) -> 0 | EP67: =IF(Metric,"m3","cy") -> cy | EQ67: =INDEX(INDIRECT("_"&$A$65&"Table2"),B66+1,4) ->  | ER67: =IF(OR(NOT(ISNUMBER(K67)),K67=0),0,INDEX(INDIRECT("_"&$A$65&"Table2"),B66+1,6)) -> 0 | ES67: =IF(OR(NOT(ISNUMBER(K67)),K67=0),0,INDEX(INDIRECT("_"&$A$65&"Table2"),B66+1,8)) -> 0 | EZ67: TRUE
D68: Berm Revegetation | J68: =INDEX(INDIRECT("_"&$A$65&"Table3"),B66+1,7) -> 0 | K68: =IF(OR(J68="",K66="",ISTEXT(K66),J68=0),"",IF(OR(ISBLANK(M68),ISBLANK(N68)),"Enter Dates",IF(K66="Date Range","",IF(OR(AND(CostType=ARO,L66>ScheduleYear),AND(CostType=ARO,N68<=ScheduleYear)),"Date Range",IF(OR(AND(CostType=Bond,O68>ScheduleYear),AND(CostType=LOM,LOMComplete)),J68,J68-Q68))))) ->  | P68: =IF(K68="","",SUM(T68:DO68)) ->  | Q68: =IF(OR(AND(CostType=ARO,N68<=ScheduleYear),AND(CostType=LOM,LOMComplete)),J68*R68,R68*EB68) -> 0 | R68: =IF(CostType=Bond,SUMIFS(T68:DP68,T$27:DP$27,"<="&O68,T$27:DP$27,"<="&ScheduleYear),SUMIF(T$27:DP$27,"<="&ScheduleYear,T68:DP68)) -> 0 | EA68: =IF(OR(ISBLANK($O68),$O68>ScheduleYear),1,0) -> 1 | EB68: =IF(OR(J68="",EB66="",ISTEXT(EB66)),0,IF(OR(ISBLANK(M68),ISBLANK(N68)),0,IF(OR(AND(CostType=ARO,L66>ScheduleYear),AND(OR(CostType=ARO,AND(CostType=LOM,LOMComplete=TRUE)),N68<=ScheduleYear)),0,J68))) -> 0 | EC68: =IF(OR(J68="",EC66="",ISTEXT(EC66)),0,IF(OR(ISBLANK(M68),ISBLANK(N68)),0,IF(EC66="Date Range",0,IF(OR(AND(CostType=ARO,L66>ScheduleYear),N68<=ScheduleYear),0,J68)))) ->  | EM68: Reveg | EN68: Reveg | EO68: =IF(ISNUMBER(K68),IF(INDEX(INDIRECT("_"&$A$65&"Table3"),B66+1,3)=0,0,INDEX(INDIRECT("_"&$A$65&"Table3"),B66+1,3)),0) -> 0 | EP68: =IF(Metric,"ha","acres") -> acres | EZ68: TRUE
EZ69: FALSE
A70: Quarry | B70: QUARRIES & BORROW PITS | J70: =SumByColor(J71,J71:J98) -> 20841 | K70: =SumByColor(K71,K71:K98) -> 20841 | Q70: =SumByColor(Q71,Q71:Q98) -> 0 | T70: =SumByColor(T71,T71:T98) -> 0 | U70: 0 | V70: 0 | W70: 0 | X70: 0 | Y70: 0 | Z70: 0 | AA70: 0 | AB70: 0 | AC70: 0 | AD70: 0 | AE70: 0 | AF70: 0 | AG70: 0 | AH70: 0 | AI70: 0 | AJ70: 0 | AK70: 0 | AL70: 0 | AM70: 0 | AN70: 0 | AO70: 0 | AP70: 0 | AQ70: 0 | AR70: 0 | AS70: 0 | AT70: 0 | AU70: 0 | AV70: 0 | AW70: 0 | AX70: 0 | AY70: 0 | AZ70: =SumByColor(AZ71,AZ71:AZ98) -> 0 | BA70: 0 | BB70: 0 | BC70: 0 | BD70: 0 | BE70: 0 | BF70: 0 | BG70: 0 | BH70: 0 | BI70: 0 | BJ70: 0 | BK70: 0 | BL70: 0 | BM70: 0 | BN70: 0 | BO70: 0 | BP70: 0 | BQ70: 0 | BR70: 0 | BS70: 0 | BT70: 0 | BU70: 0 | BV70: 0 | BW70: 0 | BX70: 0 | BY70: 0 | BZ70: 0 | CA70: 0 | CB70: 0 | CC70: 0 | CD70: 0 | CE70: 0 | CF70: =SumByColor(CF71,CF71:CF98) -> 0 | CG70: 0 | CH70: 0 | CI70: 0 | CJ70: 0 | CK70: 0 | CL70: 0 | CM70: 0 | CN70: 0 | CO70: 0 | CP70: 0 | CQ70: 0 | CR70: 0 | CS70: 0 | CT70: 0 | CU70: 0 | CV70: 0 | CW70: 0 | CX70: 0 | CY70: 0 | CZ70: 0 | DA70: 0 | DB70: 0 | DC70: 0 | DD70: 0 | DE70: 0 | DF70: 0 | DG70: 0 | DH70: 0 | DI70: 0 | DJ70: 0 | DK70: 0 | DL70: =SumByColor(DL71,DL71:DL98) -> 0 | DM70: 0 | DN70: 0 | DO70: 20841 | EB70: =SumByColor(EB71,EB71:EB98) -> 20841 | EC70: =SumByColor(EC71,EC71:EC98) -> 0 | EZ70: FALSE
B71: =(ROW(B71) - ROW($A$70)-1)/INDEX(SheetRangeIndex,MATCH($A$70,TableNamesSorted,0),7) -> 0 | C71: =INDEX(INDIRECT("_"&$A$70&"Table1"),B71+1,9) -> 0 | D71: =INDEX(INDIRECT("_"&$A$70&"Table1"),B71+1,2) -> 0 | E71: =IF(ISBLANK(INDEX(INDIRECT("_"&$A$70&"Table1"),B71+1,3)),"",INDEX(INDIRECT("_"&$A$70&"Table1"),B71+1,3)) ->  | F71: =IF(ISERROR(EL71),"Facility Type",IF(ISBLANK(INDEX(INDIRECT("_"&$A$70&"Table1"),B71+1,5)),"",INDEX(INDIRECT("_"&$A$70&"Table1"),B71+1,5))) ->  | G71: =IF(ISBLANK(INDEX(INDIRECT("_"&$A$70&"Table1"),B71+1,6)),"",INDEX(INDIRECT("_"&$A$70&"Table1"),B71+1,6)) ->  | H71: =IF(ISBLANK(INDEX(INDIRECT("_"&$A$70&"Table1"),B71+1,7)),"",INDEX(INDIRECT("_"&$A$70&"Table1"),B71+1,7)) ->  | I71: =IF(ISBLANK(INDEX(INDIRECT("_"&$A$70&"Table1"),B71+1,8)),"",INDEX(INDIRECT("_"&$A$70&"Table1"),B71+1,8)) ->  | J71: =SUM(J72:J79) -> 0 | K71: =IF(ISERR(ED71),"Cost Type",IF(A71="X","Override",IF(AND(CostType=ARO,L71>ScheduleYear),"Date Range",IF(AND(ISTEXT(LocationFilter),ISERROR(EI71)),"Location",IF(AND(ISTEXT(PropertyFilter),ISERROR(EJ71)),"Property",IF(AND(ISTEXT(FacilityTypeFilter),ISERROR(EG71)),"Facility Type",IF(AND(NOT(ISBLANK(IDCodeFilter)),ISERROR(EF71)),"ID Code",IF(AND(ISTEXT(PhaseFilter),ISERROR(EH71)),"Phase",IF(AND(CostType=LOM,LOMComplete),J71,SUM(T71:DO71)))))))))) -> Cost Type | L71: =INDEX(INDIRECT("_"&$A$70&"Table1"),B71+1,4) -> 0 | Q71: =SUM(Q72:Q79) -> 0 | T71: =IF(ISTEXT($EB71),0,IF(AND(CostType=LOM,LOMComplete,T$27<=ScheduleYear),SUMPRODUCT(T72:T79,$J72:$J79),IF(CostType=Bond,SUMPRODUCT($EB72:$EB79,T72:T79,$EA72:$EA79),IF(T$27<=ScheduleYear,0,SUMPRODUCT(T72:T79,$EB72:$EB79))))) -> 0 | U71: 0 | V71: 0 | W71: 0 | X71: 0 | Y71: 0 | Z71: 0 | AA71: 0 | AB71: 0 | AC71: 0 | AD71: 0 | AE71: 0 | AF71: 0 | AG71: 0 | AH71: 0 | AI71: 0 | AJ71: 0 | AK71: 0 | AL71: 0 | AM71: 0 | AN71: 0 | AO71: 0 | AP71: 0 | AQ71: 0 | AR71: 0 | AS71: 0 | AT71: 0 | AU71: 0 | AV71: 0 | AW71: 0 | AX71: 0 | AY71: 0 | AZ71: =IF(ISTEXT($EB71),0,IF(AND(CostType=LOM,LOMComplete,AZ$27<=ScheduleYear),SUMPRODUCT(AZ72:AZ79,$J72:$J79),IF(CostType=Bond,SUMPRODUCT($EB72:$EB79,AZ72:AZ79,$EA72:$EA79),IF(AZ$27<=ScheduleYear,0,SUMPRODUCT(AZ72:AZ79,$EB72:$EB79))))) -> 0 | BA71: 0 | BB71: 0 | BC71: 0 | BD71: 0 | BE71: 0 | BF71: 0 | BG71: 0 | BH71: 0 | BI71: 0 | BJ71: 0 | BK71: 0 | BL71: 0 | BM71: 0 | BN71: 0 | BO71: 0 | BP71: 0 | BQ71: 0 | BR71: 0 | BS71: 0 | BT71: 0 | BU71: 0 | BV71: 0 | BW71: 0 | BX71: 0 | BY71: 0 | BZ71: 0 | CA71: 0 | CB71: 0 | CC71: 0 | CD71: 0 | CE71: 0 | CF71: =IF(ISTEXT($EB71),0,IF(AND(CostType=LOM,LOMComplete,CF$27<=ScheduleYear),SUMPRODUCT(CF72:CF79,$J72:$J79),IF(CostType=Bond,SUMPRODUCT($EB72:$EB79,CF72:CF79,$EA72:$EA79),IF(CF$27<=ScheduleYear,0,SUMPRODUCT(CF72:CF79,$EB72:$EB79))))) -> 0 | CG71: 0 | CH71: 0 | CI71: 0 | CJ71: 0 | CK71: 0 | CL71: 0 | CM71: 0 | CN71: 0 | CO71: 0 | CP71: 0 | CQ71: 0 | CR71: 0 | CS71: 0 | CT71: 0 | CU71: 0 | CV71: 0 | CW71: 0 | CX71: 0 | CY71: 0 | CZ71: 0 | DA71: 0 | DB71: 0 | DC71: 0 | DD71: 0 | DE71: 0 | DF71: 0 | DG71: 0 | DH71: 0 | DI71: 0 | DJ71: 0 | DK71: 0 | DL71: =IF(ISTEXT($EB71),0,IF(AND(CostType=LOM,LOMComplete,DL$27<=ScheduleYear),SUMPRODUCT(DL72:DL79,$J72:$J79),IF(CostType=Bond,SUMPRODUCT($EB72:$EB79,DL72:DL79,$EA72:$EA79),IF(DL$27<=ScheduleYear,0,SUMPRODUCT(DL72:DL79,$EB72:$EB79))))) -> 0 | DM71: 0 | DN71: 0 | DO71: 0 | DP71: =IF(ISNUMBER(K71),SUM(T71:DO71)-K71,K71) -> Cost Type | EB71: =IF(ISERR(ED71),"Cost Type",IF(A71="X","Override",IF(AND(CostType=ARO,L71>ScheduleYear),0,IF(AND(ISTEXT(LocationFilter),ISERROR(EI71)),"Location",IF(AND(ISTEXT(PropertyFilter),ISERROR(EJ71)),"Property",IF(AND(ISTEXT(FacilityTypeFilter),ISERROR(EG71)),"Facility Type",IF(AND(ISTEXT(IDCodeFilter),ISERROR(EF71)),"ID Code",IF(AND(ISTEXT(PhaseFilter),ISERROR(EH71)),"Phase",J71)))))))) -> Cost Type | EC71: =IF(EE71="","Cost Type",IF(A71="X","Override",IF(AND(OtherCostType=ARO,L71>ScheduleYear),0,IF(AND(ISTEXT(LocationFilter),EI71=""),"Location",IF(AND(ISTEXT(PropertyFilter),EJ71=""),"Property",IF(AND(ISTEXT(FacilityTypeFilter),EG71=""),"Facility Type",IF(AND(ISTEXT(IDCodeFilter),EF71=""),"ID Code",IF(AND(ISTEXT(PhaseFilter),EH71=""),"Phase",J71)))))))) ->  | ED71: =SEARCH(CostType,C71) ->  | EE71: =SEARCH(OtherCostType,C71) ->  | EF71: =IF(AND(IDCodeFilterType="CONTAINS",NOT(ISERROR(SEARCH(IDCodeFilter,E71)))),1,IF(AND(IDCodeFilterType="NOT",ISERROR(SEARCH(IDCodeFilter,E71))),1,IF(AND(OR(IDCodeFilterType="EXACT",ISBLANK(IDCodeFilterType)),NOT(ISERROR(MATCH(IDCodeFilter,E71,0)))),1,$EK71))) ->  | EG71: =IF(AND(FacilityFilterType="CONTAINS",NOT(ISERROR(SEARCH(FacilityTypeFilter,F71)))),1,IF(AND(FacilityFilterType="NOT",ISERROR(SEARCH(FacilityTypeFilter,F71))),1,IF(AND(OR(FacilityFilterType="EXACT",ISBLANK(FacilityFilterType)),NOT(ISERROR(MATCH(FacilityTypeFilter,F71,0)))),1,$EK71))) ->  | EH71: =IF(AND(PhaseFilterType="CONTAINS",NOT(ISERROR(SEARCH(PhaseFilter,G71)))),1,IF(AND(PhaseFilterType="NOT",ISERROR(SEARCH(PhaseFilter,G71))),1,IF(AND(OR(PhaseFilterType="EXACT",ISBLANK(PhaseFilterType)),NOT(ISERROR(MATCH(PhaseFilter,G71,0)))),1,$EK71))) ->  | EI71: =IF(AND(LocationFilterType="CONTAINS",NOT(ISERROR(SEARCH(LocationFilter,H71)))),1,IF(AND(LocationFilterType="NOT",ISERROR(SEARCH(LocationFilter,H71))),1,IF(AND(OR(LocationFilterType="EXACT",ISBLANK(LocationFilterType)),NOT(ISERROR(MATCH(LocationFilter,H71,0)))),1,$EK71))) ->  | EJ71: =IF(AND(PropertyFilterType="CONTAINS",NOT(ISERROR(SEARCH(PropertyFilter,I71)))),1,IF(AND(PropertyFilterType="NOT",ISERROR(SEARCH(PropertyFilter,I71))),1,IF(AND(OR(PropertyFilterType="EXACT",ISBLANK(PropertyFilterType)),NOT(ISERROR(MATCH(PropertyFilter,I71,0)))),1,$EK71))) ->  | EK71: =MATCH("NOT",$EK$27,0) ->  | EL71: =IF(ISBLANK(INDEX(INDIRECT("_"&$A$70&"Table1"),B71+1,2)),"",MATCH(INDEX(INDIRECT("_"&$A$70&"Table1"),B71+1,5),Accounts,0)) ->  | EZ71: FALSE | FA71: 1
D72: Regrading | J72: =IF(INDEX(INDIRECT("_"&$A$70&"Table5"),B71+1,15)=0,0,INDEX(INDIRECT("_"&$A$70&"Table5"),B71+1,15)) -> 0 | K72: =IF(OR(J72="",K71="",ISTEXT(K71),J72=0),"",IF(OR(ISBLANK(M72),ISBLANK(N72)),"Enter Dates",IF(K71="Date Range","",IF(OR(AND(CostType=ARO,L71>ScheduleYear),AND(CostType=ARO,N72<=ScheduleYear)),"Date Range",IF(OR(AND(CostType=Bond,O72>ScheduleYear),AND(CostType=LOM,LOMComplete)),J72,J72-Q72))))) ->  | P72: =IF(K72="","",SUM(T72:DO72)) ->  | Q72: =IF(OR(AND(CostType=ARO,N72<=ScheduleYear),AND(CostType=LOM,LOMComplete)),J72*R72,R72*EB72) -> 0 | R72: =IF(CostType=Bond,SUMIFS(T72:DP72,T$27:DP$27,"<="&O72,T$27:DP$27,"<="&ScheduleYear),SUMIF(T$27:DP$27,"<="&ScheduleYear,T72:DP72)) -> 0 | EA72: =IF(OR(ISBLANK($O72),$O72>ScheduleYear),1,0) -> 1 | EB72: =IF(OR(J72="",EB71="",ISTEXT(EB71)),0,IF(OR(ISBLANK(M72),ISBLANK(N72)),0,IF(OR(AND(CostType=ARO,L71>ScheduleYear),AND(OR(CostType=ARO,AND(CostType=LOM,LOMComplete=TRUE)),N72<=ScheduleYear)),0,J72))) -> 0 | EC72: =IF(OR(J72="",EC71="",ISTEXT(EC71)),0,IF(OR(ISBLANK(M72),ISBLANK(N72)),0,IF(EC71="Date Range",0,IF(OR(AND(OtherCostType=ARO,L71>ScheduleYear),N72<=ScheduleYear),0,J72)))) ->  | EM72: Regrade | EN72: Regrade | EO72: =IF(ISNUMBER(K72),IF(INDEX(INDIRECT("_"&$A$70&"Table5"),B71+1,3)=0,0,INDEX(INDIRECT("_"&$A$70&"Table5"),B71+1,3)),0) -> 0 | EP72: =IF(Metric,"m3","cy") -> cy | EQ72: =INDEX(INDIRECT("_"&$A$70&"Table5"),B71+1,5) ->  | ES72: =IF(NOT(ISNUMBER(K72)),0,INDEX(INDIRECT("_"&$A$70&"Table5"),B71+1,12)) -> 0 | EZ72: TRUE
D73: Cover 1 Placement | J73: =INDEX(INDIRECT("_"&$A$70&"Table6"),B71+1,25) -> 0 | K73: =IF(OR(J73="",K71="",ISTEXT(K71),J73=0),"",IF(OR(ISBLANK(M73),ISBLANK(N73)),"Enter Dates",IF(K71="Date Range","",IF(OR(AND(CostType=ARO,L71>ScheduleYear),AND(CostType=ARO,N73<=ScheduleYear)),"Date Range",IF(OR(AND(CostType=Bond,O73>ScheduleYear),AND(CostType=LOM,LOMComplete)),J73,J73-Q73))))) ->  | Q73: 0 | R73: 0 | EA73: 1 | EB73: =IF(OR(J73="",EB71="",ISTEXT(EB71)),0,IF(OR(ISBLANK(M73),ISBLANK(N73)),0,IF(OR(AND(CostType=ARO,L71>ScheduleYear),AND(OR(CostType=ARO,AND(CostType=LOM,LOMComplete=TRUE)),N73<=ScheduleYear)),0,J73))) -> 0 | EC73: =IF(OR(J73="",EC71="",ISTEXT(EC71)),0,IF(OR(ISBLANK(M73),ISBLANK(N73)),0,IF(EC71="Date Range",0,IF(OR(AND(CostType=ARO,L71>ScheduleYear),N73<=ScheduleYear),0,J73)))) ->  | EM73: Cover | EN73: Cover | EO73: =IF(ISNUMBER(K73),INDEX(INDIRECT("_"&$A$70&"Table6"),B71+1,4),0) -> 0 | EP73: =IF(Metric,"m3","cy") -> cy | EQ73: =INDEX(INDIRECT("_"&$A$70&"Table6"),B71+1,10) ->  | ER73: =IF(OR(NOT(ISNUMBER(K73)),K73=0),0,INDEX(INDIRECT("_"&$A$70&"Table6"),B71+1,12)) -> 0 | ES73: =IF(OR(NOT(ISNUMBER(K73)),K73=0),0,INDEX(INDIRECT("_"&$A$70&"Table6"),B71+1,14)) -> 0 | ET73: =INDEX(INDIRECT("_"&$A$70&"Table6"),B71+1,5) ->  | EU73: =IF(OR(NOT(ISNUMBER(K73)),K73=0),0,INDEX(INDIRECT("_"&$A$70&"Table6"),B71+1,7)) -> 0 | EV73: =IF(OR(NOT(ISNUMBER(K73)),K73=0),0,INDEX(INDIRECT("_"&$A$70&"Table6"),B71+1,9)) -> 0 | EZ73: TRUE
D74: Cover 2 Placement | J74: =INDEX(INDIRECT("_"&$A$70&"Table7"),B71+1,25) -> 0 | K74: =IF(OR(J74="",K71="",ISTEXT(K71),J74=0),"",IF(OR(ISBLANK(M74),ISBLANK(N74)),"Enter Dates",IF(K71="Date Range","",IF(OR(AND(CostType=ARO,L71>ScheduleYear),AND(CostType=ARO,N74<=ScheduleYear)),"Date Range",IF(OR(AND(CostType=Bond,O74>ScheduleYear),AND(CostType=LOM,LOMComplete)),J74,J74-Q74))))) ->  | Q74: 0 | R74: 0 | EA74: 1 | EB74: =IF(OR(J74="",EB71="",ISTEXT(EB71)),0,IF(OR(ISBLANK(M74),ISBLANK(N74)),0,IF(OR(AND(CostType=ARO,L71>ScheduleYear),AND(OR(CostType=ARO,AND(CostType=LOM,LOMComplete=TRUE)),N74<=ScheduleYear)),0,J74))) -> 0 | EC74: =IF(OR(J74="",EC71="",ISTEXT(EC71)),0,IF(OR(ISBLANK(M74),ISBLANK(N74)),0,IF(EC71="Date Range",0,IF(OR(AND(CostType=ARO,L71>ScheduleYear),N74<=ScheduleYear),0,J74)))) ->  | EM74: Cover | EN74: Cover | EO74: =IF(ISNUMBER(K74),INDEX(INDIRECT("_"&$A$70&"Table7"),B71+1,4),0) -> 0 | EP74: =IF(Metric,"m3","cy") -> cy | EQ74: =INDEX(INDIRECT("_"&$A$70&"Table7"),B71+1,10) ->  | ER74: =IF(OR(NOT(ISNUMBER(K74)),K74=0),0,INDEX(INDIRECT("_"&$A$70&"Table7"),B71+1,12)) -> 0 | ES74: =IF(OR(NOT(ISNUMBER(K74)),K74=0),0,INDEX(INDIRECT("_"&$A$70&"Table7"),B71+1,14)) -> 0 | ET74: =INDEX(INDIRECT("_"&$A$70&"Table7"),B71+1,5) ->  | EU74: =IF(OR(NOT(ISNUMBER(K74)),K74=0),0,INDEX(INDIRECT("_"&$A$70&"Table7"),B71+1,7)) -> 0 | EV74: =IF(OR(NOT(ISNUMBER(K74)),K74=0),0,INDEX(INDIRECT("_"&$A$70&"Table7"),B71+1,9)) -> 0 | EZ74: TRUE
D75: Growth Media Placement | J75: =INDEX(INDIRECT("_"&$A$70&"Table8"),B71+1,11) -> 0 | K75: =IF(OR(J75="",K71="",ISTEXT(K71),J75=0),"",IF(OR(ISBLANK(M75),ISBLANK(N75)),"Enter Dates",IF(K71="Date Range","",IF(OR(AND(CostType=ARO,L71>ScheduleYear),AND(CostType=ARO,N75<=ScheduleYear)),"Date Range",IF(OR(AND(CostType=Bond,O75>ScheduleYear),AND(CostType=LOM,LOMComplete)),J75,J75-Q75))))) ->  | Q75: 0 | R75: 0 | EA75: 1 | EB75: =IF(OR(J75="",EB71="",ISTEXT(EB71)),0,IF(OR(ISBLANK(M75),ISBLANK(N75)),0,IF(OR(AND(CostType=ARO,L71>ScheduleYear),AND(OR(CostType=ARO,AND(CostType=LOM,LOMComplete=TRUE)),N75<=ScheduleYear)),0,J75))) -> 0 | EC75: =IF(OR(J75="",EC71="",ISTEXT(EC71)),0,IF(OR(ISBLANK(M75),ISBLANK(N75)),0,IF(EC71="Date Range",0,IF(OR(AND(CostType=ARO,L71>ScheduleYear),N75<=ScheduleYear),0,J75)))) ->  | EM75: GM | EN75: GM | EO75: =IF(ISNUMBER(K75),INDEX(INDIRECT("_"&$A$70&"Table8"),B71+1,3),0) -> 0 | EP75: =IF(Metric,"m3","cy") -> cy | EQ75: =INDEX(INDIRECT("_"&$A$70&"Table8"),B71+1,4) ->  | ER75: =IF(OR(NOT(ISNUMBER(K75)),K75=0),0,INDEX(INDIRECT("_"&$A$70&"Table8"),B71+1,7)) -> 0 | ES75: =IF(OR(NOT(ISNUMBER(K75)),K75=0),0,INDEX(INDIRECT("_"&$A$70&"Table8"),B71+1,8)) -> 0 | EZ75: TRUE
D76: Ripping/Scarifying | J76: =INDEX(INDIRECT("_"&$A$70&"Table9"),B71+1,13) -> 0 | K76: =IF(OR(J76="",K71="",ISTEXT(K71),J76=0),"",IF(OR(ISBLANK(M76),ISBLANK(N76)),"Enter Dates",IF(K71="Date Range","",IF(OR(AND(CostType=ARO,L71>ScheduleYear),AND(CostType=ARO,N76<=ScheduleYear)),"Date Range",IF(OR(AND(CostType=Bond,O76>ScheduleYear),AND(CostType=LOM,LOMComplete)),J76,J76-Q76))))) ->  | Q76: 0 | R76: 0 | EA76: 1 | EB76: =IF(OR(J76="",EB71="",ISTEXT(EB71)),0,IF(OR(ISBLANK(M76),ISBLANK(N76)),0,IF(OR(AND(CostType=ARO,L71>ScheduleYear),AND(OR(CostType=ARO,AND(CostType=LOM,LOMComplete=TRUE)),N76<=ScheduleYear)),0,J76))) -> 0 | EC76: =IF(OR(J76="",EC71="",ISTEXT(EC71)),0,IF(OR(ISBLANK(M76),ISBLANK(N76)), 0,IF(EC71="Date Range",0,IF(OR(AND(CostType=ARO,L71>ScheduleYear),N76<=ScheduleYear),0,J76)))) ->  | EM76: Rip | EN76: Rip | EO76: =IF(ISNUMBER(K76),INDEX(INDIRECT("_"&$A$70&"Table9"),B71+1,5),0) -> 0 | EP76: =IF(Metric,"ha","acres") -> acres | EQ76: =INDEX(INDIRECT("_"&$A$70&"Table9"),B71+1,8) ->  | ES76: =IF(OR(NOT(ISNUMBER(K76)),K76=0),0,INDEX(INDIRECT("_"&$A$70&"Table9"),B71+1,10)) -> 0 | EZ76: TRUE
D77: Revegetation | J77: =INDEX(INDIRECT("_"&$A$70&"Table9"),B71+1,17) -> 0 | K77: =IF(OR(J77="",K71="",ISTEXT(K71),J77=0),"",IF(OR(ISBLANK(M77),ISBLANK(N77)),"Enter Dates",IF(K71="Date Range","",IF(OR(AND(CostType=ARO,L71>ScheduleYear),AND(CostType=ARO,N77<=ScheduleYear)),"Date Range",IF(OR(AND(CostType=Bond,O77>ScheduleYear),AND(CostType=LOM,LOMComplete)),J77,J77-Q77))))) ->  | Q77: 0 | R77: 0 | EA77: 1 | EB77: =IF(OR(J77="",EB71="",ISTEXT(EB71)),0,IF(OR(ISBLANK(M77),ISBLANK(N77)),0,IF(OR(AND(CostType=ARO,L71>ScheduleYear),AND(OR(CostType=ARO,AND(CostType=LOM,LOMComplete=TRUE)),N77<=ScheduleYear)),0,J77))) -> 0 | EC77: =IF(OR(J77="",EC71="",ISTEXT(EC71)),0,IF(OR(ISBLANK(M77),ISBLANK(N77)), 0,IF(EC71="Date Range",0,IF(OR(AND(CostType=ARO,L71>ScheduleYear),N77<=ScheduleYear),0,J77)))) ->  | EM77: Reveg | EN77: Reveg | EO77: =IF(ISNUMBER(K77),INDEX(INDIRECT("_"&$A$70&"Table9"),B71+1,5),0) -> 0 | EP77: =IF(Metric,"ha","acres") -> acres | EZ77: TRUE
D78: Berm Construction | J78: =INDEX(INDIRECT("_"&$A$70&"Table10"),B71+1,11) -> 0 | K78: =IF(OR(J78="",K71="",ISTEXT(K71),J78=0),"",IF(OR(ISBLANK(M78),ISBLANK(N78)),"Enter Dates",IF(K71="Date Range","",IF(OR(AND(CostType=ARO,L71>ScheduleYear),AND(CostType=ARO,N78<=ScheduleYear)),"Date Range",IF(OR(AND(CostType=Bond,O78>ScheduleYear),AND(CostType=LOM,LOMComplete)),J78,J78-Q78))))) ->  | Q78: 0 | R78: 0 | EA78: 1 | EB78: =IF(OR(J78="",EB71="",ISTEXT(EB71)),0,IF(OR(ISBLANK(M78),ISBLANK(N78)),0,IF(OR(AND(CostType=ARO,L71>ScheduleYear),AND(OR(CostType=ARO,AND(CostType=LOM,LOMComplete=TRUE)),N78<=ScheduleYear)),0,J78))) -> 0 | EC78: =IF(OR(J78="",EC72="",ISTEXT(EC72)),0,IF(OR(ISBLANK(M78),ISBLANK(N78)), 0,IF(EC72="Date Range",0,IF(OR(AND(CostType=ARO,L71>ScheduleYear),N78<=ScheduleYear),0,J78)))) ->  | EM78: Backfill | EN78: Backfill | EO78: =IF(ISNUMBER(K78),IF(INDEX(INDIRECT("_"&$A$70&"Table10"),B71+1,3)=0,0,INDEX(INDIRECT("_"&$A$70&"Table10"),B71+1,3)),0) -> 0 | EP78: =IF(Metric,"m3","cy") -> cy | EQ78: =INDEX(INDIRECT("_"&$A$70&"Table10"),B71+1,4) ->  | ER78: =IF(OR(NOT(ISNUMBER(K78)),K78=0),0,INDEX(INDIRECT("_"&$A$70&"Table10"),B74+1,6)) -> 0 | ES78: =IF(OR(NOT(ISNUMBER(K78)),K78=0),0,INDEX(INDIRECT("_"&$A$70&"Table10"),B74+1,8)) -> 0 | EZ78: TRUE
D79: Berm Revegetation | J79: =INDEX(INDIRECT("_"&$A$70&"Table11"),B71+1,7) -> 0 | K79: =IF(OR(J79="",K71="",ISTEXT(K71),J79=0),"",IF(OR(ISBLANK(M79),ISBLANK(N79)),"Enter Dates",IF(K71="Date Range","",IF(OR(AND(CostType=ARO,L71>ScheduleYear),AND(CostType=ARO,N79<=ScheduleYear)),"Date Range",IF(OR(AND(CostType=Bond,O79>ScheduleYear),AND(CostType=LOM,LOMComplete)),J79,J79-Q79))))) ->  | Q79: 0 | R79: 0 | EA79: 1 | EB79: =IF(OR(J79="",EB71="",ISTEXT(EB71)),0,IF(OR(ISBLANK(M79),ISBLANK(N79)),0,IF(OR(AND(CostType=ARO,L71>ScheduleYear),AND(OR(CostType=ARO,AND(CostType=LOM,LOMComplete=TRUE)),N79<=ScheduleYear)),0,J79))) -> 0 | EC79: =IF(OR(J79="",EC73="",ISTEXT(EC73)),0,IF(OR(ISBLANK(M79),ISBLANK(N79)), 0,IF(EC73="Date Range",0,IF(OR(AND(CostType=ARO,L71>ScheduleYear),N79<=ScheduleYear),0,J79)))) ->  | EM79: Reveg | EN79: Reveg | EO79: =IF(ISNUMBER(K79),IF(INDEX(INDIRECT("_"&$A$70&"Table11"),B71+1,3)=0,0,INDEX(INDIRECT("_"&$A$70&"Table11"),B71+1,3)),0) -> 0 | EP79: =IF(Metric,"ha","acres") -> acres | EZ79: TRUE
B80: =(ROW(B80) - ROW($A$70)-1)/INDEX(SheetRangeIndex,MATCH($A$70,TableNamesSorted,0),7) -> 1 | C80: =INDEX(INDIRECT("_"&$A$70&"Table1"),B80+1,9) -> FA | D80: =INDEX(INDIRECT("_"&$A$70&"Table1"),B80+1,2) -> Borrow Area for Pond Backfill material | E80: =IF(ISBLANK(INDEX(INDIRECT("_"&$A$70&"Table1"),B80+1,3)),"",INDEX(INDIRECT("_"&$A$70&"Table1"),B80+1,3)) ->  | F80: =IF(ISERROR(EL80),"Facility Type",IF(ISBLANK(INDEX(INDIRECT("_"&$A$70&"Table1"),B80+1,5)),"",INDEX(INDIRECT("_"&$A$70&"Table1"),B80+1,5))) -> Other Site Facilities | G80: =IF(ISBLANK(INDEX(INDIRECT("_"&$A$70&"Table1"),B80+1,6)),"",INDEX(INDIRECT("_"&$A$70&"Table1"),B80+1,6)) -> Post Closure | H80: =IF(ISBLANK(INDEX(INDIRECT("_"&$A$70&"Table1"),B80+1,7)),"",INDEX(INDIRECT("_"&$A$70&"Table1"),B80+1,7)) -> Borrow Area | I80: =IF(ISBLANK(INDEX(INDIRECT("_"&$A$70&"Table1"),B80+1,8)),"",INDEX(INDIRECT("_"&$A$70&"Table1"),B80+1,8)) -> Public Land | J80: =SUM(J81:J88) -> 17316 | K80: =IF(ISERR(ED80),"Cost Type",IF(A80="X","Override",IF(AND(CostType=ARO,L80>ScheduleYear),"Date Range",IF(AND(ISTEXT(LocationFilter),ISERROR(EI80)),"Location",IF(AND(ISTEXT(PropertyFilter),ISERROR(EJ80)),"Property",IF(AND(ISTEXT(FacilityTypeFilter),ISERROR(EG80)),"Facility Type",IF(AND(NOT(ISBLANK(IDCodeFilter)),ISERROR(EF80)),"ID Code",IF(AND(ISTEXT(PhaseFilter),ISERROR(EH80)),"Phase",IF(AND(CostType=LOM,LOMComplete),J80,SUM(T80:DO80)))))))))) -> 17316 | L80: =INDEX(INDIRECT("_"&$A$70&"Table1"),B80+1,4) -> 2000 | Q80: =SUM(Q81:Q88) -> 0 | T80: =IF(ISTEXT($EB80),0,IF(AND(CostType=LOM,LOMComplete,T$27<=ScheduleYear),SUMPRODUCT(T81:T88,$J81:$J88),IF(CostType=Bond,SUMPRODUCT($EB81:$EB88,T81:T88,$EA81:$EA88),IF(T$27<=ScheduleYear,0,SUMPRODUCT(T81:T88,$EB81:$EB88))))) -> 0 | U80: 0 | V80: 0 | W80: 0 | X80: 0 | Y80: 0 | Z80: 0 | AA80: 0 | AB80: 0 | AC80: 0 | AD80: 0 | AE80: 0 | AF80: 0 | AG80: 0 | AH80: 0 | AI80: 0 | AJ80: 0 | AK80: 0 | AL80: 0 | AM80: 0 | AN80: 0 | AO80: 0 | AP80: 0 | AQ80: 0 | AR80: 0 | AS80: 0 | AT80: 0 | AU80: 0 | AV80: 0 | AW80: 0 | AX80: 0 | AY80: 0 | AZ80: 0 | BA80: 0 | BB80: 0 | BC80: 0 | BD80: 0 | BE80: 0 | BF80: 0 | BG80: 0 | BH80: 0 | BI80: 0 | BJ80: 0 | BK80: 0 | BL80: 0 | BM80: 0 | BN80: 0 | BO80: 0 | BP80: 0 | BQ80: 0 | BR80: 0 | BS80: 0 | BT80: 0 | BU80: 0 | BV80: 0 | BW80: 0 | BX80: 0 | BY80: 0 | BZ80: 0 | CA80: 0 | CB80: 0 | CC80: 0 | CD80: 0 | CE80: 0 | CF80: =IF(ISTEXT($EB80),0,IF(AND(CostType=LOM,LOMComplete,CF$27<=ScheduleYear),SUMPRODUCT(CF81:CF88,$J81:$J88),IF(CostType=Bond,SUMPRODUCT($EB81:$EB88,CF81:CF88,$EA81:$EA88),IF(CF$27<=ScheduleYear,0,SUMPRODUCT(CF81:CF88,$EB81:$EB88))))) -> 0 | CG80: 0 | CH80: 0 | CI80: 0 | CJ80: 0 | CK80: 0 | CL80: 0 | CM80: 0 | CN80: 0 | CO80: 0 | CP80: 0 | CQ80: 0 | CR80: 0 | CS80: 0 | CT80: 0 | CU80: 0 | CV80: 0 | CW80: 0 | CX80: 0 | CY80: 0 | CZ80: 0 | DA80: 0 | DB80: 0 | DC80: 0 | DD80: 0 | DE80: 0 | DF80: 0 | DG80: 0 | DH80: 0 | DI80: 0 | DJ80: 0 | DK80: 0 | DL80: 0 | DM80: 0 | DN80: 0 | DO80: 17316 | DP80: =IF(ISNUMBER(K80),SUM(T80:DO80)-K80,K80) -> 0 | EB80: =IF(ISERR(ED80),"Cost Type",IF(A80="X","Override",IF(AND(CostType=ARO,L80>ScheduleYear),0,IF(AND(ISTEXT(LocationFilter),ISERROR(EI80)),"Location",IF(AND(ISTEXT(PropertyFilter),ISERROR(EJ80)),"Property",IF(AND(ISTEXT(FacilityTypeFilter),ISERROR(EG80)),"Facility Type",IF(AND(ISTEXT(IDCodeFilter),ISERROR(EF80)),"ID Code",IF(AND(ISTEXT(PhaseFilter),ISERROR(EH80)),"Phase",J80)))))))) -> 17316 | EC80: =IF(EE80="","Cost Type",IF(A80="X","Override",IF(AND(OtherCostType=ARO,L80>ScheduleYear),0,IF(AND(ISTEXT(LocationFilter),EI80=""),"Location",IF(AND(ISTEXT(PropertyFilter),EJ80=""),"Property",IF(AND(ISTEXT(FacilityTypeFilter),EG80=""),"Facility Type",IF(AND(ISTEXT(IDCodeFilter),EF80=""),"ID Code",IF(AND(ISTEXT(PhaseFilter),EH80=""),"Phase",J80)))))))) ->  | ED80: =SEARCH(CostType,C80) -> 1 | EE80: =SEARCH(OtherCostType,C80) ->  | EF80: =IF(AND(IDCodeFilterType="CONTAINS",NOT(ISERROR(SEARCH(IDCodeFilter,E80)))),1,IF(AND(IDCodeFilterType="NOT",ISERROR(SEARCH(IDCodeFilter,E80))),1,IF(AND(OR(IDCodeFilterType="EXACT",ISBLANK(IDCodeFilterType)),NOT(ISERROR(MATCH(IDCodeFilter,E80,0)))),1,$EK80))) ->  | EG80: =IF(AND(FacilityFilterType="CONTAINS",NOT(ISERROR(SEARCH(FacilityTypeFilter,F80)))),1,IF(AND(FacilityFilterType="NOT",ISERROR(SEARCH(FacilityTypeFilter,F80))),1,IF(AND(OR(FacilityFilterType="EXACT",ISBLANK(FacilityFilterType)),NOT(ISERROR(MATCH(FacilityTypeFilter,F80,0)))),1,$EK80))) ->  | EH80: =IF(AND(PhaseFilterType="CONTAINS",NOT(ISERROR(SEARCH(PhaseFilter,G80)))),1,IF(AND(PhaseFilterType="NOT",ISERROR(SEARCH(PhaseFilter,G80))),1,IF(AND(OR(PhaseFilterType="EXACT",ISBLANK(PhaseFilterType)),NOT(ISERROR(MATCH(PhaseFilter,G80,0)))),1,$EK80))) ->  | EI80: =IF(AND(LocationFilterType="CONTAINS",NOT(ISERROR(SEARCH(LocationFilter,H80)))),1,IF(AND(LocationFilterType="NOT",ISERROR(SEARCH(LocationFilter,H80))),1,IF(AND(OR(LocationFilterType="EXACT",ISBLANK(LocationFilterType)),NOT(ISERROR(MATCH(LocationFilter,H80,0)))),1,$EK80))) ->  | EJ80: =IF(AND(PropertyFilterType="CONTAINS",NOT(ISERROR(SEARCH(PropertyFilter,I80)))),1,IF(AND(PropertyFilterType="NOT",ISERROR(SEARCH(PropertyFilter,I80))),1,IF(AND(OR(PropertyFilterType="EXACT",ISBLANK(PropertyFilterType)),NOT(ISERROR(MATCH(PropertyFilter,I80,0)))),1,$EK80))) ->  | EK80: =MATCH("NOT",$EK$27,0) ->  | EL80: =IF(ISBLANK(INDEX(INDIRECT("_"&$A$70&"Table1"),B80+1,2)),"",MATCH(INDEX(INDIRECT("_"&$A$70&"Table1"),B80+1,5),Accounts,0)) -> 5 | EZ80: FALSE | FA80: 1
D81: Regrading | J81: =IF(INDEX(INDIRECT("_"&$A$70&"Table5"),B80+1,15)=0,0,INDEX(INDIRECT("_"&$A$70&"Table5"),B80+1,15)) -> 0 | K81: =IF(OR(J81="",K80="",ISTEXT(K80),J81=0),"",IF(OR(ISBLANK(M81),ISBLANK(N81)),"Enter Dates",IF(K80="Date Range","",IF(OR(AND(CostType=ARO,L80>ScheduleYear),AND(CostType=ARO,N81<=ScheduleYear)),"Date Range",IF(OR(AND(CostType=Bond,O81>ScheduleYear),AND(CostType=LOM,LOMComplete)),J81,J81-Q81))))) ->  | M81: 2023 | N81: 2122 | P81: =IF(K81="","",SUM(T81:DO81)) ->  | Q81: =IF(OR(AND(CostType=ARO,N81<=ScheduleYear),AND(CostType=LOM,LOMComplete)),J81*R81,R81*EB81) -> 0 | R81: =IF(CostType=Bond,SUMIFS(T81:DP81,T$27:DP$27,"<="&O81,T$27:DP$27,"<="&ScheduleYear),SUMIF(T$27:DP$27,"<="&ScheduleYear,T81:DP81)) -> 0 | DO81: 1 | EA81: 1 | EB81: =IF(OR(J81="",EB80="",ISTEXT(EB80)),0,IF(OR(ISBLANK(M81),ISBLANK(N81)),0,IF(OR(AND(CostType=ARO,L80>ScheduleYear),AND(OR(CostType=ARO,AND(CostType=LOM,LOMComplete=TRUE)),N81<=ScheduleYear)),0,J81))) -> 0 | EC81: =IF(OR(J81="",EC80="",ISTEXT(EC80)),0,IF(OR(ISBLANK(M81),ISBLANK(N81)),0,IF(EC80="Date Range",0,IF(OR(AND(OtherCostType=ARO,L80>ScheduleYear),N81<=ScheduleYear),0,J81)))) ->  | EM81: Regrade | EN81: Regrade | EO81: =IF(ISNUMBER(K81),IF(INDEX(INDIRECT("_"&$A$70&"Table5"),B80+1,3)=0,0,INDEX(INDIRECT("_"&$A$70&"Table5"),B80+1,3)),0) -> 0 | EP81: =IF(Metric,"m3","cy") -> cy | EQ81: =INDEX(INDIRECT("_"&$A$70&"Table5"),B80+1,5) -> D6T | ES81: =IF(NOT(ISNUMBER(K81)),0,INDEX(INDIRECT("_"&$A$70&"Table5"),B80+1,12)) -> 0 | EZ81: TRUE
D82: Cover 1 Placement | J82: =INDEX(INDIRECT("_"&$A$70&"Table6"),B80+1,25) -> 0 | K82: =IF(OR(J82="",K80="",ISTEXT(K80),J82=0),"",IF(OR(ISBLANK(M82),ISBLANK(N82)),"Enter Dates",IF(K80="Date Range","",IF(OR(AND(CostType=ARO,L80>ScheduleYear),AND(CostType=ARO,N82<=ScheduleYear)),"Date Range",IF(OR(AND(CostType=Bond,O82>ScheduleYear),AND(CostType=LOM,LOMComplete)),J82,J82-Q82))))) ->  | M82: 2023 | N82: 2122 | Q82: 0 | R82: 0 | DO82: 1 | EA82: 1 | EB82: =IF(OR(J82="",EB80="",ISTEXT(EB80)),0,IF(OR(ISBLANK(M82),ISBLANK(N82)),0,IF(OR(AND(CostType=ARO,L80>ScheduleYear),AND(OR(CostType=ARO,AND(CostType=LOM,LOMComplete=TRUE)),N82<=ScheduleYear)),0,J82))) -> 0 | EC82: =IF(OR(J82="",EC80="",ISTEXT(EC80)),0,IF(OR(ISBLANK(M82),ISBLANK(N82)),0,IF(EC80="Date Range",0,IF(OR(AND(CostType=ARO,L80>ScheduleYear),N82<=ScheduleYear),0,J82)))) ->  | EM82: Cover | EN82: Cover | EO82: =IF(ISNUMBER(K82),INDEX(INDIRECT("_"&$A$70&"Table6"),B80+1,4),0) -> 0 | EP82: =IF(Metric,"m3","cy") -> cy | EQ82: =INDEX(INDIRECT("_"&$A$70&"Table6"),B80+1,10) ->  | ER82: =IF(OR(NOT(ISNUMBER(K82)),K82=0),0,INDEX(INDIRECT("_"&$A$70&"Table6"),B80+1,12)) -> 0 | ES82: =IF(OR(NOT(ISNUMBER(K82)),K82=0),0,INDEX(INDIRECT("_"&$A$70&"Table6"),B80+1,14)) -> 0 | ET82: =INDEX(INDIRECT("_"&$A$70&"Table6"),B80+1,5) ->  | EU82: =IF(OR(NOT(ISNUMBER(K82)),K82=0),0,INDEX(INDIRECT("_"&$A$70&"Table6"),B80+1,7)) -> 0 | EV82: =IF(OR(NOT(ISNUMBER(K82)),K82=0),0,INDEX(INDIRECT("_"&$A$70&"Table6"),B80+1,9)) -> 0 | EZ82: TRUE
D83: Cover 2 Placement | J83: =INDEX(INDIRECT("_"&$A$70&"Table7"),B80+1,25) -> 0 | K83: =IF(OR(J83="",K80="",ISTEXT(K80),J83=0),"",IF(OR(ISBLANK(M83),ISBLANK(N83)),"Enter Dates",IF(K80="Date Range","",IF(OR(AND(CostType=ARO,L80>ScheduleYear),AND(CostType=ARO,N83<=ScheduleYear)),"Date Range",IF(OR(AND(CostType=Bond,O83>ScheduleYear),AND(CostType=LOM,LOMComplete)),J83,J83-Q83))))) ->  | M83: 2023 | N83: 2122 | Q83: 0 | R83: 0 | DO83: 1 | EA83: 1 | EB83: =IF(OR(J83="",EB80="",ISTEXT(EB80)),0,IF(OR(ISBLANK(M83),ISBLANK(N83)),0,IF(OR(AND(CostType=ARO,L80>ScheduleYear),AND(OR(CostType=ARO,AND(CostType=LOM,LOMComplete=TRUE)),N83<=ScheduleYear)),0,J83))) -> 0 | EC83: =IF(OR(J83="",EC80="",ISTEXT(EC80)),0,IF(OR(ISBLANK(M83),ISBLANK(N83)),0,IF(EC80="Date Range",0,IF(OR(AND(CostType=ARO,L80>ScheduleYear),N83<=ScheduleYear),0,J83)))) ->  | EM83: Cover | EN83: Cover | EO83: =IF(ISNUMBER(K83),INDEX(INDIRECT("_"&$A$70&"Table7"),B80+1,4),0) -> 0 | EP83: =IF(Metric,"m3","cy") -> cy | EQ83: =INDEX(INDIRECT("_"&$A$70&"Table7"),B80+1,10) ->  | ER83: =IF(OR(NOT(ISNUMBER(K83)),K83=0),0,INDEX(INDIRECT("_"&$A$70&"Table7"),B80+1,12)) -> 0 | ES83: =IF(OR(NOT(ISNUMBER(K83)),K83=0),0,INDEX(INDIRECT("_"&$A$70&"Table7"),B80+1,14)) -> 0 | ET83: =INDEX(INDIRECT("_"&$A$70&"Table7"),B80+1,5) ->  | EU83: =IF(OR(NOT(ISNUMBER(K83)),K83=0),0,INDEX(INDIRECT("_"&$A$70&"Table7"),B80+1,7)) -> 0 | EV83: =IF(OR(NOT(ISNUMBER(K83)),K83=0),0,INDEX(INDIRECT("_"&$A$70&"Table7"),B80+1,9)) -> 0 | EZ83: TRUE
D84: Growth Media Placement | J84: =INDEX(INDIRECT("_"&$A$70&"Table8"),B80+1,11) -> 13995 | K84: =IF(OR(J84="",K80="",ISTEXT(K80),J84=0),"",IF(OR(ISBLANK(M84),ISBLANK(N84)),"Enter Dates",IF(K80="Date Range","",IF(OR(AND(CostType=ARO,L80>ScheduleYear),AND(CostType=ARO,N84<=ScheduleYear)),"Date Range",IF(OR(AND(CostType=Bond,O84>ScheduleYear),AND(CostType=LOM,LOMComplete)),J84,J84-Q84))))) -> 13995 | M84: 2023 | N84: 2122 | P84: 1 | Q84: 0 | R84: 0 | DO84: 1 | EA84: 1 | EB84: =IF(OR(J84="",EB80="",ISTEXT(EB80)),0,IF(OR(ISBLANK(M84),ISBLANK(N84)),0,IF(OR(AND(CostType=ARO,L80>ScheduleYear),AND(OR(CostType=ARO,AND(CostType=LOM,LOMComplete=TRUE)),N84<=ScheduleYear)),0,J84))) -> 13995 | EC84: =IF(OR(J84="",EC80="",ISTEXT(EC80)),0,IF(OR(ISBLANK(M84),ISBLANK(N84)),0,IF(EC80="Date Range",0,IF(OR(AND(CostType=ARO,L80>ScheduleYear),N84<=ScheduleYear),0,J84)))) ->  | EM84: GM | EN84: GM | EO84: =IF(ISNUMBER(K84),INDEX(INDIRECT("_"&$A$70&"Table8"),B80+1,3),0) -> 8406 | EP84: =IF(Metric,"m3","cy") -> cy | EQ84: =INDEX(INDIRECT("_"&$A$70&"Table8"),B80+1,4) -> 725C2/966M/D6T | ER84: =IF(OR(NOT(ISNUMBER(K84)),K84=0),0,INDEX(INDIRECT("_"&$A$70&"Table8"),B80+1,7)) -> 2 | ES84: =IF(OR(NOT(ISNUMBER(K84)),K84=0),0,INDEX(INDIRECT("_"&$A$70&"Table8"),B80+1,8)) -> 20 | EZ84: TRUE
D85: Ripping/Scarifying | J85: =INDEX(INDIRECT("_"&$A$70&"Table9"),B80+1,13) -> 632 | K85: =IF(OR(J85="",K80="",ISTEXT(K80),J85=0),"",IF(OR(ISBLANK(M85),ISBLANK(N85)),"Enter Dates",IF(K80="Date Range","",IF(OR(AND(CostType=ARO,L80>ScheduleYear),AND(CostType=ARO,N85<=ScheduleYear)),"Date Range",IF(OR(AND(CostType=Bond,O85>ScheduleYear),AND(CostType=LOM,LOMComplete)),J85,J85-Q85))))) -> 632 | M85: 2023 | N85: 2122 | P85: 1 | Q85: 0 | R85: 0 | DO85: 1 | EA85: 1 | EB85: =IF(OR(J85="",EB80="",ISTEXT(EB80)),0,IF(OR(ISBLANK(M85),ISBLANK(N85)),0,IF(OR(AND(CostType=ARO,L80>ScheduleYear),AND(OR(CostType=ARO,AND(CostType=LOM,LOMComplete=TRUE)),N85<=ScheduleYear)),0,J85))) -> 632 | EC85: =IF(OR(J85="",EC80="",ISTEXT(EC80)),0,IF(OR(ISBLANK(M85),ISBLANK(N85)), 0,IF(EC80="Date Range",0,IF(OR(AND(CostType=ARO,L80>ScheduleYear),N85<=ScheduleYear),0,J85)))) ->  | EM85: Rip | EN85: Rip | EO85: =IF(ISNUMBER(K85),INDEX(INDIRECT("_"&$A$70&"Table9"),B80+1,5),0) -> 5.21 | EP85: =IF(Metric,"ha","acres") -> acres | EQ85: =INDEX(INDIRECT("_"&$A$70&"Table9"),B80+1,8) -> D6T | ES85: =IF(OR(NOT(ISNUMBER(K85)),K85=0),0,INDEX(INDIRECT("_"&$A$70&"Table9"),B80+1,10)) -> 4 | EZ85: TRUE
D86: Revegetation | J86: =INDEX(INDIRECT("_"&$A$70&"Table9"),B80+1,17) -> 2689 | K86: =IF(OR(J86="",K80="",ISTEXT(K80),J86=0),"",IF(OR(ISBLANK(M86),ISBLANK(N86)),"Enter Dates",IF(K80="Date Range","",IF(OR(AND(CostType=ARO,L80>ScheduleYear),AND(CostType=ARO,N86<=ScheduleYear)),"Date Range",IF(OR(AND(CostType=Bond,O86>ScheduleYear),AND(CostType=LOM,LOMComplete)),J86,J86-Q86))))) -> 2689 | M86: 2023 | N86: 2122 | P86: 1 | Q86: 0 | R86: 0 | DO86: 1 | EA86: 1 | EB86: =IF(OR(J86="",EB80="",ISTEXT(EB80)),0,IF(OR(ISBLANK(M86),ISBLANK(N86)),0,IF(OR(AND(CostType=ARO,L80>ScheduleYear),AND(OR(CostType=ARO,AND(CostType=LOM,LOMComplete=TRUE)),N86<=ScheduleYear)),0,J86))) -> 2689 | EC86: =IF(OR(J86="",EC80="",ISTEXT(EC80)),0,IF(OR(ISBLANK(M86),ISBLANK(N86)), 0,IF(EC80="Date Range",0,IF(OR(AND(CostType=ARO,L80>ScheduleYear),N86<=ScheduleYear),0,J86)))) ->  | EM86: Reveg | EN86: Reveg | EO86: =IF(ISNUMBER(K86),INDEX(INDIRECT("_"&$A$70&"Table9"),B80+1,5),0) -> 5.21 | EP86: =IF(Metric,"ha","acres") -> acres | EZ86: TRUE
D87: Berm Construction | J87: =INDEX(INDIRECT("_"&$A$70&"Table10"),B80+1,11) -> 0 | K87: =IF(OR(J87="",K80="",ISTEXT(K80),J87=0),"",IF(OR(ISBLANK(M87),ISBLANK(N87)),"Enter Dates",IF(K80="Date Range","",IF(OR(AND(CostType=ARO,L80>ScheduleYear),AND(CostType=ARO,N87<=ScheduleYear)),"Date Range",IF(OR(AND(CostType=Bond,O87>ScheduleYear),AND(CostType=LOM,LOMComplete)),J87,J87-Q87))))) ->  | M87: 2023 | N87: 2122 | Q87: 0 | R87: 0 | DO87: 1 | EA87: 1 | EB87: =IF(OR(J87="",EB80="",ISTEXT(EB80)),0,IF(OR(ISBLANK(M87),ISBLANK(N87)),0,IF(OR(AND(CostType=ARO,L80>ScheduleYear),AND(OR(CostType=ARO,AND(CostType=LOM,LOMComplete=TRUE)),N87<=ScheduleYear)),0,J87))) -> 0 | EC87: =IF(OR(J87="",EC81="",ISTEXT(EC81)),0,IF(OR(ISBLANK(M87),ISBLANK(N87)), 0,IF(EC81="Date Range",0,IF(OR(AND(CostType=ARO,L80>ScheduleYear),N87<=ScheduleYear),0,J87)))) ->  | EM87: Backfill | EN87: Backfill | EO87: =IF(ISNUMBER(K87),IF(INDEX(INDIRECT("_"&$A$70&"Table10"),B80+1,3)=0,0,INDEX(INDIRECT("_"&$A$70&"Table10"),B80+1,3)),0) -> 0 | EP87: =IF(Metric,"m3","cy") -> cy | EQ87: =INDEX(INDIRECT("_"&$A$70&"Table10"),B80+1,4) ->  | ER87: =IF(OR(NOT(ISNUMBER(K87)),K87=0),0,INDEX(INDIRECT("_"&$A$70&"Table10"),B83+1,6)) -> 0 | ES87: =IF(OR(NOT(ISNUMBER(K87)),K87=0),0,INDEX(INDIRECT("_"&$A$70&"Table10"),B83+1,8)) -> 0 | EZ87: TRUE
D88: Berm Revegetation | J88: =INDEX(INDIRECT("_"&$A$70&"Table11"),B80+1,7) -> 0 | K88: =IF(OR(J88="",K80="",ISTEXT(K80),J88=0),"",IF(OR(ISBLANK(M88),ISBLANK(N88)),"Enter Dates",IF(K80="Date Range","",IF(OR(AND(CostType=ARO,L80>ScheduleYear),AND(CostType=ARO,N88<=ScheduleYear)),"Date Range",IF(OR(AND(CostType=Bond,O88>ScheduleYear),AND(CostType=LOM,LOMComplete)),J88,J88-Q88))))) ->  | M88: 2023 | N88: 2122 | Q88: 0 | R88: 0 | DO88: 1 | EA88: 1 | EB88: =IF(OR(J88="",EB80="",ISTEXT(EB80)),0,IF(OR(ISBLANK(M88),ISBLANK(N88)),0,IF(OR(AND(CostType=ARO,L80>ScheduleYear),AND(OR(CostType=ARO,AND(CostType=LOM,LOMComplete=TRUE)),N88<=ScheduleYear)),0,J88))) -> 0 | EC88: =IF(OR(J88="",EC82="",ISTEXT(EC82)),0,IF(OR(ISBLANK(M88),ISBLANK(N88)), 0,IF(EC82="Date Range",0,IF(OR(AND(CostType=ARO,L80>ScheduleYear),N88<=ScheduleYear),0,J88)))) ->  | EM88: Reveg | EN88: Reveg | EO88: =IF(ISNUMBER(K88),IF(INDEX(INDIRECT("_"&$A$70&"Table11"),B80+1,3)=0,0,INDEX(INDIRECT("_"&$A$70&"Table11"),B80+1,3)),0) -> 0 | EP88: =IF(Metric,"ha","acres") -> acres | EZ88: TRUE
B89: =(ROW(B89) - ROW($A$70)-1)/INDEX(SheetRangeIndex,MATCH($A$70,TableNamesSorted,0),7) -> 2 | C89: =INDEX(INDIRECT("_"&$A$70&"Table1"),B89+1,9) -> FA | D89: =INDEX(INDIRECT("_"&$A$70&"Table1"),B89+1,2) -> Borrow Area for Growth Media | E89: =IF(ISBLANK(INDEX(INDIRECT("_"&$A$70&"Table1"),B89+1,3)),"",INDEX(INDIRECT("_"&$A$70&"Table1"),B89+1,3)) ->  | F89: =IF(ISERROR(EL89),"Facility Type",IF(ISBLANK(INDEX(INDIRECT("_"&$A$70&"Table1"),B89+1,5)),"",INDEX(INDIRECT("_"&$A$70&"Table1"),B89+1,5))) -> Other Site Facilities | G89: =IF(ISBLANK(INDEX(INDIRECT("_"&$A$70&"Table1"),B89+1,6)),"",INDEX(INDIRECT("_"&$A$70&"Table1"),B89+1,6)) -> Post Closure | H89: =IF(ISBLANK(INDEX(INDIRECT("_"&$A$70&"Table1"),B89+1,7)),"",INDEX(INDIRECT("_"&$A$70&"Table1"),B89+1,7)) -> Borrow Area | I89: =IF(ISBLANK(INDEX(INDIRECT("_"&$A$70&"Table1"),B89+1,8)),"",INDEX(INDIRECT("_"&$A$70&"Table1"),B89+1,8)) -> Public Land | J89: =SUM(J90:J97) -> 3525 | K89: =IF(ISERR(ED89),"Cost Type",IF(A89="X","Override",IF(AND(CostType=ARO,L89>ScheduleYear),"Date Range",IF(AND(ISTEXT(LocationFilter),ISERROR(EI89)),"Location",IF(AND(ISTEXT(PropertyFilter),ISERROR(EJ89)),"Property",IF(AND(ISTEXT(FacilityTypeFilter),ISERROR(EG89)),"Facility Type",IF(AND(NOT(ISBLANK(IDCodeFilter)),ISERROR(EF89)),"ID Code",IF(AND(ISTEXT(PhaseFilter),ISERROR(EH89)),"Phase",IF(AND(CostType=LOM,LOMComplete),J89,SUM(T89:DO89)))))))))) -> 3525 | L89: =INDEX(INDIRECT("_"&$A$70&"Table1"),B89+1,4) -> 2000 | Q89: =SUM(Q90:Q97) -> 0 | T89: =IF(ISTEXT($EB89),0,IF(AND(CostType=LOM,LOMComplete,T$27<=ScheduleYear),SUMPRODUCT(T90:T97,$J90:$J97),IF(CostType=Bond,SUMPRODUCT($EB90:$EB97,T90:T97,$EA90:$EA97),IF(T$27<=ScheduleYear,0,SUMPRODUCT(T90:T97,$EB90:$EB97))))) -> 0 | U89: 0 | V89: 0 | W89: 0 | X89: 0 | Y89: 0 | Z89: 0 | AA89: 0 | AB89: 0 | AC89: 0 | AD89: 0 | AE89: 0 | AF89: 0 | AG89: 0 | AH89: 0 | AI89: 0 | AJ89: 0 | AK89: 0 | AL89: 0 | AM89: 0 | AN89: 0 | AO89: 0 | AP89: 0 | AQ89: 0 | AR89: 0 | AS89: 0 | AT89: 0 | AU89: 0 | AV89: 0 | AW89: 0 | AX89: 0 | AY89: 0 | AZ89: 0 | BA89: 0 | BB89: 0 | BC89: 0 | BD89: 0 | BE89: 0 | BF89: 0 | BG89: 0 | BH89: 0 | BI89: 0 | BJ89: 0 | BK89: 0 | BL89: 0 | BM89: 0 | BN89: 0 | BO89: 0 | BP89: 0 | BQ89: 0 | BR89: 0 | BS89: 0 | BT89: 0 | BU89: 0 | BV89: 0 | BW89: 0 | BX89: 0 | BY89: 0 | BZ89: 0 | CA89: 0 | CB89: 0 | CC89: 0 | CD89: 0 | CE89: 0 | CF89: =IF(ISTEXT($EB89),0,IF(AND(CostType=LOM,LOMComplete,CF$27<=ScheduleYear),SUMPRODUCT(CF90:CF97,$J90:$J97),IF(CostType=Bond,SUMPRODUCT($EB90:$EB97,CF90:CF97,$EA90:$EA97),IF(CF$27<=ScheduleYear,0,SUMPRODUCT(CF90:CF97,$EB90:$EB97))))) -> 0 | CG89: 0 | CH89: 0 | CI89: 0 | CJ89: 0 | CK89: 0 | CL89: 0 | CM89: 0 | CN89: 0 | CO89: 0 | CP89: 0 | CQ89: 0 | CR89: 0 | CS89: 0 | CT89: 0 | CU89: 0 | CV89: 0 | CW89: 0 | CX89: 0 | CY89: 0 | CZ89: 0 | DA89: 0 | DB89: 0 | DC89: 0 | DD89: 0 | DE89: 0 | DF89: 0 | DG89: 0 | DH89: 0 | DI89: 0 | DJ89: 0 | DK89: 0 | DL89: 0 | DM89: 0 | DN89: 0 | DO89: 3525 | DP89: =IF(ISNUMBER(K89),SUM(T89:DO89)-K89,K89) -> 0 | EB89: =IF(ISERR(ED89),"Cost Type",IF(A89="X","Override",IF(AND(CostType=ARO,L89>ScheduleYear),0,IF(AND(ISTEXT(LocationFilter),ISERROR(EI89)),"Location",IF(AND(ISTEXT(PropertyFilter),ISERROR(EJ89)),"Property",IF(AND(ISTEXT(FacilityTypeFilter),ISERROR(EG89)),"Facility Type",IF(AND(ISTEXT(IDCodeFilter),ISERROR(EF89)),"ID Code",IF(AND(ISTEXT(PhaseFilter),ISERROR(EH89)),"Phase",J89)))))))) -> 3525 | EC89: =IF(EE89="","Cost Type",IF(A89="X","Override",IF(AND(OtherCostType=ARO,L89>ScheduleYear),0,IF(AND(ISTEXT(LocationFilter),EI89=""),"Location",IF(AND(ISTEXT(PropertyFilter),EJ89=""),"Property",IF(AND(ISTEXT(FacilityTypeFilter),EG89=""),"Facility Type",IF(AND(ISTEXT(IDCodeFilter),EF89=""),"ID Code",IF(AND(ISTEXT(PhaseFilter),EH89=""),"Phase",J89)))))))) ->  | ED89: =SEARCH(CostType,C89) -> 1 | EE89: =SEARCH(OtherCostType,C89) ->  | EF89: =IF(AND(IDCodeFilterType="CONTAINS",NOT(ISERROR(SEARCH(IDCodeFilter,E89)))),1,IF(AND(IDCodeFilterType="NOT",ISERROR(SEARCH(IDCodeFilter,E89))),1,IF(AND(OR(IDCodeFilterType="EXACT",ISBLANK(IDCodeFilterType)),NOT(ISERROR(MATCH(IDCodeFilter,E89,0)))),1,$EK89))) ->  | EG89: =IF(AND(FacilityFilterType="CONTAINS",NOT(ISERROR(SEARCH(FacilityTypeFilter,F89)))),1,IF(AND(FacilityFilterType="NOT",ISERROR(SEARCH(FacilityTypeFilter,F89))),1,IF(AND(OR(FacilityFilterType="EXACT",ISBLANK(FacilityFilterType)),NOT(ISERROR(MATCH(FacilityTypeFilter,F89,0)))),1,$EK89))) ->  | EH89: =IF(AND(PhaseFilterType="CONTAINS",NOT(ISERROR(SEARCH(PhaseFilter,G89)))),1,IF(AND(PhaseFilterType="NOT",ISERROR(SEARCH(PhaseFilter,G89))),1,IF(AND(OR(PhaseFilterType="EXACT",ISBLANK(PhaseFilterType)),NOT(ISERROR(MATCH(PhaseFilter,G89,0)))),1,$EK89))) ->  | EI89: =IF(AND(LocationFilterType="CONTAINS",NOT(ISERROR(SEARCH(LocationFilter,H89)))),1,IF(AND(LocationFilterType="NOT",ISERROR(SEARCH(LocationFilter,H89))),1,IF(AND(OR(LocationFilterType="EXACT",ISBLANK(LocationFilterType)),NOT(ISERROR(MATCH(LocationFilter,H89,0)))),1,$EK89))) ->  | EJ89: =IF(AND(PropertyFilterType="CONTAINS",NOT(ISERROR(SEARCH(PropertyFilter,I89)))),1,IF(AND(PropertyFilterType="NOT",ISERROR(SEARCH(PropertyFilter,I89))),1,IF(AND(OR(PropertyFilterType="EXACT",ISBLANK(PropertyFilterType)),NOT(ISERROR(MATCH(PropertyFilter,I89,0)))),1,$EK89))) ->  | EK89: =MATCH("NOT",$EK$27,0) ->  | EL89: =IF(ISBLANK(INDEX(INDIRECT("_"&$A$70&"Table1"),B89+1,2)),"",MATCH(INDEX(INDIRECT("_"&$A$70&"Table1"),B89+1,5),Accounts,0)) -> 5 | EZ89: FALSE | FA89: 1
D90: Regrading | J90: =IF(INDEX(INDIRECT("_"&$A$70&"Table5"),B89+1,15)=0,0,INDEX(INDIRECT("_"&$A$70&"Table5"),B89+1,15)) -> 0 | K90: =IF(OR(J90="",K89="",ISTEXT(K89),J90=0),"",IF(OR(ISBLANK(M90),ISBLANK(N90)),"Enter Dates",IF(K89="Date Range","",IF(OR(AND(CostType=ARO,L89>ScheduleYear),AND(CostType=ARO,N90<=ScheduleYear)),"Date Range",IF(OR(AND(CostType=Bond,O90>ScheduleYear),AND(CostType=LOM,LOMComplete)),J90,J90-Q90))))) ->  | M90: 2023 | N90: 2122 | P90: =IF(K90="","",SUM(T90:DO90)) ->  | Q90: =IF(OR(AND(CostType=ARO,N90<=ScheduleYear),AND(CostType=LOM,LOMComplete)),J90*R90,R90*EB90) -> 0 | R90: =IF(CostType=Bond,SUMIFS(T90:DP90,T$27:DP$27,"<="&O90,T$27:DP$27,"<="&ScheduleYear),SUMIF(T$27:DP$27,"<="&ScheduleYear,T90:DP90)) -> 0 | DO90: 1 | EA90: 1 | EB90: =IF(OR(J90="",EB89="",ISTEXT(EB89)),0,IF(OR(ISBLANK(M90),ISBLANK(N90)),0,IF(OR(AND(CostType=ARO,L89>ScheduleYear),AND(OR(CostType=ARO,AND(CostType=LOM,LOMComplete=TRUE)),N90<=ScheduleYear)),0,J90))) -> 0 | EC90: =IF(OR(J90="",EC89="",ISTEXT(EC89)),0,IF(OR(ISBLANK(M90),ISBLANK(N90)),0,IF(EC89="Date Range",0,IF(OR(AND(OtherCostType=ARO,L89>ScheduleYear),N90<=ScheduleYear),0,J90)))) ->  | EM90: Regrade | EN90: Regrade | EO90: =IF(ISNUMBER(K90),IF(INDEX(INDIRECT("_"&$A$70&"Table5"),B89+1,3)=0,0,INDEX(INDIRECT("_"&$A$70&"Table5"),B89+1,3)),0) -> 0 | EP90: =IF(Metric,"m3","cy") -> cy | EQ90: =INDEX(INDIRECT("_"&$A$70&"Table5"),B89+1,5) -> D6T | ES90: =IF(NOT(ISNUMBER(K90)),0,INDEX(INDIRECT("_"&$A$70&"Table5"),B89+1,12)) -> 0 | EZ90: TRUE
D91: Cover 1 Placement | J91: =INDEX(INDIRECT("_"&$A$70&"Table6"),B89+1,25) -> 0 | K91: =IF(OR(J91="",K89="",ISTEXT(K89),J91=0),"",IF(OR(ISBLANK(M91),ISBLANK(N91)),"Enter Dates",IF(K89="Date Range","",IF(OR(AND(CostType=ARO,L89>ScheduleYear),AND(CostType=ARO,N91<=ScheduleYear)),"Date Range",IF(OR(AND(CostType=Bond,O91>ScheduleYear),AND(CostType=LOM,LOMComplete)),J91,J91-Q91))))) ->  | M91: 2023 | N91: 2122 | Q91: 0 | R91: 0 | DO91: 1 | EA91: 1 | EB91: =IF(OR(J91="",EB89="",ISTEXT(EB89)),0,IF(OR(ISBLANK(M91),ISBLANK(N91)),0,IF(OR(AND(CostType=ARO,L89>ScheduleYear),AND(OR(CostType=ARO,AND(CostType=LOM,LOMComplete=TRUE)),N91<=ScheduleYear)),0,J91))) -> 0 | EC91: =IF(OR(J91="",EC89="",ISTEXT(EC89)),0,IF(OR(ISBLANK(M91),ISBLANK(N91)),0,IF(EC89="Date Range",0,IF(OR(AND(CostType=ARO,L89>ScheduleYear),N91<=ScheduleYear),0,J91)))) ->  | EM91: Cover | EN91: Cover | EO91: =IF(ISNUMBER(K91),INDEX(INDIRECT("_"&$A$70&"Table6"),B89+1,4),0) -> 0 | EP91: =IF(Metric,"m3","cy") -> cy | EQ91: =INDEX(INDIRECT("_"&$A$70&"Table6"),B89+1,10) ->  | ER91: =IF(OR(NOT(ISNUMBER(K91)),K91=0),0,INDEX(INDIRECT("_"&$A$70&"Table6"),B89+1,12)) -> 0 | ES91: =IF(OR(NOT(ISNUMBER(K91)),K91=0),0,INDEX(INDIRECT("_"&$A$70&"Table6"),B89+1,14)) -> 0 | ET91: =INDEX(INDIRECT("_"&$A$70&"Table6"),B89+1,5) ->  | EU91: =IF(OR(NOT(ISNUMBER(K91)),K91=0),0,INDEX(INDIRECT("_"&$A$70&"Table6"),B89+1,7)) -> 0 | EV91: =IF(OR(NOT(ISNUMBER(K91)),K91=0),0,INDEX(INDIRECT("_"&$A$70&"Table6"),B89+1,9)) -> 0 | EZ91: TRUE
D92: Cover 2 Placement | J92: =INDEX(INDIRECT("_"&$A$70&"Table7"),B89+1,25) -> 0 | K92: =IF(OR(J92="",K89="",ISTEXT(K89),J92=0),"",IF(OR(ISBLANK(M92),ISBLANK(N92)),"Enter Dates",IF(K89="Date Range","",IF(OR(AND(CostType=ARO,L89>ScheduleYear),AND(CostType=ARO,N92<=ScheduleYear)),"Date Range",IF(OR(AND(CostType=Bond,O92>ScheduleYear),AND(CostType=LOM,LOMComplete)),J92,J92-Q92))))) ->  | M92: 2023 | N92: 2122 | Q92: 0 | R92: 0 | DO92: 1 | EA92: 1 | EB92: =IF(OR(J92="",EB89="",ISTEXT(EB89)),0,IF(OR(ISBLANK(M92),ISBLANK(N92)),0,IF(OR(AND(CostType=ARO,L89>ScheduleYear),AND(OR(CostType=ARO,AND(CostType=LOM,LOMComplete=TRUE)),N92<=ScheduleYear)),0,J92))) -> 0 | EC92: =IF(OR(J92="",EC89="",ISTEXT(EC89)),0,IF(OR(ISBLANK(M92),ISBLANK(N92)),0,IF(EC89="Date Range",0,IF(OR(AND(CostType=ARO,L89>ScheduleYear),N92<=ScheduleYear),0,J92)))) ->  | EM92: Cover | EN92: Cover | EO92: =IF(ISNUMBER(K92),INDEX(INDIRECT("_"&$A$70&"Table7"),B89+1,4),0) -> 0 | EP92: =IF(Metric,"m3","cy") -> cy | EQ92: =INDEX(INDIRECT("_"&$A$70&"Table7"),B89+1,10) ->  | ER92: =IF(OR(NOT(ISNUMBER(K92)),K92=0),0,INDEX(INDIRECT("_"&$A$70&"Table7"),B89+1,12)) -> 0 | ES92: =IF(OR(NOT(ISNUMBER(K92)),K92=0),0,INDEX(INDIRECT("_"&$A$70&"Table7"),B89+1,14)) -> 0 | ET92: =INDEX(INDIRECT("_"&$A$70&"Table7"),B89+1,5) ->  | EU92: =IF(OR(NOT(ISNUMBER(K92)),K92=0),0,INDEX(INDIRECT("_"&$A$70&"Table7"),B89+1,7)) -> 0 | EV92: =IF(OR(NOT(ISNUMBER(K92)),K92=0),0,INDEX(INDIRECT("_"&$A$70&"Table7"),B89+1,9)) -> 0 | EZ92: TRUE
D93: Growth Media Placement | J93: =INDEX(INDIRECT("_"&$A$70&"Table8"),B89+1,11) -> 2799 | K93: =IF(OR(J93="",K89="",ISTEXT(K89),J93=0),"",IF(OR(ISBLANK(M93),ISBLANK(N93)),"Enter Dates",IF(K89="Date Range","",IF(OR(AND(CostType=ARO,L89>ScheduleYear),AND(CostType=ARO,N93<=ScheduleYear)),"Date Range",IF(OR(AND(CostType=Bond,O93>ScheduleYear),AND(CostType=LOM,LOMComplete)),J93,J93-Q93))))) -> 2799 | M93: 2023 | N93: 2122 | P93: 1 | Q93: 0 | R93: 0 | DO93: 1 | EA93: 1 | EB93: =IF(OR(J93="",EB89="",ISTEXT(EB89)),0,IF(OR(ISBLANK(M93),ISBLANK(N93)),0,IF(OR(AND(CostType=ARO,L89>ScheduleYear),AND(OR(CostType=ARO,AND(CostType=LOM,LOMComplete=TRUE)),N93<=ScheduleYear)),0,J93))) -> 2799 | EC93: =IF(OR(J93="",EC89="",ISTEXT(EC89)),0,IF(OR(ISBLANK(M93),ISBLANK(N93)),0,IF(EC89="Date Range",0,IF(OR(AND(CostType=ARO,L89>ScheduleYear),N93<=ScheduleYear),0,J93)))) ->  | EM93: GM | EN93: GM | EO93: =IF(ISNUMBER(K93),INDEX(INDIRECT("_"&$A$70&"Table8"),B89+1,3),0) -> 1694 | EP93: =IF(Metric,"m3","cy") -> cy | EQ93: =INDEX(INDIRECT("_"&$A$70&"Table8"),B89+1,4) -> 725C2/966M/D6T | ER93: =IF(OR(NOT(ISNUMBER(K93)),K93=0),0,INDEX(INDIRECT("_"&$A$70&"Table8"),B89+1,7)) -> 2 | ES93: =IF(OR(NOT(ISNUMBER(K93)),K93=0),0,INDEX(INDIRECT("_"&$A$70&"Table8"),B89+1,8)) -> 4 | EZ93: TRUE
D94: Ripping/Scarifying | J94: =INDEX(INDIRECT("_"&$A$70&"Table9"),B89+1,13) -> 158 | K94: =IF(OR(J94="",K89="",ISTEXT(K89),J94=0),"",IF(OR(ISBLANK(M94),ISBLANK(N94)),"Enter Dates",IF(K89="Date Range","",IF(OR(AND(CostType=ARO,L89>ScheduleYear),AND(CostType=ARO,N94<=ScheduleYear)),"Date Range",IF(OR(AND(CostType=Bond,O94>ScheduleYear),AND(CostType=LOM,LOMComplete)),J94,J94-Q94))))) -> 158 | M94: 2023 | N94: 2122 | P94: 1 | Q94: 0 | R94: 0 | DO94: 1 | EA94: 1 | EB94: =IF(OR(J94="",EB89="",ISTEXT(EB89)),0,IF(OR(ISBLANK(M94),ISBLANK(N94)),0,IF(OR(AND(CostType=ARO,L89>ScheduleYear),AND(OR(CostType=ARO,AND(CostType=LOM,LOMComplete=TRUE)),N94<=ScheduleYear)),0,J94))) -> 158 | EC94: =IF(OR(J94="",EC89="",ISTEXT(EC89)),0,IF(OR(ISBLANK(M94),ISBLANK(N94)), 0,IF(EC89="Date Range",0,IF(OR(AND(CostType=ARO,L89>ScheduleYear),N94<=ScheduleYear),0,J94)))) ->  | EM94: Rip | EN94: Rip | EO94: =IF(ISNUMBER(K94),INDEX(INDIRECT("_"&$A$70&"Table9"),B89+1,5),0) -> 1.1 | EP94: =IF(Metric,"ha","acres") -> acres | EQ94: =INDEX(INDIRECT("_"&$A$70&"Table9"),B89+1,8) -> D6T | ES94: =IF(OR(NOT(ISNUMBER(K94)),K94=0),0,INDEX(INDIRECT("_"&$A$70&"Table9"),B89+1,10)) -> 1 | EZ94: TRUE
D95: Revegetation | J95: =INDEX(INDIRECT("_"&$A$70&"Table9"),B89+1,17) -> 568 | K95: =IF(OR(J95="",K89="",ISTEXT(K89),J95=0),"",IF(OR(ISBLANK(M95),ISBLANK(N95)),"Enter Dates",IF(K89="Date Range","",IF(OR(AND(CostType=ARO,L89>ScheduleYear),AND(CostType=ARO,N95<=ScheduleYear)),"Date Range",IF(OR(AND(CostType=Bond,O95>ScheduleYear),AND(CostType=LOM,LOMComplete)),J95,J95-Q95))))) -> 568 | M95: 2023 | N95: 2122 | P95: 1 | Q95: 0 | R95: 0 | DO95: 1 | EA95: 1 | EB95: =IF(OR(J95="",EB89="",ISTEXT(EB89)),0,IF(OR(ISBLANK(M95),ISBLANK(N95)),0,IF(OR(AND(CostType=ARO,L89>ScheduleYear),AND(OR(CostType=ARO,AND(CostType=LOM,LOMComplete=TRUE)),N95<=ScheduleYear)),0,J95))) -> 568 | EC95: =IF(OR(J95="",EC89="",ISTEXT(EC89)),0,IF(OR(ISBLANK(M95),ISBLANK(N95)), 0,IF(EC89="Date Range",0,IF(OR(AND(CostType=ARO,L89>ScheduleYear),N95<=ScheduleYear),0,J95)))) ->  | EM95: Reveg | EN95: Reveg | EO95: =IF(ISNUMBER(K95),INDEX(INDIRECT("_"&$A$70&"Table9"),B89+1,5),0) -> 1.1 | EP95: =IF(Metric,"ha","acres") -> acres | EZ95: TRUE
D96: Berm Construction | J96: =INDEX(INDIRECT("_"&$A$70&"Table10"),B89+1,11) -> 0 | K96: =IF(OR(J96="",K89="",ISTEXT(K89),J96=0),"",IF(OR(ISBLANK(M96),ISBLANK(N96)),"Enter Dates",IF(K89="Date Range","",IF(OR(AND(CostType=ARO,L89>ScheduleYear),AND(CostType=ARO,N96<=ScheduleYear)),"Date Range",IF(OR(AND(CostType=Bond,O96>ScheduleYear),AND(CostType=LOM,LOMComplete)),J96,J96-Q96))))) ->  | M96: 2023 | N96: 2122 | Q96: 0 | R96: 0 | DO96: 1 | EA96: 1 | EB96: =IF(OR(J96="",EB89="",ISTEXT(EB89)),0,IF(OR(ISBLANK(M96),ISBLANK(N96)),0,IF(OR(AND(CostType=ARO,L89>ScheduleYear),AND(OR(CostType=ARO,AND(CostType=LOM,LOMComplete=TRUE)),N96<=ScheduleYear)),0,J96))) -> 0 | EC96: =IF(OR(J96="",EC90="",ISTEXT(EC90)),0,IF(OR(ISBLANK(M96),ISBLANK(N96)), 0,IF(EC90="Date Range",0,IF(OR(AND(CostType=ARO,L89>ScheduleYear),N96<=ScheduleYear),0,J96)))) ->  | EM96: Backfill | EN96: Backfill | EO96: =IF(ISNUMBER(K96),IF(INDEX(INDIRECT("_"&$A$70&"Table10"),B89+1,3)=0,0,INDEX(INDIRECT("_"&$A$70&"Table10"),B89+1,3)),0) -> 0 | EP96: =IF(Metric,"m3","cy") -> cy | EQ96: =INDEX(INDIRECT("_"&$A$70&"Table10"),B89+1,4) ->  | ER96: =IF(OR(NOT(ISNUMBER(K96)),K96=0),0,INDEX(INDIRECT("_"&$A$70&"Table10"),B92+1,6)) -> 0 | ES96: =IF(OR(NOT(ISNUMBER(K96)),K96=0),0,INDEX(INDIRECT("_"&$A$70&"Table10"),B92+1,8)) -> 0 | EZ96: TRUE
D97: Berm Revegetation | J97: =INDEX(INDIRECT("_"&$A$70&"Table11"),B89+1,7) -> 0 | K97: =IF(OR(J97="",K89="",ISTEXT(K89),J97=0),"",IF(OR(ISBLANK(M97),ISBLANK(N97)),"Enter Dates",IF(K89="Date Range","",IF(OR(AND(CostType=ARO,L89>ScheduleYear),AND(CostType=ARO,N97<=ScheduleYear)),"Date Range",IF(OR(AND(CostType=Bond,O97>ScheduleYear),AND(CostType=LOM,LOMComplete)),J97,J97-Q97))))) ->  | M97: 2023 | N97: 2122 | Q97: 0 | R97: 0 | DO97: 1 | EA97: 1 | EB97: =IF(OR(J97="",EB89="",ISTEXT(EB89)),0,IF(OR(ISBLANK(M97),ISBLANK(N97)),0,IF(OR(AND(CostType=ARO,L89>ScheduleYear),AND(OR(CostType=ARO,AND(CostType=LOM,LOMComplete=TRUE)),N97<=ScheduleYear)),0,J97))) -> 0 | EC97: =IF(OR(J97="",EC91="",ISTEXT(EC91)),0,IF(OR(ISBLANK(M97),ISBLANK(N97)), 0,IF(EC91="Date Range",0,IF(OR(AND(CostType=ARO,L89>ScheduleYear),N97<=ScheduleYear),0,J97)))) ->  | EM97: Reveg | EN97: Reveg | EO97: =IF(ISNUMBER(K97),IF(INDEX(INDIRECT("_"&$A$70&"Table11"),B89+1,3)=0,0,INDEX(INDIRECT("_"&$A$70&"Table11"),B89+1,3)),0) -> 0 | EP97: =IF(Metric,"ha","acres") -> acres | EZ97: TRUE
EZ98: FALSE
A99: Adits | B99: PORTALS, DECLINES & ADITS | J99: =SumByColor(J100,J100:J102) -> 0 | K99: =SumByColor(K100,K100:K102) -> 0 | Q99: =SumByColor(Q100,Q100:Q102) -> 0 | T99: =SumByColor(T100,T100:T102) -> 0 | U99: 0 | V99: 0 | W99: 0 | X99: 0 | Y99: 0 | Z99: 0 | AA99: 0 | AB99: 0 | AC99: 0 | AD99: 0 | AE99: 0 | AF99: 0 | AG99: 0 | AH99: 0 | AI99: 0 | AJ99: 0 | AK99: 0 | AL99: 0 | AM99: 0 | AN99: 0 | AO99: 0 | AP99: 0 | AQ99: 0 | AR99: 0 | AS99: 0 | AT99: 0 | AU99: 0 | AV99: 0 | AW99: 0 | AX99: 0 | AY99: 0 | AZ99: =SumByColor(AZ100,AZ100:AZ102) -> 0 | BA99: 0 | BB99: 0 | BC99: 0 | BD99: 0 | BE99: 0 | BF99: 0 | BG99: 0 | BH99: 0 | BI99: 0 | BJ99: 0 | BK99: 0 | BL99: 0 | BM99: 0 | BN99: 0 | BO99: 0 | BP99: 0 | BQ99: 0 | BR99: 0 | BS99: 0 | BT99: 0 | BU99: 0 | BV99: 0 | BW99: 0 | BX99: 0 | BY99: 0 | BZ99: 0 | CA99: 0 | CB99: 0 | CC99: 0 | CD99: 0 | CE99: 0 | CF99: =SumByColor(CF100,CF100:CF102) -> 0 | CG99: 0 | CH99: 0 | CI99: 0 | CJ99: 0 | CK99: 0 | CL99: 0 | CM99: 0 | CN99: 0 | CO99: 0 | CP99: 0 | CQ99: 0 | CR99: 0 | CS99: 0 | CT99: 0 | CU99: 0 | CV99: 0 | CW99: 0 | CX99: 0 | CY99: 0 | CZ99: 0 | DA99: 0 | DB99: 0 | DC99: 0 | DD99: 0 | DE99: 0 | DF99: 0 | DG99: 0 | DH99: 0 | DI99: 0 | DJ99: 0 | DK99: 0 | DL99: =SumByColor(DL100,DL100:DL102) -> 0 | DM99: 0 | DN99: 0 | DO99: 0 | EB99: =SumByColor(EB100,EB100:EB102) -> 0 | EC99: =SumByColor(EC100,EC100:EC102) -> 0 | EZ99: FALSE
B100: =(ROW(B100) - ROW($A$99)-1)/INDEX(SheetRangeIndex,MATCH($A$99,TableNamesSorted,0),7) -> 0 | C100: =INDEX(INDIRECT("_"&$A$99&"Table1"),B100+1,9) -> 0 | D100: =INDEX(INDIRECT("_"&$A$99&"Table1"),B100+1,2) -> 0 | E100: =IF(ISBLANK(INDEX(INDIRECT("_"&$A$99&"Table1"),B100+1,3)),"",INDEX(INDIRECT("_"&$A$99&"Table1"),B100+1,3)) ->  | F100: =IF(ISERROR(EL100),"Facility Type",IF(ISBLANK(INDEX(INDIRECT("_"&$A$99&"Table1"),B100+1,5)),"",INDEX(INDIRECT("_"&$A$99&"Table1"),B100+1,5))) ->  | G100: =IF(ISBLANK(INDEX(INDIRECT("_"&$A$99&"Table1"),B100+1,6)),"",INDEX(INDIRECT("_"&$A$99&"Table1"),B100+1,6)) ->  | H100: =IF(ISBLANK(INDEX(INDIRECT("_"&$A$99&"Table1"),B100+1,7)),"",INDEX(INDIRECT("_"&$A$99&"Table1"),B100+1,7)) ->  | I100: =IF(ISBLANK(INDEX(INDIRECT("_"&$A$99&"Table1"),B100+1,8)),"",INDEX(INDIRECT("_"&$A$99&"Table1"),B100+1,8)) ->  | J100: =SUM(J101:J101) -> 0 | K100: =IF(ISERR(ED100),"Cost Type",IF(A100="X","Override",IF(AND(CostType=ARO,L100>ScheduleYear),"Date Range",IF(AND(ISTEXT(LocationFilter),ISERROR(EI100)),"Location",IF(AND(ISTEXT(PropertyFilter),ISERROR(EJ100)),"Property",IF(AND(ISTEXT(FacilityTypeFilter),ISERROR(EG100)),"Facility Type",IF(AND(NOT(ISBLANK(IDCodeFilter)),ISERROR(EF100)),"ID Code",IF(AND(ISTEXT(PhaseFilter),ISERROR(EH100)),"Phase",IF(AND(CostType=LOM,LOMComplete),J100,SUM(T100:DO100)))))))))) -> Cost Type | L100: =INDEX(INDIRECT("_"&$A$99&"Table1"),B100+1,4) -> 0 | Q100: =SUM(Q101) -> 0 | T100: =IF(ISTEXT($EB100),0,IF(AND(CostType=LOM,LOMComplete,T$27<=ScheduleYear),T101*$J101,IF(CostType=Bond,$EB101*T101*$EA101,IF(T$27<=ScheduleYear,0,T101*$EB101)))) -> 0 | U100: 0 | V100: 0 | W100: 0 | X100: 0 | Y100: 0 | Z100: 0 | AA100: 0 | AB100: 0 | AC100: 0 | AD100: 0 | AE100: 0 | AF100: 0 | AG100: 0 | AH100: 0 | AI100: 0 | AJ100: 0 | AK100: 0 | AL100: 0 | AM100: 0 | AN100: 0 | AO100: 0 | AP100: 0 | AQ100: 0 | AR100: 0 | AS100: 0 | AT100: 0 | AU100: 0 | AV100: 0 | AW100: 0 | AX100: 0 | AY100: 0 | AZ100: =IF(ISTEXT($EB100),0,IF(AND(CostType=LOM,LOMComplete,AZ$27<=ScheduleYear),AZ101*$J101,IF(CostType=Bond,$EB101*AZ101*$EA101,IF(AZ$27<=ScheduleYear,0,AZ101*$EB101)))) -> 0 | BA100: 0 | BB100: 0 | BC100: 0 | BD100: 0 | BE100: 0 | BF100: 0 | BG100: 0 | BH100: 0 | BI100: 0 | BJ100: 0 | BK100: 0 | BL100: 0 | BM100: 0 | BN100: 0 | BO100: 0 | BP100: 0 | BQ100: 0 | BR100: 0 | BS100: 0 | BT100: 0 | BU100: 0 | BV100: 0 | BW100: 0 | BX100: 0 | BY100: 0 | BZ100: 0 | CA100: 0 | CB100: 0 | CC100: 0 | CD100: 0 | CE100: 0 | CF100: =IF(ISTEXT($EB100),0,IF(AND(CostType=LOM,LOMComplete,CF$27<=ScheduleYear),CF101*$J101,IF(CostType=Bond,$EB101*CF101*$EA101,IF(CF$27<=ScheduleYear,0,CF101*$EB101)))) -> 0 | CG100: 0 | CH100: 0 | CI100: 0 | CJ100: 0 | CK100: 0 | CL100: 0 | CM100: 0 | CN100: 0 | CO100: 0 | CP100: 0 | CQ100: 0 | CR100: 0 | CS100: 0 | CT100: 0 | CU100: 0 | CV100: 0 | CW100: 0 | CX100: 0 | CY100: 0 | CZ100: 0 | DA100: 0 | DB100: 0 | DC100: 0 | DD100: 0 | DE100: 0 | DF100: 0 | DG100: 0 | DH100: 0 | DI100: 0 | DJ100: 0 | DK100: 0 | DL100: =IF(ISTEXT($EB100),0,IF(AND(CostType=LOM,LOMComplete,DL$27<=ScheduleYear),DL101*$J101,IF(CostType=Bond,$EB101*DL101*$EA101,IF(DL$27<=ScheduleYear,0,DL101*$EB101)))) -> 0 | DM100: 0 | DN100: 0 | DO100: 0 | DP100: =IF(ISNUMBER(K100),SUM(T100:DO100)-K100,K100) -> Cost Type | EB100: =IF(ISERR(ED100),"Cost Type",IF(A100="X","Override",IF(AND(CostType=ARO,L100>ScheduleYear),0,IF(AND(ISTEXT(LocationFilter),ISERROR(EI100)),"Location",IF(AND(ISTEXT(PropertyFilter),ISERROR(EJ100)),"Property",IF(AND(ISTEXT(FacilityTypeFilter),ISERROR(EG100)),"Facility Type",IF(AND(ISTEXT(IDCodeFilter),ISERROR(EF100)),"ID Code",IF(AND(ISTEXT(PhaseFilter),ISERROR(EH100)),"Phase",J100)))))))) -> Cost Type | EC100: =IF(EE100="","Cost Type",IF(A100="X","Override",IF(AND(OtherCostType=ARO,L100>ScheduleYear),0,IF(AND(ISTEXT(LocationFilter),EI100=""),"Location",IF(AND(ISTEXT(PropertyFilter),EJ100=""),"Property",IF(AND(ISTEXT(FacilityTypeFilter),EG100=""),"Facility Type",IF(AND(ISTEXT(IDCodeFilter),EF100=""),"ID Code",IF(AND(ISTEXT(PhaseFilter),EH100=""),"Phase",J100)))))))) ->  | ED100: =SEARCH(CostType,C100) ->  | EE100: =SEARCH(OtherCostType,C100) ->  | EF100: =IF(AND(IDCodeFilterType="CONTAINS",NOT(ISERROR(SEARCH(IDCodeFilter,E100)))),1,IF(AND(IDCodeFilterType="NOT",ISERROR(SEARCH(IDCodeFilter,E100))),1,IF(AND(OR(IDCodeFilterType="EXACT",ISBLANK(IDCodeFilterType)),NOT(ISERROR(MATCH(IDCodeFilter,E100,0)))),1,$EK100))) ->  | EG100: =IF(AND(FacilityFilterType="CONTAINS",NOT(ISERROR(SEARCH(FacilityTypeFilter,F100)))),1,IF(AND(FacilityFilterType="NOT",ISERROR(SEARCH(FacilityTypeFilter,F100))),1,IF(AND(OR(FacilityFilterType="EXACT",ISBLANK(FacilityFilterType)),NOT(ISERROR(MATCH(FacilityTypeFilter,F100,0)))),1,$EK100))) ->  | EH100: =IF(AND(PhaseFilterType="CONTAINS",NOT(ISERROR(SEARCH(PhaseFilter,G100)))),1,IF(AND(PhaseFilterType="NOT",ISERROR(SEARCH(PhaseFilter,G100))),1,IF(AND(OR(PhaseFilterType="EXACT",ISBLANK(PhaseFilterType)),NOT(ISERROR(MATCH(PhaseFilter,G100,0)))),1,$EK100))) ->  | EI100: =IF(AND(LocationFilterType="CONTAINS",NOT(ISERROR(SEARCH(LocationFilter,H100)))),1,IF(AND(LocationFilterType="NOT",ISERROR(SEARCH(LocationFilter,H100))),1,IF(AND(OR(LocationFilterType="EXACT",ISBLANK(LocationFilterType)),NOT(ISERROR(MATCH(LocationFilter,H100,0)))),1,$EK100))) ->  | EJ100: =IF(AND(PropertyFilterType="CONTAINS",NOT(ISERROR(SEARCH(PropertyFilter,I100)))),1,IF(AND(PropertyFilterType="NOT",ISERROR(SEARCH(PropertyFilter,I100))),1,IF(AND(OR(PropertyFilterType="EXACT",ISBLANK(PropertyFilterType)),NOT(ISERROR(MATCH(PropertyFilter,I100,0)))),1,$EK100))) ->  | EK100: =MATCH("NOT",$EK$27,0) ->  | EL100: =IF(ISBLANK(INDEX(INDIRECT("_"&$A$99&"Table1"),B100+1,2)),"",MATCH(INDEX(INDIRECT("_"&$A$99&"Table1"),B100+1,5),Accounts,0)) ->  | EZ100: FALSE | FA100: 1
D101: Plugging | J101: =INDEX(INDIRECT("_"&$A$99&"Table2"),B100+1,24) -> 0 | K101: =IF(OR(J101="",K100="",ISTEXT(K100),J101=0),"",IF(OR(ISBLANK(M101),ISBLANK(N101)),"Enter Dates",IF(K100="Date Range","",IF(OR(AND(CostType=ARO,L100>ScheduleYear),AND(CostType=ARO,N101<=ScheduleYear)),"Date Range",IF(OR(AND(CostType=Bond,O101>ScheduleYear),AND(CostType=LOM,LOMComplete)),J101,J101-Q101))))) ->  | P101: =IF(ISTEXT(K101),"",SUM(T101:DO101)) ->  | Q101: =IF(OR(AND(CostType=ARO,N101<=ScheduleYear),AND(CostType=LOM,LOMComplete)),J101*R101,R101*EB101) -> 0 | R101: =IF(CostType=Bond,SUMIFS(T101:DP101,T$27:DP$27,"<="&O101,T$27:DP$27,"<="&ScheduleYear),SUMIF(T$27:DP$27,"<="&ScheduleYear,T101:DP101)) -> 0 | EA101: =IF(OR(ISBLANK($O101),$O101>ScheduleYear),1,0) -> 1 | EB101: =IF(OR(J101="",EB100="",ISTEXT(EB100)),0,IF(OR(ISBLANK(M101),ISBLANK(N101)),0,IF(OR(AND(CostType=ARO,L100>ScheduleYear),AND(OR(CostType=ARO,AND(CostType=LOM,LOMComplete=TRUE)),N101<=ScheduleYear)),0,J101))) -> 0 | EC101: =IF(OR(J101="",EC100="",ISTEXT(EC100)),0,IF(OR(ISBLANK(M101),ISBLANK(N101)),0,IF(EC100="Date Range",0,IF(OR(AND(OtherCostType=ARO,L100>ScheduleYear),N101<=ScheduleYear),0,J101)))) ->  | EM101: Backfill | EN101: Backfill | EO101: =IF(ISNUMBER(K101),IF(INDEX(INDIRECT("_"&$A$99&"Table2"),B100+1,4)=0,"",INDEX(INDIRECT("_"&$A$99&"Table2"),B100+1,4)),"") ->  | EP101: =IF(Metric,"m3","cy") -> cy | EQ101: =INDEX(INDIRECT("_"&$A$99&"Table2"),B100+1,5) ->  | ES101: =IF(OR(NOT(ISNUMBER(K101)),K101=0),0,INDEX(INDIRECT("_"&$A$99&"Table2"),B100+1,8)) -> 0 | EZ101: TRUE
EZ102: FALSE
A103: Shafts | B103: SHAFTS | J103: =SumByColor(J104,J104:J106) -> 0 | K103: =SumByColor(K104,K104:K106) -> 0 | Q103: =SumByColor(Q104,Q104:Q106) -> 0 | T103: =SumByColor(T104,T104:T106) -> 0 | U103: 0 | V103: 0 | W103: 0 | X103: 0 | Y103: 0 | Z103: 0 | AA103: 0 | AB103: 0 | AC103: 0 | AD103: 0 | AE103: 0 | AF103: 0 | AG103: 0 | AH103: 0 | AI103: 0 | AJ103: 0 | AK103: 0 | AL103: 0 | AM103: 0 | AN103: 0 | AO103: 0 | AP103: 0 | AQ103: 0 | AR103: 0 | AS103: 0 | AT103: 0 | AU103: 0 | AV103: 0 | AW103: 0 | AX103: 0 | AY103: 0 | AZ103: =SumByColor(AZ104,AZ104:AZ106) -> 0 | BA103: 0 | BB103: 0 | BC103: 0 | BD103: 0 | BE103: 0 | BF103: 0 | BG103: 0 | BH103: 0 | BI103: 0 | BJ103: 0 | BK103: 0 | BL103: 0 | BM103: 0 | BN103: 0 | BO103: 0 | BP103: 0 | BQ103: 0 | BR103: 0 | BS103: 0 | BT103: 0 | BU103: 0 | BV103: 0 | BW103: 0 | BX103: 0 | BY103: 0 | BZ103: 0 | CA103: 0 | CB103: 0 | CC103: 0 | CD103: 0 | CE103: 0 | CF103: =SumByColor(CF104,CF104:CF106) -> 0 | CG103: 0 | CH103: 0 | CI103: 0 | CJ103: 0 | CK103: 0 | CL103: 0 | CM103: 0 | CN103: 0 | CO103: 0 | CP103: 0 | CQ103: 0 | CR103: 0 | CS103: 0 | CT103: 0 | CU103: 0 | CV103: 0 | CW103: 0 | CX103: 0 | CY103: 0 | CZ103: 0 | DA103: 0 | DB103: 0 | DC103: 0 | DD103: 0 | DE103: 0 | DF103: 0 | DG103: 0 | DH103: 0 | DI103: 0 | DJ103: 0 | DK103: 0 | DL103: =SumByColor(DL104,DL104:DL106) -> 0 | DM103: 0 | DN103: 0 | DO103: 0 | EB103: =SumByColor(EB104,EB104:EB106) -> 0 | EC103: =SumByColor(EC104,EC104:EC106) -> 0 | EZ103: FALSE
B104: =(ROW(B104) - ROW($A$103)-1)/INDEX(SheetRangeIndex,MATCH($A$103,TableNamesSorted,0),7) -> 0 | C104: =INDEX(INDIRECT("_"&$A$103&"Table1"),B104+1,9) -> 0 | D104: =INDEX(INDIRECT("_"&$A$103&"Table1"),B104+1,2) -> 0 | E104: =IF(ISBLANK(INDEX(INDIRECT("_"&$A$103&"Table1"),B104+1,3)),"",INDEX(INDIRECT("_"&$A$103&"Table1"),B104+1,3)) ->  | F104: =IF(ISERROR(EL104),"Facility Type",IF(ISBLANK(INDEX(INDIRECT("_"&$A$103&"Table1"),B104+1,5)),"",INDEX(INDIRECT("_"&$A$103&"Table1"),B104+1,5))) ->  | G104: =IF(ISBLANK(INDEX(INDIRECT("_"&$A$103&"Table1"),B104+1,6)),"",INDEX(INDIRECT("_"&$A$103&"Table1"),B104+1,6)) ->  | H104: =IF(ISBLANK(INDEX(INDIRECT("_"&$A$103&"Table1"),B104+1,7)),"",INDEX(INDIRECT("_"&$A$103&"Table1"),B104+1,7)) ->  | I104: =IF(ISBLANK(INDEX(INDIRECT("_"&$A$103&"Table1"),B104+1,8)),"",INDEX(INDIRECT("_"&$A$103&"Table1"),B104+1,8)) ->  | J104: =SUM(J105:J105) -> 0 | K104: =IF(ISERR(ED104),"Cost Type",IF(A104="X","Override",IF(AND(CostType=ARO,L104>ScheduleYear),"Date Range",IF(AND(ISTEXT(LocationFilter),ISERROR(EI104)),"Location",IF(AND(ISTEXT(PropertyFilter),ISERROR(EJ104)),"Property",IF(AND(ISTEXT(FacilityTypeFilter),ISERROR(EG104)),"Facility Type",IF(AND(NOT(ISBLANK(IDCodeFilter)),ISERROR(EF104)),"ID Code",IF(AND(ISTEXT(PhaseFilter),ISERROR(EH104)),"Phase",IF(AND(CostType=LOM,LOMComplete),J104,SUM(T104:DO104)))))))))) -> Cost Type | L104: =INDEX(INDIRECT("_"&$A$103&"Table1"),B104+1,4) -> 0 | Q104: =SUM(Q105) -> 0 | T104: =IF(ISTEXT($EB104),0,IF(AND(CostType=LOM,LOMComplete,T$27<=ScheduleYear),T105*$J105,IF(CostType=Bond,$EB105*T105*$EA105,IF(T$27<=ScheduleYear,0,T105*$EB105)))) -> 0 | U104: 0 | V104: 0 | W104: 0 | X104: 0 | Y104: 0 | Z104: 0 | AA104: 0 | AB104: 0 | AC104: 0 | AD104: 0 | AE104: 0 | AF104: 0 | AG104: 0 | AH104: 0 | AI104: 0 | AJ104: 0 | AK104: 0 | AL104: 0 | AM104: 0 | AN104: 0 | AO104: 0 | AP104: 0 | AQ104: 0 | AR104: 0 | AS104: 0 | AT104: 0 | AU104: 0 | AV104: 0 | AW104: 0 | AX104: 0 | AY104: 0 | AZ104: =IF(ISTEXT($EB104),0,IF(AND(CostType=LOM,LOMComplete,AZ$27<=ScheduleYear),AZ105*$J105,IF(CostType=Bond,$EB105*AZ105*$EA105,IF(AZ$27<=ScheduleYear,0,AZ105*$EB105)))) -> 0 | BA104: 0 | BB104: 0 | BC104: 0 | BD104: 0 | BE104: 0 | BF104: 0 | BG104: 0 | BH104: 0 | BI104: 0 | BJ104: 0 | BK104: 0 | BL104: 0 | BM104: 0 | BN104: 0 | BO104: 0 | BP104: 0 | BQ104: 0 | BR104: 0 | BS104: 0 | BT104: 0 | BU104: 0 | BV104: 0 | BW104: 0 | BX104: 0 | BY104: 0 | BZ104: 0 | CA104: 0 | CB104: 0 | CC104: 0 | CD104: 0 | CE104: 0 | CF104: =IF(ISTEXT($EB104),0,IF(AND(CostType=LOM,LOMComplete,CF$27<=ScheduleYear),CF105*$J105,IF(CostType=Bond,$EB105*CF105*$EA105,IF(CF$27<=ScheduleYear,0,CF105*$EB105)))) -> 0 | CG104: 0 | CH104: 0 | CI104: 0 | CJ104: 0 | CK104: 0 | CL104: 0 | CM104: 0 | CN104: 0 | CO104: 0 | CP104: 0 | CQ104: 0 | CR104: 0 | CS104: 0 | CT104: 0 | CU104: 0 | CV104: 0 | CW104: 0 | CX104: 0 | CY104: 0 | CZ104: 0 | DA104: 0 | DB104: 0 | DC104: 0 | DD104: 0 | DE104: 0 | DF104: 0 | DG104: 0 | DH104: 0 | DI104: 0 | DJ104: 0 | DK104: 0 | DL104: =IF(ISTEXT($EB104),0,IF(AND(CostType=LOM,LOMComplete,DL$27<=ScheduleYear),DL105*$J105,IF(CostType=Bond,$EB105*DL105*$EA105,IF(DL$27<=ScheduleYear,0,DL105*$EB105)))) -> 0 | DM104: 0 | DN104: 0 | DO104: 0 | DP104: =IF(ISNUMBER(K104),SUM(T104:DO104)-K104,K104) -> Cost Type | EB104: =IF(ISERR(ED104),"Cost Type",IF(A104="X","Override",IF(AND(CostType=ARO,L104>ScheduleYear),0,IF(AND(ISTEXT(LocationFilter),ISERROR(EI104)),"Location",IF(AND(ISTEXT(PropertyFilter),ISERROR(EJ104)),"Property",IF(AND(ISTEXT(FacilityTypeFilter),ISERROR(EG104)),"Facility Type",IF(AND(ISTEXT(IDCodeFilter),ISERROR(EF104)),"ID Code",IF(AND(ISTEXT(PhaseFilter),ISERROR(EH104)),"Phase",J104)))))))) -> Cost Type | EC104: =IF(EE104="","Cost Type",IF(A104="X","Override",IF(AND(OtherCostType=ARO,L104>ScheduleYear),0,IF(AND(ISTEXT(LocationFilter),EI104=""),"Location",IF(AND(ISTEXT(PropertyFilter),EJ104=""),"Property",IF(AND(ISTEXT(FacilityTypeFilter),EG104=""),"Facility Type",IF(AND(ISTEXT(IDCodeFilter),EF104=""),"ID Code",IF(AND(ISTEXT(PhaseFilter),EH104=""),"Phase",J104)))))))) ->  | ED104: =SEARCH(CostType,C104) ->  | EE104: =SEARCH(OtherCostType,C104) ->  | EF104: =IF(AND(IDCodeFilterType="CONTAINS",NOT(ISERROR(SEARCH(IDCodeFilter,E104)))),1,IF(AND(IDCodeFilterType="NOT",ISERROR(SEARCH(IDCodeFilter,E104))),1,IF(AND(OR(IDCodeFilterType="EXACT",ISBLANK(IDCodeFilterType)),NOT(ISERROR(MATCH(IDCodeFilter,E104,0)))),1,$EK104))) ->  | EG104: =IF(AND(FacilityFilterType="CONTAINS",NOT(ISERROR(SEARCH(FacilityTypeFilter,F104)))),1,IF(AND(FacilityFilterType="NOT",ISERROR(SEARCH(FacilityTypeFilter,F104))),1,IF(AND(OR(FacilityFilterType="EXACT",ISBLANK(FacilityFilterType)),NOT(ISERROR(MATCH(FacilityTypeFilter,F104,0)))),1,$EK104))) ->  | EH104: =IF(AND(PhaseFilterType="CONTAINS",NOT(ISERROR(SEARCH(PhaseFilter,G104)))),1,IF(AND(PhaseFilterType="NOT",ISERROR(SEARCH(PhaseFilter,G104))),1,IF(AND(OR(PhaseFilterType="EXACT",ISBLANK(PhaseFilterType)),NOT(ISERROR(MATCH(PhaseFilter,G104,0)))),1,$EK104))) ->  | EI104: =IF(AND(LocationFilterType="CONTAINS",NOT(ISERROR(SEARCH(LocationFilter,H104)))),1,IF(AND(LocationFilterType="NOT",ISERROR(SEARCH(LocationFilter,H104))),1,IF(AND(OR(LocationFilterType="EXACT",ISBLANK(LocationFilterType)),NOT(ISERROR(MATCH(LocationFilter,H104,0)))),1,$EK104))) ->  | EJ104: =IF(AND(PropertyFilterType="CONTAINS",NOT(ISERROR(SEARCH(PropertyFilter,I104)))),1,IF(AND(PropertyFilterType="NOT",ISERROR(SEARCH(PropertyFilter,I104))),1,IF(AND(OR(PropertyFilterType="EXACT",ISBLANK(PropertyFilterType)),NOT(ISERROR(MATCH(PropertyFilter,I104,0)))),1,$EK104))) ->  | EK104: =MATCH("NOT",$EK$27,0) ->  | EL104: =IF(ISBLANK(INDEX(INDIRECT("_"&$A$103&"Table1"),B104+1,2)),"",MATCH(INDEX(INDIRECT("_"&$A$103&"Table1"),B104+1,5),Accounts,0)) ->  | EZ104: FALSE | FA104: 1
D105: Cap/Backfill/Cover | J105: =INDEX(INDIRECT("_"&$A$103&"Table2"),B104+1,20) -> 0 | K105: =IF(OR(J105="",K104="",ISTEXT(K104),J105=0),"",IF(OR(ISBLANK(M105),ISBLANK(N105)),"Enter Dates",IF(K104="Date Range","",IF(OR(AND(CostType=ARO,L104>ScheduleYear),AND(CostType=ARO,N105<=ScheduleYear)),"Date Range",IF(OR(AND(CostType=Bond,O105>ScheduleYear),AND(CostType=LOM,LOMComplete)),J105,J105-Q105))))) ->  | P105: =IF(ISTEXT(K105),"",SUM(T105:DO105)) ->  | Q105: =IF(OR(AND(CostType=ARO,N105<=ScheduleYear),AND(CostType=LOM,LOMComplete)),J105*R105,R105*EB105) -> 0 | R105: =IF(CostType=Bond,SUMIFS(T105:DP105,T$27:DP$27,"<="&O105,T$27:DP$27,"<="&ScheduleYear),SUMIF(T$27:DP$27,"<="&ScheduleYear,T105:DP105)) -> 0 | EA105: =IF(OR(ISBLANK($O105),$O105>ScheduleYear),1,0) -> 1 | EB105: =IF(OR(J105="",EB104="",ISTEXT(EB104)),0,IF(OR(ISBLANK(M105),ISBLANK(N105)),0,IF(OR(AND(CostType=ARO,L104>ScheduleYear),AND(OR(CostType=ARO,AND(CostType=LOM,LOMComplete=TRUE)),N105<=ScheduleYear)),0,J105))) -> 0 | EC105: =IF(OR(J105="",EC104="",ISTEXT(EC104)),0,IF(OR(ISBLANK(M105),ISBLANK(N105)),0,IF(EC104="Date Range",0,IF(OR(AND(OtherCostType=ARO,L104>ScheduleYear),N105<=ScheduleYear),0,J105)))) ->  | EM105: Backfill | EN105: Backfill | EO105: =IF(ISNUMBER(K105),IF(INDEX(INDIRECT("_"&$A$103&"Table2"),B104+1,4)=0,"",INDEX(INDIRECT("_"&$A$103&"Table2"),B104+1,4)),"") ->  | EP105: =IF(Metric,"m3","cy") -> cy | EQ105: =INDEX(INDIRECT("_"&$A$103&"Table2"),B104+1,5) ->  | ER105: =IF(OR(NOT(ISNUMBER(K105)),K105=0),0,INDEX(INDIRECT("_"&$A$103&"Table2"),B104+1,8)) -> 0 | ES105: =IF(OR(NOT(ISNUMBER(K105)),K105=0),0,INDEX(INDIRECT("_"&$A$103&"Table2"),B104+1,9)) -> 0 | EZ105: TRUE
EZ106: FALSE
A107: Roads | B107: ROADS | J107: =SumByColor(J108,J108:J113) -> 0 | K107: =SumByColor(K108,K108:K113) -> 0 | Q107: =SumByColor(Q108,Q108:Q113) -> 0 | T107: =SumByColor(T108,T108:T113) -> 0 | U107: 0 | V107: 0 | W107: 0 | X107: 0 | Y107: 0 | Z107: 0 | AA107: 0 | AB107: 0 | AC107: 0 | AD107: 0 | AE107: 0 | AF107: 0 | AG107: 0 | AH107: 0 | AI107: 0 | AJ107: 0 | AK107: 0 | AL107: 0 | AM107: 0 | AN107: 0 | AO107: 0 | AP107: 0 | AQ107: 0 | AR107: 0 | AS107: 0 | AT107: 0 | AU107: 0 | AV107: 0 | AW107: 0 | AX107: 0 | AY107: 0 | AZ107: =SumByColor(AZ108,AZ108:AZ113) -> 0 | BA107: 0 | BB107: 0 | BC107: 0 | BD107: 0 | BE107: 0 | BF107: 0 | BG107: 0 | BH107: 0 | BI107: 0 | BJ107: 0 | BK107: 0 | BL107: 0 | BM107: 0 | BN107: 0 | BO107: 0 | BP107: 0 | BQ107: 0 | BR107: 0 | BS107: 0 | BT107: 0 | BU107: 0 | BV107: 0 | BW107: 0 | BX107: 0 | BY107: 0 | BZ107: 0 | CA107: 0 | CB107: 0 | CC107: 0 | CD107: 0 | CE107: 0 | CF107: =SumByColor(CF108,CF108:CF113) -> 0 | CG107: 0 | CH107: 0 | CI107: 0 | CJ107: 0 | CK107: 0 | CL107: 0 | CM107: 0 | CN107: 0 | CO107: 0 | CP107: 0 | CQ107: 0 | CR107: 0 | CS107: 0 | CT107: 0 | CU107: 0 | CV107: 0 | CW107: 0 | CX107: 0 | CY107: 0 | CZ107: 0 | DA107: 0 | DB107: 0 | DC107: 0 | DD107: 0 | DE107: 0 | DF107: 0 | DG107: 0 | DH107: 0 | DI107: 0 | DJ107: 0 | DK107: 0 | DL107: =SumByColor(DL108,DL108:DL113) -> 0 | DM107: 0 | DN107: 0 | DO107: 0 | EB107: =SumByColor(EB108,EB108:EB113) -> 0 | EC107: =SumByColor(EC108,EC108:EC113) -> 0 | EZ107: FALSE
B108: =(ROW(B108) - ROW($A$107)-1)/INDEX(SheetRangeIndex,MATCH($A$107,TableNamesSorted,0),7) -> 0 | C108: =INDEX(INDIRECT("_"&$A$107&"Table1"),B108+1,9) -> 0 | D108: =INDEX(INDIRECT("_"&$A$107&"Table1"),B108+1,2) -> 0 | E108: =IF(ISBLANK(INDEX(INDIRECT("_"&$A$107&"Table1"),B108+1,3)),"",INDEX(INDIRECT("_"&$A$107&"Table1"),B108+1,3)) ->  | F108: =IF(ISERROR(EL108),"Facility Type",IF(ISBLANK(INDEX(INDIRECT("_"&$A$107&"Table1"),B108+1,5)),"",INDEX(INDIRECT("_"&$A$107&"Table1"),B108+1,5))) ->  | G108: =IF(ISBLANK(INDEX(INDIRECT("_"&$A$107&"Table1"),B108+1,6)),"",INDEX(INDIRECT("_"&$A$107&"Table1"),B108+1,6)) ->  | H108: =IF(ISBLANK(INDEX(INDIRECT("_"&$A$107&"Table1"),B108+1,7)),"",INDEX(INDIRECT("_"&$A$107&"Table1"),B108+1,7)) ->  | I108: =IF(ISBLANK(INDEX(INDIRECT("_"&$A$107&"Table1"),B108+1,8)),"",INDEX(INDIRECT("_"&$A$107&"Table1"),B108+1,8)) ->  | J108: =SUM(J109:J112) -> 0 | K108: =IF(ISERR(ED108),"Cost Type",IF(A108="X","Override",IF(AND(CostType=ARO,L108>ScheduleYear),"Date Range",IF(AND(ISTEXT(LocationFilter),ISERROR(EI108)),"Location",IF(AND(ISTEXT(PropertyFilter),ISERROR(EJ108)),"Property",IF(AND(ISTEXT(FacilityTypeFilter),ISERROR(EG108)),"Facility Type",IF(AND(NOT(ISBLANK(IDCodeFilter)),ISERROR(EF108)),"ID Code",IF(AND(ISTEXT(PhaseFilter),ISERROR(EH108)),"Phase",IF(AND(CostType=LOM,LOMComplete),J108,SUM(T108:DO108)))))))))) -> Cost Type | L108: =INDEX(INDIRECT("_"&$A$107&"Table1"),B108+1,4) -> 0 | Q108: =SUM(Q109:Q112) -> 0 | T108: =IF(ISTEXT($EB108),0,IF(AND(CostType=LOM,LOMComplete,T$27<=ScheduleYear),SUMPRODUCT(T109:T112,$J109:$J112),IF(CostType=Bond,SUMPRODUCT($EB109:$EB112,T109:T112,$EA109:$EA112),IF(T$27<=ScheduleYear,0,SUMPRODUCT(T109:T112,$EB109:$EB112))))) -> 0 | U108: 0 | V108: 0 | W108: 0 | X108: 0 | Y108: 0 | Z108: 0 | AA108: 0 | AB108: 0 | AC108: 0 | AD108: 0 | AE108: 0 | AF108: 0 | AG108: 0 | AH108: 0 | AI108: 0 | AJ108: 0 | AK108: 0 | AL108: 0 | AM108: 0 | AN108: 0 | AO108: 0 | AP108: 0 | AQ108: 0 | AR108: 0 | AS108: 0 | AT108: 0 | AU108: 0 | AV108: 0 | AW108: 0 | AX108: 0 | AY108: 0 | AZ108: =IF(ISTEXT($EB108),0,IF(AND(CostType=LOM,LOMComplete,AZ$27<=ScheduleYear),SUMPRODUCT(AZ109:AZ112,$J109:$J112),IF(CostType=Bond,SUMPRODUCT($EB109:$EB112,AZ109:AZ112,$EA109:$EA112),IF(AZ$27<=ScheduleYear,0,SUMPRODUCT(AZ109:AZ112,$EB109:$EB112))))) -> 0 | BA108: 0 | BB108: 0 | BC108: 0 | BD108: 0 | BE108: 0 | BF108: 0 | BG108: 0 | BH108: 0 | BI108: 0 | BJ108: 0 | BK108: 0 | BL108: 0 | BM108: 0 | BN108: 0 | BO108: 0 | BP108: 0 | BQ108: 0 | BR108: 0 | BS108: 0 | BT108: 0 | BU108: 0 | BV108: 0 | BW108: 0 | BX108: 0 | BY108: 0 | BZ108: 0 | CA108: 0 | CB108: 0 | CC108: 0 | CD108: 0 | CE108: 0 | CF108: =IF(ISTEXT($EB108),0,IF(AND(CostType=LOM,LOMComplete,CF$27<=ScheduleYear),SUMPRODUCT(CF109:CF112,$J109:$J112),IF(CostType=Bond,SUMPRODUCT($EB109:$EB112,CF109:CF112,$EA109:$EA112),IF(CF$27<=ScheduleYear,0,SUMPRODUCT(CF109:CF112,$EB109:$EB112))))) -> 0 | CG108: 0 | CH108: 0 | CI108: 0 | CJ108: 0 | CK108: 0 | CL108: 0 | CM108: 0 | CN108: 0 | CO108: 0 | CP108: 0 | CQ108: 0 | CR108: 0 | CS108: 0 | CT108: 0 | CU108: 0 | CV108: 0 | CW108: 0 | CX108: 0 | CY108: 0 | CZ108: 0 | DA108: 0 | DB108: 0 | DC108: 0 | DD108: 0 | DE108: 0 | DF108: 0 | DG108: 0 | DH108: 0 | DI108: 0 | DJ108: 0 | DK108: 0 | DL108: =IF(ISTEXT($EB108),0,IF(AND(CostType=LOM,LOMComplete,DL$27<=ScheduleYear),SUMPRODUCT(DL109:DL112,$J109:$J112),IF(CostType=Bond,SUMPRODUCT($EB109:$EB112,DL109:DL112,$EA109:$EA112),IF(DL$27<=ScheduleYear,0,SUMPRODUCT(DL109:DL112,$EB109:$EB112))))) -> 0 | DM108: 0 | DN108: 0 | DO108: 0 | DP108: =IF(ISNUMBER(K108),SUM(T108:DO108)-K108,K108) -> Cost Type | EB108: =IF(ISERR(ED108),"Cost Type",IF(A108="X","Override",IF(AND(CostType=ARO,L108>ScheduleYear),0,IF(AND(ISTEXT(LocationFilter),ISERROR(EI108)),"Location",IF(AND(ISTEXT(PropertyFilter),ISERROR(EJ108)),"Property",IF(AND(ISTEXT(FacilityTypeFilter),ISERROR(EG108)),"Facility Type",IF(AND(ISTEXT(IDCodeFilter),ISERROR(EF108)),"ID Code",IF(AND(ISTEXT(PhaseFilter),ISERROR(EH108)),"Phase",J108)))))))) -> Cost Type | EC108: =IF(EE108="","Cost Type",IF(A108="X","Override",IF(AND(OtherCostType=ARO,L108>ScheduleYear),0,IF(AND(ISTEXT(LocationFilter),EI108=""),"Location",IF(AND(ISTEXT(PropertyFilter),EJ108=""),"Property",IF(AND(ISTEXT(FacilityTypeFilter),EG108=""),"Facility Type",IF(AND(ISTEXT(IDCodeFilter),EF108=""),"ID Code",IF(AND(ISTEXT(PhaseFilter),EH108=""),"Phase",J108)))))))) ->  | ED108: =SEARCH(CostType,C108) ->  | EE108: =SEARCH(OtherCostType,C108) ->  | EF108: =IF(AND(IDCodeFilterType="CONTAINS",NOT(ISERROR(SEARCH(IDCodeFilter,E108)))),1,IF(AND(IDCodeFilterType="NOT",ISERROR(SEARCH(IDCodeFilter,E108))),1,IF(AND(OR(IDCodeFilterType="EXACT",ISBLANK(IDCodeFilterType)),NOT(ISERROR(MATCH(IDCodeFilter,E108,0)))),1,$EK108))) ->  | EG108: =IF(AND(FacilityFilterType="CONTAINS",NOT(ISERROR(SEARCH(FacilityTypeFilter,F108)))),1,IF(AND(FacilityFilterType="NOT",ISERROR(SEARCH(FacilityTypeFilter,F108))),1,IF(AND(OR(FacilityFilterType="EXACT",ISBLANK(FacilityFilterType)),NOT(ISERROR(MATCH(FacilityTypeFilter,F108,0)))),1,$EK108))) ->  | EH108: =IF(AND(PhaseFilterType="CONTAINS",NOT(ISERROR(SEARCH(PhaseFilter,G108)))),1,IF(AND(PhaseFilterType="NOT",ISERROR(SEARCH(PhaseFilter,G108))),1,IF(AND(OR(PhaseFilterType="EXACT",ISBLANK(PhaseFilterType)),NOT(ISERROR(MATCH(PhaseFilter,G108,0)))),1,$EK108))) ->  | EI108: =IF(AND(LocationFilterType="CONTAINS",NOT(ISERROR(SEARCH(LocationFilter,H108)))),1,IF(AND(LocationFilterType="NOT",ISERROR(SEARCH(LocationFilter,H108))),1,IF(AND(OR(LocationFilterType="EXACT",ISBLANK(LocationFilterType)),NOT(ISERROR(MATCH(LocationFilter,H108,0)))),1,$EK108))) ->  | EJ108: =IF(AND(PropertyFilterType="CONTAINS",NOT(ISERROR(SEARCH(PropertyFilter,I108)))),1,IF(AND(PropertyFilterType="NOT",ISERROR(SEARCH(PropertyFilter,I108))),1,IF(AND(OR(PropertyFilterType="EXACT",ISBLANK(PropertyFilterType)),NOT(ISERROR(MATCH(PropertyFilter,I108,0)))),1,$EK108))) ->  | EK108: =MATCH("NOT",$EK$27,0) ->  | EL108: =IF(ISBLANK(INDEX(INDIRECT("_"&$A$107&"Table1"),B108+1,2)),"",MATCH(INDEX(INDIRECT("_"&$A$107&"Table1"),B108+1,5),Accounts,0)) ->  | EZ108: FALSE | FA108: 1
D109: Regrading | J109: =IF(INDEX(INDIRECT("_"&$A$107&"Table4"),B108+1,10)=0,0,INDEX(INDIRECT("_"&$A$107&"Table4"),B108+1,10)) -> 0 | K109: =IF(OR(J109="",K108="",ISTEXT(K108),J109=0),"",IF(OR(ISBLANK(M109),ISBLANK(N109)),"Enter Dates",IF(K108="Date Range","",IF(OR(AND(CostType=ARO,L108>ScheduleYear),AND(CostType=ARO,N109<=ScheduleYear)),"Date Range",IF(OR(AND(CostType=Bond,O109>ScheduleYear),AND(CostType=LOM,LOMComplete)),J109,J109-Q109))))) ->  | P109: =IF(K109="","",SUM(T109:DO109)) ->  | Q109: =IF(OR(AND(CostType=ARO,N109<=ScheduleYear),AND(CostType=LOM,LOMComplete)),J109*R109,R109*EB109) -> 0 | R109: =IF(CostType=Bond,SUMIFS(T109:DP109,T$27:DP$27,"<="&O109,T$27:DP$27,"<="&ScheduleYear),SUMIF(T$27:DP$27,"<="&ScheduleYear,T109:DP109)) -> 0 | EA109: =IF(OR(ISBLANK($O109),$O109>ScheduleYear),1,0) -> 1 | EB109: =IF(OR(J109="",EB108="",ISTEXT(EB108)),0,IF(OR(ISBLANK(M109),ISBLANK(N109)),0,IF(OR(AND(CostType=ARO,L108>ScheduleYear),AND(OR(CostType=ARO,AND(CostType=LOM,LOMComplete=TRUE)),N109<=ScheduleYear)),0,J109))) -> 0 | EC109: =IF(OR(J109="",EC108="",ISTEXT(EC108)),0,IF(OR(ISBLANK(M109),ISBLANK(N109)),0,IF(EC108="Date Range",0,IF(OR(AND(OtherCostType=ARO,L108>ScheduleYear),N109<=ScheduleYear),0,J109)))) ->  | EM109: Regrade | EN109: Regrade | EO109: =IF(ISNUMBER(K109),IF(INDEX(INDIRECT("_"&$A$107&"Table4"),B108+1,3)=0,0,INDEX(INDIRECT("_"&$A$107&"Table4"),B108+1,3)),0) -> 0 | EP109: =IF(Metric,"m3","cy") -> cy | EQ109: =INDEX(INDIRECT("_"&$A$107&"Table4"),B108+1,4) ->  | ER109: =IF(OR(NOT(ISNUMBER(K109)),K109=0),0,INDEX(INDIRECT("_"&$A$107&"Table4"),B108+1,5)) -> 0 | ES109: =IF(OR(NOT(ISNUMBER(K109)),K109=0),0,INDEX(INDIRECT("_"&$A$107&"Table4"),B108+1,6)) -> 0 | EZ109: TRUE
D110: Growth Media Placement | J110: =INDEX(INDIRECT("_"&$A$107&"Table5"),B108+1,11) -> 0 | K110: =IF(OR(J110="",K108="",ISTEXT(K108),J110=0),"",IF(OR(ISBLANK(M110),ISBLANK(N110)),"Enter Dates",IF(K108="Date Range","",IF(OR(AND(CostType=ARO,L108>ScheduleYear),AND(CostType=ARO,N110<=ScheduleYear)),"Date Range",IF(OR(AND(CostType=Bond,O110>ScheduleYear),AND(CostType=LOM,LOMComplete)),J110,J110-Q110))))) ->  | P110: =IF(K110="","",SUM(T110:DO110)) ->  | Q110: =IF(OR(AND(CostType=ARO,N110<=ScheduleYear),AND(CostType=LOM,LOMComplete)),J110*R110,R110*EB110) -> 0 | R110: =IF(CostType=Bond,SUMIFS(T110:DP110,T$27:DP$27,"<="&O110,T$27:DP$27,"<="&ScheduleYear),SUMIF(T$27:DP$27,"<="&ScheduleYear,T110:DP110)) -> 0 | EA110: =IF(OR(ISBLANK($O110),$O110>ScheduleYear),1,0) -> 1 | EB110: =IF(OR(J110="",EB108="",ISTEXT(EB108)),0,IF(OR(ISBLANK(M110),ISBLANK(N110)),0,IF(OR(AND(CostType=ARO,L108>ScheduleYear),AND(OR(CostType=ARO,AND(CostType=LOM,LOMComplete=TRUE)),N110<=ScheduleYear)),0,J110))) -> 0 | EC110: =IF(OR(J110="",EC108="",ISTEXT(EC108)),0,IF(OR(ISBLANK(M110),ISBLANK(N110)),0,IF(EC108="Date Range",0,IF(OR(AND(CostType=ARO,L108>ScheduleYear),N110<=ScheduleYear),0,J110)))) ->  | EM110: GM | EN110: GM | EO110: =IF(ISNUMBER(K110),INDEX(INDIRECT("_"&$A$107&"Table5"),B108+1,3),0) -> 0 | EP110: =IF(Metric,"m3","cy") -> cy | EQ110: =INDEX(INDIRECT("_"&$A$107&"Table5"),B108+1,4) ->  | ER110: =IF(OR(NOT(ISNUMBER(K110)),K110=0),0,INDEX(INDIRECT("_"&$A$107&"Table5"),B108+1,7)) -> 0 | ES110: =IF(OR(NOT(ISNUMBER(K110)),K110=0),0,INDEX(INDIRECT("_"&$A$107&"Table5"),B108+1,8)) -> 0 | EZ110: TRUE
D111: Ripping/Scarifying | J111: =INDEX(INDIRECT("_"&$A$107&"Table6"),B108+1,9) -> 0 | K111: =IF(OR(J111="",K108="",ISTEXT(K108),J111=0),"",IF(OR(ISBLANK(M111),ISBLANK(N111)),"Enter Dates",IF(K108="Date Range","",IF(OR(AND(CostType=ARO,L108>ScheduleYear),AND(CostType=ARO,N111<=ScheduleYear)),"Date Range",IF(OR(AND(CostType=Bond,O111>ScheduleYear),AND(CostType=LOM,LOMComplete)),J111,J111-Q111))))) ->  | P111: =IF(K111="","",SUM(T111:DO111)) ->  | Q111: =IF(OR(AND(CostType=ARO,N111<=ScheduleYear),AND(CostType=LOM,LOMComplete)),J111*R111,R111*EB111) -> 0 | R111: =IF(CostType=Bond,SUMIFS(T111:DP111,T$27:DP$27,"<="&O111,T$27:DP$27,"<="&ScheduleYear),SUMIF(T$27:DP$27,"<="&ScheduleYear,T111:DP111)) -> 0 | EA111: =IF(OR(ISBLANK($O111),$O111>ScheduleYear),1,0) -> 1 | EB111: =IF(OR(J111="",EB108="",ISTEXT(EB108)),0,IF(OR(ISBLANK(M111),ISBLANK(N111)),0,IF(OR(AND(CostType=ARO,L108>ScheduleYear),AND(OR(CostType=ARO,AND(CostType=LOM,LOMComplete=TRUE)),N111<=ScheduleYear)),0,J111))) -> 0 | EC111: =IF(OR(J111="",EC108="",ISTEXT(EC108)),0,IF(OR(ISBLANK(M111),ISBLANK(N111)),0,IF(EC108="Date Range",0,IF(OR(AND(CostType=ARO,L108>ScheduleYear),N111<=ScheduleYear),0,J111)))) ->  | EM111: Rip | EN111: Rip | EO111: =IF(ISNUMBER(K111),INDEX(INDIRECT("_"&$A$107&"Table6"),B108+1,3),0) -> 0 | EP111: =IF(Metric,"ha","acres") -> acres | EQ111: =INDEX(INDIRECT("_"&$A$107&"Table6"),B108+1,5) ->  | ES111: =IF(OR(NOT(ISNUMBER(K111)),K111=0),0,INDEX(INDIRECT("_"&$A$107&"Table6"),B108+1,6)) -> 0 | EZ111: TRUE
D112: Revegetation | J112: =INDEX(INDIRECT("_"&$A$107&"Table6"),B108+1,13) -> 0 | K112: =IF(OR(J112="",K108="",ISTEXT(K108),J112=0),"",IF(OR(ISBLANK(M112),ISBLANK(N112)),"Enter Dates",IF(K108="Date Range","",IF(OR(AND(CostType=ARO,L108>ScheduleYear),AND(CostType=ARO,N112<=ScheduleYear)),"Date Range",IF(OR(AND(CostType=Bond,O112>ScheduleYear),AND(CostType=LOM,LOMComplete)),J112,J112-Q112))))) ->  | P112: =IF(K112="","",SUM(T112:DO112)) ->  | Q112: =IF(OR(AND(CostType=ARO,N112<=ScheduleYear),AND(CostType=LOM,LOMComplete)),J112*R112,R112*EB112) -> 0 | R112: =IF(CostType=Bond,SUMIFS(T112:DP112,T$27:DP$27,"<="&O112,T$27:DP$27,"<="&ScheduleYear),SUMIF(T$27:DP$27,"<="&ScheduleYear,T112:DP112)) -> 0 | EA112: =IF(OR(ISBLANK($O112),$O112>ScheduleYear),1,0) -> 1 | EB112: =IF(OR(J112="",EB108="",ISTEXT(EB108)),0,IF(OR(ISBLANK(M112),ISBLANK(N112)),0,IF(OR(AND(CostType=ARO,L108>ScheduleYear),AND(OR(CostType=ARO,AND(CostType=LOM,LOMComplete=TRUE)),N112<=ScheduleYear)),0,J112))) -> 0 | EC112: =IF(OR(J112="",EC108="",ISTEXT(EC108)),0,IF(OR(ISBLANK(M112),ISBLANK(N112)),0,IF(EC108="Date Range",0,IF(OR(AND(CostType=ARO,L108>ScheduleYear),N112<=ScheduleYear),0,J112)))) ->  | EM112: Reveg | EN112: Reveg | EO112: =IF(ISNUMBER(K112),INDEX(INDIRECT("_"&$A$107&"Table6"),B108+1,3),0) -> 0 | EP112: =IF(Metric,"ha","acres") -> acres | EZ112: TRUE
EZ113: FALSE
A114: Ponds | B114: PROCESS PONDS | J114: =SumByColor(J115,J115:J155) -> 11757 | K114: =SumByColor(K115,K115:K155) -> 11757 | Q114: =SumByColor(Q115,Q115:Q155) -> 0 | T114: =SumByColor(T115,T115:T155) -> 0 | U114: 0 | V114: 0 | W114: 0 | X114: 0 | Y114: 0 | Z114: 0 | AA114: 0 | AB114: 0 | AC114: 0 | AD114: 0 | AE114: 0 | AF114: 0 | AG114: 0 | AH114: 0 | AI114: 0 | AJ114: 0 | AK114: 0 | AL114: 0 | AM114: 0 | AN114: 0 | AO114: 0 | AP114: 0 | AQ114: 0 | AR114: 0 | AS114: 0 | AT114: 0 | AU114: 0 | AV114: 0 | AW114: 0 | AX114: 0 | AY114: 0 | AZ114: =SumByColor(AZ115,AZ115:AZ155) -> 0 | BA114: 0 | BB114: 0 | BC114: 0 | BD114: 0 | BE114: 0 | BF114: 0 | BG114: 0 | BH114: 0 | BI114: 0 | BJ114: 0 | BK114: 0 | BL114: 0 | BM114: 0 | BN114: 0 | BO114: 0 | BP114: 0 | BQ114: 0 | BR114: 0 | BS114: 0 | BT114: 0 | BU114: 0 | BV114: 0 | BW114: 0 | BX114: 0 | BY114: 0 | BZ114: 0 | CA114: 0 | CB114: 0 | CC114: 0 | CD114: 0 | CE114: 0 | CF114: =SumByColor(CF115,CF115:CF155) -> 0 | CG114: 0 | CH114: 0 | CI114: 0 | CJ114: 0 | CK114: 0 | CL114: 0 | CM114: 0 | CN114: 0 | CO114: 0 | CP114: 0 | CQ114: 0 | CR114: 0 | CS114: 0 | CT114: 0 | CU114: 0 | CV114: 0 | CW114: 0 | CX114: 0 | CY114: 0 | CZ114: 0 | DA114: 0 | DB114: 0 | DC114: 0 | DD114: 0 | DE114: 0 | DF114: 0 | DG114: 0 | DH114: 0 | DI114: 0 | DJ114: 0 | DK114: 0 | DL114: =SumByColor(DL115,DL115:DL155) -> 0 | DM114: 0 | DN114: 0 | DO114: 11757 | EB114: =SumByColor(EB115,EB115:EB155) -> 11757 | EC114: =SumByColor(EC115,EC115:EC155) -> 0 | EZ114: FALSE
B115: =(ROW(B115) - ROW($A$114)-1)/INDEX(SheetRangeIndex,MATCH($A$114,TableNamesSorted,0),7) -> 0 | C115: =INDEX(INDIRECT("_"&$A$114&"Table1"),B115+1,9) -> 0 | D115: =INDEX(INDIRECT("_"&$A$114&"Table1"),B115+1,2) -> 0 | E115: =IF(ISBLANK(INDEX(INDIRECT("_"&INDEX(SheetRangeIndex,MATCH($A$114,TableNamesSorted,0),3)&"Table1"),B115+1,3)),"",INDEX(INDIRECT("_"&INDEX(SheetRangeIndex,MATCH($A$114,TableNamesSorted,0),3)&"Table1"),B115+1,3)) ->  | F115: =IF(ISERROR(EL115),"Facility Type",IF(ISBLANK(INDEX(INDIRECT("_"&$A$114&"Table1"),B115+1,5)),"",INDEX(INDIRECT("_"&$A$114&"Table1"),B115+1,5))) ->  | G115: =IF(ISBLANK(INDEX(INDIRECT("_"&$A$114&"Table1"),B115+1,6)),"",INDEX(INDIRECT("_"&$A$114&"Table1"),B115+1,6)) ->  | H115: =IF(ISBLANK(INDEX(INDIRECT("_"&$A$114&"Table1"),B115+1,7)),"",INDEX(INDIRECT("_"&$A$114&"Table1"),B115+1,7)) ->  | I115: =IF(ISBLANK(INDEX(INDIRECT("_"&$A$114&"Table1"),B115+1,8)),"",INDEX(INDIRECT("_"&$A$114&"Table1"),B115+1,8)) ->  | J115: =SUM(J116:J122) -> 0 | K115: =IF(ISERR(ED115),"Cost Type",IF(A115="X","Override",IF(AND(CostType=ARO,L115>ScheduleYear),"Date Range",IF(AND(ISTEXT(LocationFilter),ISERROR(EI115)),"Location",IF(AND(ISTEXT(PropertyFilter),ISERROR(EJ115)),"Property",IF(AND(ISTEXT(FacilityTypeFilter),ISERROR(EG115)),"Facility Type",IF(AND(NOT(ISBLANK(IDCodeFilter)),ISERROR(EF115)),"ID Code",IF(AND(ISTEXT(PhaseFilter),ISERROR(EH115)),"Phase",IF(AND(CostType=LOM,LOMComplete),J115,SUM(T115:DO115)))))))))) -> Cost Type | L115: =INDEX(INDIRECT("_"&$A$114&"Table1"),B115+1,4) -> 0 | Q115: =SUM(Q116:Q122) -> 0 | T115: =IF(ISTEXT($EB115),0,IF(AND(CostType=LOM,LOMComplete,T$27<=ScheduleYear),SUMPRODUCT(T116:T122,$J116:$J122),IF(CostType=Bond,SUMPRODUCT($EB116:$EB122,T116:T122,$EA116:$EA122),IF(T$27<=ScheduleYear,0,SUMPRODUCT(T116:T122,$EB116:$EB122))))) -> 0 | U115: 0 | V115: 0 | W115: 0 | X115: 0 | Y115: 0 | Z115: 0 | AA115: 0 | AB115: 0 | AC115: 0 | AD115: 0 | AE115: 0 | AF115: 0 | AG115: 0 | AH115: 0 | AI115: 0 | AJ115: 0 | AK115: 0 | AL115: 0 | AM115: 0 | AN115: 0 | AO115: 0 | AP115: 0 | AQ115: 0 | AR115: 0 | AS115: 0 | AT115: 0 | AU115: 0 | AV115: 0 | AW115: 0 | AX115: 0 | AY115: 0 | AZ115: =IF(ISTEXT($EB115),0,IF(AND(CostType=LOM,LOMComplete,AZ$27<=ScheduleYear),SUMPRODUCT(AZ116:AZ122,$J116:$J122),IF(CostType=Bond,SUMPRODUCT($EB116:$EB122,AZ116:AZ122,$EA116:$EA122),IF(AZ$27<=ScheduleYear,0,SUMPRODUCT(AZ116:AZ122,$EB116:$EB122))))) -> 0 | BA115: 0 | BB115: 0 | BC115: 0 | BD115: 0 | BE115: 0 | BF115: 0 | BG115: 0 | BH115: 0 | BI115: 0 | BJ115: 0 | BK115: 0 | BL115: 0 | BM115: 0 | BN115: 0 | BO115: 0 | BP115: 0 | BQ115: 0 | BR115: 0 | BS115: 0 | BT115: 0 | BU115: 0 | BV115: 0 | BW115: 0 | BX115: 0 | BY115: 0 | BZ115: 0 | CA115: 0 | CB115: 0 | CC115: 0 | CD115: 0 | CE115: 0 | CF115: =IF(ISTEXT($EB115),0,IF(AND(CostType=LOM,LOMComplete,CF$27<=ScheduleYear),SUMPRODUCT(CF116:CF122,$J116:$J122),IF(CostType=Bond,SUMPRODUCT($EB116:$EB122,CF116:CF122,$EA116:$EA122),IF(CF$27<=ScheduleYear,0,SUMPRODUCT(CF116:CF122,$EB116:$EB122))))) -> 0 | CG115: 0 | CH115: 0 | CI115: 0 | CJ115: 0 | CK115: 0 | CL115: 0 | CM115: 0 | CN115: 0 | CO115: 0 | CP115: 0 | CQ115: 0 | CR115: 0 | CS115: 0 | CT115: 0 | CU115: 0 | CV115: 0 | CW115: 0 | CX115: 0 | CY115: 0 | CZ115: 0 | DA115: 0 | DB115: 0 | DC115: 0 | DD115: 0 | DE115: 0 | DF115: 0 | DG115: 0 | DH115: 0 | DI115: 0 | DJ115: 0 | DK115: 0 | DL115: =IF(ISTEXT($EB115),0,IF(AND(CostType=LOM,LOMComplete,DL$27<=ScheduleYear),SUMPRODUCT(DL116:DL122,$J116:$J122),IF(CostType=Bond,SUMPRODUCT($EB116:$EB122,DL116:DL122,$EA116:$EA122),IF(DL$27<=ScheduleYear,0,SUMPRODUCT(DL116:DL122,$EB116:$EB122))))) -> 0 | DM115: 0 | DN115: 0 | DO115: 0 | DP115: =IF(ISNUMBER(K115),SUM(T115:DO115)-K115,K115) -> Cost Type | EB115: =IF(ISERR(ED115),"Cost Type",IF(A115="X","Override",IF(AND(CostType=ARO,L115>ScheduleYear),0,IF(AND(ISTEXT(LocationFilter),ISERROR(EI115)),"Location",IF(AND(ISTEXT(PropertyFilter),ISERROR(EJ115)),"Property",IF(AND(ISTEXT(FacilityTypeFilter),ISERROR(EG115)),"Facility Type",IF(AND(ISTEXT(IDCodeFilter),ISERROR(EF115)),"ID Code",IF(AND(ISTEXT(PhaseFilter),ISERROR(EH115)),"Phase",J115)))))))) -> Cost Type | EC115: =IF(EE115="","Cost Type",IF(A115="X","Override",IF(AND(OtherCostType=ARO,L115>ScheduleYear),0,IF(AND(ISTEXT(LocationFilter),EI115=""),"Location",IF(AND(ISTEXT(PropertyFilter),EJ115=""),"Property",IF(AND(ISTEXT(FacilityTypeFilter),EG115=""),"Facility Type",IF(AND(ISTEXT(IDCodeFilter),EF115=""),"ID Code",IF(AND(ISTEXT(PhaseFilter),EH115=""),"Phase",J115)))))))) ->  | ED115: =SEARCH(CostType,C115) ->  | EE115: =SEARCH(OtherCostType,C115) ->  | EF115: =IF(AND(IDCodeFilterType="CONTAINS",NOT(ISERROR(SEARCH(IDCodeFilter,E115)))),1,IF(AND(IDCodeFilterType="NOT",ISERROR(SEARCH(IDCodeFilter,E115))),1,IF(AND(OR(IDCodeFilterType="EXACT",ISBLANK(IDCodeFilterType)),NOT(ISERROR(MATCH(IDCodeFilter,E115,0)))),1,$EK115))) ->  | EG115: =IF(AND(FacilityFilterType="CONTAINS",NOT(ISERROR(SEARCH(FacilityTypeFilter,F115)))),1,IF(AND(FacilityFilterType="NOT",ISERROR(SEARCH(FacilityTypeFilter,F115))),1,IF(AND(OR(FacilityFilterType="EXACT",ISBLANK(FacilityFilterType)),NOT(ISERROR(MATCH(FacilityTypeFilter,F115,0)))),1,$EK115))) ->  | EH115: =IF(AND(PhaseFilterType="CONTAINS",NOT(ISERROR(SEARCH(PhaseFilter,G115)))),1,IF(AND(PhaseFilterType="NOT",ISERROR(SEARCH(PhaseFilter,G115))),1,IF(AND(OR(PhaseFilterType="EXACT",ISBLANK(PhaseFilterType)),NOT(ISERROR(MATCH(PhaseFilter,G115,0)))),1,$EK115))) ->  | EI115: =IF(AND(LocationFilterType="CONTAINS",NOT(ISERROR(SEARCH(LocationFilter,H115)))),1,IF(AND(LocationFilterType="NOT",ISERROR(SEARCH(LocationFilter,H115))),1,IF(AND(OR(LocationFilterType="EXACT",ISBLANK(LocationFilterType)),NOT(ISERROR(MATCH(LocationFilter,H115,0)))),1,$EK115))) ->  | EJ115: =IF(AND(PropertyFilterType="CONTAINS",NOT(ISERROR(SEARCH(PropertyFilter,I115)))),1,IF(AND(PropertyFilterType="NOT",ISERROR(SEARCH(PropertyFilter,I115))),1,IF(AND(OR(PropertyFilterType="EXACT",ISBLANK(PropertyFilterType)),NOT(ISERROR(MATCH(PropertyFilter,I115,0)))),1,$EK115))) ->  | EK115: =MATCH("NOT",$EK$27,0) ->  | EL115: =IF(ISBLANK(INDEX(INDIRECT("_"&$A$114&"Table1"),B115+1,2)),"",MATCH(INDEX(INDIRECT("_"&$A$114&"Table1"),B115+1,5),Accounts,0)) ->  | EZ115: FALSE | FA115: 1
D116: Liner Cutting and Folding | J116: =IF(INDEX(INDIRECT("_"&$A$114&"Table5"),B115+1,6)=0,0,INDEX(INDIRECT("_"&$A$114&"Table5"),B115+1,6)) -> 0 | K116: =IF(OR(J116="",K115="",ISTEXT(K115),J116=0),"",IF(OR(ISBLANK(M116),ISBLANK(N116)),"Enter Dates",IF(K115="Date Range","",IF(OR(AND(CostType=ARO,L115>ScheduleYear),AND(CostType=ARO,N116<=ScheduleYear)),"Date Range",IF(OR(AND(CostType=Bond,O116>ScheduleYear),AND(CostType=LOM,LOMComplete)),J116,J116-Q116))))) ->  | P116: =IF(K116="","",SUM(T116:DO116)) ->  | Q116: =IF(OR(AND(CostType=ARO,N116<=ScheduleYear),AND(CostType=LOM,LOMComplete)),J116*R116,R116*EB116) -> 0 | R116: =IF(CostType=Bond,SUMIFS(T116:DP116,T$27:DP$27,"<="&O116,T$27:DP$27,"<="&ScheduleYear),SUMIF(T$27:DP$27,"<="&ScheduleYear,T116:DP116)) -> 0 | EA116: =IF(OR(ISBLANK($O116),$O116>ScheduleYear),1,0) -> 1 | EB116: =IF(OR(J116="",EB115="",ISTEXT(EB115)),0,IF(OR(ISBLANK(M116),ISBLANK(N116)),0,IF(OR(AND(CostType=ARO,L115>ScheduleYear),AND(OR(CostType=ARO,AND(CostType=LOM,LOMComplete=TRUE)),N116<=ScheduleYear)),0,J116))) -> 0 | EC116: =IF(OR(J116="",EC115="",ISTEXT(EC115)),0,IF(OR(ISBLANK(M116),ISBLANK(N116)),0,IF(EC115="Date Range",0,IF(OR(AND(OtherCostType=ARO,L115>ScheduleYear),N116<=ScheduleYear),0,J116)))) ->  | EM116: Liner | EN116: Liner | EO116: =IF(ISNUMBER(K116),IF(INDEX(INDIRECT("_"&$A$114&"Table5"),B115+1,3)=0,0,INDEX(INDIRECT("_"&$A$114&"Table5"),B115+1,3)),0) -> 0 | EP116: =IF(Metric,"m3","cy") -> cy | EQ116: =LinerExcavator -> 325F | ES116: =IF(OR(NOT(ISNUMBER(K116)),K116=0),0,INDEX(INDIRECT("_"&$A$114&"Table4"),B115+1,3)) -> 0 | EZ116: TRUE
D117: Backfill/Cover 1 Placement | J117: =INDEX(INDIRECT("_"&$A$114&"Table6"),B115+1,25) -> 0 | K117: =IF(OR(J117="",K115="",ISTEXT(K115),J117=0),"",IF(OR(ISBLANK(M117),ISBLANK(N117)),"Enter Dates",IF(K115="Date Range","",IF(OR(AND(CostType=ARO,L115>ScheduleYear),AND(CostType=ARO,N117<=ScheduleYear)),"Date Range",IF(OR(AND(CostType=Bond,O117>ScheduleYear),AND(CostType=LOM,LOMComplete)),J117,J117-Q117))))) ->  | Q117: 0 | R117: 0 | EA117: 1 | EB117: =IF(OR(J117="",EB115="",ISTEXT(EB115)),0,IF(OR(ISBLANK(M117),ISBLANK(N117)),0,IF(OR(AND(CostType=ARO,L115>ScheduleYear),AND(OR(CostType=ARO,AND(CostType=LOM,LOMComplete=TRUE)),N117<=ScheduleYear)),0,J117))) -> 0 | EC117: =IF(OR(J117="",EC115="",ISTEXT(EC115)),0,IF(OR(ISBLANK(M117),ISBLANK(N117)),0,IF(EC115="Date Range",0,IF(OR(AND(CostType=ARO,L115>ScheduleYear),N117<=ScheduleYear),0,J117)))) ->  | EM117: Backfill | EN117: Backfill | EO117: =IF(ISNUMBER(K117),INDEX(INDIRECT("_"&$A$114&"Table6"),B115+1,4),0) -> 0 | EP117: =IF(Metric,"m3","cy") -> cy | EQ117: =INDEX(INDIRECT("_"&$A$114&"Table6"),B115+1,10) ->  | ER117: =IF(OR(NOT(ISNUMBER(K117)),K117=0),0,INDEX(INDIRECT("_"&$A$114&"Table6"),B115+1,12)) -> 0 | ES117: =IF(OR(NOT(ISNUMBER(K117)),K117=0),0,INDEX(INDIRECT("_"&$A$114&"Table6"),B115+1,14)) -> 0 | ET117: =INDEX(INDIRECT("_"&$A$114&"Table6"),B115+1,5) ->  | EU117: =IF(OR(NOT(ISNUMBER(K117)),K117=0),0,INDEX(INDIRECT("_"&$A$114&"Table6"),B115+1,7)) -> 0 | EV117: =IF(OR(NOT(ISNUMBER(K117)),K117=0),0,INDEX(INDIRECT("_"&$A$114&"Table6"),B115+1,9)) -> 0 | EZ117: TRUE
D118: Backfill/Cover 2 Placement | J118: =INDEX(INDIRECT("_"&$A$114&"Table7"),B115+1,25) -> 0 | K118: =IF(OR(J118="",K115="",ISTEXT(K115),J118=0),"",IF(OR(ISBLANK(M118),ISBLANK(N118)),"Enter Dates",IF(K115="Date Range","",IF(OR(AND(CostType=ARO,L115>ScheduleYear),AND(CostType=ARO,N118<=ScheduleYear)),"Date Range",IF(OR(AND(CostType=Bond,O118>ScheduleYear),AND(CostType=LOM,LOMComplete)),J118,J118-Q118))))) ->  | Q118: 0 | R118: 0 | EA118: 1 | EB118: =IF(OR(J118="",EB115="",ISTEXT(EB115)),0,IF(OR(ISBLANK(M118),ISBLANK(N118)),0,IF(OR(AND(CostType=ARO,L115>ScheduleYear),AND(OR(CostType=ARO,AND(CostType=LOM,LOMComplete=TRUE)),N118<=ScheduleYear)),0,J118))) -> 0 | EC118: =IF(OR(J118="",EC115="",ISTEXT(EC115)),0,IF(OR(ISBLANK(M118),ISBLANK(N118)),0,IF(EC115="Date Range",0,IF(OR(AND(CostType=ARO,L115>ScheduleYear),N118<=ScheduleYear),0,J118)))) ->  | EM118: Backfill | EN118: Backfill | EO118: =IF(ISNUMBER(K118),INDEX(INDIRECT("_"&$A$114&"Table7"),B115+1,4),0) -> 0 | EP118: =IF(Metric,"m3","cy") -> cy | EQ118: =INDEX(INDIRECT("_"&$A$114&"Table7"),B115+1,10) ->  | ER118: =IF(OR(NOT(ISNUMBER(K118)),K118=0),0,INDEX(INDIRECT("_"&$A$114&"Table7"),B115+1,12)) -> 0 | ES118: =IF(OR(NOT(ISNUMBER(K118)),K118=0),0,INDEX(INDIRECT("_"&$A$114&"Table7"),B115+1,14)) -> 0 | ET118: =INDEX(INDIRECT("_"&$A$114&"Table7"),B115+1,5) ->  | EU118: =IF(OR(NOT(ISNUMBER(K118)),K118=0),0,INDEX(INDIRECT("_"&$A$114&"Table7"),B115+1,7)) -> 0 | EV118: =IF(OR(NOT(ISNUMBER(K118)),K118=0),0,INDEX(INDIRECT("_"&$A$114&"Table7"),B115+1,9)) -> 0 | EZ118: TRUE
D119: Growth Media Placement | J119: =INDEX(INDIRECT("_"&$A$114&"Table8"),B115+1,11) -> 0 | K119: =IF(OR(J119="",K115="",ISTEXT(K115),J119=0),"",IF(OR(ISBLANK(M119),ISBLANK(N119)),"Enter Dates",IF(K115="Date Range","",IF(OR(AND(CostType=ARO,L115>ScheduleYear),AND(CostType=ARO,N119<=ScheduleYear)),"Date Range",IF(OR(AND(CostType=Bond,O119>ScheduleYear),AND(CostType=LOM,LOMComplete)),J119,J119-Q119))))) ->  | Q119: 0 | R119: 0 | EA119: 1 | EB119: =IF(OR(J119="",EB115="",ISTEXT(EB115)),0,IF(OR(ISBLANK(M119),ISBLANK(N119)),0,IF(OR(AND(CostType=ARO,L115>ScheduleYear),AND(OR(CostType=ARO,AND(CostType=LOM,LOMComplete=TRUE)),N119<=ScheduleYear)),0,J119))) -> 0 | EC119: =IF(OR(J119="",EC115="",ISTEXT(EC115)),0,IF(OR(ISBLANK(M119),ISBLANK(N119)),0,IF(EC115="Date Range",0,IF(OR(AND(CostType=ARO,L115>ScheduleYear),N119<=ScheduleYear),0,J119)))) ->  | EM119: GM | EN119: GM | EO119: =IF(ISNUMBER(K119),INDEX(INDIRECT("_"&$A$114&"Table8"),B115+1,3),0) -> 0 | EP119: =IF(Metric,"m3","cy") -> cy | EQ119: =INDEX(INDIRECT("_"&$A$114&"Table8"),B115+1,4) ->  | ER119: =IF(OR(NOT(ISNUMBER(K119)),K119=0),0,INDEX(INDIRECT("_"&$A$114&"Table8"),B115+1,6)) -> 0 | ES119: =IF(OR(NOT(ISNUMBER(K119)),K119=0),0,INDEX(INDIRECT("_"&$A$114&"Table8"),B115+1,8)) -> 0 | EZ119: TRUE
D120: Revegetation | J120: =INDEX(INDIRECT("_"&$A$114&"Table9"),B115+1,7) -> 0 | K120: =IF(OR(J120="",K115="",ISTEXT(K115),J120=0),"",IF(OR(ISBLANK(M120),ISBLANK(N120)),"Enter Dates",IF(K115="Date Range","",IF(OR(AND(CostType=ARO,L115>ScheduleYear),AND(CostType=ARO,N120<=ScheduleYear)),"Date Range",IF(OR(AND(CostType=Bond,O120>ScheduleYear),AND(CostType=LOM,LOMComplete)),J120,J120-Q120))))) ->  | Q120: 0 | R120: 0 | EA120: 1 | EB120: =IF(OR(J120="",EB115="",ISTEXT(EB115)),0,IF(OR(ISBLANK(M120),ISBLANK(N120)),0,IF(OR(AND(CostType=ARO,L115>ScheduleYear),AND(OR(CostType=ARO,AND(CostType=LOM,LOMComplete=TRUE)),N120<=ScheduleYear)),0,J120))) -> 0 | EC120: =IF(OR(J120="",EC115="",ISTEXT(EC115)),0,IF(OR(ISBLANK(M120),ISBLANK(N120)), 0,IF(EC115="Date Range",0,IF(OR(AND(CostType=ARO,L115>ScheduleYear),N120<=ScheduleYear),0,J120)))) ->  | EM120: Reveg | EN120: Reveg | EO120: =IF(ISNUMBER(K120),INDEX(INDIRECT("_"&$A$114&"Table9"),B115+1,3),0) -> 0 | EP120: =IF(Metric,"ha","acres") -> acres | EZ120: TRUE
D121: E-Cell/ET-Cell Liner | J121: =INDEX(INDIRECT("_"&$A$114&"Table10"),B115+1,15) -> 0 | K121: =IF(OR(J121="",K115="",ISTEXT(K115),J121=0),"",IF(OR(ISBLANK(M121),ISBLANK(N121)),"Enter Dates",IF(K115="Date Range","",IF(OR(AND(CostType=ARO,L115>ScheduleYear),AND(CostType=ARO,N121<=ScheduleYear)),"Date Range",IF(OR(AND(CostType=Bond,O121>ScheduleYear),AND(CostType=LOM,LOMComplete)),J121,J121-Q121))))) ->  | Q121: 0 | R121: 0 | EA121: 1 | EB121: =IF(OR(J121="",EB115="",ISTEXT(EB115)),0,IF(OR(ISBLANK(M121),ISBLANK(N121)),0,IF(OR(AND(CostType=ARO,L115>ScheduleYear),AND(OR(CostType=ARO,AND(CostType=LOM,LOMComplete=TRUE)),N121<=ScheduleYear)),0,J121))) -> 0 | EC121: =IF(OR(J121="",EC115="",ISTEXT(EC115)),0,IF(OR(ISBLANK(M121),ISBLANK(N121)), 0,IF(EC115="Date Range",0,IF(OR(AND(CostType=ARO,L115>ScheduleYear),N121<=ScheduleYear),0,J121)))) ->  | EM121: Liner | EN121: Liner | EO121: =IF(ISNUMBER(K121),INDEX(INDIRECT("_"&$A$114&"Table10"),B115+1,3)+INDEX(INDIRECT("_"&$A$114&"Table10"),B115+1,8),0) -> 0 | EP121: =IF(Metric,"m2","f2") -> f2 | EZ121: TRUE
D122: E-Cell/ET-Cell Piping | J122: =INDEX(INDIRECT("_"&$A$114&"Table11"),B115+1,20) -> 0 | K122: =IF(OR(J122="",K115="",ISTEXT(K115),J122=0),"",IF(OR(ISBLANK(M122),ISBLANK(N122)),"Enter Dates",IF(K115="Date Range","",IF(OR(AND(CostType=ARO,L115>ScheduleYear),AND(CostType=ARO,N122<=ScheduleYear)),"Date Range",IF(OR(AND(CostType=Bond,O122>ScheduleYear),AND(CostType=LOM,LOMComplete)),J122,J122-Q122))))) ->  | Q122: 0 | R122: 0 | EA122: 1 | EB122: =IF(OR(J122="",EB115="",ISTEXT(EB115)),0,IF(OR(ISBLANK(M122),ISBLANK(N122)),0,IF(OR(AND(CostType=ARO,L115>ScheduleYear),AND(OR(CostType=ARO,AND(CostType=LOM,LOMComplete=TRUE)),N122<=ScheduleYear)),0,J122))) -> 0 | EC122: =IF(OR(J122="",EC116="",ISTEXT(EC116)),0,IF(OR(ISBLANK(M122),ISBLANK(N122)), 0,IF(EC116="Date Range",0,IF(OR(AND(CostType=ARO,L115>ScheduleYear),N122<=ScheduleYear),0,J122)))) ->  | EM122: Pipe | EN122: Pipe | EO122: =IF(ISNUMBER(K122),INDEX(INDIRECT("_"&$A$114&"Table11"),B115+1,3)+INDEX(INDIRECT("_"&$A$114&"Table11"),B115+1,8)+INDEX(INDIRECT("_"&$A$114&"Table11"),B115+1,13),0) -> 0 | EP122: =IF(Metric,"m","ft") -> ft | EZ122: TRUE
B123: =(ROW(B123) - ROW($A$114)-1)/INDEX(SheetRangeIndex,MATCH($A$114,TableNamesSorted,0),7) -> 1 | C123: =INDEX(INDIRECT("_"&$A$114&"Table1"),B123+1,9) -> FA | D123: =INDEX(INDIRECT("_"&$A$114&"Table1"),B123+1,2) -> ARD Collection Pond 1 | E123: =IF(ISBLANK(INDEX(INDIRECT("_"&INDEX(SheetRangeIndex,MATCH($A$114,TableNamesSorted,0),3)&"Table1"),B123+1,3)),"",INDEX(INDIRECT("_"&INDEX(SheetRangeIndex,MATCH($A$114,TableNamesSorted,0),3)&"Table1"),B123+1,3)) ->  | F123: =IF(ISERROR(EL123),"Facility Type",IF(ISBLANK(INDEX(INDIRECT("_"&$A$114&"Table1"),B123+1,5)),"",INDEX(INDIRECT("_"&$A$114&"Table1"),B123+1,5))) -> Other Site Facilities | G123: =IF(ISBLANK(INDEX(INDIRECT("_"&$A$114&"Table1"),B123+1,6)),"",INDEX(INDIRECT("_"&$A$114&"Table1"),B123+1,6)) -> Closure | H123: =IF(ISBLANK(INDEX(INDIRECT("_"&$A$114&"Table1"),B123+1,7)),"",INDEX(INDIRECT("_"&$A$114&"Table1"),B123+1,7)) -> Ponds | I123: =IF(ISBLANK(INDEX(INDIRECT("_"&$A$114&"Table1"),B123+1,8)),"",INDEX(INDIRECT("_"&$A$114&"Table1"),B123+1,8)) -> Public Land | J123: =SUM(J124:J130) -> 5866 | K123: =IF(ISERR(ED123),"Cost Type",IF(A123="X","Override",IF(AND(CostType=ARO,L123>ScheduleYear),"Date Range",IF(AND(ISTEXT(LocationFilter),ISERROR(EI123)),"Location",IF(AND(ISTEXT(PropertyFilter),ISERROR(EJ123)),"Property",IF(AND(ISTEXT(FacilityTypeFilter),ISERROR(EG123)),"Facility Type",IF(AND(NOT(ISBLANK(IDCodeFilter)),ISERROR(EF123)),"ID Code",IF(AND(ISTEXT(PhaseFilter),ISERROR(EH123)),"Phase",IF(AND(CostType=LOM,LOMComplete),J123,SUM(T123:DO123)))))))))) -> 5866 | L123: =INDEX(INDIRECT("_"&$A$114&"Table1"),B123+1,4) -> 2000 | Q123: =SUM(Q124:Q130) -> 0 | T123: =IF(ISTEXT($EB123),0,IF(AND(CostType=LOM,LOMComplete,T$27<=ScheduleYear),SUMPRODUCT(T124:T130,$J124:$J130),IF(CostType=Bond,SUMPRODUCT($EB124:$EB130,T124:T130,$EA124:$EA130),IF(T$27<=ScheduleYear,0,SUMPRODUCT(T124:T130,$EB124:$EB130))))) -> 0 | U123: 0 | V123: 0 | W123: 0 | X123: 0 | Y123: 0 | Z123: 0 | AA123: 0 | AB123: 0 | AC123: 0 | AD123: 0 | AE123: 0 | AF123: 0 | AG123: 0 | AH123: 0 | AI123: 0 | AJ123: 0 | AK123: 0 | AL123: 0 | AM123: 0 | AN123: 0 | AO123: 0 | AP123: 0 | AQ123: 0 | AR123: 0 | AS123: 0 | AT123: 0 | AU123: 0 | AV123: 0 | AW123: 0 | AX123: 0 | AY123: 0 | AZ123: 0 | BA123: 0 | BB123: 0 | BC123: 0 | BD123: 0 | BE123: 0 | BF123: 0 | BG123: 0 | BH123: 0 | BI123: 0 | BJ123: 0 | BK123: 0 | BL123: 0 | BM123: 0 | BN123: 0 | BO123: 0 | BP123: 0 | BQ123: 0 | BR123: 0 | BS123: 0 | BT123: 0 | BU123: 0 | BV123: 0 | BW123: 0 | BX123: 0 | BY123: 0 | BZ123: 0 | CA123: 0 | CB123: 0 | CC123: 0 | CD123: 0 | CE123: 0 | CF123: =IF(ISTEXT($EB123),0,IF(AND(CostType=LOM,LOMComplete,CF$27<=ScheduleYear),SUMPRODUCT(CF124:CF130,$J124:$J130),IF(CostType=Bond,SUMPRODUCT($EB124:$EB130,CF124:CF130,$EA124:$EA130),IF(CF$27<=ScheduleYear,0,SUMPRODUCT(CF124:CF130,$EB124:$EB130))))) -> 0 | CG123: 0 | CH123: 0 | CI123: 0 | CJ123: 0 | CK123: 0 | CL123: 0 | CM123: 0 | CN123: 0 | CO123: 0 | CP123: 0 | CQ123: 0 | CR123: 0 | CS123: 0 | CT123: 0 | CU123: 0 | CV123: 0 | CW123: 0 | CX123: 0 | CY123: 0 | CZ123: 0 | DA123: 0 | DB123: 0 | DC123: 0 | DD123: 0 | DE123: 0 | DF123: 0 | DG123: 0 | DH123: 0 | DI123: 0 | DJ123: 0 | DK123: 0 | DL123: 0 | DM123: 0 | DN123: 0 | DO123: 5866 | DP123: =IF(ISNUMBER(K123),SUM(T123:DO123)-K123,K123) -> 0 | EB123: =IF(ISERR(ED123),"Cost Type",IF(A123="X","Override",IF(AND(CostType=ARO,L123>ScheduleYear),0,IF(AND(ISTEXT(LocationFilter),ISERROR(EI123)),"Location",IF(AND(ISTEXT(PropertyFilter),ISERROR(EJ123)),"Property",IF(AND(ISTEXT(FacilityTypeFilter),ISERROR(EG123)),"Facility Type",IF(AND(ISTEXT(IDCodeFilter),ISERROR(EF123)),"ID Code",IF(AND(ISTEXT(PhaseFilter),ISERROR(EH123)),"Phase",J123)))))))) -> 5866 | EC123: =IF(EE123="","Cost Type",IF(A123="X","Override",IF(AND(OtherCostType=ARO,L123>ScheduleYear),0,IF(AND(ISTEXT(LocationFilter),EI123=""),"Location",IF(AND(ISTEXT(PropertyFilter),EJ123=""),"Property",IF(AND(ISTEXT(FacilityTypeFilter),EG123=""),"Facility Type",IF(AND(ISTEXT(IDCodeFilter),EF123=""),"ID Code",IF(AND(ISTEXT(PhaseFilter),EH123=""),"Phase",J123)))))))) ->  | ED123: =SEARCH(CostType,C123) -> 1 | EE123: =SEARCH(OtherCostType,C123) ->  | EF123: =IF(AND(IDCodeFilterType="CONTAINS",NOT(ISERROR(SEARCH(IDCodeFilter,E123)))),1,IF(AND(IDCodeFilterType="NOT",ISERROR(SEARCH(IDCodeFilter,E123))),1,IF(AND(OR(IDCodeFilterType="EXACT",ISBLANK(IDCodeFilterType)),NOT(ISERROR(MATCH(IDCodeFilter,E123,0)))),1,$EK123))) ->  | EG123: =IF(AND(FacilityFilterType="CONTAINS",NOT(ISERROR(SEARCH(FacilityTypeFilter,F123)))),1,IF(AND(FacilityFilterType="NOT",ISERROR(SEARCH(FacilityTypeFilter,F123))),1,IF(AND(OR(FacilityFilterType="EXACT",ISBLANK(FacilityFilterType)),NOT(ISERROR(MATCH(FacilityTypeFilter,F123,0)))),1,$EK123))) ->  | EH123: =IF(AND(PhaseFilterType="CONTAINS",NOT(ISERROR(SEARCH(PhaseFilter,G123)))),1,IF(AND(PhaseFilterType="NOT",ISERROR(SEARCH(PhaseFilter,G123))),1,IF(AND(OR(PhaseFilterType="EXACT",ISBLANK(PhaseFilterType)),NOT(ISERROR(MATCH(PhaseFilter,G123,0)))),1,$EK123))) ->  | EI123: =IF(AND(LocationFilterType="CONTAINS",NOT(ISERROR(SEARCH(LocationFilter,H123)))),1,IF(AND(LocationFilterType="NOT",ISERROR(SEARCH(LocationFilter,H123))),1,IF(AND(OR(LocationFilterType="EXACT",ISBLANK(LocationFilterType)),NOT(ISERROR(MATCH(LocationFilter,H123,0)))),1,$EK123))) ->  | EJ123: =IF(AND(PropertyFilterType="CONTAINS",NOT(ISERROR(SEARCH(PropertyFilter,I123)))),1,IF(AND(PropertyFilterType="NOT",ISERROR(SEARCH(PropertyFilter,I123))),1,IF(AND(OR(PropertyFilterType="EXACT",ISBLANK(PropertyFilterType)),NOT(ISERROR(MATCH(PropertyFilter,I123,0)))),1,$EK123))) ->  | EK123: =MATCH("NOT",$EK$27,0) ->  | EL123: =IF(ISBLANK(INDEX(INDIRECT("_"&$A$114&"Table1"),B123+1,2)),"",MATCH(INDEX(INDIRECT("_"&$A$114&"Table1"),B123+1,5),Accounts,0)) -> 5 | EZ123: FALSE | FA123: 1
D124: Liner Cutting and Folding | J124: =IF(INDEX(INDIRECT("_"&$A$114&"Table5"),B123+1,6)=0,0,INDEX(INDIRECT("_"&$A$114&"Table5"),B123+1,6)) -> 1126 | K124: =IF(OR(J124="",K123="",ISTEXT(K123),J124=0),"",IF(OR(ISBLANK(M124),ISBLANK(N124)),"Enter Dates",IF(K123="Date Range","",IF(OR(AND(CostType=ARO,L123>ScheduleYear),AND(CostType=ARO,N124<=ScheduleYear)),"Date Range",IF(OR(AND(CostType=Bond,O124>ScheduleYear),AND(CostType=LOM,LOMComplete)),J124,J124-Q124))))) -> 1126 | M124: 2023 | N124: 2122 | P124: =IF(K124="","",SUM(T124:DO124)) -> 1 | Q124: =IF(OR(AND(CostType=ARO,N124<=ScheduleYear),AND(CostType=LOM,LOMComplete)),J124*R124,R124*EB124) -> 0 | R124: =IF(CostType=Bond,SUMIFS(T124:DP124,T$27:DP$27,"<="&O124,T$27:DP$27,"<="&ScheduleYear),SUMIF(T$27:DP$27,"<="&ScheduleYear,T124:DP124)) -> 0 | DO124: 1 | EA124: 1 | EB124: =IF(OR(J124="",EB123="",ISTEXT(EB123)),0,IF(OR(ISBLANK(M124),ISBLANK(N124)),0,IF(OR(AND(CostType=ARO,L123>ScheduleYear),AND(OR(CostType=ARO,AND(CostType=LOM,LOMComplete=TRUE)),N124<=ScheduleYear)),0,J124))) -> 1126 | EC124: =IF(OR(J124="",EC123="",ISTEXT(EC123)),0,IF(OR(ISBLANK(M124),ISBLANK(N124)),0,IF(EC123="Date Range",0,IF(OR(AND(OtherCostType=ARO,L123>ScheduleYear),N124<=ScheduleYear),0,J124)))) ->  | EM124: Liner | EN124: Liner | EO124: =IF(ISNUMBER(K124),IF(INDEX(INDIRECT("_"&$A$114&"Table5"),B123+1,3)=0,0,INDEX(INDIRECT("_"&$A$114&"Table5"),B123+1,3)),0) -> 5 | EP124: =IF(Metric,"m3","cy") -> cy | EQ124: =LinerExcavator -> 325F | ES124: =IF(OR(NOT(ISNUMBER(K124)),K124=0),0,INDEX(INDIRECT("_"&$A$114&"Table4"),B123+1,3)) -> 0 | EZ124: TRUE
D125: Backfill/Cover 1 Placement | J125: =INDEX(INDIRECT("_"&$A$114&"Table6"),B123+1,25) -> 1456 | K125: =IF(OR(J125="",K123="",ISTEXT(K123),J125=0),"",IF(OR(ISBLANK(M125),ISBLANK(N125)),"Enter Dates",IF(K123="Date Range","",IF(OR(AND(CostType=ARO,L123>ScheduleYear),AND(CostType=ARO,N125<=ScheduleYear)),"Date Range",IF(OR(AND(CostType=Bond,O125>ScheduleYear),AND(CostType=LOM,LOMComplete)),J125,J125-Q125))))) -> 1456 | M125: 2023 | N125: 2122 | P125: 1 | Q125: 0 | R125: 0 | DO125: 1 | EA125: 1 | EB125: =IF(OR(J125="",EB123="",ISTEXT(EB123)),0,IF(OR(ISBLANK(M125),ISBLANK(N125)),0,IF(OR(AND(CostType=ARO,L123>ScheduleYear),AND(OR(CostType=ARO,AND(CostType=LOM,LOMComplete=TRUE)),N125<=ScheduleYear)),0,J125))) -> 1456 | EC125: =IF(OR(J125="",EC123="",ISTEXT(EC123)),0,IF(OR(ISBLANK(M125),ISBLANK(N125)),0,IF(EC123="Date Range",0,IF(OR(AND(CostType=ARO,L123>ScheduleYear),N125<=ScheduleYear),0,J125)))) ->  | EM125: Backfill | EN125: Backfill | EO125: =IF(ISNUMBER(K125),INDEX(INDIRECT("_"&$A$114&"Table6"),B123+1,4),0) -> 361 | EP125: =IF(Metric,"m3","cy") -> cy | EQ125: =INDEX(INDIRECT("_"&$A$114&"Table6"),B123+1,10) -> 725C2/966M/D6T | ER125: =IF(OR(NOT(ISNUMBER(K125)),K125=0),0,INDEX(INDIRECT("_"&$A$114&"Table6"),B123+1,12)) -> 6 | ES125: =IF(OR(NOT(ISNUMBER(K125)),K125=0),0,INDEX(INDIRECT("_"&$A$114&"Table6"),B123+1,14)) -> 1 | ET125: =INDEX(INDIRECT("_"&$A$114&"Table6"),B123+1,5) ->  | EU125: =IF(OR(NOT(ISNUMBER(K125)),K125=0),0,INDEX(INDIRECT("_"&$A$114&"Table6"),B123+1,7)) ->  | EV125: =IF(OR(NOT(ISNUMBER(K125)),K125=0),0,INDEX(INDIRECT("_"&$A$114&"Table6"),B123+1,9)) -> 0 | EZ125: TRUE
D126: Backfill/Cover 2 Placement | J126: =INDEX(INDIRECT("_"&$A$114&"Table7"),B123+1,25) -> 0 | K126: =IF(OR(J126="",K123="",ISTEXT(K123),J126=0),"",IF(OR(ISBLANK(M126),ISBLANK(N126)),"Enter Dates",IF(K123="Date Range","",IF(OR(AND(CostType=ARO,L123>ScheduleYear),AND(CostType=ARO,N126<=ScheduleYear)),"Date Range",IF(OR(AND(CostType=Bond,O126>ScheduleYear),AND(CostType=LOM,LOMComplete)),J126,J126-Q126))))) ->  | M126: 2023 | N126: 2122 | Q126: 0 | R126: 0 | DO126: 1 | EA126: 1 | EB126: =IF(OR(J126="",EB123="",ISTEXT(EB123)),0,IF(OR(ISBLANK(M126),ISBLANK(N126)),0,IF(OR(AND(CostType=ARO,L123>ScheduleYear),AND(OR(CostType=ARO,AND(CostType=LOM,LOMComplete=TRUE)),N126<=ScheduleYear)),0,J126))) -> 0 | EC126: =IF(OR(J126="",EC123="",ISTEXT(EC123)),0,IF(OR(ISBLANK(M126),ISBLANK(N126)),0,IF(EC123="Date Range",0,IF(OR(AND(CostType=ARO,L123>ScheduleYear),N126<=ScheduleYear),0,J126)))) ->  | EM126: Backfill | EN126: Backfill | EO126: =IF(ISNUMBER(K126),INDEX(INDIRECT("_"&$A$114&"Table7"),B123+1,4),0) -> 0 | EP126: =IF(Metric,"m3","cy") -> cy | EQ126: =INDEX(INDIRECT("_"&$A$114&"Table7"),B123+1,10) ->  | ER126: =IF(OR(NOT(ISNUMBER(K126)),K126=0),0,INDEX(INDIRECT("_"&$A$114&"Table7"),B123+1,12)) -> 0 | ES126: =IF(OR(NOT(ISNUMBER(K126)),K126=0),0,INDEX(INDIRECT("_"&$A$114&"Table7"),B123+1,14)) -> 0 | ET126: =INDEX(INDIRECT("_"&$A$114&"Table7"),B123+1,5) ->  | EU126: =IF(OR(NOT(ISNUMBER(K126)),K126=0),0,INDEX(INDIRECT("_"&$A$114&"Table7"),B123+1,7)) -> 0 | EV126: =IF(OR(NOT(ISNUMBER(K126)),K126=0),0,INDEX(INDIRECT("_"&$A$114&"Table7"),B123+1,9)) -> 0 | EZ126: TRUE
D127: Growth Media Placement | J127: =INDEX(INDIRECT("_"&$A$114&"Table8"),B123+1,11) -> 2913 | K127: =IF(OR(J127="",K123="",ISTEXT(K123),J127=0),"",IF(OR(ISBLANK(M127),ISBLANK(N127)),"Enter Dates",IF(K123="Date Range","",IF(OR(AND(CostType=ARO,L123>ScheduleYear),AND(CostType=ARO,N127<=ScheduleYear)),"Date Range",IF(OR(AND(CostType=Bond,O127>ScheduleYear),AND(CostType=LOM,LOMComplete)),J127,J127-Q127))))) -> 2913 | M127: 2023 | N127: 2122 | P127: 1 | Q127: 0 | R127: 0 | DO127: 1 | EA127: 1 | EB127: =IF(OR(J127="",EB123="",ISTEXT(EB123)),0,IF(OR(ISBLANK(M127),ISBLANK(N127)),0,IF(OR(AND(CostType=ARO,L123>ScheduleYear),AND(OR(CostType=ARO,AND(CostType=LOM,LOMComplete=TRUE)),N127<=ScheduleYear)),0,J127))) -> 2913 | EC127: =IF(OR(J127="",EC123="",ISTEXT(EC123)),0,IF(OR(ISBLANK(M127),ISBLANK(N127)),0,IF(EC123="Date Range",0,IF(OR(AND(CostType=ARO,L123>ScheduleYear),N127<=ScheduleYear),0,J127)))) ->  | EM127: GM | EN127: GM | EO127: =IF(ISNUMBER(K127),INDEX(INDIRECT("_"&$A$114&"Table8"),B123+1,3),0) -> 598 | EP127: =IF(Metric,"m3","cy") -> cy | EQ127: =INDEX(INDIRECT("_"&$A$114&"Table8"),B123+1,4) -> 725C2/966M/D6T | ER127: =IF(OR(NOT(ISNUMBER(K127)),K127=0),0,INDEX(INDIRECT("_"&$A$114&"Table8"),B123+1,6)) -> 6 | ES127: =IF(OR(NOT(ISNUMBER(K127)),K127=0),0,INDEX(INDIRECT("_"&$A$114&"Table8"),B123+1,8)) -> 2 | EZ127: TRUE
D128: Revegetation | J128: =INDEX(INDIRECT("_"&$A$114&"Table9"),B123+1,7) -> 371 | K128: =IF(OR(J128="",K123="",ISTEXT(K123),J128=0),"",IF(OR(ISBLANK(M128),ISBLANK(N128)),"Enter Dates",IF(K123="Date Range","",IF(OR(AND(CostType=ARO,L123>ScheduleYear),AND(CostType=ARO,N128<=ScheduleYear)),"Date Range",IF(OR(AND(CostType=Bond,O128>ScheduleYear),AND(CostType=LOM,LOMComplete)),J128,J128-Q128))))) -> 371 | M128: 2023 | N128: 2122 | P128: 1 | Q128: 0 | R128: 0 | DO128: 1 | EA128: 1 | EB128: =IF(OR(J128="",EB123="",ISTEXT(EB123)),0,IF(OR(ISBLANK(M128),ISBLANK(N128)),0,IF(OR(AND(CostType=ARO,L123>ScheduleYear),AND(OR(CostType=ARO,AND(CostType=LOM,LOMComplete=TRUE)),N128<=ScheduleYear)),0,J128))) -> 371 | EC128: =IF(OR(J128="",EC123="",ISTEXT(EC123)),0,IF(OR(ISBLANK(M128),ISBLANK(N128)), 0,IF(EC123="Date Range",0,IF(OR(AND(CostType=ARO,L123>ScheduleYear),N128<=ScheduleYear),0,J128)))) ->  | EM128: Reveg | EN128: Reveg | EO128: =IF(ISNUMBER(K128),INDEX(INDIRECT("_"&$A$114&"Table9"),B123+1,3),0) -> 0.4 | EP128: =IF(Metric,"ha","acres") -> acres | EZ128: TRUE
D129: E-Cell/ET-Cell Liner | J129: =INDEX(INDIRECT("_"&$A$114&"Table10"),B123+1,15) -> 0 | K129: =IF(OR(J129="",K123="",ISTEXT(K123),J129=0),"",IF(OR(ISBLANK(M129),ISBLANK(N129)),"Enter Dates",IF(K123="Date Range","",IF(OR(AND(CostType=ARO,L123>ScheduleYear),AND(CostType=ARO,N129<=ScheduleYear)),"Date Range",IF(OR(AND(CostType=Bond,O129>ScheduleYear),AND(CostType=LOM,LOMComplete)),J129,J129-Q129))))) ->  | M129: 2023 | N129: 2122 | Q129: 0 | R129: 0 | DO129: 1 | EA129: 1 | EB129: =IF(OR(J129="",EB123="",ISTEXT(EB123)),0,IF(OR(ISBLANK(M129),ISBLANK(N129)),0,IF(OR(AND(CostType=ARO,L123>ScheduleYear),AND(OR(CostType=ARO,AND(CostType=LOM,LOMComplete=TRUE)),N129<=ScheduleYear)),0,J129))) -> 0 | EC129: =IF(OR(J129="",EC123="",ISTEXT(EC123)),0,IF(OR(ISBLANK(M129),ISBLANK(N129)), 0,IF(EC123="Date Range",0,IF(OR(AND(CostType=ARO,L123>ScheduleYear),N129<=ScheduleYear),0,J129)))) ->  | EM129: Liner | EN129: Liner | EO129: =IF(ISNUMBER(K129),INDEX(INDIRECT("_"&$A$114&"Table10"),B123+1,3)+INDEX(INDIRECT("_"&$A$114&"Table10"),B123+1,8),0) -> 0 | EP129: =IF(Metric,"m2","f2") -> f2 | EZ129: TRUE
D130: E-Cell/ET-Cell Piping | J130: =INDEX(INDIRECT("_"&$A$114&"Table11"),B123+1,20) -> 0 | K130: =IF(OR(J130="",K123="",ISTEXT(K123),J130=0),"",IF(OR(ISBLANK(M130),ISBLANK(N130)),"Enter Dates",IF(K123="Date Range","",IF(OR(AND(CostType=ARO,L123>ScheduleYear),AND(CostType=ARO,N130<=ScheduleYear)),"Date Range",IF(OR(AND(CostType=Bond,O130>ScheduleYear),AND(CostType=LOM,LOMComplete)),J130,J130-Q130))))) ->  | M130: 2023 | N130: 2122 | Q130: 0 | R130: 0 | DO130: 1 | EA130: 1 | EB130: =IF(OR(J130="",EB123="",ISTEXT(EB123)),0,IF(OR(ISBLANK(M130),ISBLANK(N130)),0,IF(OR(AND(CostType=ARO,L123>ScheduleYear),AND(OR(CostType=ARO,AND(CostType=LOM,LOMComplete=TRUE)),N130<=ScheduleYear)),0,J130))) -> 0 | EC130: =IF(OR(J130="",EC124="",ISTEXT(EC124)),0,IF(OR(ISBLANK(M130),ISBLANK(N130)), 0,IF(EC124="Date Range",0,IF(OR(AND(CostType=ARO,L123>ScheduleYear),N130<=ScheduleYear),0,J130)))) ->  | EM130: Pipe | EN130: Pipe | EO130: =IF(ISNUMBER(K130),INDEX(INDIRECT("_"&$A$114&"Table11"),B123+1,3)+INDEX(INDIRECT("_"&$A$114&"Table11"),B123+1,8)+INDEX(INDIRECT("_"&$A$114&"Table11"),B123+1,13),0) -> 0 | EP130: =IF(Metric,"m","ft") -> ft | EZ130: TRUE
B131: =(ROW(B131) - ROW($A$114)-1)/INDEX(SheetRangeIndex,MATCH($A$114,TableNamesSorted,0),7) -> 2 | C131: =INDEX(INDIRECT("_"&$A$114&"Table1"),B131+1,9) -> FA | D131: =INDEX(INDIRECT("_"&$A$114&"Table1"),B131+1,2) -> ARD Collection Pond 2 | E131: =IF(ISBLANK(INDEX(INDIRECT("_"&INDEX(SheetRangeIndex,MATCH($A$114,TableNamesSorted,0),3)&"Table1"),B131+1,3)),"",INDEX(INDIRECT("_"&INDEX(SheetRangeIndex,MATCH($A$114,TableNamesSorted,0),3)&"Table1"),B131+1,3)) ->  | F131: =IF(ISERROR(EL131),"Facility Type",IF(ISBLANK(INDEX(INDIRECT("_"&$A$114&"Table1"),B131+1,5)),"",INDEX(INDIRECT("_"&$A$114&"Table1"),B131+1,5))) -> Other Site Facilities | G131: =IF(ISBLANK(INDEX(INDIRECT("_"&$A$114&"Table1"),B131+1,6)),"",INDEX(INDIRECT("_"&$A$114&"Table1"),B131+1,6)) -> Closure | H131: =IF(ISBLANK(INDEX(INDIRECT("_"&$A$114&"Table1"),B131+1,7)),"",INDEX(INDIRECT("_"&$A$114&"Table1"),B131+1,7)) -> Ponds | I131: =IF(ISBLANK(INDEX(INDIRECT("_"&$A$114&"Table1"),B131+1,8)),"",INDEX(INDIRECT("_"&$A$114&"Table1"),B131+1,8)) -> Public Land | J131: =SUM(J132:J138) -> 5891 | K131: =IF(ISERR(ED131),"Cost Type",IF(A131="X","Override",IF(AND(CostType=ARO,L131>ScheduleYear),"Date Range",IF(AND(ISTEXT(LocationFilter),ISERROR(EI131)),"Location",IF(AND(ISTEXT(PropertyFilter),ISERROR(EJ131)),"Property",IF(AND(ISTEXT(FacilityTypeFilter),ISERROR(EG131)),"Facility Type",IF(AND(NOT(ISBLANK(IDCodeFilter)),ISERROR(EF131)),"ID Code",IF(AND(ISTEXT(PhaseFilter),ISERROR(EH131)),"Phase",IF(AND(CostType=LOM,LOMComplete),J131,SUM(T131:DO131)))))))))) -> 5891 | L131: =INDEX(INDIRECT("_"&$A$114&"Table1"),B131+1,4) -> 2000 | Q131: =SUM(Q132:Q138) -> 0 | T131: =IF(ISTEXT($EB131),0,IF(AND(CostType=LOM,LOMComplete,T$27<=ScheduleYear),SUMPRODUCT(T132:T138,$J132:$J138),IF(CostType=Bond,SUMPRODUCT($EB132:$EB138,T132:T138,$EA132:$EA138),IF(T$27<=ScheduleYear,0,SUMPRODUCT(T132:T138,$EB132:$EB138))))) -> 0 | U131: 0 | V131: 0 | W131: 0 | X131: 0 | Y131: 0 | Z131: 0 | AA131: 0 | AB131: 0 | AC131: 0 | AD131: 0 | AE131: 0 | AF131: 0 | AG131: 0 | AH131: 0 | AI131: 0 | AJ131: 0 | AK131: 0 | AL131: 0 | AM131: 0 | AN131: 0 | AO131: 0 | AP131: 0 | AQ131: 0 | AR131: 0 | AS131: 0 | AT131: 0 | AU131: 0 | AV131: 0 | AW131: 0 | AX131: 0 | AY131: 0 | AZ131: 0 | BA131: 0 | BB131: 0 | BC131: 0 | BD131: 0 | BE131: 0 | BF131: 0 | BG131: 0 | BH131: 0 | BI131: 0 | BJ131: 0 | BK131: 0 | BL131: 0 | BM131: 0 | BN131: 0 | BO131: 0 | BP131: 0 | BQ131: 0 | BR131: 0 | BS131: 0 | BT131: 0 | BU131: 0 | BV131: 0 | BW131: 0 | BX131: 0 | BY131: 0 | BZ131: 0 | CA131: 0 | CB131: 0 | CC131: 0 | CD131: 0 | CE131: 0 | CF131: =IF(ISTEXT($EB131),0,IF(AND(CostType=LOM,LOMComplete,CF$27<=ScheduleYear),SUMPRODUCT(CF132:CF138,$J132:$J138),IF(CostType=Bond,SUMPRODUCT($EB132:$EB138,CF132:CF138,$EA132:$EA138),IF(CF$27<=ScheduleYear,0,SUMPRODUCT(CF132:CF138,$EB132:$EB138))))) -> 0 | CG131: 0 | CH131: 0 | CI131: 0 | CJ131: 0 | CK131: 0 | CL131: 0 | CM131: 0 | CN131: 0 | CO131: 0 | CP131: 0 | CQ131: 0 | CR131: 0 | CS131: 0 | CT131: 0 | CU131: 0 | CV131: 0 | CW131: 0 | CX131: 0 | CY131: 0 | CZ131: 0 | DA131: 0 | DB131: 0 | DC131: 0 | DD131: 0 | DE131: 0 | DF131: 0 | DG131: 0 | DH131: 0 | DI131: 0 | DJ131: 0 | DK131: 0 | DL131: 0 | DM131: 0 | DN131: 0 | DO131: 5891 | DP131: =IF(ISNUMBER(K131),SUM(T131:DO131)-K131,K131) -> 0 | EB131: =IF(ISERR(ED131),"Cost Type",IF(A131="X","Override",IF(AND(CostType=ARO,L131>ScheduleYear),0,IF(AND(ISTEXT(LocationFilter),ISERROR(EI131)),"Location",IF(AND(ISTEXT(PropertyFilter),ISERROR(EJ131)),"Property",IF(AND(ISTEXT(FacilityTypeFilter),ISERROR(EG131)),"Facility Type",IF(AND(ISTEXT(IDCodeFilter),ISERROR(EF131)),"ID Code",IF(AND(ISTEXT(PhaseFilter),ISERROR(EH131)),"Phase",J131)))))))) -> 5891 | EC131: =IF(EE131="","Cost Type",IF(A131="X","Override",IF(AND(OtherCostType=ARO,L131>ScheduleYear),0,IF(AND(ISTEXT(LocationFilter),EI131=""),"Location",IF(AND(ISTEXT(PropertyFilter),EJ131=""),"Property",IF(AND(ISTEXT(FacilityTypeFilter),EG131=""),"Facility Type",IF(AND(ISTEXT(IDCodeFilter),EF131=""),"ID Code",IF(AND(ISTEXT(PhaseFilter),EH131=""),"Phase",J131)))))))) ->  | ED131: =SEARCH(CostType,C131) -> 1 | EE131: =SEARCH(OtherCostType,C131) ->  | EF131: =IF(AND(IDCodeFilterType="CONTAINS",NOT(ISERROR(SEARCH(IDCodeFilter,E131)))),1,IF(AND(IDCodeFilterType="NOT",ISERROR(SEARCH(IDCodeFilter,E131))),1,IF(AND(OR(IDCodeFilterType="EXACT",ISBLANK(IDCodeFilterType)),NOT(ISERROR(MATCH(IDCodeFilter,E131,0)))),1,$EK131))) ->  | EG131: =IF(AND(FacilityFilterType="CONTAINS",NOT(ISERROR(SEARCH(FacilityTypeFilter,F131)))),1,IF(AND(FacilityFilterType="NOT",ISERROR(SEARCH(FacilityTypeFilter,F131))),1,IF(AND(OR(FacilityFilterType="EXACT",ISBLANK(FacilityFilterType)),NOT(ISERROR(MATCH(FacilityTypeFilter,F131,0)))),1,$EK131))) ->  | EH131: =IF(AND(PhaseFilterType="CONTAINS",NOT(ISERROR(SEARCH(PhaseFilter,G131)))),1,IF(AND(PhaseFilterType="NOT",ISERROR(SEARCH(PhaseFilter,G131))),1,IF(AND(OR(PhaseFilterType="EXACT",ISBLANK(PhaseFilterType)),NOT(ISERROR(MATCH(PhaseFilter,G131,0)))),1,$EK131))) ->  | EI131: =IF(AND(LocationFilterType="CONTAINS",NOT(ISERROR(SEARCH(LocationFilter,H131)))),1,IF(AND(LocationFilterType="NOT",ISERROR(SEARCH(LocationFilter,H131))),1,IF(AND(OR(LocationFilterType="EXACT",ISBLANK(LocationFilterType)),NOT(ISERROR(MATCH(LocationFilter,H131,0)))),1,$EK131))) ->  | EJ131: =IF(AND(PropertyFilterType="CONTAINS",NOT(ISERROR(SEARCH(PropertyFilter,I131)))),1,IF(AND(PropertyFilterType="NOT",ISERROR(SEARCH(PropertyFilter,I131))),1,IF(AND(OR(PropertyFilterType="EXACT",ISBLANK(PropertyFilterType)),NOT(ISERROR(MATCH(PropertyFilter,I131,0)))),1,$EK131))) ->  | EK131: =MATCH("NOT",$EK$27,0) ->  | EL131: =IF(ISBLANK(INDEX(INDIRECT("_"&$A$114&"Table1"),B131+1,2)),"",MATCH(INDEX(INDIRECT("_"&$A$114&"Table1"),B131+1,5),Accounts,0)) -> 5 | EZ131: FALSE | FA131: 1
D132: Liner Cutting and Folding | J132: =IF(INDEX(INDIRECT("_"&$A$114&"Table5"),B131+1,6)=0,0,INDEX(INDIRECT("_"&$A$114&"Table5"),B131+1,6)) -> 1126 | K132: =IF(OR(J132="",K131="",ISTEXT(K131),J132=0),"",IF(OR(ISBLANK(M132),ISBLANK(N132)),"Enter Dates",IF(K131="Date Range","",IF(OR(AND(CostType=ARO,L131>ScheduleYear),AND(CostType=ARO,N132<=ScheduleYear)),"Date Range",IF(OR(AND(CostType=Bond,O132>ScheduleYear),AND(CostType=LOM,LOMComplete)),J132,J132-Q132))))) -> 1126 | M132: 2023 | N132: 2122 | P132: =IF(K132="","",SUM(T132:DO132)) -> 1 | Q132: =IF(OR(AND(CostType=ARO,N132<=ScheduleYear),AND(CostType=LOM,LOMComplete)),J132*R132,R132*EB132) -> 0 | R132: =IF(CostType=Bond,SUMIFS(T132:DP132,T$27:DP$27,"<="&O132,T$27:DP$27,"<="&ScheduleYear),SUMIF(T$27:DP$27,"<="&ScheduleYear,T132:DP132)) -> 0 | DO132: 1 | EA132: 1 | EB132: =IF(OR(J132="",EB131="",ISTEXT(EB131)),0,IF(OR(ISBLANK(M132),ISBLANK(N132)),0,IF(OR(AND(CostType=ARO,L131>ScheduleYear),AND(OR(CostType=ARO,AND(CostType=LOM,LOMComplete=TRUE)),N132<=ScheduleYear)),0,J132))) -> 1126 | EC132: =IF(OR(J132="",EC131="",ISTEXT(EC131)),0,IF(OR(ISBLANK(M132),ISBLANK(N132)),0,IF(EC131="Date Range",0,IF(OR(AND(OtherCostType=ARO,L131>ScheduleYear),N132<=ScheduleYear),0,J132)))) ->  | EM132: Liner | EN132: Liner | EO132: =IF(ISNUMBER(K132),IF(INDEX(INDIRECT("_"&$A$114&"Table5"),B131+1,3)=0,0,INDEX(INDIRECT("_"&$A$114&"Table5"),B131+1,3)),0) -> 5 | EP132: =IF(Metric,"m3","cy") -> cy | EQ132: =LinerExcavator -> 325F | ES132: =IF(OR(NOT(ISNUMBER(K132)),K132=0),0,INDEX(INDIRECT("_"&$A$114&"Table4"),B131+1,3)) -> 0 | EZ132: TRUE
D133: Backfill/Cover 1 Placement | J133: =INDEX(INDIRECT("_"&$A$114&"Table6"),B131+1,25) -> 1456 | K133: =IF(OR(J133="",K131="",ISTEXT(K131),J133=0),"",IF(OR(ISBLANK(M133),ISBLANK(N133)),"Enter Dates",IF(K131="Date Range","",IF(OR(AND(CostType=ARO,L131>ScheduleYear),AND(CostType=ARO,N133<=ScheduleYear)),"Date Range",IF(OR(AND(CostType=Bond,O133>ScheduleYear),AND(CostType=LOM,LOMComplete)),J133,J133-Q133))))) -> 1456 | M133: 2023 | N133: 2122 | P133: 1 | Q133: 0 | R133: 0 | DO133: 1 | EA133: 1 | EB133: =IF(OR(J133="",EB131="",ISTEXT(EB131)),0,IF(OR(ISBLANK(M133),ISBLANK(N133)),0,IF(OR(AND(CostType=ARO,L131>ScheduleYear),AND(OR(CostType=ARO,AND(CostType=LOM,LOMComplete=TRUE)),N133<=ScheduleYear)),0,J133))) -> 1456 | EC133: =IF(OR(J133="",EC131="",ISTEXT(EC131)),0,IF(OR(ISBLANK(M133),ISBLANK(N133)),0,IF(EC131="Date Range",0,IF(OR(AND(CostType=ARO,L131>ScheduleYear),N133<=ScheduleYear),0,J133)))) ->  | EM133: Backfill | EN133: Backfill | EO133: =IF(ISNUMBER(K133),INDEX(INDIRECT("_"&$A$114&"Table6"),B131+1,4),0) -> 489 | EP133: =IF(Metric,"m3","cy") -> cy | EQ133: =INDEX(INDIRECT("_"&$A$114&"Table6"),B131+1,10) -> 725C2/966M/D6T | ER133: =IF(OR(NOT(ISNUMBER(K133)),K133=0),0,INDEX(INDIRECT("_"&$A$114&"Table6"),B131+1,12)) -> 6 | ES133: =IF(OR(NOT(ISNUMBER(K133)),K133=0),0,INDEX(INDIRECT("_"&$A$114&"Table6"),B131+1,14)) -> 1 | ET133: =INDEX(INDIRECT("_"&$A$114&"Table6"),B131+1,5) ->  | EU133: =IF(OR(NOT(ISNUMBER(K133)),K133=0),0,INDEX(INDIRECT("_"&$A$114&"Table6"),B131+1,7)) ->  | EV133: =IF(OR(NOT(ISNUMBER(K133)),K133=0),0,INDEX(INDIRECT("_"&$A$114&"Table6"),B131+1,9)) -> 0 | EZ133: TRUE
D134: Backfill/Cover 2 Placement | J134: =INDEX(INDIRECT("_"&$A$114&"Table7"),B131+1,25) -> 0 | K134: =IF(OR(J134="",K131="",ISTEXT(K131),J134=0),"",IF(OR(ISBLANK(M134),ISBLANK(N134)),"Enter Dates",IF(K131="Date Range","",IF(OR(AND(CostType=ARO,L131>ScheduleYear),AND(CostType=ARO,N134<=ScheduleYear)),"Date Range",IF(OR(AND(CostType=Bond,O134>ScheduleYear),AND(CostType=LOM,LOMComplete)),J134,J134-Q134))))) ->  | M134: 2023 | N134: 2122 | Q134: 0 | R134: 0 | DO134: 1 | EA134: 1 | EB134: =IF(OR(J134="",EB131="",ISTEXT(EB131)),0,IF(OR(ISBLANK(M134),ISBLANK(N134)),0,IF(OR(AND(CostType=ARO,L131>ScheduleYear),AND(OR(CostType=ARO,AND(CostType=LOM,LOMComplete=TRUE)),N134<=ScheduleYear)),0,J134))) -> 0 | EC134: =IF(OR(J134="",EC131="",ISTEXT(EC131)),0,IF(OR(ISBLANK(M134),ISBLANK(N134)),0,IF(EC131="Date Range",0,IF(OR(AND(CostType=ARO,L131>ScheduleYear),N134<=ScheduleYear),0,J134)))) ->  | EM134: Backfill | EN134: Backfill | EO134: =IF(ISNUMBER(K134),INDEX(INDIRECT("_"&$A$114&"Table7"),B131+1,4),0) -> 0 | EP134: =IF(Metric,"m3","cy") -> cy | EQ134: =INDEX(INDIRECT("_"&$A$114&"Table7"),B131+1,10) ->  | ER134: =IF(OR(NOT(ISNUMBER(K134)),K134=0),0,INDEX(INDIRECT("_"&$A$114&"Table7"),B131+1,12)) -> 0 | ES134: =IF(OR(NOT(ISNUMBER(K134)),K134=0),0,INDEX(INDIRECT("_"&$A$114&"Table7"),B131+1,14)) -> 0 | ET134: =INDEX(INDIRECT("_"&$A$114&"Table7"),B131+1,5) ->  | EU134: =IF(OR(NOT(ISNUMBER(K134)),K134=0),0,INDEX(INDIRECT("_"&$A$114&"Table7"),B131+1,7)) -> 0 | EV134: =IF(OR(NOT(ISNUMBER(K134)),K134=0),0,INDEX(INDIRECT("_"&$A$114&"Table7"),B131+1,9)) -> 0 | EZ134: TRUE
D135: Growth Media Placement | J135: =INDEX(INDIRECT("_"&$A$114&"Table8"),B131+1,11) -> 2913 | K135: =IF(OR(J135="",K131="",ISTEXT(K131),J135=0),"",IF(OR(ISBLANK(M135),ISBLANK(N135)),"Enter Dates",IF(K131="Date Range","",IF(OR(AND(CostType=ARO,L131>ScheduleYear),AND(CostType=ARO,N135<=ScheduleYear)),"Date Range",IF(OR(AND(CostType=Bond,O135>ScheduleYear),AND(CostType=LOM,LOMComplete)),J135,J135-Q135))))) -> 2913 | M135: 2023 | N135: 2122 | P135: 1 | Q135: 0 | R135: 0 | DO135: 1 | EA135: 1 | EB135: =IF(OR(J135="",EB131="",ISTEXT(EB131)),0,IF(OR(ISBLANK(M135),ISBLANK(N135)),0,IF(OR(AND(CostType=ARO,L131>ScheduleYear),AND(OR(CostType=ARO,AND(CostType=LOM,LOMComplete=TRUE)),N135<=ScheduleYear)),0,J135))) -> 2913 | EC135: =IF(OR(J135="",EC131="",ISTEXT(EC131)),0,IF(OR(ISBLANK(M135),ISBLANK(N135)),0,IF(EC131="Date Range",0,IF(OR(AND(CostType=ARO,L131>ScheduleYear),N135<=ScheduleYear),0,J135)))) ->  | EM135: GM | EN135: GM | EO135: =IF(ISNUMBER(K135),INDEX(INDIRECT("_"&$A$114&"Table8"),B131+1,3),0) -> 775 | EP135: =IF(Metric,"m3","cy") -> cy | EQ135: =INDEX(INDIRECT("_"&$A$114&"Table8"),B131+1,4) -> 725C2/966M/D6T | ER135: =IF(OR(NOT(ISNUMBER(K135)),K135=0),0,INDEX(INDIRECT("_"&$A$114&"Table8"),B131+1,6)) -> 6 | ES135: =IF(OR(NOT(ISNUMBER(K135)),K135=0),0,INDEX(INDIRECT("_"&$A$114&"Table8"),B131+1,8)) -> 2 | EZ135: TRUE
D136: Revegetation | J136: =INDEX(INDIRECT("_"&$A$114&"Table9"),B131+1,7) -> 396 | K136: =IF(OR(J136="",K131="",ISTEXT(K131),J136=0),"",IF(OR(ISBLANK(M136),ISBLANK(N136)),"Enter Dates",IF(K131="Date Range","",IF(OR(AND(CostType=ARO,L131>ScheduleYear),AND(CostType=ARO,N136<=ScheduleYear)),"Date Range",IF(OR(AND(CostType=Bond,O136>ScheduleYear),AND(CostType=LOM,LOMComplete)),J136,J136-Q136))))) -> 396 | M136: 2023 | N136: 2122 | P136: 1 | Q136: 0 | R136: 0 | DO136: 1 | EA136: 1 | EB136: =IF(OR(J136="",EB131="",ISTEXT(EB131)),0,IF(OR(ISBLANK(M136),ISBLANK(N136)),0,IF(OR(AND(CostType=ARO,L131>ScheduleYear),AND(OR(CostType=ARO,AND(CostType=LOM,LOMComplete=TRUE)),N136<=ScheduleYear)),0,J136))) -> 396 | EC136: =IF(OR(J136="",EC131="",ISTEXT(EC131)),0,IF(OR(ISBLANK(M136),ISBLANK(N136)), 0,IF(EC131="Date Range",0,IF(OR(AND(CostType=ARO,L131>ScheduleYear),N136<=ScheduleYear),0,J136)))) ->  | EM136: Reveg | EN136: Reveg | EO136: =IF(ISNUMBER(K136),INDEX(INDIRECT("_"&$A$114&"Table9"),B131+1,3),0) -> 0.5 | EP136: =IF(Metric,"ha","acres") -> acres | EZ136: TRUE
D137: E-Cell/ET-Cell Liner | J137: =INDEX(INDIRECT("_"&$A$114&"Table10"),B131+1,15) -> 0 | K137: =IF(OR(J137="",K131="",ISTEXT(K131),J137=0),"",IF(OR(ISBLANK(M137),ISBLANK(N137)),"Enter Dates",IF(K131="Date Range","",IF(OR(AND(CostType=ARO,L131>ScheduleYear),AND(CostType=ARO,N137<=ScheduleYear)),"Date Range",IF(OR(AND(CostType=Bond,O137>ScheduleYear),AND(CostType=LOM,LOMComplete)),J137,J137-Q137))))) ->  | M137: 2023 | N137: 2122 | Q137: 0 | R137: 0 | DO137: 1 | EA137: 1 | EB137: =IF(OR(J137="",EB131="",ISTEXT(EB131)),0,IF(OR(ISBLANK(M137),ISBLANK(N137)),0,IF(OR(AND(CostType=ARO,L131>ScheduleYear),AND(OR(CostType=ARO,AND(CostType=LOM,LOMComplete=TRUE)),N137<=ScheduleYear)),0,J137))) -> 0 | EC137: =IF(OR(J137="",EC131="",ISTEXT(EC131)),0,IF(OR(ISBLANK(M137),ISBLANK(N137)), 0,IF(EC131="Date Range",0,IF(OR(AND(CostType=ARO,L131>ScheduleYear),N137<=ScheduleYear),0,J137)))) ->  | EM137: Liner | EN137: Liner | EO137: =IF(ISNUMBER(K137),INDEX(INDIRECT("_"&$A$114&"Table10"),B131+1,3)+INDEX(INDIRECT("_"&$A$114&"Table10"),B131+1,8),0) -> 0 | EP137: =IF(Metric,"m2","f2") -> f2 | EZ137: TRUE
D138: E-Cell/ET-Cell Piping | J138: =INDEX(INDIRECT("_"&$A$114&"Table11"),B131+1,20) -> 0 | K138: =IF(OR(J138="",K131="",ISTEXT(K131),J138=0),"",IF(OR(ISBLANK(M138),ISBLANK(N138)),"Enter Dates",IF(K131="Date Range","",IF(OR(AND(CostType=ARO,L131>ScheduleYear),AND(CostType=ARO,N138<=ScheduleYear)),"Date Range",IF(OR(AND(CostType=Bond,O138>ScheduleYear),AND(CostType=LOM,LOMComplete)),J138,J138-Q138))))) ->  | M138: 2023 | N138: 2122 | Q138: 0 | R138: 0 | DO138: 1 | EA138: 1 | EB138: =IF(OR(J138="",EB131="",ISTEXT(EB131)),0,IF(OR(ISBLANK(M138),ISBLANK(N138)),0,IF(OR(AND(CostType=ARO,L131>ScheduleYear),AND(OR(CostType=ARO,AND(CostType=LOM,LOMComplete=TRUE)),N138<=ScheduleYear)),0,J138))) -> 0 | EC138: =IF(OR(J138="",EC132="",ISTEXT(EC132)),0,IF(OR(ISBLANK(M138),ISBLANK(N138)), 0,IF(EC132="Date Range",0,IF(OR(AND(CostType=ARO,L131>ScheduleYear),N138<=ScheduleYear),0,J138)))) ->  | EM138: Pipe | EN138: Pipe | EO138: =IF(ISNUMBER(K138),INDEX(INDIRECT("_"&$A$114&"Table11"),B131+1,3)+INDEX(INDIRECT("_"&$A$114&"Table11"),B131+1,8)+INDEX(INDIRECT("_"&$A$114&"Table11"),B131+1,13),0) -> 0 | EP138: =IF(Metric,"m","ft") -> ft | EZ138: TRUE
B139: =(ROW(B139) - ROW($A$114)-1)/INDEX(SheetRangeIndex,MATCH($A$114,TableNamesSorted,0),7) -> 3 | C139: =INDEX(INDIRECT("_"&$A$114&"Table1"),B139+1,9) -> FA | D139: =INDEX(INDIRECT("_"&$A$114&"Table1"),B139+1,2) -> 0 | E139: =IF(ISBLANK(INDEX(INDIRECT("_"&INDEX(SheetRangeIndex,MATCH($A$114,TableNamesSorted,0),3)&"Table1"),B139+1,3)),"",INDEX(INDIRECT("_"&INDEX(SheetRangeIndex,MATCH($A$114,TableNamesSorted,0),3)&"Table1"),B139+1,3)) ->  | F139: =IF(ISERROR(EL139),"Facility Type",IF(ISBLANK(INDEX(INDIRECT("_"&$A$114&"Table1"),B139+1,5)),"",INDEX(INDIRECT("_"&$A$114&"Table1"),B139+1,5))) -> Other Site Facilities | G139: =IF(ISBLANK(INDEX(INDIRECT("_"&$A$114&"Table1"),B139+1,6)),"",INDEX(INDIRECT("_"&$A$114&"Table1"),B139+1,6)) -> Closure | H139: =IF(ISBLANK(INDEX(INDIRECT("_"&$A$114&"Table1"),B139+1,7)),"",INDEX(INDIRECT("_"&$A$114&"Table1"),B139+1,7)) -> Ponds | I139: =IF(ISBLANK(INDEX(INDIRECT("_"&$A$114&"Table1"),B139+1,8)),"",INDEX(INDIRECT("_"&$A$114&"Table1"),B139+1,8)) -> Public Land | J139: =SUM(J140:J146) -> 0 | K139: =IF(ISERR(ED139),"Cost Type",IF(A139="X","Override",IF(AND(CostType=ARO,L139>ScheduleYear),"Date Range",IF(AND(ISTEXT(LocationFilter),ISERROR(EI139)),"Location",IF(AND(ISTEXT(PropertyFilter),ISERROR(EJ139)),"Property",IF(AND(ISTEXT(FacilityTypeFilter),ISERROR(EG139)),"Facility Type",IF(AND(NOT(ISBLANK(IDCodeFilter)),ISERROR(EF139)),"ID Code",IF(AND(ISTEXT(PhaseFilter),ISERROR(EH139)),"Phase",IF(AND(CostType=LOM,LOMComplete),J139,SUM(T139:DO139)))))))))) -> 0 | L139: =INDEX(INDIRECT("_"&$A$114&"Table1"),B139+1,4) -> 0 | Q139: =SUM(Q140:Q146) -> 0 | T139: =IF(ISTEXT($EB139),0,IF(AND(CostType=LOM,LOMComplete,T$27<=ScheduleYear),SUMPRODUCT(T140:T146,$J140:$J146),IF(CostType=Bond,SUMPRODUCT($EB140:$EB146,T140:T146,$EA140:$EA146),IF(T$27<=ScheduleYear,0,SUMPRODUCT(T140:T146,$EB140:$EB146))))) -> 0 | U139: 0 | V139: 0 | W139: 0 | X139: 0 | Y139: 0 | Z139: 0 | AA139: 0 | AB139: 0 | AC139: 0 | AD139: 0 | AE139: 0 | AF139: 0 | AG139: 0 | AH139: 0 | AI139: 0 | AJ139: 0 | AK139: 0 | AL139: 0 | AM139: 0 | AN139: 0 | AO139: 0 | AP139: 0 | AQ139: 0 | AR139: 0 | AS139: 0 | AT139: 0 | AU139: 0 | AV139: 0 | AW139: 0 | AX139: 0 | AY139: 0 | AZ139: 0 | BA139: 0 | BB139: 0 | BC139: 0 | BD139: 0 | BE139: 0 | BF139: 0 | BG139: 0 | BH139: 0 | BI139: 0 | BJ139: 0 | BK139: 0 | BL139: 0 | BM139: 0 | BN139: 0 | BO139: 0 | BP139: 0 | BQ139: 0 | BR139: 0 | BS139: 0 | BT139: 0 | BU139: 0 | BV139: 0 | BW139: 0 | BX139: 0 | BY139: 0 | BZ139: 0 | CA139: 0 | CB139: 0 | CC139: 0 | CD139: 0 | CE139: 0 | CF139: =IF(ISTEXT($EB139),0,IF(AND(CostType=LOM,LOMComplete,CF$27<=ScheduleYear),SUMPRODUCT(CF140:CF146,$J140:$J146),IF(CostType=Bond,SUMPRODUCT($EB140:$EB146,CF140:CF146,$EA140:$EA146),IF(CF$27<=ScheduleYear,0,SUMPRODUCT(CF140:CF146,$EB140:$EB146))))) -> 0 | CG139: 0 | CH139: 0 | CI139: 0 | CJ139: 0 | CK139: 0 | CL139: 0 | CM139: 0 | CN139: 0 | CO139: 0 | CP139: 0 | CQ139: 0 | CR139: 0 | CS139: 0 | CT139: 0 | CU139: 0 | CV139: 0 | CW139: 0 | CX139: 0 | CY139: 0 | CZ139: 0 | DA139: 0 | DB139: 0 | DC139: 0 | DD139: 0 | DE139: 0 | DF139: 0 | DG139: 0 | DH139: 0 | DI139: 0 | DJ139: 0 | DK139: 0 | DL139: 0 | DM139: 0 | DN139: 0 | DO139: 0 | DP139: =IF(ISNUMBER(K139),SUM(T139:DO139)-K139,K139) -> 0 | EB139: =IF(ISERR(ED139),"Cost Type",IF(A139="X","Override",IF(AND(CostType=ARO,L139>ScheduleYear),0,IF(AND(ISTEXT(LocationFilter),ISERROR(EI139)),"Location",IF(AND(ISTEXT(PropertyFilter),ISERROR(EJ139)),"Property",IF(AND(ISTEXT(FacilityTypeFilter),ISERROR(EG139)),"Facility Type",IF(AND(ISTEXT(IDCodeFilter),ISERROR(EF139)),"ID Code",IF(AND(ISTEXT(PhaseFilter),ISERROR(EH139)),"Phase",J139)))))))) -> 0 | EC139: =IF(EE139="","Cost Type",IF(A139="X","Override",IF(AND(OtherCostType=ARO,L139>ScheduleYear),0,IF(AND(ISTEXT(LocationFilter),EI139=""),"Location",IF(AND(ISTEXT(PropertyFilter),EJ139=""),"Property",IF(AND(ISTEXT(FacilityTypeFilter),EG139=""),"Facility Type",IF(AND(ISTEXT(IDCodeFilter),EF139=""),"ID Code",IF(AND(ISTEXT(PhaseFilter),EH139=""),"Phase",J139)))))))) ->  | ED139: =SEARCH(CostType,C139) -> 1 | EE139: =SEARCH(OtherCostType,C139) ->  | EF139: =IF(AND(IDCodeFilterType="CONTAINS",NOT(ISERROR(SEARCH(IDCodeFilter,E139)))),1,IF(AND(IDCodeFilterType="NOT",ISERROR(SEARCH(IDCodeFilter,E139))),1,IF(AND(OR(IDCodeFilterType="EXACT",ISBLANK(IDCodeFilterType)),NOT(ISERROR(MATCH(IDCodeFilter,E139,0)))),1,$EK139))) ->  | EG139: =IF(AND(FacilityFilterType="CONTAINS",NOT(ISERROR(SEARCH(FacilityTypeFilter,F139)))),1,IF(AND(FacilityFilterType="NOT",ISERROR(SEARCH(FacilityTypeFilter,F139))),1,IF(AND(OR(FacilityFilterType="EXACT",ISBLANK(FacilityFilterType)),NOT(ISERROR(MATCH(FacilityTypeFilter,F139,0)))),1,$EK139))) ->  | EH139: =IF(AND(PhaseFilterType="CONTAINS",NOT(ISERROR(SEARCH(PhaseFilter,G139)))),1,IF(AND(PhaseFilterType="NOT",ISERROR(SEARCH(PhaseFilter,G139))),1,IF(AND(OR(PhaseFilterType="EXACT",ISBLANK(PhaseFilterType)),NOT(ISERROR(MATCH(PhaseFilter,G139,0)))),1,$EK139))) ->  | EI139: =IF(AND(LocationFilterType="CONTAINS",NOT(ISERROR(SEARCH(LocationFilter,H139)))),1,IF(AND(LocationFilterType="NOT",ISERROR(SEARCH(LocationFilter,H139))),1,IF(AND(OR(LocationFilterType="EXACT",ISBLANK(LocationFilterType)),NOT(ISERROR(MATCH(LocationFilter,H139,0)))),1,$EK139))) ->  | EJ139: =IF(AND(PropertyFilterType="CONTAINS",NOT(ISERROR(SEARCH(PropertyFilter,I139)))),1,IF(AND(PropertyFilterType="NOT",ISERROR(SEARCH(PropertyFilter,I139))),1,IF(AND(OR(PropertyFilterType="EXACT",ISBLANK(PropertyFilterType)),NOT(ISERROR(MATCH(PropertyFilter,I139,0)))),1,$EK139))) ->  | EK139: =MATCH("NOT",$EK$27,0) ->  | EL139: =IF(ISBLANK(INDEX(INDIRECT("_"&$A$114&"Table1"),B139+1,2)),"",MATCH(INDEX(INDIRECT("_"&$A$114&"Table1"),B139+1,5),Accounts,0)) ->  | EZ139: FALSE | FA139: 1
D140: Liner Cutting and Folding | J140: =IF(INDEX(INDIRECT("_"&$A$114&"Table5"),B139+1,6)=0,0,INDEX(INDIRECT("_"&$A$114&"Table5"),B139+1,6)) -> 0 | K140: =IF(OR(J140="",K139="",ISTEXT(K139),J140=0),"",IF(OR(ISBLANK(M140),ISBLANK(N140)),"Enter Dates",IF(K139="Date Range","",IF(OR(AND(CostType=ARO,L139>ScheduleYear),AND(CostType=ARO,N140<=ScheduleYear)),"Date Range",IF(OR(AND(CostType=Bond,O140>ScheduleYear),AND(CostType=LOM,LOMComplete)),J140,J140-Q140))))) ->  | M140: 2023 | N140: 2122 | P140: =IF(K140="","",SUM(T140:DO140)) ->  | Q140: =IF(OR(AND(CostType=ARO,N140<=ScheduleYear),AND(CostType=LOM,LOMComplete)),J140*R140,R140*EB140) -> 0 | R140: =IF(CostType=Bond,SUMIFS(T140:DP140,T$27:DP$27,"<="&O140,T$27:DP$27,"<="&ScheduleYear),SUMIF(T$27:DP$27,"<="&ScheduleYear,T140:DP140)) -> 0 | DO140: 1 | EA140: 1 | EB140: =IF(OR(J140="",EB139="",ISTEXT(EB139)),0,IF(OR(ISBLANK(M140),ISBLANK(N140)),0,IF(OR(AND(CostType=ARO,L139>ScheduleYear),AND(OR(CostType=ARO,AND(CostType=LOM,LOMComplete=TRUE)),N140<=ScheduleYear)),0,J140))) -> 0 | EC140: =IF(OR(J140="",EC139="",ISTEXT(EC139)),0,IF(OR(ISBLANK(M140),ISBLANK(N140)),0,IF(EC139="Date Range",0,IF(OR(AND(OtherCostType=ARO,L139>ScheduleYear),N140<=ScheduleYear),0,J140)))) ->  | EM140: Liner | EN140: Liner | EO140: =IF(ISNUMBER(K140),IF(INDEX(INDIRECT("_"&$A$114&"Table5"),B139+1,3)=0,0,INDEX(INDIRECT("_"&$A$114&"Table5"),B139+1,3)),0) -> 0 | EP140: =IF(Metric,"m3","cy") -> cy | EQ140: =LinerExcavator -> 325F | ES140: =IF(OR(NOT(ISNUMBER(K140)),K140=0),0,INDEX(INDIRECT("_"&$A$114&"Table4"),B139+1,3)) -> 0 | EZ140: TRUE
D141: Backfill/Cover 1 Placement | J141: =INDEX(INDIRECT("_"&$A$114&"Table6"),B139+1,25) -> 0 | K141: =IF(OR(J141="",K139="",ISTEXT(K139),J141=0),"",IF(OR(ISBLANK(M141),ISBLANK(N141)),"Enter Dates",IF(K139="Date Range","",IF(OR(AND(CostType=ARO,L139>ScheduleYear),AND(CostType=ARO,N141<=ScheduleYear)),"Date Range",IF(OR(AND(CostType=Bond,O141>ScheduleYear),AND(CostType=LOM,LOMComplete)),J141,J141-Q141))))) ->  | M141: 2023 | N141: 2122 | Q141: 0 | R141: 0 | DO141: 1 | EA141: 1 | EB141: =IF(OR(J141="",EB139="",ISTEXT(EB139)),0,IF(OR(ISBLANK(M141),ISBLANK(N141)),0,IF(OR(AND(CostType=ARO,L139>ScheduleYear),AND(OR(CostType=ARO,AND(CostType=LOM,LOMComplete=TRUE)),N141<=ScheduleYear)),0,J141))) -> 0 | EC141: =IF(OR(J141="",EC139="",ISTEXT(EC139)),0,IF(OR(ISBLANK(M141),ISBLANK(N141)),0,IF(EC139="Date Range",0,IF(OR(AND(CostType=ARO,L139>ScheduleYear),N141<=ScheduleYear),0,J141)))) ->  | EM141: Backfill | EN141: Backfill | EO141: =IF(ISNUMBER(K141),INDEX(INDIRECT("_"&$A$114&"Table6"),B139+1,4),0) -> 0 | EP141: =IF(Metric,"m3","cy") -> cy | EQ141: =INDEX(INDIRECT("_"&$A$114&"Table6"),B139+1,10) ->  | ER141: =IF(OR(NOT(ISNUMBER(K141)),K141=0),0,INDEX(INDIRECT("_"&$A$114&"Table6"),B139+1,12)) -> 0 | ES141: =IF(OR(NOT(ISNUMBER(K141)),K141=0),0,INDEX(INDIRECT("_"&$A$114&"Table6"),B139+1,14)) -> 0 | ET141: =INDEX(INDIRECT("_"&$A$114&"Table6"),B139+1,5) ->  | EU141: =IF(OR(NOT(ISNUMBER(K141)),K141=0),0,INDEX(INDIRECT("_"&$A$114&"Table6"),B139+1,7)) -> 0 | EV141: =IF(OR(NOT(ISNUMBER(K141)),K141=0),0,INDEX(INDIRECT("_"&$A$114&"Table6"),B139+1,9)) -> 0 | EZ141: TRUE
D142: Backfill/Cover 2 Placement | J142: =INDEX(INDIRECT("_"&$A$114&"Table7"),B139+1,25) -> 0 | K142: =IF(OR(J142="",K139="",ISTEXT(K139),J142=0),"",IF(OR(ISBLANK(M142),ISBLANK(N142)),"Enter Dates",IF(K139="Date Range","",IF(OR(AND(CostType=ARO,L139>ScheduleYear),AND(CostType=ARO,N142<=ScheduleYear)),"Date Range",IF(OR(AND(CostType=Bond,O142>ScheduleYear),AND(CostType=LOM,LOMComplete)),J142,J142-Q142))))) ->  | M142: 2023 | N142: 2122 | Q142: 0 | R142: 0 | DO142: 1 | EA142: 1 | EB142: =IF(OR(J142="",EB139="",ISTEXT(EB139)),0,IF(OR(ISBLANK(M142),ISBLANK(N142)),0,IF(OR(AND(CostType=ARO,L139>ScheduleYear),AND(OR(CostType=ARO,AND(CostType=LOM,LOMComplete=TRUE)),N142<=ScheduleYear)),0,J142))) -> 0 | EC142: =IF(OR(J142="",EC139="",ISTEXT(EC139)),0,IF(OR(ISBLANK(M142),ISBLANK(N142)),0,IF(EC139="Date Range",0,IF(OR(AND(CostType=ARO,L139>ScheduleYear),N142<=ScheduleYear),0,J142)))) ->  | EM142: Backfill | EN142: Backfill | EO142: =IF(ISNUMBER(K142),INDEX(INDIRECT("_"&$A$114&"Table7"),B139+1,4),0) -> 0 | EP142: =IF(Metric,"m3","cy") -> cy | EQ142: =INDEX(INDIRECT("_"&$A$114&"Table7"),B139+1,10) ->  | ER142: =IF(OR(NOT(ISNUMBER(K142)),K142=0),0,INDEX(INDIRECT("_"&$A$114&"Table7"),B139+1,12)) -> 0 | ES142: =IF(OR(NOT(ISNUMBER(K142)),K142=0),0,INDEX(INDIRECT("_"&$A$114&"Table7"),B139+1,14)) -> 0 | ET142: =INDEX(INDIRECT("_"&$A$114&"Table7"),B139+1,5) ->  | EU142: =IF(OR(NOT(ISNUMBER(K142)),K142=0),0,INDEX(INDIRECT("_"&$A$114&"Table7"),B139+1,7)) -> 0 | EV142: =IF(OR(NOT(ISNUMBER(K142)),K142=0),0,INDEX(INDIRECT("_"&$A$114&"Table7"),B139+1,9)) -> 0 | EZ142: TRUE
D143: Growth Media Placement | J143: =INDEX(INDIRECT("_"&$A$114&"Table8"),B139+1,11) -> 0 | K143: =IF(OR(J143="",K139="",ISTEXT(K139),J143=0),"",IF(OR(ISBLANK(M143),ISBLANK(N143)),"Enter Dates",IF(K139="Date Range","",IF(OR(AND(CostType=ARO,L139>ScheduleYear),AND(CostType=ARO,N143<=ScheduleYear)),"Date Range",IF(OR(AND(CostType=Bond,O143>ScheduleYear),AND(CostType=LOM,LOMComplete)),J143,J143-Q143))))) ->  | M143: 2023 | N143: 2122 | Q143: 0 | R143: 0 | DO143: 1 | EA143: 1 | EB143: =IF(OR(J143="",EB139="",ISTEXT(EB139)),0,IF(OR(ISBLANK(M143),ISBLANK(N143)),0,IF(OR(AND(CostType=ARO,L139>ScheduleYear),AND(OR(CostType=ARO,AND(CostType=LOM,LOMComplete=TRUE)),N143<=ScheduleYear)),0,J143))) -> 0 | EC143: =IF(OR(J143="",EC139="",ISTEXT(EC139)),0,IF(OR(ISBLANK(M143),ISBLANK(N143)),0,IF(EC139="Date Range",0,IF(OR(AND(CostType=ARO,L139>ScheduleYear),N143<=ScheduleYear),0,J143)))) ->  | EM143: GM | EN143: GM | EO143: =IF(ISNUMBER(K143),INDEX(INDIRECT("_"&$A$114&"Table8"),B139+1,3),0) -> 0 | EP143: =IF(Metric,"m3","cy") -> cy | EQ143: =INDEX(INDIRECT("_"&$A$114&"Table8"),B139+1,4) ->  | ER143: =IF(OR(NOT(ISNUMBER(K143)),K143=0),0,INDEX(INDIRECT("_"&$A$114&"Table8"),B139+1,6)) -> 0 | ES143: =IF(OR(NOT(ISNUMBER(K143)),K143=0),0,INDEX(INDIRECT("_"&$A$114&"Table8"),B139+1,8)) -> 0 | EZ143: TRUE
D144: Revegetation | J144: =INDEX(INDIRECT("_"&$A$114&"Table9"),B139+1,7) -> 0 | K144: =IF(OR(J144="",K139="",ISTEXT(K139),J144=0),"",IF(OR(ISBLANK(M144),ISBLANK(N144)),"Enter Dates",IF(K139="Date Range","",IF(OR(AND(CostType=ARO,L139>ScheduleYear),AND(CostType=ARO,N144<=ScheduleYear)),"Date Range",IF(OR(AND(CostType=Bond,O144>ScheduleYear),AND(CostType=LOM,LOMComplete)),J144,J144-Q144))))) ->  | M144: 2023 | N144: 2122 | Q144: 0 | R144: 0 | DO144: 1 | EA144: 1 | EB144: =IF(OR(J144="",EB139="",ISTEXT(EB139)),0,IF(OR(ISBLANK(M144),ISBLANK(N144)),0,IF(OR(AND(CostType=ARO,L139>ScheduleYear),AND(OR(CostType=ARO,AND(CostType=LOM,LOMComplete=TRUE)),N144<=ScheduleYear)),0,J144))) -> 0 | EC144: =IF(OR(J144="",EC139="",ISTEXT(EC139)),0,IF(OR(ISBLANK(M144),ISBLANK(N144)), 0,IF(EC139="Date Range",0,IF(OR(AND(CostType=ARO,L139>ScheduleYear),N144<=ScheduleYear),0,J144)))) ->  | EM144: Reveg | EN144: Reveg | EO144: =IF(ISNUMBER(K144),INDEX(INDIRECT("_"&$A$114&"Table9"),B139+1,3),0) -> 0 | EP144: =IF(Metric,"ha","acres") -> acres | EZ144: TRUE
D145: E-Cell/ET-Cell Liner | J145: =INDEX(INDIRECT("_"&$A$114&"Table10"),B139+1,15) -> 0 | K145: =IF(OR(J145="",K139="",ISTEXT(K139),J145=0),"",IF(OR(ISBLANK(M145),ISBLANK(N145)),"Enter Dates",IF(K139="Date Range","",IF(OR(AND(CostType=ARO,L139>ScheduleYear),AND(CostType=ARO,N145<=ScheduleYear)),"Date Range",IF(OR(AND(CostType=Bond,O145>ScheduleYear),AND(CostType=LOM,LOMComplete)),J145,J145-Q145))))) ->  | M145: 2023 | N145: 2122 | Q145: 0 | R145: 0 | DO145: 1 | EA145: 1 | EB145: =IF(OR(J145="",EB139="",ISTEXT(EB139)),0,IF(OR(ISBLANK(M145),ISBLANK(N145)),0,IF(OR(AND(CostType=ARO,L139>ScheduleYear),AND(OR(CostType=ARO,AND(CostType=LOM,LOMComplete=TRUE)),N145<=ScheduleYear)),0,J145))) -> 0 | EC145: =IF(OR(J145="",EC139="",ISTEXT(EC139)),0,IF(OR(ISBLANK(M145),ISBLANK(N145)), 0,IF(EC139="Date Range",0,IF(OR(AND(CostType=ARO,L139>ScheduleYear),N145<=ScheduleYear),0,J145)))) ->  | EM145: Liner | EN145: Liner | EO145: =IF(ISNUMBER(K145),INDEX(INDIRECT("_"&$A$114&"Table10"),B139+1,3)+INDEX(INDIRECT("_"&$A$114&"Table10"),B139+1,8),0) -> 0 | EP145: =IF(Metric,"m2","f2") -> f2 | EZ145: TRUE
D146: E-Cell/ET-Cell Piping | J146: =INDEX(INDIRECT("_"&$A$114&"Table11"),B139+1,20) -> 0 | K146: =IF(OR(J146="",K139="",ISTEXT(K139),J146=0),"",IF(OR(ISBLANK(M146),ISBLANK(N146)),"Enter Dates",IF(K139="Date Range","",IF(OR(AND(CostType=ARO,L139>ScheduleYear),AND(CostType=ARO,N146<=ScheduleYear)),"Date Range",IF(OR(AND(CostType=Bond,O146>ScheduleYear),AND(CostType=LOM,LOMComplete)),J146,J146-Q146))))) ->  | M146: 2023 | N146: 2122 | Q146: 0 | R146: 0 | DO146: 1 | EA146: 1 | EB146: =IF(OR(J146="",EB139="",ISTEXT(EB139)),0,IF(OR(ISBLANK(M146),ISBLANK(N146)),0,IF(OR(AND(CostType=ARO,L139>ScheduleYear),AND(OR(CostType=ARO,AND(CostType=LOM,LOMComplete=TRUE)),N146<=ScheduleYear)),0,J146))) -> 0 | EC146: =IF(OR(J146="",EC140="",ISTEXT(EC140)),0,IF(OR(ISBLANK(M146),ISBLANK(N146)), 0,IF(EC140="Date Range",0,IF(OR(AND(CostType=ARO,L139>ScheduleYear),N146<=ScheduleYear),0,J146)))) ->  | EM146: Pipe | EN146: Pipe | EO146: =IF(ISNUMBER(K146),INDEX(INDIRECT("_"&$A$114&"Table11"),B139+1,3)+INDEX(INDIRECT("_"&$A$114&"Table11"),B139+1,8)+INDEX(INDIRECT("_"&$A$114&"Table11"),B139+1,13),0) -> 0 | EP146: =IF(Metric,"m","ft") -> ft | EZ146: TRUE
B147: =(ROW(B147) - ROW($A$114)-1)/INDEX(SheetRangeIndex,MATCH($A$114,TableNamesSorted,0),7) -> 4 | C147: =INDEX(INDIRECT("_"&$A$114&"Table1"),B147+1,9) -> FA | D147: =INDEX(INDIRECT("_"&$A$114&"Table1"),B147+1,2) -> 0 | E147: =IF(ISBLANK(INDEX(INDIRECT("_"&INDEX(SheetRangeIndex,MATCH($A$114,TableNamesSorted,0),3)&"Table1"),B147+1,3)),"",INDEX(INDIRECT("_"&INDEX(SheetRangeIndex,MATCH($A$114,TableNamesSorted,0),3)&"Table1"),B147+1,3)) ->  | F147: =IF(ISERROR(EL147),"Facility Type",IF(ISBLANK(INDEX(INDIRECT("_"&$A$114&"Table1"),B147+1,5)),"",INDEX(INDIRECT("_"&$A$114&"Table1"),B147+1,5))) -> Other Site Facilities | G147: =IF(ISBLANK(INDEX(INDIRECT("_"&$A$114&"Table1"),B147+1,6)),"",INDEX(INDIRECT("_"&$A$114&"Table1"),B147+1,6)) -> Closure | H147: =IF(ISBLANK(INDEX(INDIRECT("_"&$A$114&"Table1"),B147+1,7)),"",INDEX(INDIRECT("_"&$A$114&"Table1"),B147+1,7)) -> Ponds | I147: =IF(ISBLANK(INDEX(INDIRECT("_"&$A$114&"Table1"),B147+1,8)),"",INDEX(INDIRECT("_"&$A$114&"Table1"),B147+1,8)) -> Public Land | J147: =SUM(J148:J154) -> 0 | K147: =IF(ISERR(ED147),"Cost Type",IF(A147="X","Override",IF(AND(CostType=ARO,L147>ScheduleYear),"Date Range",IF(AND(ISTEXT(LocationFilter),ISERROR(EI147)),"Location",IF(AND(ISTEXT(PropertyFilter),ISERROR(EJ147)),"Property",IF(AND(ISTEXT(FacilityTypeFilter),ISERROR(EG147)),"Facility Type",IF(AND(NOT(ISBLANK(IDCodeFilter)),ISERROR(EF147)),"ID Code",IF(AND(ISTEXT(PhaseFilter),ISERROR(EH147)),"Phase",IF(AND(CostType=LOM,LOMComplete),J147,SUM(T147:DO147)))))))))) -> 0 | L147: =INDEX(INDIRECT("_"&$A$114&"Table1"),B147+1,4) -> 0 | Q147: =SUM(Q148:Q154) -> 0 | T147: =IF(ISTEXT($EB147),0,IF(AND(CostType=LOM,LOMComplete,T$27<=ScheduleYear),SUMPRODUCT(T148:T154,$J148:$J154),IF(CostType=Bond,SUMPRODUCT($EB148:$EB154,T148:T154,$EA148:$EA154),IF(T$27<=ScheduleYear,0,SUMPRODUCT(T148:T154,$EB148:$EB154))))) -> 0 | U147: 0 | V147: 0 | W147: 0 | X147: 0 | Y147: 0 | Z147: 0 | AA147: 0 | AB147: 0 | AC147: 0 | AD147: 0 | AE147: 0 | AF147: 0 | AG147: 0 | AH147: 0 | AI147: 0 | AJ147: 0 | AK147: 0 | AL147: 0 | AM147: 0 | AN147: 0 | AO147: 0 | AP147: 0 | AQ147: 0 | AR147: 0 | AS147: 0 | AT147: 0 | AU147: 0 | AV147: 0 | AW147: 0 | AX147: 0 | AY147: 0 | AZ147: 0 | BA147: 0 | BB147: 0 | BC147: 0 | BD147: 0 | BE147: 0 | BF147: 0 | BG147: 0 | BH147: 0 | BI147: 0 | BJ147: 0 | BK147: 0 | BL147: 0 | BM147: 0 | BN147: 0 | BO147: 0 | BP147: 0 | BQ147: 0 | BR147: 0 | BS147: 0 | BT147: 0 | BU147: 0 | BV147: 0 | BW147: 0 | BX147: 0 | BY147: 0 | BZ147: 0 | CA147: 0 | CB147: 0 | CC147: 0 | CD147: 0 | CE147: 0 | CF147: =IF(ISTEXT($EB147),0,IF(AND(CostType=LOM,LOMComplete,CF$27<=ScheduleYear),SUMPRODUCT(CF148:CF154,$J148:$J154),IF(CostType=Bond,SUMPRODUCT($EB148:$EB154,CF148:CF154,$EA148:$EA154),IF(CF$27<=ScheduleYear,0,SUMPRODUCT(CF148:CF154,$EB148:$EB154))))) -> 0 | CG147: 0 | CH147: 0 | CI147: 0 | CJ147: 0 | CK147: 0 | CL147: 0 | CM147: 0 | CN147: 0 | CO147: 0 | CP147: 0 | CQ147: 0 | CR147: 0 | CS147: 0 | CT147: 0 | CU147: 0 | CV147: 0 | CW147: 0 | CX147: 0 | CY147: 0 | CZ147: 0 | DA147: 0 | DB147: 0 | DC147: 0 | DD147: 0 | DE147: 0 | DF147: 0 | DG147: 0 | DH147: 0 | DI147: 0 | DJ147: 0 | DK147: 0 | DL147: 0 | DM147: 0 | DN147: 0 | DO147: 0 | DP147: =IF(ISNUMBER(K147),SUM(T147:DO147)-K147,K147) -> 0 | EB147: =IF(ISERR(ED147),"Cost Type",IF(A147="X","Override",IF(AND(CostType=ARO,L147>ScheduleYear),0,IF(AND(ISTEXT(LocationFilter),ISERROR(EI147)),"Location",IF(AND(ISTEXT(PropertyFilter),ISERROR(EJ147)),"Property",IF(AND(ISTEXT(FacilityTypeFilter),ISERROR(EG147)),"Facility Type",IF(AND(ISTEXT(IDCodeFilter),ISERROR(EF147)),"ID Code",IF(AND(ISTEXT(PhaseFilter),ISERROR(EH147)),"Phase",J147)))))))) -> 0 | EC147: =IF(EE147="","Cost Type",IF(A147="X","Override",IF(AND(OtherCostType=ARO,L147>ScheduleYear),0,IF(AND(ISTEXT(LocationFilter),EI147=""),"Location",IF(AND(ISTEXT(PropertyFilter),EJ147=""),"Property",IF(AND(ISTEXT(FacilityTypeFilter),EG147=""),"Facility Type",IF(AND(ISTEXT(IDCodeFilter),EF147=""),"ID Code",IF(AND(ISTEXT(PhaseFilter),EH147=""),"Phase",J147)))))))) ->  | ED147: =SEARCH(CostType,C147) -> 1 | EE147: =SEARCH(OtherCostType,C147) ->  | EF147: =IF(AND(IDCodeFilterType="CONTAINS",NOT(ISERROR(SEARCH(IDCodeFilter,E147)))),1,IF(AND(IDCodeFilterType="NOT",ISERROR(SEARCH(IDCodeFilter,E147))),1,IF(AND(OR(IDCodeFilterType="EXACT",ISBLANK(IDCodeFilterType)),NOT(ISERROR(MATCH(IDCodeFilter,E147,0)))),1,$EK147))) ->  | EG147: =IF(AND(FacilityFilterType="CONTAINS",NOT(ISERROR(SEARCH(FacilityTypeFilter,F147)))),1,IF(AND(FacilityFilterType="NOT",ISERROR(SEARCH(FacilityTypeFilter,F147))),1,IF(AND(OR(FacilityFilterType="EXACT",ISBLANK(FacilityFilterType)),NOT(ISERROR(MATCH(FacilityTypeFilter,F147,0)))),1,$EK147))) ->  | EH147: =IF(AND(PhaseFilterType="CONTAINS",NOT(ISERROR(SEARCH(PhaseFilter,G147)))),1,IF(AND(PhaseFilterType="NOT",ISERROR(SEARCH(PhaseFilter,G147))),1,IF(AND(OR(PhaseFilterType="EXACT",ISBLANK(PhaseFilterType)),NOT(ISERROR(MATCH(PhaseFilter,G147,0)))),1,$EK147))) ->  | EI147: =IF(AND(LocationFilterType="CONTAINS",NOT(ISERROR(SEARCH(LocationFilter,H147)))),1,IF(AND(LocationFilterType="NOT",ISERROR(SEARCH(LocationFilter,H147))),1,IF(AND(OR(LocationFilterType="EXACT",ISBLANK(LocationFilterType)),NOT(ISERROR(MATCH(LocationFilter,H147,0)))),1,$EK147))) ->  | EJ147: =IF(AND(PropertyFilterType="CONTAINS",NOT(ISERROR(SEARCH(PropertyFilter,I147)))),1,IF(AND(PropertyFilterType="NOT",ISERROR(SEARCH(PropertyFilter,I147))),1,IF(AND(OR(PropertyFilterType="EXACT",ISBLANK(PropertyFilterType)),NOT(ISERROR(MATCH(PropertyFilter,I147,0)))),1,$EK147))) ->  | EK147: =MATCH("NOT",$EK$27,0) ->  | EL147: =IF(ISBLANK(INDEX(INDIRECT("_"&$A$114&"Table1"),B147+1,2)),"",MATCH(INDEX(INDIRECT("_"&$A$114&"Table1"),B147+1,5),Accounts,0)) ->  | EZ147: FALSE | FA147: 1
D148: Liner Cutting and Folding | J148: =IF(INDEX(INDIRECT("_"&$A$114&"Table5"),B147+1,6)=0,0,INDEX(INDIRECT("_"&$A$114&"Table5"),B147+1,6)) -> 0 | K148: =IF(OR(J148="",K147="",ISTEXT(K147),J148=0),"",IF(OR(ISBLANK(M148),ISBLANK(N148)),"Enter Dates",IF(K147="Date Range","",IF(OR(AND(CostType=ARO,L147>ScheduleYear),AND(CostType=ARO,N148<=ScheduleYear)),"Date Range",IF(OR(AND(CostType=Bond,O148>ScheduleYear),AND(CostType=LOM,LOMComplete)),J148,J148-Q148))))) ->  | M148: 2023 | N148: 2122 | P148: =IF(K148="","",SUM(T148:DO148)) ->  | Q148: =IF(OR(AND(CostType=ARO,N148<=ScheduleYear),AND(CostType=LOM,LOMComplete)),J148*R148,R148*EB148) -> 0 | R148: =IF(CostType=Bond,SUMIFS(T148:DP148,T$27:DP$27,"<="&O148,T$27:DP$27,"<="&ScheduleYear),SUMIF(T$27:DP$27,"<="&ScheduleYear,T148:DP148)) -> 0 | DO148: 1 | EA148: 1 | EB148: =IF(OR(J148="",EB147="",ISTEXT(EB147)),0,IF(OR(ISBLANK(M148),ISBLANK(N148)),0,IF(OR(AND(CostType=ARO,L147>ScheduleYear),AND(OR(CostType=ARO,AND(CostType=LOM,LOMComplete=TRUE)),N148<=ScheduleYear)),0,J148))) -> 0 | EC148: =IF(OR(J148="",EC147="",ISTEXT(EC147)),0,IF(OR(ISBLANK(M148),ISBLANK(N148)),0,IF(EC147="Date Range",0,IF(OR(AND(OtherCostType=ARO,L147>ScheduleYear),N148<=ScheduleYear),0,J148)))) ->  | EM148: Liner | EN148: Liner | EO148: =IF(ISNUMBER(K148),IF(INDEX(INDIRECT("_"&$A$114&"Table5"),B147+1,3)=0,0,INDEX(INDIRECT("_"&$A$114&"Table5"),B147+1,3)),0) -> 0 | EP148: =IF(Metric,"m3","cy") -> cy | EQ148: =LinerExcavator -> 325F | ES148: =IF(OR(NOT(ISNUMBER(K148)),K148=0),0,INDEX(INDIRECT("_"&$A$114&"Table4"),B147+1,3)) -> 0 | EZ148: TRUE
D149: Backfill/Cover 1 Placement | J149: =INDEX(INDIRECT("_"&$A$114&"Table6"),B147+1,25) -> 0 | K149: =IF(OR(J149="",K147="",ISTEXT(K147),J149=0),"",IF(OR(ISBLANK(M149),ISBLANK(N149)),"Enter Dates",IF(K147="Date Range","",IF(OR(AND(CostType=ARO,L147>ScheduleYear),AND(CostType=ARO,N149<=ScheduleYear)),"Date Range",IF(OR(AND(CostType=Bond,O149>ScheduleYear),AND(CostType=LOM,LOMComplete)),J149,J149-Q149))))) ->  | M149: 2023 | N149: 2122 | Q149: 0 | R149: 0 | DO149: 1 | EA149: 1 | EB149: =IF(OR(J149="",EB147="",ISTEXT(EB147)),0,IF(OR(ISBLANK(M149),ISBLANK(N149)),0,IF(OR(AND(CostType=ARO,L147>ScheduleYear),AND(OR(CostType=ARO,AND(CostType=LOM,LOMComplete=TRUE)),N149<=ScheduleYear)),0,J149))) -> 0 | EC149: =IF(OR(J149="",EC147="",ISTEXT(EC147)),0,IF(OR(ISBLANK(M149),ISBLANK(N149)),0,IF(EC147="Date Range",0,IF(OR(AND(CostType=ARO,L147>ScheduleYear),N149<=ScheduleYear),0,J149)))) ->  | EM149: Backfill | EN149: Backfill | EO149: =IF(ISNUMBER(K149),INDEX(INDIRECT("_"&$A$114&"Table6"),B147+1,4),0) -> 0 | EP149: =IF(Metric,"m3","cy") -> cy | EQ149: =INDEX(INDIRECT("_"&$A$114&"Table6"),B147+1,10) ->  | ER149: =IF(OR(NOT(ISNUMBER(K149)),K149=0),0,INDEX(INDIRECT("_"&$A$114&"Table6"),B147+1,12)) -> 0 | ES149: =IF(OR(NOT(ISNUMBER(K149)),K149=0),0,INDEX(INDIRECT("_"&$A$114&"Table6"),B147+1,14)) -> 0 | ET149: =INDEX(INDIRECT("_"&$A$114&"Table6"),B147+1,5) ->  | EU149: =IF(OR(NOT(ISNUMBER(K149)),K149=0),0,INDEX(INDIRECT("_"&$A$114&"Table6"),B147+1,7)) -> 0 | EV149: =IF(OR(NOT(ISNUMBER(K149)),K149=0),0,INDEX(INDIRECT("_"&$A$114&"Table6"),B147+1,9)) -> 0 | EZ149: TRUE
D150: Backfill/Cover 2 Placement | J150: =INDEX(INDIRECT("_"&$A$114&"Table7"),B147+1,25) -> 0 | K150: =IF(OR(J150="",K147="",ISTEXT(K147),J150=0),"",IF(OR(ISBLANK(M150),ISBLANK(N150)),"Enter Dates",IF(K147="Date Range","",IF(OR(AND(CostType=ARO,L147>ScheduleYear),AND(CostType=ARO,N150<=ScheduleYear)),"Date Range",IF(OR(AND(CostType=Bond,O150>ScheduleYear),AND(CostType=LOM,LOMComplete)),J150,J150-Q150))))) ->  | M150: 2023 | N150: 2122 | Q150: 0 | R150: 0 | DO150: 1 | EA150: 1 | EB150: =IF(OR(J150="",EB147="",ISTEXT(EB147)),0,IF(OR(ISBLANK(M150),ISBLANK(N150)),0,IF(OR(AND(CostType=ARO,L147>ScheduleYear),AND(OR(CostType=ARO,AND(CostType=LOM,LOMComplete=TRUE)),N150<=ScheduleYear)),0,J150))) -> 0 | EC150: =IF(OR(J150="",EC147="",ISTEXT(EC147)),0,IF(OR(ISBLANK(M150),ISBLANK(N150)),0,IF(EC147="Date Range",0,IF(OR(AND(CostType=ARO,L147>ScheduleYear),N150<=ScheduleYear),0,J150)))) ->  | EM150: Backfill | EN150: Backfill | EO150: =IF(ISNUMBER(K150),INDEX(INDIRECT("_"&$A$114&"Table7"),B147+1,4),0) -> 0 | EP150: =IF(Metric,"m3","cy") -> cy | EQ150: =INDEX(INDIRECT("_"&$A$114&"Table7"),B147+1,10) ->  | ER150: =IF(OR(NOT(ISNUMBER(K150)),K150=0),0,INDEX(INDIRECT("_"&$A$114&"Table7"),B147+1,12)) -> 0 | ES150: =IF(OR(NOT(ISNUMBER(K150)),K150=0),0,INDEX(INDIRECT("_"&$A$114&"Table7"),B147+1,14)) -> 0 | ET150: =INDEX(INDIRECT("_"&$A$114&"Table7"),B147+1,5) ->  | EU150: =IF(OR(NOT(ISNUMBER(K150)),K150=0),0,INDEX(INDIRECT("_"&$A$114&"Table7"),B147+1,7)) -> 0 | EV150: =IF(OR(NOT(ISNUMBER(K150)),K150=0),0,INDEX(INDIRECT("_"&$A$114&"Table7"),B147+1,9)) -> 0 | EZ150: TRUE
D151: Growth Media Placement | J151: =INDEX(INDIRECT("_"&$A$114&"Table8"),B147+1,11) -> 0 | K151: =IF(OR(J151="",K147="",ISTEXT(K147),J151=0),"",IF(OR(ISBLANK(M151),ISBLANK(N151)),"Enter Dates",IF(K147="Date Range","",IF(OR(AND(CostType=ARO,L147>ScheduleYear),AND(CostType=ARO,N151<=ScheduleYear)),"Date Range",IF(OR(AND(CostType=Bond,O151>ScheduleYear),AND(CostType=LOM,LOMComplete)),J151,J151-Q151))))) ->  | M151: 2023 | N151: 2122 | Q151: 0 | R151: 0 | DO151: 1 | EA151: 1 | EB151: =IF(OR(J151="",EB147="",ISTEXT(EB147)),0,IF(OR(ISBLANK(M151),ISBLANK(N151)),0,IF(OR(AND(CostType=ARO,L147>ScheduleYear),AND(OR(CostType=ARO,AND(CostType=LOM,LOMComplete=TRUE)),N151<=ScheduleYear)),0,J151))) -> 0 | EC151: =IF(OR(J151="",EC147="",ISTEXT(EC147)),0,IF(OR(ISBLANK(M151),ISBLANK(N151)),0,IF(EC147="Date Range",0,IF(OR(AND(CostType=ARO,L147>ScheduleYear),N151<=ScheduleYear),0,J151)))) ->  | EM151: GM | EN151: GM | EO151: =IF(ISNUMBER(K151),INDEX(INDIRECT("_"&$A$114&"Table8"),B147+1,3),0) -> 0 | EP151: =IF(Metric,"m3","cy") -> cy | EQ151: =INDEX(INDIRECT("_"&$A$114&"Table8"),B147+1,4) ->  | ER151: =IF(OR(NOT(ISNUMBER(K151)),K151=0),0,INDEX(INDIRECT("_"&$A$114&"Table8"),B147+1,6)) -> 0 | ES151: =IF(OR(NOT(ISNUMBER(K151)),K151=0),0,INDEX(INDIRECT("_"&$A$114&"Table8"),B147+1,8)) -> 0 | EZ151: TRUE
D152: Revegetation | J152: =INDEX(INDIRECT("_"&$A$114&"Table9"),B147+1,7) -> 0 | K152: =IF(OR(J152="",K147="",ISTEXT(K147),J152=0),"",IF(OR(ISBLANK(M152),ISBLANK(N152)),"Enter Dates",IF(K147="Date Range","",IF(OR(AND(CostType=ARO,L147>ScheduleYear),AND(CostType=ARO,N152<=ScheduleYear)),"Date Range",IF(OR(AND(CostType=Bond,O152>ScheduleYear),AND(CostType=LOM,LOMComplete)),J152,J152-Q152))))) ->  | M152: 2023 | N152: 2122 | Q152: 0 | R152: 0 | DO152: 1 | EA152: 1 | EB152: =IF(OR(J152="",EB147="",ISTEXT(EB147)),0,IF(OR(ISBLANK(M152),ISBLANK(N152)),0,IF(OR(AND(CostType=ARO,L147>ScheduleYear),AND(OR(CostType=ARO,AND(CostType=LOM,LOMComplete=TRUE)),N152<=ScheduleYear)),0,J152))) -> 0 | EC152: =IF(OR(J152="",EC147="",ISTEXT(EC147)),0,IF(OR(ISBLANK(M152),ISBLANK(N152)), 0,IF(EC147="Date Range",0,IF(OR(AND(CostType=ARO,L147>ScheduleYear),N152<=ScheduleYear),0,J152)))) ->  | EM152: Reveg | EN152: Reveg | EO152: =IF(ISNUMBER(K152),INDEX(INDIRECT("_"&$A$114&"Table9"),B147+1,3),0) -> 0 | EP152: =IF(Metric,"ha","acres") -> acres | EZ152: TRUE
D153: E-Cell/ET-Cell Liner | J153: =INDEX(INDIRECT("_"&$A$114&"Table10"),B147+1,15) -> 0 | K153: =IF(OR(J153="",K147="",ISTEXT(K147),J153=0),"",IF(OR(ISBLANK(M153),ISBLANK(N153)),"Enter Dates",IF(K147="Date Range","",IF(OR(AND(CostType=ARO,L147>ScheduleYear),AND(CostType=ARO,N153<=ScheduleYear)),"Date Range",IF(OR(AND(CostType=Bond,O153>ScheduleYear),AND(CostType=LOM,LOMComplete)),J153,J153-Q153))))) ->  | M153: 2023 | N153: 2122 | Q153: 0 | R153: 0 | DO153: 1 | EA153: 1 | EB153: =IF(OR(J153="",EB147="",ISTEXT(EB147)),0,IF(OR(ISBLANK(M153),ISBLANK(N153)),0,IF(OR(AND(CostType=ARO,L147>ScheduleYear),AND(OR(CostType=ARO,AND(CostType=LOM,LOMComplete=TRUE)),N153<=ScheduleYear)),0,J153))) -> 0 | EC153: =IF(OR(J153="",EC147="",ISTEXT(EC147)),0,IF(OR(ISBLANK(M153),ISBLANK(N153)), 0,IF(EC147="Date Range",0,IF(OR(AND(CostType=ARO,L147>ScheduleYear),N153<=ScheduleYear),0,J153)))) ->  | EM153: Liner | EN153: Liner | EO153: =IF(ISNUMBER(K153),INDEX(INDIRECT("_"&$A$114&"Table10"),B147+1,3)+INDEX(INDIRECT("_"&$A$114&"Table10"),B147+1,8),0) -> 0 | EP153: =IF(Metric,"m2","f2") -> f2 | EZ153: TRUE
D154: E-Cell/ET-Cell Piping | J154: =INDEX(INDIRECT("_"&$A$114&"Table11"),B147+1,20) -> 0 | K154: =IF(OR(J154="",K147="",ISTEXT(K147),J154=0),"",IF(OR(ISBLANK(M154),ISBLANK(N154)),"Enter Dates",IF(K147="Date Range","",IF(OR(AND(CostType=ARO,L147>ScheduleYear),AND(CostType=ARO,N154<=ScheduleYear)),"Date Range",IF(OR(AND(CostType=Bond,O154>ScheduleYear),AND(CostType=LOM,LOMComplete)),J154,J154-Q154))))) ->  | M154: 2023 | N154: 2122 | Q154: 0 | R154: 0 | DO154: 1 | EA154: 1 | EB154: =IF(OR(J154="",EB147="",ISTEXT(EB147)),0,IF(OR(ISBLANK(M154),ISBLANK(N154)),0,IF(OR(AND(CostType=ARO,L147>ScheduleYear),AND(OR(CostType=ARO,AND(CostType=LOM,LOMComplete=TRUE)),N154<=ScheduleYear)),0,J154))) -> 0 | EC154: =IF(OR(J154="",EC148="",ISTEXT(EC148)),0,IF(OR(ISBLANK(M154),ISBLANK(N154)), 0,IF(EC148="Date Range",0,IF(OR(AND(CostType=ARO,L147>ScheduleYear),N154<=ScheduleYear),0,J154)))) ->  | EM154: Pipe | EN154: Pipe | EO154: =IF(ISNUMBER(K154),INDEX(INDIRECT("_"&$A$114&"Table11"),B147+1,3)+INDEX(INDIRECT("_"&$A$114&"Table11"),B147+1,8)+INDEX(INDIRECT("_"&$A$114&"Table11"),B147+1,13),0) -> 0 | EP154: =IF(Metric,"m","ft") -> ft | EZ154: TRUE
EZ155: FALSE
A156: Yards | B156: YARDS | J156: =SumByColor(J157,J157:J164) -> 0 | K156: =SumByColor(K157,K157:K164) -> 0 | Q156: =SumByColor(Q157,Q157:Q164) -> 0 | T156: =SumByColor(T157,T157:T164) -> 0 | U156: 0 | V156: 0 | W156: 0 | X156: 0 | Y156: 0 | Z156: 0 | AA156: 0 | AB156: 0 | AC156: 0 | AD156: 0 | AE156: 0 | AF156: 0 | AG156: 0 | AH156: 0 | AI156: 0 | AJ156: 0 | AK156: 0 | AL156: 0 | AM156: 0 | AN156: 0 | AO156: 0 | AP156: 0 | AQ156: 0 | AR156: 0 | AS156: 0 | AT156: 0 | AU156: 0 | AV156: 0 | AW156: 0 | AX156: 0 | AY156: 0 | AZ156: =SumByColor(AZ157,AZ157:AZ164) -> 0 | BA156: 0 | BB156: 0 | BC156: 0 | BD156: 0 | BE156: 0 | BF156: 0 | BG156: 0 | BH156: 0 | BI156: 0 | BJ156: 0 | BK156: 0 | BL156: 0 | BM156: 0 | BN156: 0 | BO156: 0 | BP156: 0 | BQ156: 0 | BR156: 0 | BS156: 0 | BT156: 0 | BU156: 0 | BV156: 0 | BW156: 0 | BX156: 0 | BY156: 0 | BZ156: 0 | CA156: 0 | CB156: 0 | CC156: 0 | CD156: 0 | CE156: 0 | CF156: =SumByColor(CF157,CF157:CF164) -> 0 | CG156: 0 | CH156: 0 | CI156: 0 | CJ156: 0 | CK156: 0 | CL156: 0 | CM156: 0 | CN156: 0 | CO156: 0 | CP156: 0 | CQ156: 0 | CR156: 0 | CS156: 0 | CT156: 0 | CU156: 0 | CV156: 0 | CW156: 0 | CX156: 0 | CY156: 0 | CZ156: 0 | DA156: 0 | DB156: 0 | DC156: 0 | DD156: 0 | DE156: 0 | DF156: 0 | DG156: 0 | DH156: 0 | DI156: 0 | DJ156: 0 | DK156: 0 | DL156: =SumByColor(DL157,DL157:DL164) -> 0 | DM156: 0 | DN156: 0 | DO156: 0 | EB156: =SumByColor(EB157,EB157:EB164) -> 0 | EC156: =SumByColor(EC157,EC157:EC164) -> 0 | EZ156: FALSE
B157: =(ROW(B157) - ROW($A$156)-1)/INDEX(SheetRangeIndex,MATCH($A$156,TableNamesSorted,0),7) -> 0 | C157: =INDEX(INDIRECT("_"&$A$156&"Table1"),B157+1,9) -> 0 | D157: =INDEX(INDIRECT("_"&$A$156&"Table1"),B157+1,2) -> 0 | E157: =IF(ISBLANK(INDEX(INDIRECT("_"&$A$156&"Table1"),B157+1,3)),"",INDEX(INDIRECT("_"&$A$156&"Table1"),B157+1,3)) ->  | F157: =IF(ISERROR(EL157),"Facility Type",IF(ISBLANK(INDEX(INDIRECT("_"&$A$156&"Table1"),B157+1,5)),"",INDEX(INDIRECT("_"&$A$156&"Table1"),B157+1,5))) ->  | G157: =IF(ISBLANK(INDEX(INDIRECT("_"&$A$156&"Table1"),B157+1,6)),"",INDEX(INDIRECT("_"&$A$156&"Table1"),B157+1,6)) ->  | H157: =IF(ISBLANK(INDEX(INDIRECT("_"&$A$156&"Table1"),B157+1,7)),"",INDEX(INDIRECT("_"&$A$156&"Table1"),B157+1,7)) ->  | I157: =IF(ISBLANK(INDEX(INDIRECT("_"&$A$156&"Table1"),B157+1,8)),"",INDEX(INDIRECT("_"&$A$156&"Table1"),B157+1,8)) ->  | J157: =SUM(J158:J163) -> 0 | K157: =IF(ISERR(ED157),"Cost Type",IF(A157="X","Override",IF(AND(CostType=ARO,L157>ScheduleYear),"Date Range",IF(AND(ISTEXT(LocationFilter),ISERROR(EI157)),"Location",IF(AND(ISTEXT(PropertyFilter),ISERROR(EJ157)),"Property",IF(AND(ISTEXT(FacilityTypeFilter),ISERROR(EG157)),"Facility Type",IF(AND(NOT(ISBLANK(IDCodeFilter)),ISERROR(EF157)),"ID Code",IF(AND(ISTEXT(PhaseFilter),ISERROR(EH157)),"Phase",IF(AND(CostType=LOM,LOMComplete),J157,SUM(T157:DO157)))))))))) -> Cost Type | L157: =INDEX(INDIRECT("_"&$A$156&"Table1"),B157+1,4) -> 0 | Q157: =SUM(Q158:Q163) -> 0 | T157: =IF(ISTEXT($EB157),0,IF(AND(CostType=LOM,LOMComplete,T$27<=ScheduleYear),SUMPRODUCT(T158:T163,$J158:$J163),IF(CostType=Bond,SUMPRODUCT($EB158:$EB163,T158:T163,$EA158:$EA163),IF(T$27<=ScheduleYear,0,SUMPRODUCT(T158:T163,$EB158:$EB163))))) -> 0 | U157: 0 | V157: 0 | W157: 0 | X157: 0 | Y157: 0 | Z157: 0 | AA157: 0 | AB157: 0 | AC157: 0 | AD157: 0 | AE157: 0 | AF157: 0 | AG157: 0 | AH157: 0 | AI157: 0 | AJ157: 0 | AK157: 0 | AL157: 0 | AM157: 0 | AN157: 0 | AO157: 0 | AP157: 0 | AQ157: 0 | AR157: 0 | AS157: 0 | AT157: 0 | AU157: 0 | AV157: 0 | AW157: 0 | AX157: 0 | AY157: 0 | AZ157: =IF(ISTEXT($EB157),0,IF(AND(CostType=LOM,LOMComplete,AZ$27<=ScheduleYear),SUMPRODUCT(AZ158:AZ163,$J158:$J163),IF(CostType=Bond,SUMPRODUCT($EB158:$EB163,AZ158:AZ163,$EA158:$EA163),IF(AZ$27<=ScheduleYear,0,SUMPRODUCT(AZ158:AZ163,$EB158:$EB163))))) -> 0 | BA157: 0 | BB157: 0 | BC157: 0 | BD157: 0 | BE157: 0 | BF157: 0 | BG157: 0 | BH157: 0 | BI157: 0 | BJ157: 0 | BK157: 0 | BL157: 0 | BM157: 0 | BN157: 0 | BO157: 0 | BP157: 0 | BQ157: 0 | BR157: 0 | BS157: 0 | BT157: 0 | BU157: 0 | BV157: 0 | BW157: 0 | BX157: 0 | BY157: 0 | BZ157: 0 | CA157: 0 | CB157: 0 | CC157: 0 | CD157: 0 | CE157: 0 | CF157: =IF(ISTEXT($EB157),0,IF(AND(CostType=LOM,LOMComplete,CF$27<=ScheduleYear),SUMPRODUCT(CF158:CF163,$J158:$J163),IF(CostType=Bond,SUMPRODUCT($EB158:$EB163,CF158:CF163,$EA158:$EA163),IF(CF$27<=ScheduleYear,0,SUMPRODUCT(CF158:CF163,$EB158:$EB163))))) -> 0 | CG157: 0 | CH157: 0 | CI157: 0 | CJ157: 0 | CK157: 0 | CL157: 0 | CM157: 0 | CN157: 0 | CO157: 0 | CP157: 0 | CQ157: 0 | CR157: 0 | CS157: 0 | CT157: 0 | CU157: 0 | CV157: 0 | CW157: 0 | CX157: 0 | CY157: 0 | CZ157: 0 | DA157: 0 | DB157: 0 | DC157: 0 | DD157: 0 | DE157: 0 | DF157: 0 | DG157: 0 | DH157: 0 | DI157: 0 | DJ157: 0 | DK157: 0 | DL157: =IF(ISTEXT($EB157),0,IF(AND(CostType=LOM,LOMComplete,DL$27<=ScheduleYear),SUMPRODUCT(DL158:DL163,$J158:$J163),IF(CostType=Bond,SUMPRODUCT($EB158:$EB163,DL158:DL163,$EA158:$EA163),IF(DL$27<=ScheduleYear,0,SUMPRODUCT(DL158:DL163,$EB158:$EB163))))) -> 0 | DM157: 0 | DN157: 0 | DO157: 0 | DP157: =IF(ISNUMBER(K157),SUM(T157:DO157)-K157,K157) -> Cost Type | EB157: =IF(ISERR(ED157),"Cost Type",IF(A157="X","Override",IF(AND(CostType=ARO,L157>ScheduleYear),0,IF(AND(ISTEXT(LocationFilter),ISERROR(EI157)),"Location",IF(AND(ISTEXT(PropertyFilter),ISERROR(EJ157)),"Property",IF(AND(ISTEXT(FacilityTypeFilter),ISERROR(EG157)),"Facility Type",IF(AND(ISTEXT(IDCodeFilter),ISERROR(EF157)),"ID Code",IF(AND(ISTEXT(PhaseFilter),ISERROR(EH157)),"Phase",J157)))))))) -> Cost Type | EC157: =IF(EE157="","Cost Type",IF(A157="X","Override",IF(AND(OtherCostType=ARO,L157>ScheduleYear),0,IF(AND(ISTEXT(LocationFilter),EI157=""),"Location",IF(AND(ISTEXT(PropertyFilter),EJ157=""),"Property",IF(AND(ISTEXT(FacilityTypeFilter),EG157=""),"Facility Type",IF(AND(ISTEXT(IDCodeFilter),EF157=""),"ID Code",IF(AND(ISTEXT(PhaseFilter),EH157=""),"Phase",J157)))))))) ->  | ED157: =SEARCH(CostType,C157) ->  | EE157: =SEARCH(OtherCostType,C157) ->  | EF157: =IF(AND(IDCodeFilterType="CONTAINS",NOT(ISERROR(SEARCH(IDCodeFilter,E157)))),1,IF(AND(IDCodeFilterType="NOT",ISERROR(SEARCH(IDCodeFilter,E157))),1,IF(AND(OR(IDCodeFilterType="EXACT",ISBLANK(IDCodeFilterType)),NOT(ISERROR(MATCH(IDCodeFilter,E157,0)))),1,$EK157))) ->  | EG157: =IF(AND(FacilityFilterType="CONTAINS",NOT(ISERROR(SEARCH(FacilityTypeFilter,F157)))),1,IF(AND(FacilityFilterType="NOT",ISERROR(SEARCH(FacilityTypeFilter,F157))),1,IF(AND(OR(FacilityFilterType="EXACT",ISBLANK(FacilityFilterType)),NOT(ISERROR(MATCH(FacilityTypeFilter,F157,0)))),1,$EK157))) ->  | EH157: =IF(AND(PhaseFilterType="CONTAINS",NOT(ISERROR(SEARCH(PhaseFilter,G157)))),1,IF(AND(PhaseFilterType="NOT",ISERROR(SEARCH(PhaseFilter,G157))),1,IF(AND(OR(PhaseFilterType="EXACT",ISBLANK(PhaseFilterType)),NOT(ISERROR(MATCH(PhaseFilter,G157,0)))),1,$EK157))) ->  | EI157: =IF(AND(LocationFilterType="CONTAINS",NOT(ISERROR(SEARCH(LocationFilter,H157)))),1,IF(AND(LocationFilterType="NOT",ISERROR(SEARCH(LocationFilter,H157))),1,IF(AND(OR(LocationFilterType="EXACT",ISBLANK(LocationFilterType)),NOT(ISERROR(MATCH(LocationFilter,H157,0)))),1,$EK157))) ->  | EJ157: =IF(AND(PropertyFilterType="CONTAINS",NOT(ISERROR(SEARCH(PropertyFilter,I157)))),1,IF(AND(PropertyFilterType="NOT",ISERROR(SEARCH(PropertyFilter,I157))),1,IF(AND(OR(PropertyFilterType="EXACT",ISBLANK(PropertyFilterType)),NOT(ISERROR(MATCH(PropertyFilter,I157,0)))),1,$EK157))) ->  | EK157: =MATCH("NOT",$EK$27,0) ->  | EL157: =IF(ISBLANK(INDEX(INDIRECT("_"&$A$156&"Table1"),B157+1,2)),"",MATCH(INDEX(INDIRECT("_"&$A$156&"Table1"),B157+1,5),Accounts,0)) ->  | EZ157: FALSE | FA157: 1
D158: Regrading | J158: =IF(INDEX(INDIRECT("_"&$A$156&"Table4"),B157+1,14)=0,0,INDEX(INDIRECT("_"&$A$156&"Table4"),B157+1,14)) -> 0 | K158: =IF(OR(J158="",K157="",ISTEXT(K157),J158=0),"",IF(OR(ISBLANK(M158),ISBLANK(N158)),"Enter Dates",IF(K157="Date Range","",IF(OR(AND(CostType=ARO,L157>ScheduleYear),AND(CostType=ARO,N158<=ScheduleYear)),"Date Range",IF(OR(AND(CostType=Bond,O158>ScheduleYear),AND(CostType=LOM,LOMComplete)),J158,J158-Q158))))) ->  | P158: =IF(K158="","",SUM(T158:DO158)) ->  | Q158: =IF(OR(AND(CostType=ARO,N158<=ScheduleYear),AND(CostType=LOM,LOMComplete)),J158*R158,R158*EB158) -> 0 | R158: =IF(CostType=Bond,SUMIFS(T158:DP158,T$27:DP$27,"<="&O158,T$27:DP$27,"<="&ScheduleYear),SUMIF(T$27:DP$27,"<="&ScheduleYear,T158:DP158)) -> 0 | EA158: =IF(OR(ISBLANK($O158),$O158>ScheduleYear),1,0) -> 1 | EB158: =IF(OR(J158="",EB157="",ISTEXT(EB157)),0,IF(OR(ISBLANK(M158),ISBLANK(N158)),0,IF(OR(AND(CostType=ARO,L157>ScheduleYear),AND(OR(CostType=ARO,AND(CostType=LOM,LOMComplete=TRUE)),N158<=ScheduleYear)),0,J158))) -> 0 | EC158: =IF(OR(J158="",EC157="",ISTEXT(EC157)),0,IF(OR(ISBLANK(M158),ISBLANK(N158)),0,IF(EC157="Date Range",0,IF(OR(AND(OtherCostType=ARO,L157>ScheduleYear),N158<=ScheduleYear),0,J158)))) ->  | EM158: Regrade | EN158: Regrade | EO158: =IF(ISNUMBER(K158),IF(INDEX(INDIRECT("_"&$A$156&"Table4"),B157+1,3)=0,0,INDEX(INDIRECT("_"&$A$156&"Table4"),B157+1,3)),0) -> 0 | EP158: =IF(Metric,"m3","cy") -> cy | EQ158: =INDEX(INDIRECT("_"&$A$156&"Table4"),B157+1,5) ->  | ES158: =IF(OR(NOT(ISNUMBER(K158)),K158=0),0,INDEX(INDIRECT("_"&$A$156&"Table4"),B157+1,11)) -> 0 | EZ158: TRUE
D159: Cover 1 Placement | J159: =INDEX(INDIRECT("_"&$A$156&"Table5"),B157+1,25) -> 0 | K159: =IF(OR(J159="",K157="",ISTEXT(K157),J159=0),"",IF(OR(ISBLANK(M159),ISBLANK(N159)),"Enter Dates",IF(K157="Date Range","",IF(OR(AND(CostType=ARO,L157>ScheduleYear),AND(CostType=ARO,N159<=ScheduleYear)),"Date Range",IF(OR(AND(CostType=Bond,O159>ScheduleYear),AND(CostType=LOM,LOMComplete)),J159,J159-Q159))))) ->  | Q159: 0 | R159: 0 | EA159: 1 | EB159: =IF(OR(J159="",EB157="",ISTEXT(EB157)),0,IF(OR(ISBLANK(M159),ISBLANK(N159)),0,IF(OR(AND(CostType=ARO,L157>ScheduleYear),AND(OR(CostType=ARO,AND(CostType=LOM,LOMComplete=TRUE)),N159<=ScheduleYear)),0,J159))) -> 0 | EC159: =IF(OR(J159="",EC157="",ISTEXT(EC157)),0,IF(OR(ISBLANK(M159),ISBLANK(N159)),0,IF(EC157="Date Range",0,IF(OR(AND(CostType=ARO,L157>ScheduleYear),N159<=ScheduleYear),0,J159)))) ->  | EM159: Cover | EN159: Cover | EO159: =IF(ISNUMBER(K159),INDEX(INDIRECT("_"&$A$156&"Table5"),B157+1,4),0) -> 0 | EP159: =IF(Metric,"m3","cy") -> cy | EQ159: =INDEX(INDIRECT("_"&$A$156&"Table5"),B157+1,10) ->  | ER159: =IF(OR(NOT(ISNUMBER(K159)),K159=0),0,INDEX(INDIRECT("_"&$A$156&"Table5"),B157+1,12)) -> 0 | ES159: =IF(OR(NOT(ISNUMBER(K159)),K159=0),0,INDEX(INDIRECT("_"&$A$156&"Table5"),B157+1,14)) -> 0 | ET159: =INDEX(INDIRECT("_"&$A$156&"Table5"),B157+1,5) ->  | EU159: =IF(OR(NOT(ISNUMBER(K159)),K159=0),0,INDEX(INDIRECT("_"&$A$156&"Table5"),B157+1,7)) -> 0 | EV159: =IF(OR(NOT(ISNUMBER(K159)),K159=0),0,INDEX(INDIRECT("_"&$A$156&"Table5"),B157+1,9)) -> 0 | EZ159: TRUE
D160: Cover 2 Placement | J160: =INDEX(INDIRECT("_"&$A$156&"Table6"),B157+1,25) -> 0 | K160: =IF(OR(J160="",K157="",ISTEXT(K157),J160=0),"",IF(OR(ISBLANK(M160),ISBLANK(N160)),"Enter Dates",IF(K157="Date Range","",IF(OR(AND(CostType=ARO,L157>ScheduleYear),AND(CostType=ARO,N160<=ScheduleYear)),"Date Range",IF(OR(AND(CostType=Bond,O160>ScheduleYear),AND(CostType=LOM,LOMComplete)),J160,J160-Q160))))) ->  | Q160: 0 | R160: 0 | EA160: 1 | EB160: =IF(OR(J160="",EB157="",ISTEXT(EB157)),0,IF(OR(ISBLANK(M160),ISBLANK(N160)),0,IF(OR(AND(CostType=ARO,L157>ScheduleYear),AND(OR(CostType=ARO,AND(CostType=LOM,LOMComplete=TRUE)),N160<=ScheduleYear)),0,J160))) -> 0 | EC160: =IF(OR(J160="",EC157="",ISTEXT(EC157)),0,IF(OR(ISBLANK(M160),ISBLANK(N160)),0,IF(EC157="Date Range",0,IF(OR(AND(CostType=ARO,L157>ScheduleYear),N160<=ScheduleYear),0,J160)))) ->  | EM160: Cover | EN160: Cover | EO160: =IF(ISNUMBER(K160),INDEX(INDIRECT("_"&$A$156&"Table6"),B157+1,4),0) -> 0 | EP160: =IF(Metric,"m3","cy") -> cy | EQ160: =INDEX(INDIRECT("_"&$A$156&"Table6"),B157+1,10) ->  | ER160: =IF(OR(NOT(ISNUMBER(K160)),K160=0),0,INDEX(INDIRECT("_"&$A$156&"Table6"),B157+1,12)) -> 0 | ES160: =IF(OR(NOT(ISNUMBER(K160)),K160=0),0,INDEX(INDIRECT("_"&$A$156&"Table6"),B157+1,14)) -> 0 | ET160: =INDEX(INDIRECT("_"&$A$156&"Table6"),B157+1,5) ->  | EU160: =IF(OR(NOT(ISNUMBER(K160)),K160=0),0,INDEX(INDIRECT("_"&$A$156&"Table6"),B157+1,7)) -> 0 | EV160: =IF(OR(NOT(ISNUMBER(K160)),K160=0),0,INDEX(INDIRECT("_"&$A$156&"Table6"),B157+1,9)) -> 0 | EZ160: TRUE
D161: Growth Media Placement | J161: =INDEX(INDIRECT("_"&$A$156&"Table7"),B157+1,11) -> 0 | K161: =IF(OR(J161="",K157="",ISTEXT(K157),J161=0),"",IF(OR(ISBLANK(M161),ISBLANK(N161)),"Enter Dates",IF(K157="Date Range","",IF(OR(AND(CostType=ARO,L157>ScheduleYear),AND(CostType=ARO,N161<=ScheduleYear)),"Date Range",IF(OR(AND(CostType=Bond,O161>ScheduleYear),AND(CostType=LOM,LOMComplete)),J161,J161-Q161))))) ->  | Q161: 0 | R161: 0 | EA161: 1 | EB161: =IF(OR(J161="",EB157="",ISTEXT(EB157)),0,IF(OR(ISBLANK(M161),ISBLANK(N161)),0,IF(OR(AND(CostType=ARO,L157>ScheduleYear),AND(OR(CostType=ARO,AND(CostType=LOM,LOMComplete=TRUE)),N161<=ScheduleYear)),0,J161))) -> 0 | EC161: =IF(OR(J161="",EC157="",ISTEXT(EC157)),0,IF(OR(ISBLANK(M161),ISBLANK(N161)),0,IF(EC157="Date Range",0,IF(OR(AND(CostType=ARO,L157>ScheduleYear),N161<=ScheduleYear),0,J161)))) ->  | EM161: GM | EN161: GM | EO161: =IF(ISNUMBER(K161),INDEX(INDIRECT("_"&$A$156&"Table7"),B157+1,3),0) -> 0 | EP161: =IF(Metric,"m3","cy") -> cy | EQ161: =INDEX(INDIRECT("_"&$A$156&"Table7"),B157+1,4) ->  | ER161: =IF(OR(NOT(ISNUMBER(K161)),K161=0),0,INDEX(INDIRECT("_"&$A$156&"Table7"),B157+1,6)) -> 0 | ES161: =IF(OR(NOT(ISNUMBER(K161)),K161=0),0,INDEX(INDIRECT("_"&$A$156&"Table7"),B157+1,8)) -> 0 | EZ161: TRUE
D162: Ripping/Scarifying | J162: =INDEX(INDIRECT("_"&$A$156&"Table8"),B157+1,9) -> 0 | K162: =IF(OR(J162="",K157="",ISTEXT(K157),J162=0),"",IF(OR(ISBLANK(M162),ISBLANK(N162)),"Enter Dates",IF(K157="Date Range","",IF(OR(AND(CostType=ARO,L157>ScheduleYear),AND(CostType=ARO,N162<=ScheduleYear)),"Date Range",IF(OR(AND(CostType=Bond,O162>ScheduleYear),AND(CostType=LOM,LOMComplete)),J162,J162-Q162))))) ->  | Q162: 0 | R162: 0 | EA162: 1 | EB162: =IF(OR(J162="",EB157="",ISTEXT(EB157)),0,IF(OR(ISBLANK(M162),ISBLANK(N162)),0,IF(OR(AND(CostType=ARO,L157>ScheduleYear),AND(OR(CostType=ARO,AND(CostType=LOM,LOMComplete=TRUE)),N162<=ScheduleYear)),0,J162))) -> 0 | EC162: =IF(OR(J162="",EC157="",ISTEXT(EC157)),0,IF(OR(ISBLANK(M162),ISBLANK(N162)), 0,IF(EC157="Date Range",0,IF(OR(AND(CostType=ARO,L157>ScheduleYear),N162<=ScheduleYear),0,J162)))) ->  | EM162: Rip | EN162: Rip | EO162: =IF(ISNUMBER(K162),INDEX(INDIRECT("_"&$A$156&"Table8"),B157+1,3),0) -> 0 | EP162: =IF(Metric,"ha","acres") -> acres | EQ162: =INDEX(INDIRECT("_"&$A$156&"Table8"),B157+1,5) ->  | ES162: =IF(OR(NOT(ISNUMBER(K162)),K162=0),0,INDEX(INDIRECT("_"&$A$156&"Table8"),B157+1,6)) -> 0 | EZ162: TRUE
D163: Revegetation | J163: =INDEX(INDIRECT("_"&$A$156&"Table8"),B157+1,13) -> 0 | K163: =IF(OR(J163="",K157="",ISTEXT(K157),J163=0),"",IF(OR(ISBLANK(M163),ISBLANK(N163)),"Enter Dates",IF(K157="Date Range","",IF(OR(AND(CostType=ARO,L157>ScheduleYear),AND(CostType=ARO,N163<=ScheduleYear)),"Date Range",IF(OR(AND(CostType=Bond,O163>ScheduleYear),AND(CostType=LOM,LOMComplete)),J163,J163-Q163))))) ->  | Q163: 0 | R163: 0 | EA163: 1 | EB163: =IF(OR(J163="",EB157="",ISTEXT(EB157)),0,IF(OR(ISBLANK(M163),ISBLANK(N163)),0,IF(OR(AND(CostType=ARO,L157>ScheduleYear),AND(OR(CostType=ARO,AND(CostType=LOM,LOMComplete=TRUE)),N163<=ScheduleYear)),0,J163))) -> 0 | EC163: =IF(OR(J163="",EC157="",ISTEXT(EC157)),0,IF(OR(ISBLANK(M163),ISBLANK(N163)), 0,IF(EC157="Date Range",0,IF(OR(AND(CostType=ARO,L157>ScheduleYear),N163<=ScheduleYear),0,J163)))) ->  | EM163: Reveg | EN163: Reveg | EO163: =IF(ISNUMBER(K163),INDEX(INDIRECT("_"&$A$156&"Table8"),B157+1,3),0) -> 0 | EP163: =IF(Metric,"ha","acres") -> acres | EZ163: TRUE
EZ164: FALSE
A165: Landfills | B165: LANDFILLS | J165: =SumByColor(J166,J166:J173) -> 0 | K165: =SumByColor(K166,K166:K173) -> 0 | Q165: =SumByColor(Q166,Q166:Q173) -> 0 | T165: =SumByColor(T166,T166:T173) -> 0 | U165: 0 | V165: 0 | W165: 0 | X165: 0 | Y165: 0 | Z165: 0 | AA165: 0 | AB165: 0 | AC165: 0 | AD165: 0 | AE165: 0 | AF165: 0 | AG165: 0 | AH165: 0 | AI165: 0 | AJ165: 0 | AK165: 0 | AL165: 0 | AM165: 0 | AN165: 0 | AO165: 0 | AP165: 0 | AQ165: 0 | AR165: 0 | AS165: 0 | AT165: 0 | AU165: 0 | AV165: 0 | AW165: 0 | AX165: 0 | AY165: 0 | AZ165: =SumByColor(AZ166,AZ166:AZ173) -> 0 | BA165: 0 | BB165: 0 | BC165: 0 | BD165: 0 | BE165: 0 | BF165: 0 | BG165: 0 | BH165: 0 | BI165: 0 | BJ165: 0 | BK165: 0 | BL165: 0 | BM165: 0 | BN165: 0 | BO165: 0 | BP165: 0 | BQ165: 0 | BR165: 0 | BS165: 0 | BT165: 0 | BU165: 0 | BV165: 0 | BW165: 0 | BX165: 0 | BY165: 0 | BZ165: 0 | CA165: 0 | CB165: 0 | CC165: 0 | CD165: 0 | CE165: 0 | CF165: =SumByColor(CF166,CF166:CF173) -> 0 | CG165: 0 | CH165: 0 | CI165: 0 | CJ165: 0 | CK165: 0 | CL165: 0 | CM165: 0 | CN165: 0 | CO165: 0 | CP165: 0 | CQ165: 0 | CR165: 0 | CS165: 0 | CT165: 0 | CU165: 0 | CV165: 0 | CW165: 0 | CX165: 0 | CY165: 0 | CZ165: 0 | DA165: 0 | DB165: 0 | DC165: 0 | DD165: 0 | DE165: 0 | DF165: 0 | DG165: 0 | DH165: 0 | DI165: 0 | DJ165: 0 | DK165: 0 | DL165: =SumByColor(DL166,DL166:DL173) -> 0 | DM165: 0 | DN165: 0 | DO165: 0 | EB165: =SumByColor(EB166,EB166:EB173) -> 0 | EC165: =SumByColor(EC166,EC166:EC173) -> 0 | EZ165: FALSE
B166: =(ROW(B166) - ROW($A$165)-1)/INDEX(SheetRangeIndex,MATCH($A$165,TableNamesSorted,0),7) -> 0 | C166: =INDEX(INDIRECT("_"&$A$165&"Table1"),B166+1,9) -> 0 | D166: =INDEX(INDIRECT("_"&$A$165&"Table1"),B166+1,2) -> 0 | E166: =IF(ISBLANK(INDEX(INDIRECT("_"&$A$165&"Table1"),B166+1,3)),"",INDEX(INDIRECT("_"&$A$165&"Table1"),B166+1,3)) ->  | F166: =IF(ISERROR(EL166),"Facility Type",IF(ISBLANK(INDEX(INDIRECT("_"&$A$165&"Table1"),B166+1,5)),"",INDEX(INDIRECT("_"&$A$165&"Table1"),B166+1,5))) ->  | G166: =IF(ISBLANK(INDEX(INDIRECT("_"&$A$165&"Table1"),B166+1,6)),"",INDEX(INDIRECT("_"&$A$165&"Table1"),B166+1,6)) ->  | H166: =IF(ISBLANK(INDEX(INDIRECT("_"&$A$165&"Table1"),B166+1,7)),"",INDEX(INDIRECT("_"&$A$165&"Table1"),B166+1,7)) ->  | I166: =IF(ISBLANK(INDEX(INDIRECT("_"&$A$165&"Table1"),B166+1,8)),"",INDEX(INDIRECT("_"&$A$165&"Table1"),B166+1,8)) ->  | J166: =SUM(J167:J172) -> 0 | K166: =IF(ISERR(ED166),"Cost Type",IF(A166="X","Override",IF(AND(CostType=ARO,L166>ScheduleYear),"Date Range",IF(AND(ISTEXT(LocationFilter),ISERROR(EI166)),"Location",IF(AND(ISTEXT(PropertyFilter),ISERROR(EJ166)),"Property",IF(AND(ISTEXT(FacilityTypeFilter),ISERROR(EG166)),"Facility Type",IF(AND(ISTEXT(IDCodeFilter),ISERROR(EF166)),"ID Code",IF(AND(ISTEXT(PhaseFilter),ISERROR(EH166)),"Phase",IF(AND(CostType=LOM,LOMComplete),J166,SUM(T166:DO166)))))))))) -> Cost Type | L166: =INDEX(INDIRECT("_"&$A$165&"Table1"),B166+1,4) -> 0 | Q166: =SUM(Q167:Q172) -> 0 | T166: =IF(ISTEXT($EB166),0,IF(AND(CostType=LOM,LOMComplete,T$27<=ScheduleYear),SUMPRODUCT(T167:T172,$J167:$J172),IF(CostType=Bond,SUMPRODUCT($EB167:$EB172,T167:T172,$EA167:$EA172),IF(T$27<=ScheduleYear,0,SUMPRODUCT(T167:T172,$EB167:$EB172))))) -> 0 | U166: 0 | V166: 0 | W166: 0 | X166: 0 | Y166: 0 | Z166: 0 | AA166: 0 | AB166: 0 | AC166: 0 | AD166: 0 | AE166: 0 | AF166: 0 | AG166: 0 | AH166: 0 | AI166: 0 | AJ166: 0 | AK166: 0 | AL166: 0 | AM166: 0 | AN166: 0 | AO166: 0 | AP166: 0 | AQ166: 0 | AR166: 0 | AS166: 0 | AT166: 0 | AU166: 0 | AV166: 0 | AW166: 0 | AX166: 0 | AY166: 0 | AZ166: =IF(ISTEXT($EB166),0,IF(AND(CostType=LOM,LOMComplete,AZ$27<=ScheduleYear),SUMPRODUCT(AZ167:AZ172,$J167:$J172),IF(CostType=Bond,SUMPRODUCT($EB167:$EB172,AZ167:AZ172,$EA167:$EA172),IF(AZ$27<=ScheduleYear,0,SUMPRODUCT(AZ167:AZ172,$EB167:$EB172))))) -> 0 | BA166: 0 | BB166: 0 | BC166: 0 | BD166: 0 | BE166: 0 | BF166: 0 | BG166: 0 | BH166: 0 | BI166: 0 | BJ166: 0 | BK166: 0 | BL166: 0 | BM166: 0 | BN166: 0 | BO166: 0 | BP166: 0 | BQ166: 0 | BR166: 0 | BS166: 0 | BT166: 0 | BU166: 0 | BV166: 0 | BW166: 0 | BX166: 0 | BY166: 0 | BZ166: 0 | CA166: 0 | CB166: 0 | CC166: 0 | CD166: 0 | CE166: 0 | CF166: =IF(ISTEXT($EB166),0,IF(AND(CostType=LOM,LOMComplete,CF$27<=ScheduleYear),SUMPRODUCT(CF167:CF172,$J167:$J172),IF(CostType=Bond,SUMPRODUCT($EB167:$EB172,CF167:CF172,$EA167:$EA172),IF(CF$27<=ScheduleYear,0,SUMPRODUCT(CF167:CF172,$EB167:$EB172))))) -> 0 | CG166: 0 | CH166: 0 | CI166: 0 | CJ166: 0 | CK166: 0 | CL166: 0 | CM166: 0 | CN166: 0 | CO166: 0 | CP166: 0 | CQ166: 0 | CR166: 0 | CS166: 0 | CT166: 0 | CU166: 0 | CV166: 0 | CW166: 0 | CX166: 0 | CY166: 0 | CZ166: 0 | DA166: 0 | DB166: 0 | DC166: 0 | DD166: 0 | DE166: 0 | DF166: 0 | DG166: 0 | DH166: 0 | DI166: 0 | DJ166: 0 | DK166: 0 | DL166: =IF(ISTEXT($EB166),0,IF(AND(CostType=LOM,LOMComplete,DL$27<=ScheduleYear),SUMPRODUCT(DL167:DL172,$J167:$J172),IF(CostType=Bond,SUMPRODUCT($EB167:$EB172,DL167:DL172,$EA167:$EA172),IF(DL$27<=ScheduleYear,0,SUMPRODUCT(DL167:DL172,$EB167:$EB172))))) -> 0 | DM166: 0 | DN166: 0 | DO166: 0 | DP166: =IF(ISNUMBER(K166),SUM(T166:DO166)-K166,K166) -> Cost Type | EB166: =IF(ISERR(ED166),"Cost Type",IF(A166="X","Override",IF(AND(CostType=ARO,L166>ScheduleYear),0,IF(AND(ISTEXT(LocationFilter),ISERROR(EI166)),"Location",IF(AND(ISTEXT(PropertyFilter),ISERROR(EJ166)),"Property",IF(AND(ISTEXT(FacilityTypeFilter),ISERROR(EG166)),"Facility Type",IF(AND(ISTEXT(IDCodeFilter),ISERROR(EF166)),"ID Code",IF(AND(ISTEXT(PhaseFilter),ISERROR(EH166)),"Phase",J166)))))))) -> Cost Type | EC166: =IF(EE166="","Cost Type",IF(A166="X","Override",IF(AND(OtherCostType=ARO,L166>ScheduleYear),0,IF(AND(ISTEXT(LocationFilter),EI166=""),"Location",IF(AND(ISTEXT(PropertyFilter),EJ166=""),"Property",IF(AND(ISTEXT(FacilityTypeFilter),EG166=""),"Facility Type",IF(AND(ISTEXT(IDCodeFilter),EF166=""),"ID Code",IF(AND(ISTEXT(PhaseFilter),EH166=""),"Phase",J166)))))))) ->  | ED166: =SEARCH(CostType,C166) ->  | EE166: =SEARCH(OtherCostType,C166) ->  | EF166: =IF(AND(IDCodeFilterType="CONTAINS",NOT(ISERROR(SEARCH(IDCodeFilter,E166)))),1,IF(AND(IDCodeFilterType="NOT",ISERROR(SEARCH(IDCodeFilter,E166))),1,IF(AND(OR(IDCodeFilterType="EXACT",ISBLANK(IDCodeFilterType)),NOT(ISERROR(MATCH(IDCodeFilter,E166,0)))),1,$EK166))) ->  | EG166: =IF(AND(FacilityFilterType="CONTAINS",NOT(ISERROR(SEARCH(FacilityTypeFilter,F166)))),1,IF(AND(FacilityFilterType="NOT",ISERROR(SEARCH(FacilityTypeFilter,F166))),1,IF(AND(OR(FacilityFilterType="EXACT",ISBLANK(FacilityFilterType)),NOT(ISERROR(MATCH(FacilityTypeFilter,F166,0)))),1,$EK166))) ->  | EH166: =IF(AND(PhaseFilterType="CONTAINS",NOT(ISERROR(SEARCH(PhaseFilter,G166)))),1,IF(AND(PhaseFilterType="NOT",ISERROR(SEARCH(PhaseFilter,G166))),1,IF(AND(OR(PhaseFilterType="EXACT",ISBLANK(PhaseFilterType)),NOT(ISERROR(MATCH(PhaseFilter,G166,0)))),1,$EK166))) ->  | EI166: =IF(AND(LocationFilterType="CONTAINS",NOT(ISERROR(SEARCH(LocationFilter,H166)))),1,IF(AND(LocationFilterType="NOT",ISERROR(SEARCH(LocationFilter,H166))),1,IF(AND(OR(LocationFilterType="EXACT",ISBLANK(LocationFilterType)),NOT(ISERROR(MATCH(LocationFilter,H166,0)))),1,$EK166))) ->  | EJ166: =IF(AND(PropertyFilterType="CONTAINS",NOT(ISERROR(SEARCH(PropertyFilter,I166)))),1,IF(AND(PropertyFilterType="NOT",ISERROR(SEARCH(PropertyFilter,I166))),1,IF(AND(OR(PropertyFilterType="EXACT",ISBLANK(PropertyFilterType)),NOT(ISERROR(MATCH(PropertyFilter,I166,0)))),1,$EK166))) ->  | EK166: =MATCH("NOT",$EK$27,0) ->  | EL166: =IF(ISBLANK(INDEX(INDIRECT("_"&$A$165&"Table1"),B166+1,2)),"",MATCH(INDEX(INDIRECT("_"&$A$165&"Table1"),B166+1,5),Accounts,0)) ->  | EZ166: FALSE | FA166: 1
D167: Regrading | J167: =IF(INDEX(INDIRECT("_"&$A$165&"Table4"),B166+1,13)=0,0,INDEX(INDIRECT("_"&$A$165&"Table4"),B166+1,13)) -> 0 | K167: =IF(OR(J167="",K166="",ISTEXT(K166),J167=0),"",IF(OR(ISBLANK(M167),ISBLANK(N167)),"Enter Dates",IF(K166="Date Range","",IF(OR(AND(CostType=ARO,L166>ScheduleYear),AND(CostType=ARO,N167<=ScheduleYear)),"Date Range",IF(OR(CostType=Bond,CostType=ARO,AND(CostType=LOM,LOMComplete)),J167,J167-Q167))))) ->  | P167: =IF(K167="","",SUM(T167:DO167)) ->  | Q167: =IF(OR(AND(CostType=ARO,N167<=ScheduleYear),AND(CostType=LOM,LOMComplete)),J167*R167,R167*EB167) -> 0 | R167: =IF(CostType=Bond,SUMIFS(T167:DP167,T$27:DP$27,"<="&O167,T$27:DP$27,"<="&ScheduleYear),SUMIF(T$27:DP$27,"<="&ScheduleYear,T167:DP167)) -> 0 | EA167: =IF(OR(ISBLANK($O167),$O167>ScheduleYear),1,0) -> 1 | EB167: =IF(OR(J167="",EB166="",ISTEXT(EB166)),0,IF(OR(ISBLANK(M167),ISBLANK(N167)),0,IF(OR(AND(CostType=ARO,L166>ScheduleYear),AND(OR(CostType=ARO,AND(CostType=LOM,LOMComplete=TRUE)),N167<=ScheduleYear)),0,J167))) -> 0 | EC167: =IF(OR(J167="",EC166="",ISTEXT(EC166)),0,IF(OR(ISBLANK(M167),ISBLANK(N167)),0,IF(EC166="Date Range",0,IF(OR(AND(OtherCostType=ARO,L166>ScheduleYear),N167<=ScheduleYear),0,J167)))) ->  | EM167: Regrade | EN167: Regrade | EO167: =IF(ISNUMBER(K167),IF(INDEX(INDIRECT("_"&$A$165&"Table4"),B166+1,3)=0,0,INDEX(INDIRECT("_"&$A$165&"Table4"),B166+1,3)),0) -> 0 | EP167: =IF(Metric,"m3","cy") -> cy | EQ167: =INDEX(INDIRECT("_"&$A$165&"Table4"),B166+1,5) ->  | ES167: =IF(OR(NOT(ISNUMBER(K167)),K167=0),0,INDEX(INDIRECT("_"&$A$165&"Table4"),B166+1,11)) -> 0 | EZ167: TRUE
D168: Cover 1 Placement | J168: =INDEX(INDIRECT("_"&$A$165&"Table5"),B166+1,25) -> 0 | K168: =IF(OR(J168="",K166="",ISTEXT(K166),J168=0),"",IF(OR(ISBLANK(M168),ISBLANK(N168)),"Enter Dates",IF(K166="Date Range","",IF(OR(AND(CostType=ARO,L166>ScheduleYear),AND(CostType=ARO,N168<=ScheduleYear)),"Date Range",IF(OR(CostType=Bond,CostType=ARO,AND(CostType=LOM,LOMComplete)),J168,J168-Q168))))) ->  | Q168: 0 | R168: 0 | EA168: 1 | EB168: =IF(OR(J168="",EB166="",ISTEXT(EB166)),0,IF(OR(ISBLANK(M168),ISBLANK(N168)),0,IF(OR(AND(CostType=ARO,L166>ScheduleYear),AND(OR(CostType=ARO,AND(CostType=LOM,LOMComplete=TRUE)),N168<=ScheduleYear)),0,J168))) -> 0 | EC168: =IF(OR(J168="",EC166="",ISTEXT(EC166)),0,IF(OR(ISBLANK(M168),ISBLANK(N168)),0,IF(EC166="Date Range",0,IF(OR(AND(CostType=ARO,L166>ScheduleYear),N168<=ScheduleYear),0,J168)))) ->  | EM168: Cover | EN168: Cover | EO168: =IF(ISNUMBER(K168),INDEX(INDIRECT("_"&$A$165&"Table5"),B166+1,4),0) -> 0 | EP168: =IF(Metric,"m3","cy") -> cy | EQ168: =INDEX(INDIRECT("_"&$A$165&"Table5"),B166+1,10) ->  | ER168: =IF(OR(NOT(ISNUMBER(K168)),K168=0),0,INDEX(INDIRECT("_"&$A$165&"Table5"),B166+1,12)) -> 0 | ES168: =IF(OR(NOT(ISNUMBER(K168)),K168=0),0,INDEX(INDIRECT("_"&$A$165&"Table5"),B166+1,14)) -> 0 | ET168: =INDEX(INDIRECT("_"&$A$165&"Table5"),B166+1,5) ->  | EU168: =IF(OR(NOT(ISNUMBER(K168)),K168=0),0,INDEX(INDIRECT("_"&$A$165&"Table5"),B166+1,7)) -> 0 | EV168: =IF(OR(NOT(ISNUMBER(K168)),K168=0),0,INDEX(INDIRECT("_"&$A$165&"Table5"),B166+1,9)) -> 0 | EZ168: TRUE
D169: Cover 2 Placement | J169: =INDEX(INDIRECT("_"&$A$165&"Table6"),B166+1,25) -> 0 | K169: =IF(OR(J169="",K166="",ISTEXT(K166),J169=0),"",IF(OR(ISBLANK(M169),ISBLANK(N169)),"Enter Dates",IF(K166="Date Range","",IF(OR(AND(CostType=ARO,L166>ScheduleYear),AND(CostType=ARO,N169<=ScheduleYear)),"Date Range",IF(OR(CostType=Bond,CostType=ARO,AND(CostType=LOM,LOMComplete)),J169,J169-Q169))))) ->  | Q169: 0 | R169: 0 | EA169: 1 | EB169: =IF(OR(J169="",EB166="",ISTEXT(EB166)),0,IF(OR(ISBLANK(M169),ISBLANK(N169)),0,IF(OR(AND(CostType=ARO,L166>ScheduleYear),AND(OR(CostType=ARO,AND(CostType=LOM,LOMComplete=TRUE)),N169<=ScheduleYear)),0,J169))) -> 0 | EC169: =IF(OR(J169="",EC166="",ISTEXT(EC166)),0,IF(OR(ISBLANK(M169),ISBLANK(N169)),0,IF(EC166="Date Range",0,IF(OR(AND(CostType=ARO,L166>ScheduleYear),N169<=ScheduleYear),0,J169)))) ->  | EM169: Cover | EN169: Cover | EO169: =IF(ISNUMBER(K169),INDEX(INDIRECT("_"&$A$165&"Table6"),B166+1,4),0) -> 0 | EP169: =IF(Metric,"m3","cy") -> cy | EQ169: =INDEX(INDIRECT("_"&$A$165&"Table6"),B166+1,10) ->  | ER169: =IF(OR(NOT(ISNUMBER(K169)),K169=0),0,INDEX(INDIRECT("_"&$A$165&"Table6"),B166+1,12)) -> 0 | ES169: =IF(OR(NOT(ISNUMBER(K169)),K169=0),0,INDEX(INDIRECT("_"&$A$165&"Table6"),B166+1,14)) -> 0 | ET169: =INDEX(INDIRECT("_"&$A$165&"Table6"),B166+1,5) ->  | EU169: =IF(OR(NOT(ISNUMBER(K169)),K169=0),0,INDEX(INDIRECT("_"&$A$165&"Table6"),B166+1,7)) -> 0 | EV169: =IF(OR(NOT(ISNUMBER(K169)),K169=0),0,INDEX(INDIRECT("_"&$A$165&"Table6"),B166+1,9)) -> 0 | EZ169: TRUE
